{"text_format":"1","workbook":"xlsx","n_sheets":11,"sheets":["Datas","DVK","Datas O1","DVKO1","Datas 02","DVKO2","GENERAL","Bibli","Feuil3","Bibli2","Feuil1"],"not_rendered":{"charts":0,"images":42,"macros":1,"external_links":0,"defined_names":6,"comments":0,"pivot_tables":0},"unopened":[],"bounds":{"document_bytes":16777216,"sheet_cells":100000,"rows_first":2000,"rows_last":500,"rows_between":2000,"halvings":0,"cell_chars":16384,"cell_head_chars":4096},"cells_cut":0,"cells_raw":0,"read":"whole","date_system":"1900"}

{"sheet":"Datas","index":0,"n_rows":30,"n_cols":12,"rows_kept":30,"cut":false,"hidden":false,"merged":[[14,8,14,9],[18,5,19,5],[21,5,22,5]]}
["Date1","bun","Nom1","Nom2","Heure","Date2","Num","Résultat"]
[{"$f":"A10","v":"11.02.23"},"PF","X","Y",{"$f":"E10","v":"03:01:00"},{"$f":"F10","v":"2023-02-11"},{"$f":"IF(F2=\"\",\"\",MOD(SUMPRODUCT(--MID(TEXT(F2,\"jjmmaaaa\"),ROW($1:$8),1))-1,9)+1)","v":2},{"$f":"IF(HOUR(E2)>MINUTE(E2),\"X\",IF(HOUR(E2)<MINUTE(E2),\"Y\",\"NUL\"))","v":"X"},null,"Jour",null,"Lendemain"]
[{"$f":"A11","v":"24.11.23"},"PF","Y","X",{"$f":"E11","v":"05:02:00"},{"$f":"F11","v":"2023-11-24"},{"$f":"IF(F3=\"\",\"\",MOD(SUMPRODUCT(--MID(TEXT(F3,\"jjmmaaaa\"),ROW($1:$8),1))-1,9)+1)","v":6},{"$f":"IF(HOUR(E3)>MINUTE(E3),\"Y\",IF(HOUR(E3)<MINUTE(E3),\"X\",\"NUL\"))","v":"Y"},null,{"$f":"TODAY()","v":"2024-03-01"},{"$f":"(IF(J3=\"\",\"\",MOD(SUMPRODUCT(--MID(TEXT(J3,\"jjmmaaaa\"),ROW($1:$8),1))-1,9)+1))+L3","v":3}]
[null,null,null,null,null,{"$f":"IF(A4=0,\"\",DATEVALUE(SUBSTITUTE(A4,\".\",\"/\")))","v":""}]
[null,null,null,null,null,""]
[null,null,null,null,null,""]
[null,null,null,null,null,""]
[null,null,null,null,null,""]
[null,null,null,null,null,""]
[{"$f":"A$20","v":"11.02.23"},null,{"$f":"C$20","v":"Monaco"},{"$f":"D$20","v":"PSG"},{"$f":"E$20","v":"03:01:00"},{"$f":"IF(A10=0,\"\",DATEVALUE(SUBSTITUTE(A10,\".\",\"/\")))","v":"2023-02-11"},{"$f":"IF(F10=\"\",\"\",MOD(SUMPRODUCT(--MID(TEXT(F10,\"jjmmaaaa\"),ROW($1:$8),1))-1,9)+1)","v":2}]
[{"$f":"A$19","v":"24.11.23"},null,{"$f":"C$19","v":"PSG"},{"$f":"D$19","v":"Monaco"},{"$f":"E$19","v":"05:02:00"},{"$f":"IF(A11=0,\"\",DATEVALUE(SUBSTITUTE(A11,\".\",\"/\")))","v":"2023-11-24"},{"$f":"IF(F11=\"\",\"\",MOD(SUMPRODUCT(--MID(TEXT(F11,\"jjmmaaaa\"),ROW($1:$8),1))-1,9)+1)","v":6}]
[null,null,null,null,null,{"$f":"IF(A12=0,\"\",DATEVALUE(SUBSTITUTE(A12,\".\",\"/\")))","v":""},{"$f":"IF(F12=\"\",\"\",MOD(SUMPRODUCT(--MID(TEXT(F12,\"jjmmaaaa\"),ROW($1:$8),1))-1,9)+1)","v":""}]
[null,null,null,null,null,"",{"$f":"IF(F13=\"\",\"\",MOD(SUMPRODUCT(--MID(TEXT(F13,\"jjmmaaaa\"),ROW($1:$8),1))-1,9)+1)","v":""}]
[null,null,null,null,null,"",""]
[null,null,null,null,null,{"$f":"IF(A15=0,\"\",DATEVALUE(SUBSTITUTE(A15,\".\",\"/\")))","v":""},{"$f":"IF(F15=\"\",\"\",MOD(SUMPRODUCT(--MID(TEXT(F15,\"jjmmaaaa\"),ROW($1:$8),1))-1,9)+1)","v":""},{"$f":"IF(HOUR(E15)>MINUTE(E15),C15,IF(HOUR(E15)<MINUTE(E15),D15,\"NUL\"))","v":"NUL"},"C10 VAUT D15 Visiteur"]
[]
[]
[]
[{"$f":"LEFT(A$25,8)","v":"24.11.23"},null,{"$f":"A$26","v":"PSG"},{"$f":"A$29","v":"Monaco"},{"$f":"F$27","v":"05:02:00"},"A"]
[{"$f":"LEFT(A$28,8)","v":"11.02.23"},null,{"$f":"A$29","v":"Monaco"},{"$f":"A$26","v":"PSG"},{"$f":"F$30","v":"03:01:00"}]
[]
[{"$f":"A$20","v":"11.02.23"},null,{"$f":"C$20","v":"Monaco"},{"$f":"D$20","v":"PSG"},{"$f":"E$20","v":"03:01:00"},"B"]
[{"$f":"A$19","v":"24.11.23"},null,{"$f":"C$19","v":"PSG"},{"$f":"D$19","v":"Monaco"},{"$f":"E$19","v":"05:02:00"}]
[]
["24.11.23L1"]
["PSG"]
["Monaco52",null,{"$f":"RIGHT(A27,2)","v":"52"},{"$f":"LEFT(C27,1)","v":"5"},{"$f":"RIGHT(A27,1)","v":"2"},{"$f":"TIME(D27,E27,0)","v":"05:02:00"}]
["11.02.23L1"]
["Monaco"]
["PSG31",null,{"$f":"RIGHT(A30,2)","v":"31"},{"$f":"LEFT(C30,1)","v":"3"},{"$f":"RIGHT(A30,1)","v":"1"},{"$f":"TIME(D30,E30,0)","v":"03:01:00"}]

{"sheet":"DVK","index":1,"n_rows":730,"n_cols":35,"rows_kept":730,"cut":false,"hidden":false,"merged":[[1,32,1,34]]}
[null,null,null,null,null,null,null,null,null,null,null,null,null,null,null,null,null,null,null,null,null,null,null,null,null,"CONCATENER","CONCATENER",{"$f":"V2","v":"Monaco"},{"$f":"W2","v":"PSG"},"Chiffre ","ZONE"]
[null,null,null,"A =",{"$f":"Datas!G2","v":2},null,null,null,null,null,null,null,null,null,"B =",{"$f":"Datas!G3","v":6},null,null,null,null,null,{"$f":"Datas!C10","v":"Monaco"},{"$f":"Datas!D10","v":"PSG"},"Jour","Résultat",null,{"$f":"CONCATENATE(AB2,AC2,AD2)","v":"111"},1,1,1,"NUL",null,"Stats"]
[null,null,null,null,null,null,null,null,null,null,null,null,null,null,null,null,null,null,null,null,null,1,4,{"$f":"IF(V3=0,\"\",Datas!K3)","v":3},{"$f":"VLOOKUP(Z3,$AA$2:$AE$1000,5,FALSE)","v":"PSG"},{"$f":"CONCATENATE(V3,W3,X3)","v":"143"},{"$f":"CONCATENATE(AB3,AC3,AD3)","v":"222"},2,2,2,"NUL",null,{"$f":"V2","v":"Monaco"},{"$f":"W2","v":"PSG"},"NUL"]
[null,null,null,null,null,null,null,null,null,null,null,null,null,null,null,null,null,null,null,null,null,1,5,{"$f":"IF(V4=0,\"\",Datas!K3)","v":3},{"$f":"VLOOKUP(Z4,$AA$2:$AE$1000,5,FALSE)","v":"NUL"},{"$f":"CONCATENATE(V4,W4,X4)","v":"153"},"333",3,3,3,"NUL",null,{"$f":"COUNTIF($Y$3:$Y$50,AG3)/COUNTIF($Y$3:$Y$50,\"><\")","v":0.7142857142857143},{"$f":"COUNTIF($Y$3:$Y$50,AH3)/COUNTIF($Y$3:$Y$50,\"><\")","v":0.14285714285714285},{"$f":"COUNTIF($Y$3:$Y$50,AI3)/COUNTIF($Y$3:$Y$50,\"><\")","v":0.14285714285714285}]
[null,null,null,null,null,null,null,null,null,null,null,null,null,null,null,null,null,null,null,null,null,1,6,{"$f":"IF(V5=0,\"\",Datas!K3)","v":3},{"$f":"VLOOKUP(Z5,$AA$2:$AE$1000,5,FALSE)","v":"Monaco"},{"$f":"CONCATENATE(V5,W5,X5)","v":"163"},"444",4,4,4,"NUL"]
[null,null,null,null,null,null,null,null,null,null,null,null,null,null,null,null,null,null,null,null,null,1,7,{"$f":"IF(V6=0,\"\",Datas!K3)","v":3},"Monaco",{"$f":"CONCATENATE(V6,W6,X6)","v":"173"},"555",5,5,5,"NUL"]
[null,null,null,null,null,null,null,null,null,null,null,null,null,null,null,null,null,null,null,null,null,2,5,{"$f":"IF(V7=0,\"\",Datas!K3)","v":3},"Monaco",{"$f":"CONCATENATE(V7,W7,X7)","v":"253"},"666",6,6,6,"NUL"]
[null,null,null,null,null,null,null,null,null,null,null,null,null,null,null,null,null,null,null,null,null,2,6,{"$f":"IF(V8=0,\"\",Datas!K3)","v":3},{"$f":"VLOOKUP(Z8,$AA$2:$AE$1000,5,FALSE)","v":"Monaco"},{"$f":"CONCATENATE(V8,W8,X8)","v":"263"},"777",7,7,7,"NUL"]
[null,null,null,null,null,null,null,null,null,null,null,null,null,null,null,null,null,null,null,null,null,2,7,{"$f":"IF(V9=0,\"\",Datas!K3)","v":3},{"$f":"VLOOKUP(Z9,$AA$2:$AE$1000,5,FALSE)","v":"Monaco"},"273","888",8,8,8,"NUL"]
[null,null,null,null,1,2,3,4,5,6,7,8,9,"M",{"$f":"V2","v":"Monaco"},null,null,null,null,null,null,2,8,{"$f":"IF(V10=0,\"\",Datas!K3)","v":3},"Monaco",{"$f":"CONCATENATE(V10,W10,X10)","v":"283"},"999",9,9,9,"NUL"]
[null,null,null,1,{"$f":"NBRèglesVraies(E$10,$D11,$E$2,$P$2)","v":1},{"$f":"NBRèglesVraies(F$10,$D11,$E$2,$P$2)","v":1},{"$f":"NBRèglesVraies(G$10,$D11,$E$2,$P$2)","v":0},{"$f":"NBRèglesVraies(H$10,$D11,$E$2,$P$2)","v":0},{"$f":"NBRèglesVraies(I$10,$D11,$E$2,$P$2)","v":0},{"$f":"NBRèglesVraies(J$10,$D11,$E$2,$P$2)","v":0},0,0,1,null,null,null,null,null,null,null,null,3,6,{"$f":"IF(V11=0,\"\",Datas!K3)","v":3},"Monaco","363","112",1,1,2,"NUL"]
[null,null,null,2,{"$f":"NBRèglesVraies(E$10,$D12,$E$2,$P$2)","v":1},{"$f":"NBRèglesVraies(F$10,$D12,$E$2,$P$2)","v":1},{"$f":"NBRèglesVraies(G$10,$D12,$E$2,$P$2)","v":1},{"$f":"NBRèglesVraies(H$10,$D12,$E$2,$P$2)","v":0},0,0,0,0,0,null,null,null,null,null,null,null,null,3,7,{"$f":"IF(V12=0,\"\",Datas!K3)","v":3},"Monaco","373","113",1,1,3,{"$f":"AB1","v":"Monaco"}]
[null,null,null,3,1,1,1,1,0,0,0,0,0,null,null,null,null,null,null,null,null,3,8,{"$f":"IF(V13=0,\"\",Datas!K3)","v":3},"Monaco","383","114",1,1,4,{"$f":"AC1","v":"PSG"}]
[null,null,null,4,2,1,1,1,{"$f":"NBRèglesVraies(I$10,$D14,$E$2,$P$2)","v":1},0,0,0,1,null,null,null,null,null,null,null,null,4,7,{"$f":"IF(V14=0,\"\",Datas!K3)","v":3},"Monaco","473","115",1,1,5,{"$f":"AB1","v":"Monaco"}]
[null,null,null,5,2,2,1,1,1,1,0,1,2,null,null,null,null,null,null,null,null,9,5,{"$f":"IF(V15=0,\"\",Datas!K3)","v":3},"PSG","953","116",1,1,6,{"$f":"AB1","v":"Monaco"}]
[null,null,null,6,2,2,2,1,1,0,0,1,2,null,null,null,null,null,null,null,null,9,6,{"$f":"IF(V16=0,\"\",Datas!K3)","v":3},"NUL","963","117",1,1,7,{"$f":"AC1","v":"PSG"}]
[null,null,null,7,2,2,2,2,0,0,1,1,1,null,null,null,null,null,null,null,null,null,null,{"$f":"IF(V17=0,\"\",Datas!K3)","v":""},{"$error":"#N/A"},"","118",1,1,8,{"$f":"AB1","v":"Monaco"}]
[null,null,null,8,1,2,2,1,0,0,1,1,1,null,null,null,null,null,null,null,null,null,null,{"$f":"IF(V18=0,\"\",Datas!K3)","v":""},{"$error":"#N/A"},"","119",1,1,9,"NUL"]
[null,null,null,9,1,1,1,0,0,0,0,1,1,null,null,null,null,null,null,null,null,null,null,{"$f":"IF(V19=0,\"\",Datas!K3)","v":""},{"$error":"#N/A"},"","121",1,2,1,{"$f":"AB1","v":"Monaco"}]
[null,null,null,"N",null,{"$f":"W2","v":"PSG"},null,null,null,null,null,null,null,null,null,null,null,null,null,null,null,null,null,{"$f":"IF(V20=0,\"\",Datas!K3)","v":""},{"$f":"VLOOKUP(Z20,$AA$2:$AE$1000,5,FALSE)","v":{"$error":"#N/A"}},"","122",1,2,2,{"$f":"AC1","v":"PSG"}]
[null,null,null,null,null,null,null,null,null,null,null,null,null,null,null,null,null,null,null,null,null,null,null,{"$f":"IF(V21=0,\"\",Datas!K3)","v":""},{"$error":"#N/A"},"","123",1,2,3,{"$f":"AC1","v":"PSG"}]
[null,null,null,null,null,null,null,null,null,null,null,null,null,null,null,null,null,null,null,null,null,null,null,{"$f":"IF(V22=0,\"\",Datas!K3)","v":""},{"$error":"#N/A"},"","124",1,2,4,{"$f":"AC1","v":"PSG"}]
[null,null,null,null,null,null,null,null,null,null,null,null,null,null,null,null,null,null,null,null,null,null,null,{"$f":"IF(V23=0,\"\",Datas!K3)","v":""},{"$error":"#N/A"},"","125",1,2,5,{"$f":"AC1","v":"PSG"}]
[null,null,null,null,null,null,null,null,null,null,null,null,null,null,null,null,null,null,null,null,null,null,null,{"$f":"IF(V24=0,\"\",Datas!K3)","v":""},{"$error":"#N/A"},"","126",1,2,6,"NUL"]
[null,null,null,null,null,null,null,null,null,null,null,null,null,null,null,null,null,null,null,null,null,null,null,{"$f":"IF(V25=0,\"\",Datas!K3)","v":""},{"$error":"#N/A"},"","127",1,2,7,{"$f":"AB1","v":"Monaco"}]
[null,null,null,null,null,null,null,null,null,null,null,null,null,null,null,null,null,null,null,null,null,null,null,{"$f":"IF(V26=0,\"\",Datas!K3)","v":""},{"$error":"#N/A"},"","128",1,2,8,{"$f":"AB1","v":"Monaco"}]
[null,null,null,null,null,null,null,null,null,null,null,null,null,null,null,null,null,null,null,null,null,null,null,{"$f":"IF(V27=0,\"\",Datas!K3)","v":""},{"$error":"#N/A"},"","129",1,2,9,{"$f":"AB1","v":"Monaco"}]
[null,null,null,null,null,null,null,null,null,null,null,null,null,null,null,null,null,null,null,null,null,null,null,{"$f":"IF(V28=0,\"\",Datas!K3)","v":""},{"$error":"#N/A"},"","131",1,3,1,{"$f":"AB1","v":"Monaco"}]
[null,null,null,null,null,null,null,null,null,null,null,null,null,null,null,null,null,null,null,null,null,null,null,{"$f":"IF(V29=0,\"\",Datas!K3)","v":""},{"$error":"#N/A"},"","132",1,3,2,"NUL"]
[null,null,null,null,null,null,null,null,null,null,null,null,null,null,null,null,null,null,null,null,null,null,null,{"$f":"IF(V30=0,\"\",Datas!K3)","v":""},{"$error":"#N/A"},"","133",1,3,3,{"$f":"AC1","v":"PSG"}]
[null,null,null,null,null,null,null,null,null,null,null,null,null,null,null,null,null,null,null,null,null,null,null,null,null,null,{"$f":"CONCATENATE(AB31,AC31,AD31)","v":"134"},1,3,4,{"$f":"AC1","v":"PSG"}]
[null,null,null,null,null,null,null,null,null,null,null,null,null,null,null,null,null,null,null,null,null,null,null,null,null,null,{"$f":"CONCATENATE(AB32,AC32,AD32)","v":"135"},1,3,5,{"$f":"AC1","v":"PSG"}]
[null,null,null,null,null,null,null,null,null,null,null,null,null,null,null,null,null,null,null,null,null,null,null,null,null,null,"136",1,3,6,{"$f":"AC1","v":"PSG"}]
[null,null,null,null,null,null,null,null,null,null,null,null,null,null,null,null,null,null,null,null,null,null,null,null,null,null,"137",1,3,7,{"$f":"AB1","v":"Monaco"}]
[null,null,null,null,null,null,null,null,null,null,null,null,null,null,null,null,null,null,null,null,null,null,null,null,null,null,"138",1,3,8,{"$f":"AB1","v":"Monaco"}]
[null,null,null,null,null,null,null,null,null,null,null,null,null,null,null,null,null,null,null,null,null,null,null,null,null,null,"139",1,3,9,{"$f":"AB1","v":"Monaco"}]
[null,null,null,null,null,null,null,null,null,null,null,null,null,null,null,null,null,null,null,null,null,null,null,null,null,null,"141",1,4,1,{"$f":"AB1","v":"Monaco"}]
[null,null,null,null,null,null,null,null,null,null,null,null,null,null,null,null,null,null,null,null,null,null,null,null,null,null,"142",1,4,2,{"$f":"AB1","v":"Monaco"}]
[null,null,null,null,null,null,null,null,null,null,null,null,null,null,null,null,null,null,null,null,null,null,null,null,null,null,"143",1,4,3,{"$f":"AC1","v":"PSG"}]
[null,null,null,null,null,null,null,null,null,null,null,null,null,null,null,null,null,null,null,null,null,null,null,null,null,null,"144",1,4,4,{"$f":"AC1","v":"PSG"}]
[null,null,null,null,null,null,null,null,null,null,null,null,null,null,null,null,null,null,null,null,null,null,null,null,null,null,"145",1,4,5,{"$f":"AC1","v":"PSG"}]
[null,null,null,null,null,null,null,null,null,null,null,null,null,null,null,null,null,null,null,null,null,null,null,null,null,null,"146",1,4,6,{"$f":"AC1","v":"PSG"}]
[null,null,null,null,null,null,null,null,null,null,null,null,null,null,null,null,null,null,null,null,null,null,null,null,null,null,"147",1,4,7,"NUL"]
[null,null,null,null,null,null,null,null,null,null,null,null,null,null,null,null,null,null,null,null,null,null,null,null,null,null,"148",1,4,8,{"$f":"AB1","v":"Monaco"}]
[null,null,null,null,null,null,null,null,null,null,null,null,null,null,null,null,null,null,null,null,null,null,null,null,null,null,"149",1,4,9,{"$f":"AB1","v":"Monaco"}]
[null,null,null,null,null,null,null,null,null,null,null,null,null,null,null,null,null,null,null,null,null,null,null,null,null,null,"151",1,5,1,{"$f":"AB1","v":"Monaco"}]
[null,null,null,null,null,null,null,null,null,null,null,null,null,null,null,null,null,null,null,null,null,null,null,null,null,null,"152",1,5,2,{"$f":"AB1","v":"Monaco"}]
[null,null,null,null,null,null,null,null,null,null,null,null,null,null,null,null,null,null,null,null,null,null,null,null,null,null,"153",1,5,3,"NUL"]
[null,null,null,null,null,null,null,null,null,null,null,null,null,null,null,null,null,null,null,null,null,null,null,null,null,null,"154",1,5,4,{"$f":"AC1","v":"PSG"}]
[null,null,null,null,null,null,null,null,null,null,null,null,null,null,null,null,null,null,null,null,null,null,null,null,null,null,"155",1,5,5,{"$f":"AC1","v":"PSG"}]
[null,null,null,null,null,null,null,null,null,null,null,null,null,null,null,null,null,null,null,null,null,null,null,null,null,null,"156",1,5,6,{"$f":"AC1","v":"PSG"}]
[null,null,null,null,null,null,null,null,null,null,null,null,null,null,null,null,null,null,null,null,null,null,null,null,null,null,"157",1,5,7,{"$f":"AC1","v":"PSG"}]
[null,null,null,null,null,null,null,null,null,null,null,null,null,null,null,null,null,null,null,null,null,null,null,null,null,null,"158",1,5,8,{"$f":"AB1","v":"Monaco"}]
[null,null,null,null,null,null,null,null,null,null,null,null,null,null,null,null,null,null,null,null,null,null,null,null,null,null,"159",1,5,9,{"$f":"AB1","v":"Monaco"}]
[null,null,null,null,null,null,null,null,null,null,null,null,null,null,null,null,null,null,null,null,null,null,null,null,null,null,"161",1,6,1,{"$f":"AB1","v":"Monaco"}]
[null,null,null,null,null,null,null,null,null,null,null,null,null,null,null,null,null,null,null,null,null,null,null,null,null,null,"162",1,6,2,{"$f":"AB1","v":"Monaco"}]
[null,null,null,null,null,null,null,null,null,null,null,null,null,null,null,null,null,null,null,null,null,null,null,null,null,null,"163",1,6,3,{"$f":"AB1","v":"Monaco"}]
[null,null,null,null,null,null,null,null,null,null,null,null,null,null,null,null,null,null,null,null,null,null,null,null,null,null,"164",1,6,4,{"$f":"AC1","v":"PSG"}]
[null,null,null,null,null,null,null,null,null,null,null,null,null,null,null,null,null,null,null,null,null,null,null,null,null,null,"165",1,6,5,{"$f":"AC1","v":"PSG"}]
[null,null,null,null,null,null,null,null,null,null,null,null,null,null,null,null,null,null,null,null,null,null,null,null,null,null,"166",1,6,6,{"$f":"AC1","v":"PSG"}]
[null,null,null,null,null,null,null,null,null,null,null,null,null,null,null,null,null,null,null,null,null,null,null,null,null,null,"167",1,6,7,{"$f":"AC1","v":"PSG"}]
[null,null,null,null,null,null,null,null,null,null,null,null,null,null,null,null,null,null,null,null,null,null,null,null,null,null,"168",1,6,8,"NUL"]
[null,null,null,null,null,null,null,null,null,null,null,null,null,null,null,null,null,null,null,null,null,null,null,null,null,null,"169",1,6,9,{"$f":"AB1","v":"Monaco"}]
[null,null,null,null,null,null,null,null,null,null,null,null,null,null,null,null,null,null,null,null,null,null,null,null,null,null,"171",1,7,1,{"$f":"AB1","v":"Monaco"}]
[null,null,null,null,null,null,null,null,null,null,null,null,null,null,null,null,null,null,null,null,null,null,null,null,null,null,"172",1,7,2,{"$f":"AB1","v":"Monaco"}]
[null,null,null,null,null,null,null,null,null,null,null,null,null,null,null,null,null,null,null,null,null,null,null,null,null,null,"173",1,7,3,{"$f":"AB1","v":"Monaco"}]
[null,null,null,null,null,null,null,null,null,null,null,null,null,null,null,null,null,null,null,null,null,null,null,null,null,null,{"$f":"CONCATENATE(AB67,AC67,AD67)","v":"174"},1,7,4,"NUL"]
[null,null,null,null,null,null,null,null,null,null,null,null,null,null,null,null,null,null,null,null,null,null,null,null,null,null,"175",1,7,5,{"$f":"AC1","v":"PSG"}]
[null,null,null,null,null,null,null,null,null,null,null,null,null,null,null,null,null,null,null,null,null,null,null,null,null,null,"176",1,7,6,{"$f":"AC1","v":"PSG"}]
[null,null,null,null,null,null,null,null,null,null,null,null,null,null,null,null,null,null,null,null,null,null,null,null,null,null,"177",1,7,7,{"$f":"AC1","v":"PSG"}]
[null,null,null,null,null,null,null,null,null,null,null,null,null,null,null,null,null,null,null,null,null,null,null,null,null,null,"178",1,7,8,{"$f":"AC1","v":"PSG"}]
[null,null,null,null,null,null,null,null,null,null,null,null,null,null,null,null,null,null,null,null,null,null,null,null,null,null,"179",1,7,9,{"$f":"AB1","v":"Monaco"}]
[null,null,null,null,null,null,null,null,null,null,null,null,null,null,null,null,null,null,null,null,null,null,null,null,null,null,"181",1,8,1,{"$f":"AB1","v":"Monaco"}]
[null,null,null,null,null,null,null,null,null,null,null,null,null,null,null,null,null,null,null,null,null,null,null,null,null,null,"182",1,8,2,{"$f":"AB1","v":"Monaco"}]
[null,null,null,null,null,null,null,null,null,null,null,null,null,null,null,null,null,null,null,null,null,null,null,null,null,null,"183",1,8,3,{"$f":"AB1","v":"Monaco"}]
[null,null,null,null,null,null,null,null,null,null,null,null,null,null,null,null,null,null,null,null,null,null,null,null,null,null,"184",1,8,4,{"$f":"AB1","v":"Monaco"}]
[null,null,null,null,null,null,null,null,null,null,null,null,null,null,null,null,null,null,null,null,null,null,null,null,null,null,"185",1,8,5,{"$f":"AC1","v":"PSG"}]
[null,null,null,null,null,null,null,null,null,null,null,null,null,null,null,null,null,null,null,null,null,null,null,null,null,null,"186",1,8,6,{"$f":"AC1","v":"PSG"}]
[null,null,null,null,null,null,null,null,null,null,null,null,null,null,null,null,null,null,null,null,null,null,null,null,null,null,"187",1,8,7,{"$f":"AC1","v":"PSG"}]
[null,null,null,null,null,null,null,null,null,null,null,null,null,null,null,null,null,null,null,null,null,null,null,null,null,null,"188",1,8,8,{"$f":"AC1","v":"PSG"}]
[null,null,null,null,null,null,null,null,null,null,null,null,null,null,null,null,null,null,null,null,null,null,null,null,null,null,"189",1,8,9,"NUL"]
[null,null,null,null,null,null,null,null,null,null,null,null,null,null,null,null,null,null,null,null,null,null,null,null,null,null,"191",1,9,1,{"$f":"AB1","v":"Monaco"}]
[null,null,null,null,null,null,null,null,null,null,null,null,null,null,null,null,null,null,null,null,null,null,null,null,null,null,"192",1,9,2,{"$f":"AB1","v":"Monaco"}]
[null,null,null,null,null,null,null,null,null,null,null,null,null,null,null,null,null,null,null,null,null,null,null,null,null,null,"193",1,9,3,{"$f":"AB1","v":"Monaco"}]
[null,null,null,null,null,null,null,null,null,null,null,null,null,null,null,null,null,null,null,null,null,null,null,null,null,null,"194",1,9,4,{"$f":"AB1","v":"Monaco"}]
[null,null,null,null,null,null,null,null,null,null,null,null,null,null,null,null,null,null,null,null,null,null,null,null,null,null,"195",1,9,5,"NUL"]
[null,null,null,null,null,null,null,null,null,null,null,null,null,null,null,null,null,null,null,null,null,null,null,null,null,null,"196",1,9,6,{"$f":"AC1","v":"PSG"}]
[null,null,null,null,null,null,null,null,null,null,null,null,null,null,null,null,null,null,null,null,null,null,null,null,null,null,"197",1,9,7,{"$f":"AC1","v":"PSG"}]
[null,null,null,null,null,null,null,null,null,null,null,null,null,null,null,null,null,null,null,null,null,null,null,null,null,null,"198",1,9,8,{"$f":"AC1","v":"PSG"}]
[null,null,null,null,null,null,null,null,null,null,null,null,null,null,null,null,null,null,null,null,null,null,null,null,null,null,"199",1,9,9,{"$f":"AC1","v":"PSG"}]
[null,null,null,null,null,null,null,null,null,null,null,null,null,null,null,null,null,null,null,null,null,null,null,null,null,null,"211",2,1,1,{"$f":"AC1","v":"PSG"}]
[null,null,null,null,null,null,null,null,null,null,null,null,null,null,null,null,null,null,null,null,null,null,null,null,null,null,"212",2,1,2,{"$f":"AB1","v":"Monaco"}]
[null,null,null,null,null,null,null,null,null,null,null,null,null,null,null,null,null,null,null,null,null,null,null,null,null,null,"213",2,1,3,{"$f":"AB1","v":"Monaco"}]
[null,null,null,null,null,null,null,null,null,null,null,null,null,null,null,null,null,null,null,null,null,null,null,null,null,null,"214",2,1,4,{"$f":"AB1","v":"Monaco"}]
[null,null,null,null,null,null,null,null,null,null,null,null,null,null,null,null,null,null,null,null,null,null,null,null,null,null,"215",2,1,5,{"$f":"AB1","v":"Monaco"}]
[null,null,null,null,null,null,null,null,null,null,null,null,null,null,null,null,null,null,null,null,null,null,null,null,null,null,"216",2,1,6,"NUL"]
[null,null,null,null,null,null,null,null,null,null,null,null,null,null,null,null,null,null,null,null,null,null,null,null,null,null,"217",2,1,7,{"$f":"AC1","v":"PSG"}]
[null,null,null,null,null,null,null,null,null,null,null,null,null,null,null,null,null,null,null,null,null,null,null,null,null,null,"218",2,1,8,{"$f":"AC1","v":"PSG"}]
[null,null,null,null,null,null,null,null,null,null,null,null,null,null,null,null,null,null,null,null,null,null,null,null,null,null,"219",2,1,9,{"$f":"AC1","v":"PSG"}]
[null,null,null,null,null,null,null,null,null,null,null,null,null,null,null,null,null,null,null,null,null,null,null,null,null,null,"221",2,2,1,"NUL"]
[null,null,null,null,null,null,null,null,null,null,null,null,null,null,null,null,null,null,null,null,null,null,null,null,null,null,"223",2,2,3,"NUL"]
[null,null,null,null,null,null,null,null,null,null,null,null,null,null,null,null,null,null,null,null,null,null,null,null,null,null,"224",2,2,4,{"$f":"AB1","v":"Monaco"}]
[null,null,null,null,null,null,null,null,null,null,null,null,null,null,null,null,null,null,null,null,null,null,null,null,null,null,"225",2,2,5,{"$f":"AC1","v":"PSG"}]
[null,null,null,null,null,null,null,null,null,null,null,null,null,null,null,null,null,null,null,null,null,null,null,null,null,null,"226",2,2,6,{"$f":"AB1","v":"Monaco"}]
[null,null,null,null,null,null,null,null,null,null,null,null,null,null,null,null,null,null,null,null,null,null,null,null,null,null,"227",2,2,7,{"$f":"AB1","v":"Monaco"}]
[null,null,null,null,null,null,null,null,null,null,null,null,null,null,null,null,null,null,null,null,null,null,null,null,null,null,"228",2,2,8,{"$f":"AC1","v":"PSG"}]
[null,null,null,null,null,null,null,null,null,null,null,null,null,null,null,null,null,null,null,null,null,null,null,null,null,null,"229",2,2,9,{"$f":"AB1","v":"Monaco"}]
[null,null,null,null,null,null,null,null,null,null,null,null,null,null,null,null,null,null,null,null,null,null,null,null,null,null,"231",2,3,1,{"$f":"AB1","v":"Monaco"}]
[null,null,null,null,null,null,null,null,null,null,null,null,null,null,null,null,null,null,null,null,null,null,null,null,null,null,"232",2,3,2,{"$f":"AB1","v":"Monaco"}]
[null,null,null,null,null,null,null,null,null,null,null,null,null,null,null,null,null,null,null,null,null,null,null,null,null,null,"233",2,3,3,{"$f":"AC1","v":"PSG"}]
[null,null,null,null,null,null,null,null,null,null,null,null,null,null,null,null,null,null,null,null,null,null,null,null,null,null,"234",2,3,4,{"$f":"AC1","v":"PSG"}]
[null,null,null,null,null,null,null,null,null,null,null,null,null,null,null,null,null,null,null,null,null,null,null,null,null,null,"235",2,3,5,{"$f":"AC1","v":"PSG"}]
[null,null,null,null,null,null,null,null,null,null,null,null,null,null,null,null,null,null,null,null,null,null,null,null,null,null,"236",2,3,6,{"$f":"AC1","v":"PSG"}]
[null,null,null,null,null,null,null,null,null,null,null,null,null,null,null,null,null,null,null,null,null,null,null,null,null,null,"237",2,3,7,"NUL"]
[null,null,null,null,null,null,null,null,null,null,null,null,null,null,null,null,null,null,null,null,null,null,null,null,null,null,"238",2,3,8,{"$f":"AB1","v":"Monaco"}]
[null,null,null,null,null,null,null,null,null,null,null,null,null,null,null,null,null,null,null,null,null,null,null,null,null,null,"239",2,3,9,{"$f":"AB1","v":"Monaco"}]
[null,null,null,null,null,null,null,null,null,null,null,null,null,null,null,null,null,null,null,null,null,null,null,null,null,null,"241",2,4,1,{"$f":"AB1","v":"Monaco"}]
[null,null,null,null,null,null,null,null,null,null,null,null,null,null,null,null,null,null,null,null,null,null,null,null,null,null,"242",2,4,2,{"$f":"AB1","v":"Monaco"}]
[null,null,null,null,null,null,null,null,null,null,null,null,null,null,null,null,null,null,null,null,null,null,null,null,null,null,"243",2,4,3,"NUL"]
[null,null,null,null,null,null,null,null,null,null,null,null,null,null,null,null,null,null,null,null,null,null,null,null,null,null,"244",2,4,4,{"$f":"AC1","v":"PSG"}]
[null,null,null,null,null,null,null,null,null,null,null,null,null,null,null,null,null,null,null,null,null,null,null,null,null,null,"245",2,4,5,{"$f":"AC1","v":"PSG"}]
[null,null,null,null,null,null,null,null,null,null,null,null,null,null,null,null,null,null,null,null,null,null,null,null,null,null,"246",2,4,6,{"$f":"AC1","v":"PSG"}]
[null,null,null,null,null,null,null,null,null,null,null,null,null,null,null,null,null,null,null,null,null,null,null,null,null,null,"247",2,4,7,{"$f":"AC1","v":"PSG"}]
[null,null,null,null,null,null,null,null,null,null,null,null,null,null,null,null,null,null,null,null,null,null,null,null,null,null,"248",2,4,8,{"$f":"AB1","v":"Monaco"}]
[null,null,null,null,null,null,null,null,null,null,null,null,null,null,null,null,null,null,null,null,null,null,null,null,null,null,"249",2,4,9,{"$f":"AB1","v":"Monaco"}]
[null,null,null,null,null,null,null,null,null,null,null,null,null,null,null,null,null,null,null,null,null,null,null,null,null,null,"251",2,5,1,{"$f":"AB1","v":"Monaco"}]
[null,null,null,null,null,null,null,null,null,null,null,null,null,null,null,null,null,null,null,null,null,null,null,null,null,null,"252",2,5,2,{"$f":"AB1","v":"Monaco"}]
[null,null,null,null,null,null,null,null,null,null,null,null,null,null,null,null,null,null,null,null,null,null,null,null,null,null,"253",2,5,3,{"$f":"AB1","v":"Monaco"}]
[null,null,null,null,null,null,null,null,null,null,null,null,null,null,null,null,null,null,null,null,null,null,null,null,null,null,"254",2,5,4,{"$f":"AC1","v":"PSG"}]
[null,null,null,null,null,null,null,null,null,null,null,null,null,null,null,null,null,null,null,null,null,null,null,null,null,null,"255",2,5,5,{"$f":"AC1","v":"PSG"}]
[null,null,null,null,null,null,null,null,null,null,null,null,null,null,null,null,null,null,null,null,null,null,null,null,null,null,{"$f":"CONCATENATE(AB131,AC131,AD131)","v":"256"},2,5,6,{"$f":"AC1","v":"PSG"}]
[null,null,null,null,null,null,null,null,null,null,null,null,null,null,null,null,null,null,null,null,null,null,null,null,null,null,"257",2,5,7,{"$f":"AC1","v":"PSG"}]
[null,null,null,null,null,null,null,null,null,null,null,null,null,null,null,null,null,null,null,null,null,null,null,null,null,null,"258",2,5,8,"NUL"]
[null,null,null,null,null,null,null,null,null,null,null,null,null,null,null,null,null,null,null,null,null,null,null,null,null,null,"259",2,5,9,{"$f":"AB1","v":"Monaco"}]
[null,null,null,null,null,null,null,null,null,null,null,null,null,null,null,null,null,null,null,null,null,null,null,null,null,null,"261",2,6,1,{"$f":"AB1","v":"Monaco"}]
[null,null,null,null,null,null,null,null,null,null,null,null,null,null,null,null,null,null,null,null,null,null,null,null,null,null,"262",2,6,2,{"$f":"AB1","v":"Monaco"}]
[null,null,null,null,null,null,null,null,null,null,null,null,null,null,null,null,null,null,null,null,null,null,null,null,null,null,"263",2,6,3,{"$f":"AB1","v":"Monaco"}]
[null,null,null,null,null,null,null,null,null,null,null,null,null,null,null,null,null,null,null,null,null,null,null,null,null,null,"264",2,6,4,"NUL"]
[null,null,null,null,null,null,null,null,null,null,null,null,null,null,null,null,null,null,null,null,null,null,null,null,null,null,"265",2,6,5,{"$f":"AC1","v":"PSG"}]
[null,null,null,null,null,null,null,null,null,null,null,null,null,null,null,null,null,null,null,null,null,null,null,null,null,null,"266",2,6,6,{"$f":"AC1","v":"PSG"}]
[null,null,null,null,null,null,null,null,null,null,null,null,null,null,null,null,null,null,null,null,null,null,null,null,null,null,"267",2,6,7,{"$f":"AC1","v":"PSG"}]
[null,null,null,null,null,null,null,null,null,null,null,null,null,null,null,null,null,null,null,null,null,null,null,null,null,null,"268",2,6,8,{"$f":"AC1","v":"PSG"}]
[null,null,null,null,null,null,null,null,null,null,null,null,null,null,null,null,null,null,null,null,null,null,null,null,null,null,"269",2,6,9,{"$f":"AB1","v":"Monaco"}]
[null,null,null,null,null,null,null,null,null,null,null,null,null,null,null,null,null,null,null,null,null,null,null,null,null,null,"271",2,7,1,{"$f":"AB1","v":"Monaco"}]
[null,null,null,null,null,null,null,null,null,null,null,null,null,null,null,null,null,null,null,null,null,null,null,null,null,null,"272",2,7,2,{"$f":"AB1","v":"Monaco"}]
[null,null,null,null,null,null,null,null,null,null,null,null,null,null,null,null,null,null,null,null,null,null,null,null,null,null,"273",2,7,3,{"$f":"AB1","v":"Monaco"}]
[null,null,null,null,null,null,null,null,null,null,null,null,null,null,null,null,null,null,null,null,null,null,null,null,null,null,"274",2,7,4,{"$f":"AB1","v":"Monaco"}]
[null,null,null,null,null,null,null,null,null,null,null,null,null,null,null,null,null,null,null,null,null,null,null,null,null,null,"275",2,7,5,{"$f":"AC1","v":"PSG"}]
[null,null,null,null,null,null,null,null,null,null,null,null,null,null,null,null,null,null,null,null,null,null,null,null,null,null,"276",2,7,6,{"$f":"AC1","v":"PSG"}]
[null,null,null,null,null,null,null,null,null,null,null,null,null,null,null,null,null,null,null,null,null,null,null,null,null,null,"277",2,7,7,{"$f":"AC1","v":"PSG"}]
[null,null,null,null,null,null,null,null,null,null,null,null,null,null,null,null,null,null,null,null,null,null,null,null,null,null,"278",2,7,8,{"$f":"AC1","v":"PSG"}]
[null,null,null,null,null,null,null,null,null,null,null,null,null,null,null,null,null,null,null,null,null,null,null,null,null,null,"279",2,7,9,"NUL"]
[null,null,null,null,null,null,null,null,null,null,null,null,null,null,null,null,null,null,null,null,null,null,null,null,null,null,"281",2,8,1,{"$f":"AB1","v":"Monaco"}]
[null,null,null,null,null,null,null,null,null,null,null,null,null,null,null,null,null,null,null,null,null,null,null,null,null,null,"282",2,8,2,{"$f":"AB1","v":"Monaco"}]
[null,null,null,null,null,null,null,null,null,null,null,null,null,null,null,null,null,null,null,null,null,null,null,null,null,null,"283",2,8,3,{"$f":"AB1","v":"Monaco"}]
[null,null,null,null,null,null,null,null,null,null,null,null,null,null,null,null,null,null,null,null,null,null,null,null,null,null,"284",2,8,4,{"$f":"AB1","v":"Monaco"}]
[null,null,null,null,null,null,null,null,null,null,null,null,null,null,null,null,null,null,null,null,null,null,null,null,null,null,"285",2,8,5,"NUL"]
[null,null,null,null,null,null,null,null,null,null,null,null,null,null,null,null,null,null,null,null,null,null,null,null,null,null,"286",2,8,6,{"$f":"AC1","v":"PSG"}]
[null,null,null,null,null,null,null,null,null,null,null,null,null,null,null,null,null,null,null,null,null,null,null,null,null,null,"287",2,8,7,{"$f":"AC1","v":"PSG"}]
[null,null,null,null,null,null,null,null,null,null,null,null,null,null,null,null,null,null,null,null,null,null,null,null,null,null,"288",2,8,8,{"$f":"AC1","v":"PSG"}]
[null,null,null,null,null,null,null,null,null,null,null,null,null,null,null,null,null,null,null,null,null,null,null,null,null,null,"289",2,8,9,{"$f":"AC1","v":"PSG"}]
[null,null,null,null,null,null,null,null,null,null,null,null,null,null,null,null,null,null,null,null,null,null,null,null,null,null,"291",2,9,1,"NUL"]
[null,null,null,null,null,null,null,null,null,null,null,null,null,null,null,null,null,null,null,null,null,null,null,null,null,null,"292",2,9,2,{"$f":"AB1","v":"Monaco"}]
[null,null,null,null,null,null,null,null,null,null,null,null,null,null,null,null,null,null,null,null,null,null,null,null,null,null,"293",2,9,3,{"$f":"AB1","v":"Monaco"}]
[null,null,null,null,null,null,null,null,null,null,null,null,null,null,null,null,null,null,null,null,null,null,null,null,null,null,"294",2,9,4,{"$f":"AB1","v":"Monaco"}]
[null,null,null,null,null,null,null,null,null,null,null,null,null,null,null,null,null,null,null,null,null,null,null,null,null,null,"295",2,9,5,{"$f":"AB1","v":"Monaco"}]
[null,null,null,null,null,null,null,null,null,null,null,null,null,null,null,null,null,null,null,null,null,null,null,null,null,null,"296",2,9,6,{"$f":"AC1","v":"PSG"}]
[null,null,null,null,null,null,null,null,null,null,null,null,null,null,null,null,null,null,null,null,null,null,null,null,null,null,"297",2,9,7,{"$f":"AC1","v":"PSG"}]
[null,null,null,null,null,null,null,null,null,null,null,null,null,null,null,null,null,null,null,null,null,null,null,null,null,null,"298",2,9,8,{"$f":"AC1","v":"PSG"}]
[null,null,null,null,null,null,null,null,null,null,null,null,null,null,null,null,null,null,null,null,null,null,null,null,null,null,"299",2,9,9,{"$f":"AC1","v":"PSG"}]
[null,null,null,null,null,null,null,null,null,null,null,null,null,null,null,null,null,null,null,null,null,null,null,null,null,null,"311",3,1,1,{"$f":"AC1","v":"PSG"}]
[null,null,null,null,null,null,null,null,null,null,null,null,null,null,null,null,null,null,null,null,null,null,null,null,null,null,"312",3,1,2,"NUL"]
[null,null,null,null,null,null,null,null,null,null,null,null,null,null,null,null,null,null,null,null,null,null,null,null,null,null,"313",3,1,3,{"$f":"AB1","v":"Monaco"}]
[null,null,null,null,null,null,null,null,null,null,null,null,null,null,null,null,null,null,null,null,null,null,null,null,null,null,"314",3,1,4,{"$f":"AB1","v":"Monaco"}]
[null,null,null,null,null,null,null,null,null,null,null,null,null,null,null,null,null,null,null,null,null,null,null,null,null,null,"315",3,1,5,{"$f":"AB1","v":"Monaco"}]
[null,null,null,null,null,null,null,null,null,null,null,null,null,null,null,null,null,null,null,null,null,null,null,null,null,null,"316",3,1,6,{"$f":"AB1","v":"Monaco"}]
[null,null,null,null,null,null,null,null,null,null,null,null,null,null,null,null,null,null,null,null,null,null,null,null,null,null,"317",3,1,7,{"$f":"AC1","v":"PSG"}]
[null,null,null,null,null,null,null,null,null,null,null,null,null,null,null,null,null,null,null,null,null,null,null,null,null,null,"318",3,1,8,{"$f":"AC1","v":"PSG"}]
[null,null,null,null,null,null,null,null,null,null,null,null,null,null,null,null,null,null,null,null,null,null,null,null,null,null,"319",3,1,9,{"$f":"AC1","v":"PSG"}]
[null,null,null,null,null,null,null,null,null,null,null,null,null,null,null,null,null,null,null,null,null,null,null,null,null,null,"321",3,2,1,{"$f":"AC1","v":"PSG"}]
[null,null,null,null,null,null,null,null,null,null,null,null,null,null,null,null,null,null,null,null,null,null,null,null,null,null,"322",3,2,2,{"$f":"AC1","v":"PSG"}]
[null,null,null,null,null,null,null,null,null,null,null,null,null,null,null,null,null,null,null,null,null,null,null,null,null,null,"323",3,2,3,{"$f":"AB1","v":"Monaco"}]
[null,null,null,null,null,null,null,null,null,null,null,null,null,null,null,null,null,null,null,null,null,null,null,null,null,null,"324",3,2,4,{"$f":"AB1","v":"Monaco"}]
[null,null,null,null,null,null,null,null,null,null,null,null,null,null,null,null,null,null,null,null,null,null,null,null,null,null,"325",3,2,5,{"$f":"AB1","v":"Monaco"}]
[null,null,null,null,null,null,null,null,null,null,null,null,null,null,null,null,null,null,null,null,null,null,null,null,null,null,"326",3,2,6,{"$f":"AB1","v":"Monaco"}]
[null,null,null,null,null,null,null,null,null,null,null,null,null,null,null,null,null,null,null,null,null,null,null,null,null,null,"327",3,2,7,"NUL"]
[null,null,null,null,null,null,null,null,null,null,null,null,null,null,null,null,null,null,null,null,null,null,null,null,null,null,"328",3,2,8,{"$f":"AC1","v":"PSG"}]
[null,null,null,null,null,null,null,null,null,null,null,null,null,null,null,null,null,null,null,null,null,null,null,null,null,null,"329",3,2,9,{"$f":"AC1","v":"PSG"}]
[null,null,null,null,null,null,null,null,null,null,null,null,null,null,null,null,null,null,null,null,null,null,null,null,null,null,"331",3,3,1,{"$f":"AB1","v":"Monaco"}]
[null,null,null,null,null,null,null,null,null,null,null,null,null,null,null,null,null,null,null,null,null,null,null,null,null,null,"332",3,3,2,"NUL"]
[null,null,null,null,null,null,null,null,null,null,null,null,null,null,null,null,null,null,null,null,null,null,null,null,null,null,"334",3,3,4,"NUL"]
[null,null,null,null,null,null,null,null,null,null,null,null,null,null,null,null,null,null,null,null,null,null,null,null,null,null,"335",3,3,5,{"$f":"AB1","v":"Monaco"}]
[null,null,null,null,null,null,null,null,null,null,null,null,null,null,null,null,null,null,null,null,null,null,null,null,null,null,"336",3,3,6,{"$f":"AC1","v":"PSG"}]
[null,null,null,null,null,null,null,null,null,null,null,null,null,null,null,null,null,null,null,null,null,null,null,null,null,null,"337",3,3,7,{"$f":"AB1","v":"Monaco"}]
[null,null,null,null,null,null,null,null,null,null,null,null,null,null,null,null,null,null,null,null,null,null,null,null,null,null,{"$f":"CONCATENATE(AB195,AC195,AD195)","v":"338"},3,3,8,{"$f":"AB1","v":"Monaco"}]
[null,null,null,null,null,null,null,null,null,null,null,null,null,null,null,null,null,null,null,null,null,null,null,null,null,null,"339",3,3,9,{"$f":"AC1","v":"PSG"}]
[null,null,null,null,null,null,null,null,null,null,null,null,null,null,null,null,null,null,null,null,null,null,null,null,null,null,"341",3,4,1,{"$f":"AB1","v":"Monaco"}]
[null,null,null,null,null,null,null,null,null,null,null,null,null,null,null,null,null,null,null,null,null,null,null,null,null,null,"342",3,4,2,{"$f":"AB1","v":"Monaco"}]
[null,null,null,null,null,null,null,null,null,null,null,null,null,null,null,null,null,null,null,null,null,null,null,null,null,null,"343",3,4,3,{"$f":"AB1","v":"Monaco"}]
[null,null,null,null,null,null,null,null,null,null,null,null,null,null,null,null,null,null,null,null,null,null,null,null,null,null,"344",3,4,4,{"$f":"AC1","v":"PSG"}]
[null,null,null,null,null,null,null,null,null,null,null,null,null,null,null,null,null,null,null,null,null,null,null,null,null,null,"345",3,4,5,{"$f":"AC1","v":"PSG"}]
[null,null,null,null,null,null,null,null,null,null,null,null,null,null,null,null,null,null,null,null,null,null,null,null,null,null,"346",3,4,6,{"$f":"AC1","v":"PSG"}]
[null,null,null,null,null,null,null,null,null,null,null,null,null,null,null,null,null,null,null,null,null,null,null,null,null,null,"347",3,4,7,{"$f":"AC1","v":"PSG"}]
[null,null,null,null,null,null,null,null,null,null,null,null,null,null,null,null,null,null,null,null,null,null,null,null,null,null,"348",3,4,8,"NUL"]
[null,null,null,null,null,null,null,null,null,null,null,null,null,null,null,null,null,null,null,null,null,null,null,null,null,null,"349",3,4,9,{"$f":"AB1","v":"Monaco"}]
[null,null,null,null,null,null,null,null,null,null,null,null,null,null,null,null,null,null,null,null,null,null,null,null,null,null,"351",3,5,1,{"$f":"AB1","v":"Monaco"}]
[null,null,null,null,null,null,null,null,null,null,null,null,null,null,null,null,null,null,null,null,null,null,null,null,null,null,"352",3,5,2,{"$f":"AB1","v":"Monaco"}]
[null,null,null,null,null,null,null,null,null,null,null,null,null,null,null,null,null,null,null,null,null,null,null,null,null,null,"353",3,5,3,{"$f":"AB1","v":"Monaco"}]
[null,null,null,null,null,null,null,null,null,null,null,null,null,null,null,null,null,null,null,null,null,null,null,null,null,null,"354",3,5,4,"NUL"]
[null,null,null,null,null,null,null,null,null,null,null,null,null,null,null,null,null,null,null,null,null,null,null,null,null,null,"355",3,5,5,{"$f":"AC1","v":"PSG"}]
[null,null,null,null,null,null,null,null,null,null,null,null,null,null,null,null,null,null,null,null,null,null,null,null,null,null,"356",3,5,6,{"$f":"AC1","v":"PSG"}]
[null,null,null,null,null,null,null,null,null,null,null,null,null,null,null,null,null,null,null,null,null,null,null,null,null,null,"357",3,5,7,{"$f":"AC1","v":"PSG"}]
[null,null,null,null,null,null,null,null,null,null,null,null,null,null,null,null,null,null,null,null,null,null,null,null,null,null,"358",3,5,8,{"$f":"AC1","v":"PSG"}]
[null,null,null,null,null,null,null,null,null,null,null,null,null,null,null,null,null,null,null,null,null,null,null,null,null,null,"359",3,5,9,{"$f":"AB1","v":"Monaco"}]
[null,null,null,null,null,null,null,null,null,null,null,null,null,null,null,null,null,null,null,null,null,null,null,null,null,null,"361",3,6,1,{"$f":"AB1","v":"Monaco"}]
[null,null,null,null,null,null,null,null,null,null,null,null,null,null,null,null,null,null,null,null,null,null,null,null,null,null,"362",3,6,2,{"$f":"AB1","v":"Monaco"}]
[null,null,null,null,null,null,null,null,null,null,null,null,null,null,null,null,null,null,null,null,null,null,null,null,null,null,"363",3,6,3,{"$f":"AB1","v":"Monaco"}]
[null,null,null,null,null,null,null,null,null,null,null,null,null,null,null,null,null,null,null,null,null,null,null,null,null,null,"364",3,6,4,{"$f":"AB1","v":"Monaco"}]
[null,null,null,null,null,null,null,null,null,null,null,null,null,null,null,null,null,null,null,null,null,null,null,null,null,null,"365",3,6,5,{"$f":"AC1","v":"PSG"}]
[null,null,null,null,null,null,null,null,null,null,null,null,null,null,null,null,null,null,null,null,null,null,null,null,null,null,"366",3,6,6,{"$f":"AC1","v":"PSG"}]
[null,null,null,null,null,null,null,null,null,null,null,null,null,null,null,null,null,null,null,null,null,null,null,null,null,null,"367",3,6,7,{"$f":"AC1","v":"PSG"}]
[null,null,null,null,null,null,null,null,null,null,null,null,null,null,null,null,null,null,null,null,null,null,null,null,null,null,"368",3,6,8,{"$f":"AC1","v":"PSG"}]
[null,null,null,null,null,null,null,null,null,null,null,null,null,null,null,null,null,null,null,null,null,null,null,null,null,null,"369",3,6,9,"NUL"]
[null,null,null,null,null,null,null,null,null,null,null,null,null,null,null,null,null,null,null,null,null,null,null,null,null,null,"371",3,7,1,{"$f":"AB1","v":"Monaco"}]
[null,null,null,null,null,null,null,null,null,null,null,null,null,null,null,null,null,null,null,null,null,null,null,null,null,null,"372",3,7,2,{"$f":"AB1","v":"Monaco"}]
[null,null,null,null,null,null,null,null,null,null,null,null,null,null,null,null,null,null,null,null,null,null,null,null,null,null,"373",3,7,3,{"$f":"AB1","v":"Monaco"}]
[null,null,null,null,null,null,null,null,null,null,null,null,null,null,null,null,null,null,null,null,null,null,null,null,null,null,"374",3,7,4,{"$f":"AB1","v":"Monaco"}]
[null,null,null,null,null,null,null,null,null,null,null,null,null,null,null,null,null,null,null,null,null,null,null,null,null,null,"375",3,7,5,"NUL"]
[null,null,null,null,null,null,null,null,null,null,null,null,null,null,null,null,null,null,null,null,null,null,null,null,null,null,"376",3,7,6,{"$f":"AC1","v":"PSG"}]
[null,null,null,null,null,null,null,null,null,null,null,null,null,null,null,null,null,null,null,null,null,null,null,null,null,null,"377",3,7,7,{"$f":"AC1","v":"PSG"}]
[null,null,null,null,null,null,null,null,null,null,null,null,null,null,null,null,null,null,null,null,null,null,null,null,null,null,"378",3,7,8,{"$f":"AC1","v":"PSG"}]
[null,null,null,null,null,null,null,null,null,null,null,null,null,null,null,null,null,null,null,null,null,null,null,null,null,null,"379",3,7,9,{"$f":"AC1","v":"PSG"}]
[null,null,null,null,null,null,null,null,null,null,null,null,null,null,null,null,null,null,null,null,null,null,null,null,null,null,"381",3,8,1,"NUL"]
[null,null,null,null,null,null,null,null,null,null,null,null,null,null,null,null,null,null,null,null,null,null,null,null,null,null,"382",3,8,2,{"$f":"AB1","v":"Monaco"}]
[null,null,null,null,null,null,null,null,null,null,null,null,null,null,null,null,null,null,null,null,null,null,null,null,null,null,"383",3,8,3,{"$f":"AB1","v":"Monaco"}]
[null,null,null,null,null,null,null,null,null,null,null,null,null,null,null,null,null,null,null,null,null,null,null,null,null,null,"384",3,8,4,{"$f":"AB1","v":"Monaco"}]
[null,null,null,null,null,null,null,null,null,null,null,null,null,null,null,null,null,null,null,null,null,null,null,null,null,null,"385",3,8,5,{"$f":"AB1","v":"Monaco"}]
[null,null,null,null,null,null,null,null,null,null,null,null,null,null,null,null,null,null,null,null,null,null,null,null,null,null,"386",3,8,6,{"$f":"AC1","v":"PSG"}]
[null,null,null,null,null,null,null,null,null,null,null,null,null,null,null,null,null,null,null,null,null,null,null,null,null,null,"387",3,8,7,{"$f":"AC1","v":"PSG"}]
[null,null,null,null,null,null,null,null,null,null,null,null,null,null,null,null,null,null,null,null,null,null,null,null,null,null,"388",3,8,8,{"$f":"AC1","v":"PSG"}]
[null,null,null,null,null,null,null,null,null,null,null,null,null,null,null,null,null,null,null,null,null,null,null,null,null,null,"389",3,8,9,{"$f":"AC1","v":"PSG"}]
[null,null,null,null,null,null,null,null,null,null,null,null,null,null,null,null,null,null,null,null,null,null,null,null,null,null,"391",3,9,1,{"$f":"AC1","v":"PSG"}]
[null,null,null,null,null,null,null,null,null,null,null,null,null,null,null,null,null,null,null,null,null,null,null,null,null,null,"392",3,9,2,{"$f":"AB1","v":"Monaco"}]
[null,null,null,null,null,null,null,null,null,null,null,null,null,null,null,null,null,null,null,null,null,null,null,null,null,null,"393",3,9,3,{"$f":"AB1","v":"Monaco"}]
[null,null,null,null,null,null,null,null,null,null,null,null,null,null,null,null,null,null,null,null,null,null,null,null,null,null,"394",3,9,4,{"$f":"AB1","v":"Monaco"}]
[null,null,null,null,null,null,null,null,null,null,null,null,null,null,null,null,null,null,null,null,null,null,null,null,null,null,"395",3,9,5,{"$f":"AB1","v":"Monaco"}]
[null,null,null,null,null,null,null,null,null,null,null,null,null,null,null,null,null,null,null,null,null,null,null,null,null,null,"396",3,9,6,"NUL"]
[null,null,null,null,null,null,null,null,null,null,null,null,null,null,null,null,null,null,null,null,null,null,null,null,null,null,"397",3,9,7,{"$f":"AC1","v":"PSG"}]
[null,null,null,null,null,null,null,null,null,null,null,null,null,null,null,null,null,null,null,null,null,null,null,null,null,null,"398",3,9,8,{"$f":"AC1","v":"PSG"}]
[null,null,null,null,null,null,null,null,null,null,null,null,null,null,null,null,null,null,null,null,null,null,null,null,null,null,"399",3,9,9,{"$f":"AC1","v":"PSG"}]
[null,null,null,null,null,null,null,null,null,null,null,null,null,null,null,null,null,null,null,null,null,null,null,null,null,null,"411",4,1,1,{"$f":"AC1","v":"PSG"}]
[null,null,null,null,null,null,null,null,null,null,null,null,null,null,null,null,null,null,null,null,null,null,null,null,null,null,"412",4,1,2,{"$f":"AC1","v":"PSG"}]
[null,null,null,null,null,null,null,null,null,null,null,null,null,null,null,null,null,null,null,null,null,null,null,null,null,null,"413",4,1,3,{"$f":"AB1","v":"Monaco"}]
[null,null,null,null,null,null,null,null,null,null,null,null,null,null,null,null,null,null,null,null,null,null,null,null,null,null,"414",4,1,4,{"$f":"AB1","v":"Monaco"}]
[null,null,null,null,null,null,null,null,null,null,null,null,null,null,null,null,null,null,null,null,null,null,null,null,null,null,"415",4,1,5,{"$f":"AB1","v":"Monaco"}]
[null,null,null,null,null,null,null,null,null,null,null,null,null,null,null,null,null,null,null,null,null,null,null,null,null,null,"416",4,1,6,{"$f":"AB1","v":"Monaco"}]
[null,null,null,null,null,null,null,null,null,null,null,null,null,null,null,null,null,null,null,null,null,null,null,null,null,null,"417",4,1,7,"NUL"]
[null,null,null,null,null,null,null,null,null,null,null,null,null,null,null,null,null,null,null,null,null,null,null,null,null,null,"418",4,1,8,{"$f":"AC1","v":"PSG"}]
[null,null,null,null,null,null,null,null,null,null,null,null,null,null,null,null,null,null,null,null,null,null,null,null,null,null,{"$f":"CONCATENATE(AB259,AC259,AD259)","v":"419"},4,1,9,{"$f":"AC1","v":"PSG"}]
[null,null,null,null,null,null,null,null,null,null,null,null,null,null,null,null,null,null,null,null,null,null,null,null,null,null,"421",4,2,1,{"$f":"AC1","v":"PSG"}]
[null,null,null,null,null,null,null,null,null,null,null,null,null,null,null,null,null,null,null,null,null,null,null,null,null,null,"422",4,2,2,{"$f":"AC1","v":"PSG"}]
[null,null,null,null,null,null,null,null,null,null,null,null,null,null,null,null,null,null,null,null,null,null,null,null,null,null,"423",4,2,3,"NUL"]
[null,null,null,null,null,null,null,null,null,null,null,null,null,null,null,null,null,null,null,null,null,null,null,null,null,null,"424",4,2,4,{"$f":"AB1","v":"Monaco"}]
[null,null,null,null,null,null,null,null,null,null,null,null,null,null,null,null,null,null,null,null,null,null,null,null,null,null,"425",4,2,5,{"$f":"AB1","v":"Monaco"}]
[null,null,null,null,null,null,null,null,null,null,null,null,null,null,null,null,null,null,null,null,null,null,null,null,null,null,"426",4,2,6,{"$f":"AB1","v":"Monaco"}]
[null,null,null,null,null,null,null,null,null,null,null,null,null,null,null,null,null,null,null,null,null,null,null,null,null,null,"427",4,2,7,{"$f":"AB1","v":"Monaco"}]
[null,null,null,null,null,null,null,null,null,null,null,null,null,null,null,null,null,null,null,null,null,null,null,null,null,null,"428",4,2,8,{"$f":"AC1","v":"PSG"}]
[null,null,null,null,null,null,null,null,null,null,null,null,null,null,null,null,null,null,null,null,null,null,null,null,null,null,"429",4,2,9,{"$f":"AC1","v":"PSG"}]
[null,null,null,null,null,null,null,null,null,null,null,null,null,null,null,null,null,null,null,null,null,null,null,null,null,null,"431",4,3,1,{"$f":"AC1","v":"PSG"}]
[null,null,null,null,null,null,null,null,null,null,null,null,null,null,null,null,null,null,null,null,null,null,null,null,null,null,"432",4,3,2,{"$f":"AC1","v":"PSG"}]
[null,null,null,null,null,null,null,null,null,null,null,null,null,null,null,null,null,null,null,null,null,null,null,null,null,null,"433",4,3,3,{"$f":"AC1","v":"PSG"}]
[null,null,null,null,null,null,null,null,null,null,null,null,null,null,null,null,null,null,null,null,null,null,null,null,null,null,"434",4,3,4,{"$f":"AB1","v":"Monaco"}]
[null,null,null,null,null,null,null,null,null,null,null,null,null,null,null,null,null,null,null,null,null,null,null,null,null,null,"435",4,3,5,{"$f":"AB1","v":"Monaco"}]
[null,null,null,null,null,null,null,null,null,null,null,null,null,null,null,null,null,null,null,null,null,null,null,null,null,null,"436",4,3,6,{"$f":"AB1","v":"Monaco"}]
[null,null,null,null,null,null,null,null,null,null,null,null,null,null,null,null,null,null,null,null,null,null,null,null,null,null,"437",4,3,7,{"$f":"AB1","v":"Monaco"}]
[null,null,null,null,null,null,null,null,null,null,null,null,null,null,null,null,null,null,null,null,null,null,null,null,null,null,"438",4,3,8,"NUL"]
[null,null,null,null,null,null,null,null,null,null,null,null,null,null,null,null,null,null,null,null,null,null,null,null,null,null,"439",4,3,9,{"$f":"AC1","v":"PSG"}]
[null,null,null,null,null,null,null,null,null,null,null,null,null,null,null,null,null,null,null,null,null,null,null,null,null,null,"441",4,4,1,{"$f":"AB1","v":"Monaco"}]
[null,null,null,null,null,null,null,null,null,null,null,null,null,null,null,null,null,null,null,null,null,null,null,null,null,null,"442",4,4,2,{"$f":"AB1","v":"Monaco"}]
[null,null,null,null,null,null,null,null,null,null,null,null,null,null,null,null,null,null,null,null,null,null,null,null,null,null,"443",4,4,3,"NUL"]
[null,null,null,null,null,null,null,null,null,null,null,null,null,null,null,null,null,null,null,null,null,null,null,null,null,null,"445",4,4,5,"NUL"]
[null,null,null,null,null,null,null,null,null,null,null,null,null,null,null,null,null,null,null,null,null,null,null,null,null,null,"446",4,4,6,{"$f":"AB1","v":"Monaco"}]
[null,null,null,null,null,null,null,null,null,null,null,null,null,null,null,null,null,null,null,null,null,null,null,null,null,null,"447",4,4,7,{"$f":"AC1","v":"PSG"}]
[null,null,null,null,null,null,null,null,null,null,null,null,null,null,null,null,null,null,null,null,null,null,null,null,null,null,"448",4,4,8,{"$f":"AB1","v":"Monaco"}]
[null,null,null,null,null,null,null,null,null,null,null,null,null,null,null,null,null,null,null,null,null,null,null,null,null,null,"449",4,4,9,{"$f":"AB1","v":"Monaco"}]
[null,null,null,null,null,null,null,null,null,null,null,null,null,null,null,null,null,null,null,null,null,null,null,null,null,null,"451",4,5,1,{"$f":"AB1","v":"Monaco"}]
[null,null,null,null,null,null,null,null,null,null,null,null,null,null,null,null,null,null,null,null,null,null,null,null,null,null,"452",4,5,2,{"$f":"AB1","v":"Monaco"}]
[null,null,null,null,null,null,null,null,null,null,null,null,null,null,null,null,null,null,null,null,null,null,null,null,null,null,"453",4,5,3,{"$f":"AB1","v":"Monaco"}]
[null,null,null,null,null,null,null,null,null,null,null,null,null,null,null,null,null,null,null,null,null,null,null,null,null,null,"454",4,5,4,{"$f":"AB1","v":"Monaco"}]
[null,null,null,null,null,null,null,null,null,null,null,null,null,null,null,null,null,null,null,null,null,null,null,null,null,null,"455",4,5,5,{"$f":"AC1","v":"PSG"}]
[null,null,null,null,null,null,null,null,null,null,null,null,null,null,null,null,null,null,null,null,null,null,null,null,null,null,"456",4,5,6,{"$f":"AC1","v":"PSG"}]
[null,null,null,null,null,null,null,null,null,null,null,null,null,null,null,null,null,null,null,null,null,null,null,null,null,null,"457",4,5,7,{"$f":"AC1","v":"PSG"}]
[null,null,null,null,null,null,null,null,null,null,null,null,null,null,null,null,null,null,null,null,null,null,null,null,null,null,"458",4,5,8,{"$f":"AC1","v":"PSG"}]
[null,null,null,null,null,null,null,null,null,null,null,null,null,null,null,null,null,null,null,null,null,null,null,null,null,null,"459",4,5,9,"NUL"]
[null,null,null,null,null,null,null,null,null,null,null,null,null,null,null,null,null,null,null,null,null,null,null,null,null,null,"461",4,6,1,{"$f":"AB1","v":"Monaco"}]
[null,null,null,null,null,null,null,null,null,null,null,null,null,null,null,null,null,null,null,null,null,null,null,null,null,null,"462",4,6,2,{"$f":"AB1","v":"Monaco"}]
[null,null,null,null,null,null,null,null,null,null,null,null,null,null,null,null,null,null,null,null,null,null,null,null,null,null,"463",4,6,3,{"$f":"AB1","v":"Monaco"}]
[null,null,null,null,null,null,null,null,null,null,null,null,null,null,null,null,null,null,null,null,null,null,null,null,null,null,"464",4,6,4,{"$f":"AB1","v":"Monaco"}]
[null,null,null,null,null,null,null,null,null,null,null,null,null,null,null,null,null,null,null,null,null,null,null,null,null,null,"465",4,6,5,"NUL"]
[null,null,null,null,null,null,null,null,null,null,null,null,null,null,null,null,null,null,null,null,null,null,null,null,null,null,"466",4,6,6,{"$f":"AC1","v":"PSG"}]
[null,null,null,null,null,null,null,null,null,null,null,null,null,null,null,null,null,null,null,null,null,null,null,null,null,null,"467",4,6,7,{"$f":"AC1","v":"PSG"}]
[null,null,null,null,null,null,null,null,null,null,null,null,null,null,null,null,null,null,null,null,null,null,null,null,null,null,"468",4,6,8,{"$f":"AC1","v":"PSG"}]
[null,null,null,null,null,null,null,null,null,null,null,null,null,null,null,null,null,null,null,null,null,null,null,null,null,null,"469",4,6,9,{"$f":"AC1","v":"PSG"}]
[null,null,null,null,null,null,null,null,null,null,null,null,null,null,null,null,null,null,null,null,null,null,null,null,null,null,"471",4,7,1,"NUL"]
[null,null,null,null,null,null,null,null,null,null,null,null,null,null,null,null,null,null,null,null,null,null,null,null,null,null,"472",4,7,2,{"$f":"AB1","v":"Monaco"}]
[null,null,null,null,null,null,null,null,null,null,null,null,null,null,null,null,null,null,null,null,null,null,null,null,null,null,"473",4,7,3,{"$f":"AB1","v":"Monaco"}]
[null,null,null,null,null,null,null,null,null,null,null,null,null,null,null,null,null,null,null,null,null,null,null,null,null,null,"474",4,7,4,{"$f":"AB1","v":"Monaco"}]
[null,null,null,null,null,null,null,null,null,null,null,null,null,null,null,null,null,null,null,null,null,null,null,null,null,null,"475",4,7,5,{"$f":"AB1","v":"Monaco"}]
[null,null,null,null,null,null,null,null,null,null,null,null,null,null,null,null,null,null,null,null,null,null,null,null,null,null,"476",4,7,6,{"$f":"AC1","v":"PSG"}]
[null,null,null,null,null,null,null,null,null,null,null,null,null,null,null,null,null,null,null,null,null,null,null,null,null,null,"477",4,7,7,{"$f":"AC1","v":"PSG"}]
[null,null,null,null,null,null,null,null,null,null,null,null,null,null,null,null,null,null,null,null,null,null,null,null,null,null,"478",4,7,8,{"$f":"AC1","v":"PSG"}]
[null,null,null,null,null,null,null,null,null,null,null,null,null,null,null,null,null,null,null,null,null,null,null,null,null,null,"479",4,7,9,{"$f":"AC1","v":"PSG"}]
[null,null,null,null,null,null,null,null,null,null,null,null,null,null,null,null,null,null,null,null,null,null,null,null,null,null,"481",4,8,1,{"$f":"AC1","v":"PSG"}]
[null,null,null,null,null,null,null,null,null,null,null,null,null,null,null,null,null,null,null,null,null,null,null,null,null,null,"482",4,8,2,{"$f":"AB1","v":"Monaco"}]
[null,null,null,null,null,null,null,null,null,null,null,null,null,null,null,null,null,null,null,null,null,null,null,null,null,null,"483",4,8,3,{"$f":"AB1","v":"Monaco"}]
[null,null,null,null,null,null,null,null,null,null,null,null,null,null,null,null,null,null,null,null,null,null,null,null,null,null,"484",4,8,4,{"$f":"AB1","v":"Monaco"}]
[null,null,null,null,null,null,null,null,null,null,null,null,null,null,null,null,null,null,null,null,null,null,null,null,null,null,"485",4,8,5,{"$f":"AB1","v":"Monaco"}]
[null,null,null,null,null,null,null,null,null,null,null,null,null,null,null,null,null,null,null,null,null,null,null,null,null,null,"486",4,8,6,"NUL"]
[null,null,null,null,null,null,null,null,null,null,null,null,null,null,null,null,null,null,null,null,null,null,null,null,null,null,"487",4,8,7,{"$f":"AC1","v":"PSG"}]
[null,null,null,null,null,null,null,null,null,null,null,null,null,null,null,null,null,null,null,null,null,null,null,null,null,null,"488",4,8,8,{"$f":"AC1","v":"PSG"}]
[null,null,null,null,null,null,null,null,null,null,null,null,null,null,null,null,null,null,null,null,null,null,null,null,null,null,"489",4,8,9,{"$f":"AC1","v":"PSG"}]
[null,null,null,null,null,null,null,null,null,null,null,null,null,null,null,null,null,null,null,null,null,null,null,null,null,null,"491",4,9,1,{"$f":"AC1","v":"PSG"}]
[null,null,null,null,null,null,null,null,null,null,null,null,null,null,null,null,null,null,null,null,null,null,null,null,null,null,{"$f":"CONCATENATE(AB323,AC323,AD323)","v":"492"},4,9,2,"NUL"]
[null,null,null,null,null,null,null,null,null,null,null,null,null,null,null,null,null,null,null,null,null,null,null,null,null,null,"493",4,9,3,{"$f":"AB1","v":"Monaco"}]
[null,null,null,null,null,null,null,null,null,null,null,null,null,null,null,null,null,null,null,null,null,null,null,null,null,null,"494",4,9,4,{"$f":"AB1","v":"Monaco"}]
[null,null,null,null,null,null,null,null,null,null,null,null,null,null,null,null,null,null,null,null,null,null,null,null,null,null,"495",4,9,5,{"$f":"AB1","v":"Monaco"}]
[null,null,null,null,null,null,null,null,null,null,null,null,null,null,null,null,null,null,null,null,null,null,null,null,null,null,"496",4,9,6,{"$f":"AB1","v":"Monaco"}]
[null,null,null,null,null,null,null,null,null,null,null,null,null,null,null,null,null,null,null,null,null,null,null,null,null,null,"497",4,9,7,{"$f":"AC1","v":"PSG"}]
[null,null,null,null,null,null,null,null,null,null,null,null,null,null,null,null,null,null,null,null,null,null,null,null,null,null,"498",4,9,8,{"$f":"AC1","v":"PSG"}]
[null,null,null,null,null,null,null,null,null,null,null,null,null,null,null,null,null,null,null,null,null,null,null,null,null,null,"499",4,9,9,{"$f":"AC1","v":"PSG"}]
[null,null,null,null,null,null,null,null,null,null,null,null,null,null,null,null,null,null,null,null,null,null,null,null,null,null,"511",5,1,1,{"$f":"AC1","v":"PSG"}]
[null,null,null,null,null,null,null,null,null,null,null,null,null,null,null,null,null,null,null,null,null,null,null,null,null,null,"512",5,1,2,{"$f":"AC1","v":"PSG"}]
[null,null,null,null,null,null,null,null,null,null,null,null,null,null,null,null,null,null,null,null,null,null,null,null,null,null,"513",5,1,3,"NUL"]
[null,null,null,null,null,null,null,null,null,null,null,null,null,null,null,null,null,null,null,null,null,null,null,null,null,null,"514",5,1,4,{"$f":"AB1","v":"Monaco"}]
[null,null,null,null,null,null,null,null,null,null,null,null,null,null,null,null,null,null,null,null,null,null,null,null,null,null,"515",5,1,5,{"$f":"AB1","v":"Monaco"}]
[null,null,null,null,null,null,null,null,null,null,null,null,null,null,null,null,null,null,null,null,null,null,null,null,null,null,"516",5,1,6,{"$f":"AB1","v":"Monaco"}]
[null,null,null,null,null,null,null,null,null,null,null,null,null,null,null,null,null,null,null,null,null,null,null,null,null,null,"517",5,1,7,{"$f":"AB1","v":"Monaco"}]
[null,null,null,null,null,null,null,null,null,null,null,null,null,null,null,null,null,null,null,null,null,null,null,null,null,null,"518",5,1,8,{"$f":"AC1","v":"PSG"}]
[null,null,null,null,null,null,null,null,null,null,null,null,null,null,null,null,null,null,null,null,null,null,null,null,null,null,"519",5,1,9,{"$f":"AC1","v":"PSG"}]
[null,null,null,null,null,null,null,null,null,null,null,null,null,null,null,null,null,null,null,null,null,null,null,null,null,null,"521",5,2,1,{"$f":"AC1","v":"PSG"}]
[null,null,null,null,null,null,null,null,null,null,null,null,null,null,null,null,null,null,null,null,null,null,null,null,null,null,"522",5,2,2,{"$f":"AC1","v":"PSG"}]
[null,null,null,null,null,null,null,null,null,null,null,null,null,null,null,null,null,null,null,null,null,null,null,null,null,null,"523",5,2,3,{"$f":"AC1","v":"PSG"}]
[null,null,null,null,null,null,null,null,null,null,null,null,null,null,null,null,null,null,null,null,null,null,null,null,null,null,"524",5,2,4,{"$f":"AB1","v":"Monaco"}]
[null,null,null,null,null,null,null,null,null,null,null,null,null,null,null,null,null,null,null,null,null,null,null,null,null,null,"525",5,2,5,{"$f":"AB1","v":"Monaco"}]
[null,null,null,null,null,null,null,null,null,null,null,null,null,null,null,null,null,null,null,null,null,null,null,null,null,null,"526",5,2,6,{"$f":"AB1","v":"Monaco"}]
[null,null,null,null,null,null,null,null,null,null,null,null,null,null,null,null,null,null,null,null,null,null,null,null,null,null,"527",5,2,7,{"$f":"AB1","v":"Monaco"}]
[null,null,null,null,null,null,null,null,null,null,null,null,null,null,null,null,null,null,null,null,null,null,null,null,null,null,"528",5,2,8,"NUL"]
[null,null,null,null,null,null,null,null,null,null,null,null,null,null,null,null,null,null,null,null,null,null,null,null,null,null,"529",5,2,9,{"$f":"AC1","v":"PSG"}]
[null,null,null,null,null,null,null,null,null,null,null,null,null,null,null,null,null,null,null,null,null,null,null,null,null,null,"531",5,3,1,{"$f":"AC1","v":"PSG"}]
[null,null,null,null,null,null,null,null,null,null,null,null,null,null,null,null,null,null,null,null,null,null,null,null,null,null,"532",5,3,2,{"$f":"AC1","v":"PSG"}]
[null,null,null,null,null,null,null,null,null,null,null,null,null,null,null,null,null,null,null,null,null,null,null,null,null,null,"533",5,3,3,{"$f":"AC1","v":"PSG"}]
[null,null,null,null,null,null,null,null,null,null,null,null,null,null,null,null,null,null,null,null,null,null,null,null,null,null,"534",5,3,4,"NUL"]
[null,null,null,null,null,null,null,null,null,null,null,null,null,null,null,null,null,null,null,null,null,null,null,null,null,null,"535",5,3,5,{"$f":"AB1","v":"Monaco"}]
[null,null,null,null,null,null,null,null,null,null,null,null,null,null,null,null,null,null,null,null,null,null,null,null,null,null,"536",5,3,6,{"$f":"AB1","v":"Monaco"}]
[null,null,null,null,null,null,null,null,null,null,null,null,null,null,null,null,null,null,null,null,null,null,null,null,null,null,"537",5,3,7,{"$f":"AB1","v":"Monaco"}]
[null,null,null,null,null,null,null,null,null,null,null,null,null,null,null,null,null,null,null,null,null,null,null,null,null,null,"538",5,3,8,{"$f":"AB1","v":"Monaco"}]
[null,null,null,null,null,null,null,null,null,null,null,null,null,null,null,null,null,null,null,null,null,null,null,null,null,null,"539",5,3,9,{"$f":"AC1","v":"PSG"}]
[null,null,null,null,null,null,null,null,null,null,null,null,null,null,null,null,null,null,null,null,null,null,null,null,null,null,"541",5,4,1,{"$f":"AC1","v":"PSG"}]
[null,null,null,null,null,null,null,null,null,null,null,null,null,null,null,null,null,null,null,null,null,null,null,null,null,null,"542",5,4,2,{"$f":"AC1","v":"PSG"}]
[null,null,null,null,null,null,null,null,null,null,null,null,null,null,null,null,null,null,null,null,null,null,null,null,null,null,"543",5,4,3,{"$f":"AC1","v":"PSG"}]
[null,null,null,null,null,null,null,null,null,null,null,null,null,null,null,null,null,null,null,null,null,null,null,null,null,null,"544",5,4,4,{"$f":"AC1","v":"PSG"}]
[null,null,null,null,null,null,null,null,null,null,null,null,null,null,null,null,null,null,null,null,null,null,null,null,null,null,"545",5,4,5,{"$f":"AB1","v":"Monaco"}]
[null,null,null,null,null,null,null,null,null,null,null,null,null,null,null,null,null,null,null,null,null,null,null,null,null,null,"546",5,4,6,{"$f":"AB1","v":"Monaco"}]
[null,null,null,null,null,null,null,null,null,null,null,null,null,null,null,null,null,null,null,null,null,null,null,null,null,null,"547",5,4,7,{"$f":"AB1","v":"Monaco"}]
[null,null,null,null,null,null,null,null,null,null,null,null,null,null,null,null,null,null,null,null,null,null,null,null,null,null,"548",5,4,8,{"$f":"AB1","v":"Monaco"}]
[null,null,null,null,null,null,null,null,null,null,null,null,null,null,null,null,null,null,null,null,null,null,null,null,null,null,"549",5,4,9,"NUL"]
[null,null,null,null,null,null,null,null,null,null,null,null,null,null,null,null,null,null,null,null,null,null,null,null,null,null,"551",5,5,1,{"$f":"AB1","v":"Monaco"}]
[null,null,null,null,null,null,null,null,null,null,null,null,null,null,null,null,null,null,null,null,null,null,null,null,null,null,"552",5,5,2,{"$f":"AC1","v":"PSG"}]
[null,null,null,null,null,null,null,null,null,null,null,null,null,null,null,null,null,null,null,null,null,null,null,null,null,null,"553",5,5,3,{"$f":"AB1","v":"Monaco"}]
[null,null,null,null,null,null,null,null,null,null,null,null,null,null,null,null,null,null,null,null,null,null,null,null,null,null,"554",5,5,4,"NUL"]
[null,null,null,null,null,null,null,null,null,null,null,null,null,null,null,null,null,null,null,null,null,null,null,null,null,null,"556",5,5,6,"NUL"]
[null,null,null,null,null,null,null,null,null,null,null,null,null,null,null,null,null,null,null,null,null,null,null,null,null,null,"557",5,5,7,{"$f":"AB1","v":"Monaco"}]
[null,null,null,null,null,null,null,null,null,null,null,null,null,null,null,null,null,null,null,null,null,null,null,null,null,null,"558",5,5,8,{"$f":"AC1","v":"PSG"}]
[null,null,null,null,null,null,null,null,null,null,null,null,null,null,null,null,null,null,null,null,null,null,null,null,null,null,"559",5,5,9,{"$f":"AB1","v":"Monaco"}]
[null,null,null,null,null,null,null,null,null,null,null,null,null,null,null,null,null,null,null,null,null,null,null,null,null,null,"561",5,6,1,"NUL"]
[null,null,null,null,null,null,null,null,null,null,null,null,null,null,null,null,null,null,null,null,null,null,null,null,null,null,"562",5,6,2,{"$f":"AB1","v":"Monaco"}]
[null,null,null,null,null,null,null,null,null,null,null,null,null,null,null,null,null,null,null,null,null,null,null,null,null,null,"563",5,6,3,{"$f":"AB1","v":"Monaco"}]
[null,null,null,null,null,null,null,null,null,null,null,null,null,null,null,null,null,null,null,null,null,null,null,null,null,null,"564",5,6,4,{"$f":"AB1","v":"Monaco"}]
[null,null,null,null,null,null,null,null,null,null,null,null,null,null,null,null,null,null,null,null,null,null,null,null,null,null,"565",5,6,5,{"$f":"AB1","v":"Monaco"}]
[null,null,null,null,null,null,null,null,null,null,null,null,null,null,null,null,null,null,null,null,null,null,null,null,null,null,"566",5,6,6,{"$f":"AC1","v":"PSG"}]
[null,null,null,null,null,null,null,null,null,null,null,null,null,null,null,null,null,null,null,null,null,null,null,null,null,null,"567",5,6,7,{"$f":"AC1","v":"PSG"}]
[null,null,null,null,null,null,null,null,null,null,null,null,null,null,null,null,null,null,null,null,null,null,null,null,null,null,"568",5,6,8,{"$f":"AC1","v":"PSG"}]
[null,null,null,null,null,null,null,null,null,null,null,null,null,null,null,null,null,null,null,null,null,null,null,null,null,null,"569",5,6,9,{"$f":"AC1","v":"PSG"}]
[null,null,null,null,null,null,null,null,null,null,null,null,null,null,null,null,null,null,null,null,null,null,null,null,null,null,"571",5,7,1,{"$f":"AC1","v":"PSG"}]
[null,null,null,null,null,null,null,null,null,null,null,null,null,null,null,null,null,null,null,null,null,null,null,null,null,null,"572",5,7,2,{"$f":"AB1","v":"Monaco"}]
[null,null,null,null,null,null,null,null,null,null,null,null,null,null,null,null,null,null,null,null,null,null,null,null,null,null,"573",5,7,3,{"$f":"AB1","v":"Monaco"}]
[null,null,null,null,null,null,null,null,null,null,null,null,null,null,null,null,null,null,null,null,null,null,null,null,null,null,{"$f":"CONCATENATE(AB387,AC387,AD387)","v":"574"},5,7,4,{"$f":"AB1","v":"Monaco"}]
[null,null,null,null,null,null,null,null,null,null,null,null,null,null,null,null,null,null,null,null,null,null,null,null,null,null,"575",5,7,5,{"$f":"AB1","v":"Monaco"}]
[null,null,null,null,null,null,null,null,null,null,null,null,null,null,null,null,null,null,null,null,null,null,null,null,null,null,"576",5,7,6,"NUL"]
[null,null,null,null,null,null,null,null,null,null,null,null,null,null,null,null,null,null,null,null,null,null,null,null,null,null,"577",5,7,7,{"$f":"AC1","v":"PSG"}]
[null,null,null,null,null,null,null,null,null,null,null,null,null,null,null,null,null,null,null,null,null,null,null,null,null,null,"578",5,7,8,{"$f":"AC1","v":"PSG"}]
[null,null,null,null,null,null,null,null,null,null,null,null,null,null,null,null,null,null,null,null,null,null,null,null,null,null,"579",5,7,9,{"$f":"AC1","v":"PSG"}]
[null,null,null,null,null,null,null,null,null,null,null,null,null,null,null,null,null,null,null,null,null,null,null,null,null,null,"581",5,8,1,{"$f":"AC1","v":"PSG"}]
[null,null,null,null,null,null,null,null,null,null,null,null,null,null,null,null,null,null,null,null,null,null,null,null,null,null,"582",5,8,2,"NUL"]
[null,null,null,null,null,null,null,null,null,null,null,null,null,null,null,null,null,null,null,null,null,null,null,null,null,null,"583",5,8,3,{"$f":"AB1","v":"Monaco"}]
[null,null,null,null,null,null,null,null,null,null,null,null,null,null,null,null,null,null,null,null,null,null,null,null,null,null,"584",5,8,4,{"$f":"AB1","v":"Monaco"}]
[null,null,null,null,null,null,null,null,null,null,null,null,null,null,null,null,null,null,null,null,null,null,null,null,null,null,"585",5,8,5,{"$f":"AB1","v":"Monaco"}]
[null,null,null,null,null,null,null,null,null,null,null,null,null,null,null,null,null,null,null,null,null,null,null,null,null,null,"586",5,8,6,{"$f":"AB1","v":"Monaco"}]
[null,null,null,null,null,null,null,null,null,null,null,null,null,null,null,null,null,null,null,null,null,null,null,null,null,null,"587",5,8,7,{"$f":"AC1","v":"PSG"}]
[null,null,null,null,null,null,null,null,null,null,null,null,null,null,null,null,null,null,null,null,null,null,null,null,null,null,"588",5,8,8,{"$f":"AC1","v":"PSG"}]
[null,null,null,null,null,null,null,null,null,null,null,null,null,null,null,null,null,null,null,null,null,null,null,null,null,null,"589",5,8,9,{"$f":"AC1","v":"PSG"}]
[null,null,null,null,null,null,null,null,null,null,null,null,null,null,null,null,null,null,null,null,null,null,null,null,null,null,"591",5,9,1,{"$f":"AC1","v":"PSG"}]
[null,null,null,null,null,null,null,null,null,null,null,null,null,null,null,null,null,null,null,null,null,null,null,null,null,null,"592",5,9,2,{"$f":"AC1","v":"PSG"}]
[null,null,null,null,null,null,null,null,null,null,null,null,null,null,null,null,null,null,null,null,null,null,null,null,null,null,"593",5,9,3,{"$f":"AB1","v":"Monaco"}]
[null,null,null,null,null,null,null,null,null,null,null,null,null,null,null,null,null,null,null,null,null,null,null,null,null,null,"594",5,9,4,{"$f":"AB1","v":"Monaco"}]
[null,null,null,null,null,null,null,null,null,null,null,null,null,null,null,null,null,null,null,null,null,null,null,null,null,null,"595",5,9,5,{"$f":"AB1","v":"Monaco"}]
[null,null,null,null,null,null,null,null,null,null,null,null,null,null,null,null,null,null,null,null,null,null,null,null,null,null,"596",5,9,6,{"$f":"AB1","v":"Monaco"}]
[null,null,null,null,null,null,null,null,null,null,null,null,null,null,null,null,null,null,null,null,null,null,null,null,null,null,"597",5,9,7,"NUL"]
[null,null,null,null,null,null,null,null,null,null,null,null,null,null,null,null,null,null,null,null,null,null,null,null,null,null,"598",5,9,8,{"$f":"AC1","v":"PSG"}]
[null,null,null,null,null,null,null,null,null,null,null,null,null,null,null,null,null,null,null,null,null,null,null,null,null,null,"599",5,9,9,{"$f":"AC1","v":"PSG"}]
[null,null,null,null,null,null,null,null,null,null,null,null,null,null,null,null,null,null,null,null,null,null,null,null,null,null,"611",6,1,1,{"$f":"AC1","v":"PSG"}]
[null,null,null,null,null,null,null,null,null,null,null,null,null,null,null,null,null,null,null,null,null,null,null,null,null,null,"612",6,1,2,{"$f":"AC1","v":"PSG"}]
[null,null,null,null,null,null,null,null,null,null,null,null,null,null,null,null,null,null,null,null,null,null,null,null,null,null,"613",6,1,3,{"$f":"AC1","v":"PSG"}]
[null,null,null,null,null,null,null,null,null,null,null,null,null,null,null,null,null,null,null,null,null,null,null,null,null,null,"614",6,1,4,{"$f":"AB1","v":"Monaco"}]
[null,null,null,null,null,null,null,null,null,null,null,null,null,null,null,null,null,null,null,null,null,null,null,null,null,null,"615",6,1,5,{"$f":"AB1","v":"Monaco"}]
[null,null,null,null,null,null,null,null,null,null,null,null,null,null,null,null,null,null,null,null,null,null,null,null,null,null,"616",6,1,6,{"$f":"AB1","v":"Monaco"}]
[null,null,null,null,null,null,null,null,null,null,null,null,null,null,null,null,null,null,null,null,null,null,null,null,null,null,"617",6,1,7,{"$f":"AB1","v":"Monaco"}]
[null,null,null,null,null,null,null,null,null,null,null,null,null,null,null,null,null,null,null,null,null,null,null,null,null,null,"618",6,1,8,"NUL"]
[null,null,null,null,null,null,null,null,null,null,null,null,null,null,null,null,null,null,null,null,null,null,null,null,null,null,"619",6,1,9,{"$f":"AC1","v":"PSG"}]
[null,null,null,null,null,null,null,null,null,null,null,null,null,null,null,null,null,null,null,null,null,null,null,null,null,null,"621",6,2,1,{"$f":"AC1","v":"PSG"}]
[null,null,null,null,null,null,null,null,null,null,null,null,null,null,null,null,null,null,null,null,null,null,null,null,null,null,"622",6,2,2,{"$f":"AC1","v":"PSG"}]
[null,null,null,null,null,null,null,null,null,null,null,null,null,null,null,null,null,null,null,null,null,null,null,null,null,null,"623",6,2,3,{"$f":"AC1","v":"PSG"}]
[null,null,null,null,null,null,null,null,null,null,null,null,null,null,null,null,null,null,null,null,null,null,null,null,null,null,"624",6,2,4,"NUL"]
[null,null,null,null,null,null,null,null,null,null,null,null,null,null,null,null,null,null,null,null,null,null,null,null,null,null,"625",6,2,5,{"$f":"AB1","v":"Monaco"}]
[null,null,null,null,null,null,null,null,null,null,null,null,null,null,null,null,null,null,null,null,null,null,null,null,null,null,"626",6,2,6,{"$f":"AB1","v":"Monaco"}]
[null,null,null,null,null,null,null,null,null,null,null,null,null,null,null,null,null,null,null,null,null,null,null,null,null,null,"627",6,2,7,{"$f":"AB1","v":"Monaco"}]
[null,null,null,null,null,null,null,null,null,null,null,null,null,null,null,null,null,null,null,null,null,null,null,null,null,null,"628",6,2,8,{"$f":"AB1","v":"Monaco"}]
[null,null,null,null,null,null,null,null,null,null,null,null,null,null,null,null,null,null,null,null,null,null,null,null,null,null,"629",6,2,9,{"$f":"AC1","v":"PSG"}]
[null,null,null,null,null,null,null,null,null,null,null,null,null,null,null,null,null,null,null,null,null,null,null,null,null,null,"631",6,3,1,{"$f":"AC1","v":"PSG"}]
[null,null,null,null,null,null,null,null,null,null,null,null,null,null,null,null,null,null,null,null,null,null,null,null,null,null,"632",6,3,2,{"$f":"AC1","v":"PSG"}]
[null,null,null,null,null,null,null,null,null,null,null,null,null,null,null,null,null,null,null,null,null,null,null,null,null,null,"633",6,3,3,{"$f":"AC1","v":"PSG"}]
[null,null,null,null,null,null,null,null,null,null,null,null,null,null,null,null,null,null,null,null,null,null,null,null,null,null,"634",6,3,4,{"$f":"AC1","v":"PSG"}]
[null,null,null,null,null,null,null,null,null,null,null,null,null,null,null,null,null,null,null,null,null,null,null,null,null,null,"635",6,3,5,{"$f":"AB1","v":"Monaco"}]
[null,null,null,null,null,null,null,null,null,null,null,null,null,null,null,null,null,null,null,null,null,null,null,null,null,null,"636",6,3,6,{"$f":"AB1","v":"Monaco"}]
[null,null,null,null,null,null,null,null,null,null,null,null,null,null,null,null,null,null,null,null,null,null,null,null,null,null,"637",6,3,7,{"$f":"AB1","v":"Monaco"}]
[null,null,null,null,null,null,null,null,null,null,null,null,null,null,null,null,null,null,null,null,null,null,null,null,null,null,"638",6,3,8,{"$f":"AB1","v":"Monaco"}]
[null,null,null,null,null,null,null,null,null,null,null,null,null,null,null,null,null,null,null,null,null,null,null,null,null,null,"639",6,3,9,"NUL"]
[null,null,null,null,null,null,null,null,null,null,null,null,null,null,null,null,null,null,null,null,null,null,null,null,null,null,"641",6,4,1,{"$f":"AC1","v":"PSG"}]
[null,null,null,null,null,null,null,null,null,null,null,null,null,null,null,null,null,null,null,null,null,null,null,null,null,null,"642",6,4,2,{"$f":"AC1","v":"PSG"}]
[null,null,null,null,null,null,null,null,null,null,null,null,null,null,null,null,null,null,null,null,null,null,null,null,null,null,"643",6,4,3,{"$f":"AC1","v":"PSG"}]
[null,null,null,null,null,null,null,null,null,null,null,null,null,null,null,null,null,null,null,null,null,null,null,null,null,null,"644",6,4,4,{"$f":"AC1","v":"PSG"}]
[null,null,null,null,null,null,null,null,null,null,null,null,null,null,null,null,null,null,null,null,null,null,null,null,null,null,"645",6,4,5,"NUL"]
[null,null,null,null,null,null,null,null,null,null,null,null,null,null,null,null,null,null,null,null,null,null,null,null,null,null,"646",6,4,6,{"$f":"AB1","v":"Monaco"}]
[null,null,null,null,null,null,null,null,null,null,null,null,null,null,null,null,null,null,null,null,null,null,null,null,null,null,"647",6,4,7,{"$f":"AB1","v":"Monaco"}]
[null,null,null,null,null,null,null,null,null,null,null,null,null,null,null,null,null,null,null,null,null,null,null,null,null,null,"648",6,4,8,{"$f":"AB1","v":"Monaco"}]
[null,null,null,null,null,null,null,null,null,null,null,null,null,null,null,null,null,null,null,null,null,null,null,null,null,null,"649",6,4,9,{"$f":"AB1","v":"Monaco"}]
[null,null,null,null,null,null,null,null,null,null,null,null,null,null,null,null,null,null,null,null,null,null,null,null,null,null,"651",6,5,1,"NUL"]
[null,null,null,null,null,null,null,null,null,null,null,null,null,null,null,null,null,null,null,null,null,null,null,null,null,null,"652",6,5,2,{"$f":"AC1","v":"PSG"}]
[null,null,null,null,null,null,null,null,null,null,null,null,null,null,null,null,null,null,null,null,null,null,null,null,null,null,"653",6,5,3,{"$f":"AC1","v":"PSG"}]
[null,null,null,null,null,null,null,null,null,null,null,null,null,null,null,null,null,null,null,null,null,null,null,null,null,null,"654",6,5,4,{"$f":"AC1","v":"PSG"}]
[null,null,null,null,null,null,null,null,null,null,null,null,null,null,null,null,null,null,null,null,null,null,null,null,null,null,{"$f":"CONCATENATE(AB451,AC451,AD451)","v":"655"},6,5,5,{"$f":"AC1","v":"PSG"}]
[null,null,null,null,null,null,null,null,null,null,null,null,null,null,null,null,null,null,null,null,null,null,null,null,null,null,"656",6,5,6,{"$f":"AB1","v":"Monaco"}]
[null,null,null,null,null,null,null,null,null,null,null,null,null,null,null,null,null,null,null,null,null,null,null,null,null,null,"657",6,5,7,{"$f":"AB1","v":"Monaco"}]
[null,null,null,null,null,null,null,null,null,null,null,null,null,null,null,null,null,null,null,null,null,null,null,null,null,null,"658",6,5,8,{"$f":"AB1","v":"Monaco"}]
[null,null,null,null,null,null,null,null,null,null,null,null,null,null,null,null,null,null,null,null,null,null,null,null,null,null,"659",6,5,9,{"$f":"AB1","v":"Monaco"}]
[null,null,null,null,null,null,null,null,null,null,null,null,null,null,null,null,null,null,null,null,null,null,null,null,null,null,"661",6,6,1,{"$f":"AB1","v":"Monaco"}]
[null,null,null,null,null,null,null,null,null,null,null,null,null,null,null,null,null,null,null,null,null,null,null,null,null,null,"662",6,6,2,{"$f":"AB1","v":"Monaco"}]
[null,null,null,null,null,null,null,null,null,null,null,null,null,null,null,null,null,null,null,null,null,null,null,null,null,null,"663",6,6,3,{"$f":"AC1","v":"PSG"}]
[null,null,null,null,null,null,null,null,null,null,null,null,null,null,null,null,null,null,null,null,null,null,null,null,null,null,"664",6,6,4,{"$f":"AB1","v":"Monaco"}]
[null,null,null,null,null,null,null,null,null,null,null,null,null,null,null,null,null,null,null,null,null,null,null,null,null,null,"665",6,6,5,"NUL"]
[null,null,null,null,null,null,null,null,null,null,null,null,null,null,null,null,null,null,null,null,null,null,null,null,null,null,"667",6,6,7,"NUL"]
[null,null,null,null,null,null,null,null,null,null,null,null,null,null,null,null,null,null,null,null,null,null,null,null,null,null,"668",6,6,8,{"$f":"AB1","v":"Monaco"}]
[null,null,null,null,null,null,null,null,null,null,null,null,null,null,null,null,null,null,null,null,null,null,null,null,null,null,"669",6,6,9,{"$f":"AC1","v":"PSG"}]
[null,null,null,null,null,null,null,null,null,null,null,null,null,null,null,null,null,null,null,null,null,null,null,null,null,null,"671",6,7,1,{"$f":"AC1","v":"PSG"}]
[null,null,null,null,null,null,null,null,null,null,null,null,null,null,null,null,null,null,null,null,null,null,null,null,null,null,"672",6,7,2,"NUL"]
[null,null,null,null,null,null,null,null,null,null,null,null,null,null,null,null,null,null,null,null,null,null,null,null,null,null,"673",6,7,3,{"$f":"AB1","v":"Monaco"}]
[null,null,null,null,null,null,null,null,null,null,null,null,null,null,null,null,null,null,null,null,null,null,null,null,null,null,"674",6,7,4,{"$f":"AB1","v":"Monaco"}]
[null,null,null,null,null,null,null,null,null,null,null,null,null,null,null,null,null,null,null,null,null,null,null,null,null,null,"675",6,7,5,{"$f":"AB1","v":"Monaco"}]
[null,null,null,null,null,null,null,null,null,null,null,null,null,null,null,null,null,null,null,null,null,null,null,null,null,null,"676",6,7,6,{"$f":"AB1","v":"Monaco"}]
[null,null,null,null,null,null,null,null,null,null,null,null,null,null,null,null,null,null,null,null,null,null,null,null,null,null,"677",6,7,7,{"$f":"AC1","v":"PSG"}]
[null,null,null,null,null,null,null,null,null,null,null,null,null,null,null,null,null,null,null,null,null,null,null,null,null,null,"678",6,7,8,{"$f":"AC1","v":"PSG"}]
[null,null,null,null,null,null,null,null,null,null,null,null,null,null,null,null,null,null,null,null,null,null,null,null,null,null,"679",6,7,9,{"$f":"AC1","v":"PSG"}]
[null,null,null,null,null,null,null,null,null,null,null,null,null,null,null,null,null,null,null,null,null,null,null,null,null,null,"681",6,8,1,{"$f":"AC1","v":"PSG"}]
[null,null,null,null,null,null,null,null,null,null,null,null,null,null,null,null,null,null,null,null,null,null,null,null,null,null,"682",6,8,2,{"$f":"AC1","v":"PSG"}]
[null,null,null,null,null,null,null,null,null,null,null,null,null,null,null,null,null,null,null,null,null,null,null,null,null,null,"683",6,8,3,{"$f":"AB1","v":"Monaco"}]
[null,null,null,null,null,null,null,null,null,null,null,null,null,null,null,null,null,null,null,null,null,null,null,null,null,null,"684",6,8,4,{"$f":"AB1","v":"Monaco"}]
[null,null,null,null,null,null,null,null,null,null,null,null,null,null,null,null,null,null,null,null,null,null,null,null,null,null,"685",6,8,5,{"$f":"AB1","v":"Monaco"}]
[null,null,null,null,null,null,null,null,null,null,null,null,null,null,null,null,null,null,null,null,null,null,null,null,null,null,"686",6,8,6,{"$f":"AB1","v":"Monaco"}]
[null,null,null,null,null,null,null,null,null,null,null,null,null,null,null,null,null,null,null,null,null,null,null,null,null,null,"687",6,8,7,"NUL"]
[null,null,null,null,null,null,null,null,null,null,null,null,null,null,null,null,null,null,null,null,null,null,null,null,null,null,"688",6,8,8,{"$f":"AC1","v":"PSG"}]
[null,null,null,null,null,null,null,null,null,null,null,null,null,null,null,null,null,null,null,null,null,null,null,null,null,null,"689",6,8,9,{"$f":"AC1","v":"PSG"}]
[null,null,null,null,null,null,null,null,null,null,null,null,null,null,null,null,null,null,null,null,null,null,null,null,null,null,"691",6,9,1,{"$f":"AC1","v":"PSG"}]
[null,null,null,null,null,null,null,null,null,null,null,null,null,null,null,null,null,null,null,null,null,null,null,null,null,null,"692",6,9,2,{"$f":"AC1","v":"PSG"}]
[null,null,null,null,null,null,null,null,null,null,null,null,null,null,null,null,null,null,null,null,null,null,null,null,null,null,"693",6,9,3,"NUL"]
[null,null,null,null,null,null,null,null,null,null,null,null,null,null,null,null,null,null,null,null,null,null,null,null,null,null,"694",6,9,4,{"$f":"AB1","v":"Monaco"}]
[null,null,null,null,null,null,null,null,null,null,null,null,null,null,null,null,null,null,null,null,null,null,null,null,null,null,"695",6,9,5,{"$f":"AB1","v":"Monaco"}]
[null,null,null,null,null,null,null,null,null,null,null,null,null,null,null,null,null,null,null,null,null,null,null,null,null,null,"696",6,9,6,{"$f":"AB1","v":"Monaco"}]
[null,null,null,null,null,null,null,null,null,null,null,null,null,null,null,null,null,null,null,null,null,null,null,null,null,null,"697",6,9,7,{"$f":"AB1","v":"Monaco"}]
[null,null,null,null,null,null,null,null,null,null,null,null,null,null,null,null,null,null,null,null,null,null,null,null,null,null,"698",6,9,8,{"$f":"AC1","v":"PSG"}]
[null,null,null,null,null,null,null,null,null,null,null,null,null,null,null,null,null,null,null,null,null,null,null,null,null,null,"699",6,9,9,{"$f":"AC1","v":"PSG"}]
[null,null,null,null,null,null,null,null,null,null,null,null,null,null,null,null,null,null,null,null,null,null,null,null,null,null,"711",7,1,1,{"$f":"AC1","v":"PSG"}]
[null,null,null,null,null,null,null,null,null,null,null,null,null,null,null,null,null,null,null,null,null,null,null,null,null,null,"712",7,1,2,{"$f":"AC1","v":"PSG"}]
[null,null,null,null,null,null,null,null,null,null,null,null,null,null,null,null,null,null,null,null,null,null,null,null,null,null,"713",7,1,3,{"$f":"AC1","v":"PSG"}]
[null,null,null,null,null,null,null,null,null,null,null,null,null,null,null,null,null,null,null,null,null,null,null,null,null,null,"714",7,1,4,"NUL"]
[null,null,null,null,null,null,null,null,null,null,null,null,null,null,null,null,null,null,null,null,null,null,null,null,null,null,"715",7,1,5,{"$f":"AB1","v":"Monaco"}]
[null,null,null,null,null,null,null,null,null,null,null,null,null,null,null,null,null,null,null,null,null,null,null,null,null,null,"716",7,1,6,{"$f":"AB1","v":"Monaco"}]
[null,null,null,null,null,null,null,null,null,null,null,null,null,null,null,null,null,null,null,null,null,null,null,null,null,null,"717",7,1,7,{"$f":"AB1","v":"Monaco"}]
[null,null,null,null,null,null,null,null,null,null,null,null,null,null,null,null,null,null,null,null,null,null,null,null,null,null,"718",7,1,8,{"$f":"AB1","v":"Monaco"}]
[null,null,null,null,null,null,null,null,null,null,null,null,null,null,null,null,null,null,null,null,null,null,null,null,null,null,"719",7,1,9,{"$f":"AC1","v":"PSG"}]
[null,null,null,null,null,null,null,null,null,null,null,null,null,null,null,null,null,null,null,null,null,null,null,null,null,null,"721",7,2,1,{"$f":"AC1","v":"PSG"}]
[null,null,null,null,null,null,null,null,null,null,null,null,null,null,null,null,null,null,null,null,null,null,null,null,null,null,"722",7,2,2,{"$f":"AC1","v":"PSG"}]
[null,null,null,null,null,null,null,null,null,null,null,null,null,null,null,null,null,null,null,null,null,null,null,null,null,null,"723",7,2,3,{"$f":"AC1","v":"PSG"}]
[null,null,null,null,null,null,null,null,null,null,null,null,null,null,null,null,null,null,null,null,null,null,null,null,null,null,"724",7,2,4,{"$f":"AC1","v":"PSG"}]
[null,null,null,null,null,null,null,null,null,null,null,null,null,null,null,null,null,null,null,null,null,null,null,null,null,null,"725",7,2,5,{"$f":"AB1","v":"Monaco"}]
[null,null,null,null,null,null,null,null,null,null,null,null,null,null,null,null,null,null,null,null,null,null,null,null,null,null,"726",7,2,6,{"$f":"AB1","v":"Monaco"}]
[null,null,null,null,null,null,null,null,null,null,null,null,null,null,null,null,null,null,null,null,null,null,null,null,null,null,"727",7,2,7,{"$f":"AB1","v":"Monaco"}]
[null,null,null,null,null,null,null,null,null,null,null,null,null,null,null,null,null,null,null,null,null,null,null,null,null,null,"728",7,2,8,{"$f":"AB1","v":"Monaco"}]
[null,null,null,null,null,null,null,null,null,null,null,null,null,null,null,null,null,null,null,null,null,null,null,null,null,null,"729",7,2,9,"NUL"]
[null,null,null,null,null,null,null,null,null,null,null,null,null,null,null,null,null,null,null,null,null,null,null,null,null,null,"731",7,3,1,{"$f":"AC1","v":"PSG"}]
[null,null,null,null,null,null,null,null,null,null,null,null,null,null,null,null,null,null,null,null,null,null,null,null,null,null,"732",7,3,2,{"$f":"AC1","v":"PSG"}]
[null,null,null,null,null,null,null,null,null,null,null,null,null,null,null,null,null,null,null,null,null,null,null,null,null,null,"733",7,3,3,{"$f":"AC1","v":"PSG"}]
[null,null,null,null,null,null,null,null,null,null,null,null,null,null,null,null,null,null,null,null,null,null,null,null,null,null,"734",7,3,4,{"$f":"AC1","v":"PSG"}]
[null,null,null,null,null,null,null,null,null,null,null,null,null,null,null,null,null,null,null,null,null,null,null,null,null,null,"735",7,3,5,"NUL"]
[null,null,null,null,null,null,null,null,null,null,null,null,null,null,null,null,null,null,null,null,null,null,null,null,null,null,"736",7,3,6,{"$f":"AB1","v":"Monaco"}]
[null,null,null,null,null,null,null,null,null,null,null,null,null,null,null,null,null,null,null,null,null,null,null,null,null,null,{"$f":"CONCATENATE(AB515,AC515,AD515)","v":"737"},7,3,7,{"$f":"AB1","v":"Monaco"}]
[null,null,null,null,null,null,null,null,null,null,null,null,null,null,null,null,null,null,null,null,null,null,null,null,null,null,"738",7,3,8,{"$f":"AB1","v":"Monaco"}]
[null,null,null,null,null,null,null,null,null,null,null,null,null,null,null,null,null,null,null,null,null,null,null,null,null,null,"739",7,3,9,{"$f":"AB1","v":"Monaco"}]
[null,null,null,null,null,null,null,null,null,null,null,null,null,null,null,null,null,null,null,null,null,null,null,null,null,null,"741",7,4,1,"NUL"]
[null,null,null,null,null,null,null,null,null,null,null,null,null,null,null,null,null,null,null,null,null,null,null,null,null,null,"742",7,4,2,{"$f":"AC1","v":"PSG"}]
[null,null,null,null,null,null,null,null,null,null,null,null,null,null,null,null,null,null,null,null,null,null,null,null,null,null,"743",7,4,3,{"$f":"AC1","v":"PSG"}]
[null,null,null,null,null,null,null,null,null,null,null,null,null,null,null,null,null,null,null,null,null,null,null,null,null,null,"744",7,4,4,{"$f":"AC1","v":"PSG"}]
[null,null,null,null,null,null,null,null,null,null,null,null,null,null,null,null,null,null,null,null,null,null,null,null,null,null,"745",7,4,5,{"$f":"AC1","v":"PSG"}]
[null,null,null,null,null,null,null,null,null,null,null,null,null,null,null,null,null,null,null,null,null,null,null,null,null,null,"746",7,4,6,{"$f":"AB1","v":"Monaco"}]
[null,null,null,null,null,null,null,null,null,null,null,null,null,null,null,null,null,null,null,null,null,null,null,null,null,null,"747",7,4,7,{"$f":"AB1","v":"Monaco"}]
[null,null,null,null,null,null,null,null,null,null,null,null,null,null,null,null,null,null,null,null,null,null,null,null,null,null,"748",7,4,8,{"$f":"AB1","v":"Monaco"}]
[null,null,null,null,null,null,null,null,null,null,null,null,null,null,null,null,null,null,null,null,null,null,null,null,null,null,"749",7,4,9,{"$f":"AB1","v":"Monaco"}]
[null,null,null,null,null,null,null,null,null,null,null,null,null,null,null,null,null,null,null,null,null,null,null,null,null,null,"751",7,5,1,{"$f":"AB1","v":"Monaco"}]
[null,null,null,null,null,null,null,null,null,null,null,null,null,null,null,null,null,null,null,null,null,null,null,null,null,null,"752",7,5,2,{"$f":"AC1","v":"PSG"}]
[null,null,null,null,null,null,null,null,null,null,null,null,null,null,null,null,null,null,null,null,null,null,null,null,null,null,"753",7,5,3,{"$f":"AC1","v":"PSG"}]
[null,null,null,null,null,null,null,null,null,null,null,null,null,null,null,null,null,null,null,null,null,null,null,null,null,null,"754",7,5,4,{"$f":"AC1","v":"PSG"}]
[null,null,null,null,null,null,null,null,null,null,null,null,null,null,null,null,null,null,null,null,null,null,null,null,null,null,"755",7,5,5,{"$f":"AC1","v":"PSG"}]
[null,null,null,null,null,null,null,null,null,null,null,null,null,null,null,null,null,null,null,null,null,null,null,null,null,null,"756",7,5,6,"NUL"]
[null,null,null,null,null,null,null,null,null,null,null,null,null,null,null,null,null,null,null,null,null,null,null,null,null,null,"757",7,5,7,{"$f":"AB1","v":"Monaco"}]
[null,null,null,null,null,null,null,null,null,null,null,null,null,null,null,null,null,null,null,null,null,null,null,null,null,null,"758",7,5,8,{"$f":"AB1","v":"Monaco"}]
[null,null,null,null,null,null,null,null,null,null,null,null,null,null,null,null,null,null,null,null,null,null,null,null,null,null,"759",7,5,9,{"$f":"AB1","v":"Monaco"}]
[null,null,null,null,null,null,null,null,null,null,null,null,null,null,null,null,null,null,null,null,null,null,null,null,null,null,"761",7,6,1,{"$f":"AB1","v":"Monaco"}]
[null,null,null,null,null,null,null,null,null,null,null,null,null,null,null,null,null,null,null,null,null,null,null,null,null,null,"762",7,6,2,"NUL"]
[null,null,null,null,null,null,null,null,null,null,null,null,null,null,null,null,null,null,null,null,null,null,null,null,null,null,"763",7,6,3,{"$f":"AC1","v":"PSG"}]
[null,null,null,null,null,null,null,null,null,null,null,null,null,null,null,null,null,null,null,null,null,null,null,null,null,null,"764",7,6,4,{"$f":"AC1","v":"PSG"}]
[null,null,null,null,null,null,null,null,null,null,null,null,null,null,null,null,null,null,null,null,null,null,null,null,null,null,"765",7,6,5,{"$f":"AC1","v":"PSG"}]
[null,null,null,null,null,null,null,null,null,null,null,null,null,null,null,null,null,null,null,null,null,null,null,null,null,null,"766",7,6,6,{"$f":"AC1","v":"PSG"}]
[null,null,null,null,null,null,null,null,null,null,null,null,null,null,null,null,null,null,null,null,null,null,null,null,null,null,"767",7,6,7,{"$f":"AB1","v":"Monaco"}]
[null,null,null,null,null,null,null,null,null,null,null,null,null,null,null,null,null,null,null,null,null,null,null,null,null,null,"768",7,6,8,{"$f":"AB1","v":"Monaco"}]
[null,null,null,null,null,null,null,null,null,null,null,null,null,null,null,null,null,null,null,null,null,null,null,null,null,null,"769",7,6,9,{"$f":"AB1","v":"Monaco"}]
[null,null,null,null,null,null,null,null,null,null,null,null,null,null,null,null,null,null,null,null,null,null,null,null,null,null,"771",7,7,1,{"$f":"AC1","v":"PSG"}]
[null,null,null,null,null,null,null,null,null,null,null,null,null,null,null,null,null,null,null,null,null,null,null,null,null,null,"772",7,7,2,{"$f":"AB1","v":"Monaco"}]
[null,null,null,null,null,null,null,null,null,null,null,null,null,null,null,null,null,null,null,null,null,null,null,null,null,null,"773",7,7,3,{"$f":"AB1","v":"Monaco"}]
[null,null,null,null,null,null,null,null,null,null,null,null,null,null,null,null,null,null,null,null,null,null,null,null,null,null,"774",7,7,4,{"$f":"AC1","v":"PSG"}]
[null,null,null,null,null,null,null,null,null,null,null,null,null,null,null,null,null,null,null,null,null,null,null,null,null,null,"775",7,7,5,{"$f":"AB1","v":"Monaco"}]
[null,null,null,null,null,null,null,null,null,null,null,null,null,null,null,null,null,null,null,null,null,null,null,null,null,null,"776",7,7,6,"NUL"]
[null,null,null,null,null,null,null,null,null,null,null,null,null,null,null,null,null,null,null,null,null,null,null,null,null,null,"778",7,7,8,"NUL"]
[null,null,null,null,null,null,null,null,null,null,null,null,null,null,null,null,null,null,null,null,null,null,null,null,null,null,"779",7,7,9,{"$f":"AB1","v":"Monaco"}]
[null,null,null,null,null,null,null,null,null,null,null,null,null,null,null,null,null,null,null,null,null,null,null,null,null,null,"781",7,8,1,{"$f":"AC1","v":"PSG"}]
[null,null,null,null,null,null,null,null,null,null,null,null,null,null,null,null,null,null,null,null,null,null,null,null,null,null,"782",7,8,2,{"$f":"AC1","v":"PSG"}]
[null,null,null,null,null,null,null,null,null,null,null,null,null,null,null,null,null,null,null,null,null,null,null,null,null,null,"783",7,8,3,"NUL"]
[null,null,null,null,null,null,null,null,null,null,null,null,null,null,null,null,null,null,null,null,null,null,null,null,null,null,"784",7,8,4,{"$f":"AB1","v":"Monaco"}]
[null,null,null,null,null,null,null,null,null,null,null,null,null,null,null,null,null,null,null,null,null,null,null,null,null,null,"785",7,8,5,{"$f":"AB1","v":"Monaco"}]
[null,null,null,null,null,null,null,null,null,null,null,null,null,null,null,null,null,null,null,null,null,null,null,null,null,null,"786",7,8,6,{"$f":"AB1","v":"Monaco"}]
[null,null,null,null,null,null,null,null,null,null,null,null,null,null,null,null,null,null,null,null,null,null,null,null,null,null,"787",7,8,7,{"$f":"AB1","v":"Monaco"}]
[null,null,null,null,null,null,null,null,null,null,null,null,null,null,null,null,null,null,null,null,null,null,null,null,null,null,"788",7,8,8,{"$f":"AC1","v":"PSG"}]
[null,null,null,null,null,null,null,null,null,null,null,null,null,null,null,null,null,null,null,null,null,null,null,null,null,null,"789",7,8,9,{"$f":"AC1","v":"PSG"}]
[null,null,null,null,null,null,null,null,null,null,null,null,null,null,null,null,null,null,null,null,null,null,null,null,null,null,"791",7,9,1,{"$f":"AC1","v":"PSG"}]
[null,null,null,null,null,null,null,null,null,null,null,null,null,null,null,null,null,null,null,null,null,null,null,null,null,null,"792",7,9,2,{"$f":"AC1","v":"PSG"}]
[null,null,null,null,null,null,null,null,null,null,null,null,null,null,null,null,null,null,null,null,null,null,null,null,null,null,"793",7,9,3,{"$f":"AC1","v":"PSG"}]
[null,null,null,null,null,null,null,null,null,null,null,null,null,null,null,null,null,null,null,null,null,null,null,null,null,null,"794",7,9,4,{"$f":"AB1","v":"Monaco"}]
[null,null,null,null,null,null,null,null,null,null,null,null,null,null,null,null,null,null,null,null,null,null,null,null,null,null,"795",7,9,5,{"$f":"AB1","v":"Monaco"}]
[null,null,null,null,null,null,null,null,null,null,null,null,null,null,null,null,null,null,null,null,null,null,null,null,null,null,"796",7,9,6,{"$f":"AB1","v":"Monaco"}]
[null,null,null,null,null,null,null,null,null,null,null,null,null,null,null,null,null,null,null,null,null,null,null,null,null,null,"797",7,9,7,{"$f":"AB1","v":"Monaco"}]
[null,null,null,null,null,null,null,null,null,null,null,null,null,null,null,null,null,null,null,null,null,null,null,null,null,null,"798",7,9,8,"NUL"]
[null,null,null,null,null,null,null,null,null,null,null,null,null,null,null,null,null,null,null,null,null,null,null,null,null,null,"799",7,9,9,{"$f":"AC1","v":"PSG"}]
[null,null,null,null,null,null,null,null,null,null,null,null,null,null,null,null,null,null,null,null,null,null,null,null,null,null,"811",8,1,1,{"$f":"AC1","v":"PSG"}]
[null,null,null,null,null,null,null,null,null,null,null,null,null,null,null,null,null,null,null,null,null,null,null,null,null,null,"812",8,1,2,{"$f":"AC1","v":"PSG"}]
[null,null,null,null,null,null,null,null,null,null,null,null,null,null,null,null,null,null,null,null,null,null,null,null,null,null,"813",8,1,3,{"$f":"AC1","v":"PSG"}]
[null,null,null,null,null,null,null,null,null,null,null,null,null,null,null,null,null,null,null,null,null,null,null,null,null,null,"814",8,1,4,{"$f":"AC1","v":"PSG"}]
[null,null,null,null,null,null,null,null,null,null,null,null,null,null,null,null,null,null,null,null,null,null,null,null,null,null,"815",8,1,5,{"$f":"AB1","v":"Monaco"}]
[null,null,null,null,null,null,null,null,null,null,null,null,null,null,null,null,null,null,null,null,null,null,null,null,null,null,"816",8,1,6,{"$f":"AB1","v":"Monaco"}]
[null,null,null,null,null,null,null,null,null,null,null,null,null,null,null,null,null,null,null,null,null,null,null,null,null,null,"817",8,1,7,{"$f":"AB1","v":"Monaco"}]
[null,null,null,null,null,null,null,null,null,null,null,null,null,null,null,null,null,null,null,null,null,null,null,null,null,null,"818",8,1,8,{"$f":"AB1","v":"Monaco"}]
[null,null,null,null,null,null,null,null,null,null,null,null,null,null,null,null,null,null,null,null,null,null,null,null,null,null,{"$f":"CONCATENATE(AB579,AC579,AD579)","v":"819"},8,1,9,"NUL"]
[null,null,null,null,null,null,null,null,null,null,null,null,null,null,null,null,null,null,null,null,null,null,null,null,null,null,"821",8,2,1,{"$f":"AC1","v":"PSG"}]
[null,null,null,null,null,null,null,null,null,null,null,null,null,null,null,null,null,null,null,null,null,null,null,null,null,null,"822",8,2,2,{"$f":"AC1","v":"PSG"}]
[null,null,null,null,null,null,null,null,null,null,null,null,null,null,null,null,null,null,null,null,null,null,null,null,null,null,"823",8,2,3,{"$f":"AC1","v":"PSG"}]
[null,null,null,null,null,null,null,null,null,null,null,null,null,null,null,null,null,null,null,null,null,null,null,null,null,null,"824",8,2,4,{"$f":"AC1","v":"PSG"}]
[null,null,null,null,null,null,null,null,null,null,null,null,null,null,null,null,null,null,null,null,null,null,null,null,null,null,"825",8,2,5,"NUL"]
[null,null,null,null,null,null,null,null,null,null,null,null,null,null,null,null,null,null,null,null,null,null,null,null,null,null,"826",8,2,6,{"$f":"AB1","v":"Monaco"}]
[null,null,null,null,null,null,null,null,null,null,null,null,null,null,null,null,null,null,null,null,null,null,null,null,null,null,"827",8,2,7,{"$f":"AB1","v":"Monaco"}]
[null,null,null,null,null,null,null,null,null,null,null,null,null,null,null,null,null,null,null,null,null,null,null,null,null,null,"828",8,2,8,{"$f":"AB1","v":"Monaco"}]
[null,null,null,null,null,null,null,null,null,null,null,null,null,null,null,null,null,null,null,null,null,null,null,null,null,null,"829",8,2,9,{"$f":"AB1","v":"Monaco"}]
[null,null,null,null,null,null,null,null,null,null,null,null,null,null,null,null,null,null,null,null,null,null,null,null,null,null,"831",8,3,1,"NUL"]
[null,null,null,null,null,null,null,null,null,null,null,null,null,null,null,null,null,null,null,null,null,null,null,null,null,null,"832",8,3,2,{"$f":"AC1","v":"PSG"}]
[null,null,null,null,null,null,null,null,null,null,null,null,null,null,null,null,null,null,null,null,null,null,null,null,null,null,"833",8,3,3,{"$f":"AC1","v":"PSG"}]
[null,null,null,null,null,null,null,null,null,null,null,null,null,null,null,null,null,null,null,null,null,null,null,null,null,null,"834",8,3,4,{"$f":"AC1","v":"PSG"}]
[null,null,null,null,null,null,null,null,null,null,null,null,null,null,null,null,null,null,null,null,null,null,null,null,null,null,"835",8,3,5,{"$f":"AC1","v":"PSG"}]
[null,null,null,null,null,null,null,null,null,null,null,null,null,null,null,null,null,null,null,null,null,null,null,null,null,null,"836",8,3,6,{"$f":"AB1","v":"Monaco"}]
[null,null,null,null,null,null,null,null,null,null,null,null,null,null,null,null,null,null,null,null,null,null,null,null,null,null,"837",8,3,7,{"$f":"AB1","v":"Monaco"}]
[null,null,null,null,null,null,null,null,null,null,null,null,null,null,null,null,null,null,null,null,null,null,null,null,null,null,"838",8,3,8,{"$f":"AB1","v":"Monaco"}]
[null,null,null,null,null,null,null,null,null,null,null,null,null,null,null,null,null,null,null,null,null,null,null,null,null,null,"839",8,3,9,{"$f":"AB1","v":"Monaco"}]
[null,null,null,null,null,null,null,null,null,null,null,null,null,null,null,null,null,null,null,null,null,null,null,null,null,null,"841",8,4,1,{"$f":"AB1","v":"Monaco"}]
[null,null,null,null,null,null,null,null,null,null,null,null,null,null,null,null,null,null,null,null,null,null,null,null,null,null,"842",8,4,2,{"$f":"AC1","v":"PSG"}]
[null,null,null,null,null,null,null,null,null,null,null,null,null,null,null,null,null,null,null,null,null,null,null,null,null,null,"843",8,4,3,{"$f":"AC1","v":"PSG"}]
[null,null,null,null,null,null,null,null,null,null,null,null,null,null,null,null,null,null,null,null,null,null,null,null,null,null,"844",8,4,4,{"$f":"AC1","v":"PSG"}]
[null,null,null,null,null,null,null,null,null,null,null,null,null,null,null,null,null,null,null,null,null,null,null,null,null,null,"845",8,4,5,{"$f":"AC1","v":"PSG"}]
[null,null,null,null,null,null,null,null,null,null,null,null,null,null,null,null,null,null,null,null,null,null,null,null,null,null,"846",8,4,6,"NUL"]
[null,null,null,null,null,null,null,null,null,null,null,null,null,null,null,null,null,null,null,null,null,null,null,null,null,null,"847",8,4,7,{"$f":"AB1","v":"Monaco"}]
[null,null,null,null,null,null,null,null,null,null,null,null,null,null,null,null,null,null,null,null,null,null,null,null,null,null,"848",8,4,8,{"$f":"AB1","v":"Monaco"}]
[null,null,null,null,null,null,null,null,null,null,null,null,null,null,null,null,null,null,null,null,null,null,null,null,null,null,"849",8,4,9,{"$f":"AB1","v":"Monaco"}]
[null,null,null,null,null,null,null,null,null,null,null,null,null,null,null,null,null,null,null,null,null,null,null,null,null,null,"851",8,5,1,{"$f":"AB1","v":"Monaco"}]
[null,null,null,null,null,null,null,null,null,null,null,null,null,null,null,null,null,null,null,null,null,null,null,null,null,null,"852",8,5,2,"NUL"]
[null,null,null,null,null,null,null,null,null,null,null,null,null,null,null,null,null,null,null,null,null,null,null,null,null,null,"853",8,5,3,{"$f":"AC1","v":"PSG"}]
[null,null,null,null,null,null,null,null,null,null,null,null,null,null,null,null,null,null,null,null,null,null,null,null,null,null,"854",8,5,4,{"$f":"AC1","v":"PSG"}]
[null,null,null,null,null,null,null,null,null,null,null,null,null,null,null,null,null,null,null,null,null,null,null,null,null,null,"855",8,5,5,{"$f":"AC1","v":"PSG"}]
[null,null,null,null,null,null,null,null,null,null,null,null,null,null,null,null,null,null,null,null,null,null,null,null,null,null,"856",8,5,6,{"$f":"AC1","v":"PSG"}]
[null,null,null,null,null,null,null,null,null,null,null,null,null,null,null,null,null,null,null,null,null,null,null,null,null,null,"857",8,5,7,{"$f":"AB1","v":"Monaco"}]
[null,null,null,null,null,null,null,null,null,null,null,null,null,null,null,null,null,null,null,null,null,null,null,null,null,null,"858",8,5,8,{"$f":"AB1","v":"Monaco"}]
[null,null,null,null,null,null,null,null,null,null,null,null,null,null,null,null,null,null,null,null,null,null,null,null,null,null,"859",8,5,9,{"$f":"AB1","v":"Monaco"}]
[null,null,null,null,null,null,null,null,null,null,null,null,null,null,null,null,null,null,null,null,null,null,null,null,null,null,"861",8,6,1,{"$f":"AB1","v":"Monaco"}]
[null,null,null,null,null,null,null,null,null,null,null,null,null,null,null,null,null,null,null,null,null,null,null,null,null,null,"862",8,6,2,{"$f":"AB1","v":"Monaco"}]
[null,null,null,null,null,null,null,null,null,null,null,null,null,null,null,null,null,null,null,null,null,null,null,null,null,null,"863",8,6,3,{"$f":"AC1","v":"PSG"}]
[null,null,null,null,null,null,null,null,null,null,null,null,null,null,null,null,null,null,null,null,null,null,null,null,null,null,"864",8,6,4,{"$f":"AC1","v":"PSG"}]
[null,null,null,null,null,null,null,null,null,null,null,null,null,null,null,null,null,null,null,null,null,null,null,null,null,null,"865",8,6,5,{"$f":"AC1","v":"PSG"}]
[null,null,null,null,null,null,null,null,null,null,null,null,null,null,null,null,null,null,null,null,null,null,null,null,null,null,"866",8,6,6,{"$f":"AC1","v":"PSG"}]
[null,null,null,null,null,null,null,null,null,null,null,null,null,null,null,null,null,null,null,null,null,null,null,null,null,null,"867",8,6,7,"NUL"]
[null,null,null,null,null,null,null,null,null,null,null,null,null,null,null,null,null,null,null,null,null,null,null,null,null,null,"868",8,6,8,{"$f":"AB1","v":"Monaco"}]
[null,null,null,null,null,null,null,null,null,null,null,null,null,null,null,null,null,null,null,null,null,null,null,null,null,null,"869",8,6,9,{"$f":"AB1","v":"Monaco"}]
[null,null,null,null,null,null,null,null,null,null,null,null,null,null,null,null,null,null,null,null,null,null,null,null,null,null,"871",8,7,1,{"$f":"AB1","v":"Monaco"}]
[null,null,null,null,null,null,null,null,null,null,null,null,null,null,null,null,null,null,null,null,null,null,null,null,null,null,"872",8,7,2,{"$f":"AB1","v":"Monaco"}]
[null,null,null,null,null,null,null,null,null,null,null,null,null,null,null,null,null,null,null,null,null,null,null,null,null,null,"873",8,7,3,"NUL"]
[null,null,null,null,null,null,null,null,null,null,null,null,null,null,null,null,null,null,null,null,null,null,null,null,null,null,"874",8,7,4,{"$f":"AC1","v":"PSG"}]
[null,null,null,null,null,null,null,null,null,null,null,null,null,null,null,null,null,null,null,null,null,null,null,null,null,null,"875",8,7,5,{"$f":"AC1","v":"PSG"}]
[null,null,null,null,null,null,null,null,null,null,null,null,null,null,null,null,null,null,null,null,null,null,null,null,null,null,"876",8,7,6,{"$f":"AC1","v":"PSG"}]
[null,null,null,null,null,null,null,null,null,null,null,null,null,null,null,null,null,null,null,null,null,null,null,null,null,null,"877",8,7,7,{"$f":"AC1","v":"PSG"}]
[null,null,null,null,null,null,null,null,null,null,null,null,null,null,null,null,null,null,null,null,null,null,null,null,null,null,"878",8,7,8,{"$f":"AB1","v":"Monaco"}]
[null,null,null,null,null,null,null,null,null,null,null,null,null,null,null,null,null,null,null,null,null,null,null,null,null,null,"879",8,7,9,{"$f":"AB1","v":"Monaco"}]
[null,null,null,null,null,null,null,null,null,null,null,null,null,null,null,null,null,null,null,null,null,null,null,null,null,null,"881",8,8,1,{"$f":"AB1","v":"Monaco"}]
[null,null,null,null,null,null,null,null,null,null,null,null,null,null,null,null,null,null,null,null,null,null,null,null,null,null,"882",8,8,2,{"$f":"AC1","v":"PSG"}]
[null,null,null,null,null,null,null,null,null,null,null,null,null,null,null,null,null,null,null,null,null,null,null,null,null,null,"883",8,8,3,{"$f":"AB1","v":"Monaco"}]
[null,null,null,null,null,null,null,null,null,null,null,null,null,null,null,null,null,null,null,null,null,null,null,null,null,null,"884",8,8,4,{"$f":"AB1","v":"Monaco"}]
[null,null,null,null,null,null,null,null,null,null,null,null,null,null,null,null,null,null,null,null,null,null,null,null,null,null,"885",8,8,5,{"$f":"AC1","v":"PSG"}]
[null,null,null,null,null,null,null,null,null,null,null,null,null,null,null,null,null,null,null,null,null,null,null,null,null,null,"886",8,8,6,{"$f":"AB1","v":"Monaco"}]
[null,null,null,null,null,null,null,null,null,null,null,null,null,null,null,null,null,null,null,null,null,null,null,null,null,null,"887",8,8,7,{"$f":"AB1","v":"Monaco"}]
[null,null,null,null,null,null,null,null,null,null,null,null,null,null,null,null,null,null,null,null,null,null,null,null,null,null,"889",8,8,9,{"$f":"AB1","v":"Monaco"}]
[null,null,null,null,null,null,null,null,null,null,null,null,null,null,null,null,null,null,null,null,null,null,null,null,null,null,"891",8,9,1,{"$f":"AC1","v":"PSG"}]
[null,null,null,null,null,null,null,null,null,null,null,null,null,null,null,null,null,null,null,null,null,null,null,null,null,null,{"$f":"CONCATENATE(AB643,AC643,AD643)","v":"892"},8,9,2,{"$f":"AC1","v":"PSG"}]
[null,null,null,null,null,null,null,null,null,null,null,null,null,null,null,null,null,null,null,null,null,null,null,null,null,null,"893",8,9,3,{"$f":"AC1","v":"PSG"}]
[null,null,null,null,null,null,null,null,null,null,null,null,null,null,null,null,null,null,null,null,null,null,null,null,null,null,"894",8,9,4,"NUL"]
[null,null,null,null,null,null,null,null,null,null,null,null,null,null,null,null,null,null,null,null,null,null,null,null,null,null,"895",8,9,5,{"$f":"AB1","v":"Monaco"}]
[null,null,null,null,null,null,null,null,null,null,null,null,null,null,null,null,null,null,null,null,null,null,null,null,null,null,"896",8,9,6,{"$f":"AB1","v":"Monaco"}]
[null,null,null,null,null,null,null,null,null,null,null,null,null,null,null,null,null,null,null,null,null,null,null,null,null,null,"897",8,9,7,{"$f":"AB1","v":"Monaco"}]
[null,null,null,null,null,null,null,null,null,null,null,null,null,null,null,null,null,null,null,null,null,null,null,null,null,null,"898",8,9,8,{"$f":"AB1","v":"Monaco"}]
[null,null,null,null,null,null,null,null,null,null,null,null,null,null,null,null,null,null,null,null,null,null,null,null,null,null,"899",8,9,9,{"$f":"AC1","v":"PSG"}]
[null,null,null,null,null,null,null,null,null,null,null,null,null,null,null,null,null,null,null,null,null,null,null,null,null,null,"911",9,1,1,{"$f":"AC1","v":"PSG"}]
[null,null,null,null,null,null,null,null,null,null,null,null,null,null,null,null,null,null,null,null,null,null,null,null,null,null,"912",9,1,2,{"$f":"AC1","v":"PSG"}]
[null,null,null,null,null,null,null,null,null,null,null,null,null,null,null,null,null,null,null,null,null,null,null,null,null,null,"913",9,1,3,{"$f":"AC1","v":"PSG"}]
[null,null,null,null,null,null,null,null,null,null,null,null,null,null,null,null,null,null,null,null,null,null,null,null,null,null,"914",9,1,4,{"$f":"AC1","v":"PSG"}]
[null,null,null,null,null,null,null,null,null,null,null,null,null,null,null,null,null,null,null,null,null,null,null,null,null,null,"915",9,1,5,"NUL"]
[null,null,null,null,null,null,null,null,null,null,null,null,null,null,null,null,null,null,null,null,null,null,null,null,null,null,"916",9,1,6,{"$f":"AB1","v":"Monaco"}]
[null,null,null,null,null,null,null,null,null,null,null,null,null,null,null,null,null,null,null,null,null,null,null,null,null,null,"917",9,1,7,{"$f":"AB1","v":"Monaco"}]
[null,null,null,null,null,null,null,null,null,null,null,null,null,null,null,null,null,null,null,null,null,null,null,null,null,null,"918",9,1,8,{"$f":"AB1","v":"Monaco"}]
[null,null,null,null,null,null,null,null,null,null,null,null,null,null,null,null,null,null,null,null,null,null,null,null,null,null,"919",9,1,9,{"$f":"AB1","v":"Monaco"}]
[null,null,null,null,null,null,null,null,null,null,null,null,null,null,null,null,null,null,null,null,null,null,null,null,null,null,"921",9,2,1,"NUL"]
[null,null,null,null,null,null,null,null,null,null,null,null,null,null,null,null,null,null,null,null,null,null,null,null,null,null,"922",9,2,2,{"$f":"AC1","v":"PSG"}]
[null,null,null,null,null,null,null,null,null,null,null,null,null,null,null,null,null,null,null,null,null,null,null,null,null,null,"923",9,2,3,{"$f":"AC1","v":"PSG"}]
[null,null,null,null,null,null,null,null,null,null,null,null,null,null,null,null,null,null,null,null,null,null,null,null,null,null,"924",9,2,4,{"$f":"AC1","v":"PSG"}]
[null,null,null,null,null,null,null,null,null,null,null,null,null,null,null,null,null,null,null,null,null,null,null,null,null,null,"925",9,2,5,{"$f":"AC1","v":"PSG"}]
[null,null,null,null,null,null,null,null,null,null,null,null,null,null,null,null,null,null,null,null,null,null,null,null,null,null,"926",9,2,6,{"$f":"AB1","v":"Monaco"}]
[null,null,null,null,null,null,null,null,null,null,null,null,null,null,null,null,null,null,null,null,null,null,null,null,null,null,"927",9,2,7,{"$f":"AB1","v":"Monaco"}]
[null,null,null,null,null,null,null,null,null,null,null,null,null,null,null,null,null,null,null,null,null,null,null,null,null,null,"928",9,2,8,{"$f":"AB1","v":"Monaco"}]
[null,null,null,null,null,null,null,null,null,null,null,null,null,null,null,null,null,null,null,null,null,null,null,null,null,null,"929",9,2,9,{"$f":"AB1","v":"Monaco"}]
[null,null,null,null,null,null,null,null,null,null,null,null,null,null,null,null,null,null,null,null,null,null,null,null,null,null,"931",9,3,1,{"$f":"AB1","v":"Monaco"}]
[null,null,null,null,null,null,null,null,null,null,null,null,null,null,null,null,null,null,null,null,null,null,null,null,null,null,"932",9,3,2,{"$f":"AC1","v":"PSG"}]
[null,null,null,null,null,null,null,null,null,null,null,null,null,null,null,null,null,null,null,null,null,null,null,null,null,null,"933",9,3,3,{"$f":"AC1","v":"PSG"}]
[null,null,null,null,null,null,null,null,null,null,null,null,null,null,null,null,null,null,null,null,null,null,null,null,null,null,"934",9,3,4,{"$f":"AC1","v":"PSG"}]
[null,null,null,null,null,null,null,null,null,null,null,null,null,null,null,null,null,null,null,null,null,null,null,null,null,null,"935",9,3,5,{"$f":"AC1","v":"PSG"}]
[null,null,null,null,null,null,null,null,null,null,null,null,null,null,null,null,null,null,null,null,null,null,null,null,null,null,"936",9,3,6,"NUL"]
[null,null,null,null,null,null,null,null,null,null,null,null,null,null,null,null,null,null,null,null,null,null,null,null,null,null,"937",9,3,7,{"$f":"AB1","v":"Monaco"}]
[null,null,null,null,null,null,null,null,null,null,null,null,null,null,null,null,null,null,null,null,null,null,null,null,null,null,"938",9,3,8,{"$f":"AB1","v":"Monaco"}]
[null,null,null,null,null,null,null,null,null,null,null,null,null,null,null,null,null,null,null,null,null,null,null,null,null,null,"939",9,3,9,{"$f":"AB1","v":"Monaco"}]
[null,null,null,null,null,null,null,null,null,null,null,null,null,null,null,null,null,null,null,null,null,null,null,null,null,null,"941",9,4,1,{"$f":"AB1","v":"Monaco"}]
[null,null,null,null,null,null,null,null,null,null,null,null,null,null,null,null,null,null,null,null,null,null,null,null,null,null,"942",9,4,2,"NUL"]
[null,null,null,null,null,null,null,null,null,null,null,null,null,null,null,null,null,null,null,null,null,null,null,null,null,null,"943",9,4,3,{"$f":"AC1","v":"PSG"}]
[null,null,null,null,null,null,null,null,null,null,null,null,null,null,null,null,null,null,null,null,null,null,null,null,null,null,"944",9,4,4,{"$f":"AC1","v":"PSG"}]
[null,null,null,null,null,null,null,null,null,null,null,null,null,null,null,null,null,null,null,null,null,null,null,null,null,null,"945",9,4,5,{"$f":"AC1","v":"PSG"}]
[null,null,null,null,null,null,null,null,null,null,null,null,null,null,null,null,null,null,null,null,null,null,null,null,null,null,"946",9,4,6,{"$f":"AC1","v":"PSG"}]
[null,null,null,null,null,null,null,null,null,null,null,null,null,null,null,null,null,null,null,null,null,null,null,null,null,null,"947",9,4,7,{"$f":"AB1","v":"Monaco"}]
[null,null,null,null,null,null,null,null,null,null,null,null,null,null,null,null,null,null,null,null,null,null,null,null,null,null,"948",9,4,8,{"$f":"AB1","v":"Monaco"}]
[null,null,null,null,null,null,null,null,null,null,null,null,null,null,null,null,null,null,null,null,null,null,null,null,null,null,"949",9,4,9,{"$f":"AB1","v":"Monaco"}]
[null,null,null,null,null,null,null,null,null,null,null,null,null,null,null,null,null,null,null,null,null,null,null,null,null,null,"951",9,5,1,{"$f":"AB1","v":"Monaco"}]
[null,null,null,null,null,null,null,null,null,null,null,null,null,null,null,null,null,null,null,null,null,null,null,null,null,null,"952",9,5,2,{"$f":"AB1","v":"Monaco"}]
[null,null,null,null,null,null,null,null,null,null,null,null,null,null,null,null,null,null,null,null,null,null,null,null,null,null,"953",9,5,3,{"$f":"AC1","v":"PSG"}]
[null,null,null,null,null,null,null,null,null,null,null,null,null,null,null,null,null,null,null,null,null,null,null,null,null,null,"954",9,5,4,{"$f":"AC1","v":"PSG"}]
[null,null,null,null,null,null,null,null,null,null,null,null,null,null,null,null,null,null,null,null,null,null,null,null,null,null,"955",9,5,5,{"$f":"AC1","v":"PSG"}]
[null,null,null,null,null,null,null,null,null,null,null,null,null,null,null,null,null,null,null,null,null,null,null,null,null,null,"956",9,5,6,{"$f":"AC1","v":"PSG"}]
[null,null,null,null,null,null,null,null,null,null,null,null,null,null,null,null,null,null,null,null,null,null,null,null,null,null,"957",9,5,7,"NUL"]
[null,null,null,null,null,null,null,null,null,null,null,null,null,null,null,null,null,null,null,null,null,null,null,null,null,null,"958",9,5,8,{"$f":"AB1","v":"Monaco"}]
[null,null,null,null,null,null,null,null,null,null,null,null,null,null,null,null,null,null,null,null,null,null,null,null,null,null,"959",9,5,9,{"$f":"AB1","v":"Monaco"}]
[null,null,null,null,null,null,null,null,null,null,null,null,null,null,null,null,null,null,null,null,null,null,null,null,null,null,"961",9,6,1,{"$f":"AB1","v":"Monaco"}]
[null,null,null,null,null,null,null,null,null,null,null,null,null,null,null,null,null,null,null,null,null,null,null,null,null,null,"962",9,6,2,{"$f":"AB1","v":"Monaco"}]
[null,null,null,null,null,null,null,null,null,null,null,null,null,null,null,null,null,null,null,null,null,null,null,null,null,null,"963",9,6,3,"NUL"]
[null,null,null,null,null,null,null,null,null,null,null,null,null,null,null,null,null,null,null,null,null,null,null,null,null,null,"964",9,6,4,{"$f":"AC1","v":"PSG"}]
[null,null,null,null,null,null,null,null,null,null,null,null,null,null,null,null,null,null,null,null,null,null,null,null,null,null,"965",9,6,5,{"$f":"AC1","v":"PSG"}]
[null,null,null,null,null,null,null,null,null,null,null,null,null,null,null,null,null,null,null,null,null,null,null,null,null,null,"966",9,6,6,{"$f":"AC1","v":"PSG"}]
[null,null,null,null,null,null,null,null,null,null,null,null,null,null,null,null,null,null,null,null,null,null,null,null,null,null,"967",9,6,7,{"$f":"AC1","v":"PSG"}]
[null,null,null,null,null,null,null,null,null,null,null,null,null,null,null,null,null,null,null,null,null,null,null,null,null,null,"968",9,6,8,{"$f":"AB1","v":"Monaco"}]
[null,null,null,null,null,null,null,null,null,null,null,null,null,null,null,null,null,null,null,null,null,null,null,null,null,null,"969",9,6,9,{"$f":"AB1","v":"Monaco"}]
[null,null,null,null,null,null,null,null,null,null,null,null,null,null,null,null,null,null,null,null,null,null,null,null,null,null,"971",9,7,1,{"$f":"AB1","v":"Monaco"}]
[null,null,null,null,null,null,null,null,null,null,null,null,null,null,null,null,null,null,null,null,null,null,null,null,null,null,"972",9,7,2,{"$f":"AB1","v":"Monaco"}]
[null,null,null,null,null,null,null,null,null,null,null,null,null,null,null,null,null,null,null,null,null,null,null,null,null,null,{"$f":"CONCATENATE(AB707,AC707,AD707)","v":"973"},9,7,3,{"$f":"AB1","v":"Monaco"}]
[null,null,null,null,null,null,null,null,null,null,null,null,null,null,null,null,null,null,null,null,null,null,null,null,null,null,"974",9,7,4,{"$f":"AC1","v":"PSG"}]
[null,null,null,null,null,null,null,null,null,null,null,null,null,null,null,null,null,null,null,null,null,null,null,null,null,null,"975",9,7,5,{"$f":"AC1","v":"PSG"}]
[null,null,null,null,null,null,null,null,null,null,null,null,null,null,null,null,null,null,null,null,null,null,null,null,null,null,"976",9,7,6,{"$f":"AC1","v":"PSG"}]
[null,null,null,null,null,null,null,null,null,null,null,null,null,null,null,null,null,null,null,null,null,null,null,null,null,null,"977",9,7,7,{"$f":"AC1","v":"PSG"}]
[null,null,null,null,null,null,null,null,null,null,null,null,null,null,null,null,null,null,null,null,null,null,null,null,null,null,"978",9,7,8,"NUL"]
[null,null,null,null,null,null,null,null,null,null,null,null,null,null,null,null,null,null,null,null,null,null,null,null,null,null,"979",9,7,9,{"$f":"AB1","v":"Monaco"}]
[null,null,null,null,null,null,null,null,null,null,null,null,null,null,null,null,null,null,null,null,null,null,null,null,null,null,"981",9,8,1,{"$f":"AB1","v":"Monaco"}]
[null,null,null,null,null,null,null,null,null,null,null,null,null,null,null,null,null,null,null,null,null,null,null,null,null,null,"982",9,8,2,{"$f":"AB1","v":"Monaco"}]
[null,null,null,null,null,null,null,null,null,null,null,null,null,null,null,null,null,null,null,null,null,null,null,null,null,null,"983",9,8,3,{"$f":"AB1","v":"Monaco"}]
[null,null,null,null,null,null,null,null,null,null,null,null,null,null,null,null,null,null,null,null,null,null,null,null,null,null,"984",9,8,4,"NUL"]
[null,null,null,null,null,null,null,null,null,null,null,null,null,null,null,null,null,null,null,null,null,null,null,null,null,null,"985",9,8,5,{"$f":"AC1","v":"PSG"}]
[null,null,null,null,null,null,null,null,null,null,null,null,null,null,null,null,null,null,null,null,null,null,null,null,null,null,"986",9,8,6,{"$f":"AC1","v":"PSG"}]
[null,null,null,null,null,null,null,null,null,null,null,null,null,null,null,null,null,null,null,null,null,null,null,null,null,null,"987",9,8,7,{"$f":"AC1","v":"PSG"}]
[null,null,null,null,null,null,null,null,null,null,null,null,null,null,null,null,null,null,null,null,null,null,null,null,null,null,"988",9,8,8,{"$f":"AC1","v":"PSG"}]
[null,null,null,null,null,null,null,null,null,null,null,null,null,null,null,null,null,null,null,null,null,null,null,null,null,null,"989",9,8,9,{"$f":"AB1","v":"Monaco"}]
[null,null,null,null,null,null,null,null,null,null,null,null,null,null,null,null,null,null,null,null,null,null,null,null,null,null,"991",9,9,1,"NUL"]
[null,null,null,null,null,null,null,null,null,null,null,null,null,null,null,null,null,null,null,null,null,null,null,null,null,null,"992",9,9,2,{"$f":"AB1","v":"Monaco"}]
[null,null,null,null,null,null,null,null,null,null,null,null,null,null,null,null,null,null,null,null,null,null,null,null,null,null,"993",9,9,3,{"$f":"AC1","v":"PSG"}]
[null,null,null,null,null,null,null,null,null,null,null,null,null,null,null,null,null,null,null,null,null,null,null,null,null,null,"994",9,9,4,{"$f":"AB1","v":"Monaco"}]
[null,null,null,null,null,null,null,null,null,null,null,null,null,null,null,null,null,null,null,null,null,null,null,null,null,null,"995",9,9,5,{"$f":"AB1","v":"Monaco"}]
[null,null,null,null,null,null,null,null,null,null,null,null,null,null,null,null,null,null,null,null,null,null,null,null,null,null,"996",9,9,6,{"$f":"AC1","v":"PSG"}]
[null,null,null,null,null,null,null,null,null,null,null,null,null,null,null,null,null,null,null,null,null,null,null,null,null,null,"997",9,9,7,{"$f":"AB1","v":"Monaco"}]
[null,null,null,null,null,null,null,null,null,null,null,null,null,null,null,null,null,null,null,null,null,null,null,null,null,null,"998",9,9,8,"NUL"]

{"sheet":"Datas O1","index":2,"n_rows":18,"n_cols":16,"rows_kept":18,"cut":false,"hidden":true,"merged":[[14,8,14,9]]}
["Date1","bun","Nom1","Nom2","Heure","Date2","Num","Résultat"]
[{"$f":"A10","v":"11.02.23"},"PF","X","Y",{"$f":"E10","v":"03:01:00"},"2023-02-11",6,{"$f":"IF(HOUR(E2)>MINUTE(E2),\"X\",IF(HOUR(E2)<MINUTE(E2),\"Y\",\"NUL\"))","v":"X"}]
[{"$f":"A11","v":"24.11.23"},"PF","Y","X","05:02:00","2023-11-24",4,{"$f":"IF(HOUR(E3)>MINUTE(E3),\"Y\",IF(HOUR(E3)<MINUTE(E3),\"X\",\"NUL\"))","v":"Y"}]
[null,null,null,null,null,{"$f":"IF(A4=0,\"\",DATEVALUE(SUBSTITUTE(A4,\".\",\"/\")))","v":""}]
[null,null,null,null,null,""]
[null,null,null,null,null,""]
[null,null,null,null,null,""]
[null,null,null,null,null,""]
[null,null,null,null,null,""]
[{"$f":"Datas!A10","v":"11.02.23"},{"$f":"Datas!B10","v":0},{"$f":"Datas!C10","v":"Monaco"},{"$f":"Datas!D10","v":"PSG"},{"$f":"Datas!E10","v":"03:01:00"},{"$f":"IF(A10=0,\"\",DATEVALUE(SUBSTITUTE(A10,\".\",\"/\")))","v":"2023-02-11"},{"$f":"P17","v":6}]
[{"$f":"Datas!A11","v":"24.11.23"},{"$f":"Datas!B11","v":0},{"$f":"Datas!C11","v":"PSG"},{"$f":"Datas!D11","v":"Monaco"},{"$f":"Datas!E11","v":"05:02:00"},{"$f":"IF(A11=0,\"\",DATEVALUE(SUBSTITUTE(A11,\".\",\"/\")))","v":"2023-11-24"},{"$f":"P18","v":4}]
[null,null,null,null,null,{"$f":"IF(A12=0,\"\",DATEVALUE(SUBSTITUTE(A12,\".\",\"/\")))","v":""},{"$f":"IF(F12=\"\",\"\",MOD(SUMPRODUCT(--MID(TEXT(F12,\"jjmmaaaa\"),ROW($1:$8),1))-1,9)+1)","v":""}]
[null,null,null,null,null,"",{"$f":"IF(F13=\"\",\"\",MOD(SUMPRODUCT(--MID(TEXT(F13,\"jjmmaaaa\"),ROW($1:$8),1))-1,9)+1)","v":""}]
[null,null,null,null,null,"",""]
[null,null,null,null,null,{"$f":"IF(A15=0,\"\",DATEVALUE(SUBSTITUTE(A15,\".\",\"/\")))","v":""},{"$f":"IF(F15=\"\",\"\",MOD(SUMPRODUCT(--MID(TEXT(F15,\"jjmmaaaa\"),ROW($1:$8),1))-1,9)+1)","v":""},{"$f":"IF(HOUR(E15)>MINUTE(E15),C15,IF(HOUR(E15)<MINUTE(E15),D15,\"NUL\"))","v":"NUL"},"C10 VAUT D15 Visiteur"]
[]
[null,null,null,null,null,{"$f":"F10-DATE(YEAR(F10)-1,12,31)","v":42},{"$f":"_xlfn.FLOOR.MATH(F17/100)","v":0},{"$f":"_xlfn.FLOOR.MATH((F17-(G17*100))/10)","v":4},{"$f":"F17-(100*G17)-(10*H17)","v":2},{"$f":"SUM(G17:I17)","v":6},{"$f":"_xlfn.FLOOR.MATH((J17)/10)","v":0},{"$f":"J17-(10*K17)","v":6},{"$f":"SUM(K17:L17)","v":6},{"$f":"_xlfn.FLOOR.MATH((M17)/10)","v":0},{"$f":"M17-(10*N17)","v":6},{"$f":"SUM(N17:O17)","v":6}]
[null,null,null,null,null,{"$f":"F11-DATE(YEAR(F11)-1,12,31)","v":328},{"$f":"_xlfn.FLOOR.MATH(F18/100)","v":3},{"$f":"_xlfn.FLOOR.MATH((F18-(G18*100))/10)","v":2},{"$f":"F18-(100*G18)-(10*H18)","v":8},{"$f":"SUM(G18:I18)","v":13},{"$f":"_xlfn.FLOOR.MATH((J18)/10)","v":1},{"$f":"J18-(10*K18)","v":3},{"$f":"SUM(K18:L18)","v":4},{"$f":"_xlfn.FLOOR.MATH((M18)/10)","v":0},{"$f":"M18-(10*N18)","v":4},{"$f":"SUM(N18:O18)","v":4}]

{"sheet":"DVKO1","index":3,"n_rows":730,"n_cols":35,"rows_kept":730,"cut":false,"hidden":false,"merged":[[1,32,1,34],[6,32,6,33]]}
[null,null,null,null,null,null,null,null,null,null,null,null,null,null,null,null,null,null,null,null,null,null,null,null,null,"CONCATENER","CONCATENER",{"$f":"V2","v":"Monaco"},{"$f":"W2","v":"PSG"},"Chiffre ","ZONE"]
[null,null,null,"A =",{"$f":"'Datas O1'!G2","v":6},null,null,null,null,null,null,null,null,null,"B =",{"$f":"'Datas O1'!G3","v":4},null,null,null,null,null,{"$f":"Domicile","v":"Monaco"},{"$f":"Visiteur","v":"PSG"},"Jour","Résultat",null,{"$f":"CONCATENATE(AB2,AC2,AD2)","v":"111"},1,1,1,"NUL",null,"Stats"]
[null,null,null,null,null,null,null,null,null,null,null,null,null,null,null,null,null,null,null,null,null,2,2,{"$f":"IF(V3=0,\"\",Datas!K3)","v":3},{"$f":"VLOOKUP(Z3,$AA$2:$AE$1000,5,FALSE)","v":"NUL"},{"$f":"CONCATENATE(V3,W3,X3)","v":"223"},{"$f":"CONCATENATE(AB3,AC3,AD3)","v":"222"},2,2,2,"NUL",null,{"$f":"V2","v":"Monaco"},{"$f":"W2","v":"PSG"},"NUL"]
[null,null,null,null,null,null,null,null,null,null,null,null,null,null,null,null,null,null,null,null,null,2,3,{"$f":"IF(V4=0,\"\",Datas!K3)","v":3},{"$f":"VLOOKUP(Z4,$AA$2:$AE$1000,5,FALSE)","v":"PSG"},{"$f":"CONCATENATE(V4,W4,X4)","v":"233"},"333",3,3,3,"NUL",null,{"$f":"COUNTIF($Y$3:$Y$50,AG3)/COUNTIF($Y$3:$Y$50,\"><\")","v":0.16666666666666666},{"$f":"COUNTIF($Y$3:$Y$50,AH3)/COUNTIF($Y$3:$Y$50,\"><\")","v":0.66666666666666663},{"$f":"COUNTIF($Y$3:$Y$50,AI3)/COUNTIF($Y$3:$Y$50,\"><\")","v":0.16666666666666666}]
[null,null,null,null,null,null,null,null,null,null,null,null,null,null,null,null,null,null,null,null,null,3,2,{"$f":"IF(V5=0,\"\",Datas!K3)","v":3},{"$f":"VLOOKUP(Z5,$AA$2:$AE$1000,5,FALSE)","v":"Monaco"},{"$f":"CONCATENATE(V5,W5,X5)","v":"323"},"444",4,4,4,"NUL"]
[null,null,null,null,null,null,null,null,null,null,null,null,null,null,null,null,null,null,null,null,null,3,3,{"$f":"IF(V6=0,\"\",Datas!K3)","v":3},"NUL",{"$f":"CONCATENATE(V6,W6,X6)","v":"333"},"555",5,5,5,"NUL"]
[null,null,null,null,null,null,null,null,null,null,null,null,null,null,null,null,null,null,null,null,null,3,4,{"$f":"IF(V7=0,\"\",Datas!K3)","v":3},"Monaco",{"$f":"CONCATENATE(V7,W7,X7)","v":"343"},"666",6,6,6,"NUL"]
[null,null,null,null,null,null,null,null,null,null,null,null,null,null,null,null,null,null,null,null,null,4,3,{"$f":"IF(V8=0,\"\",Datas!K3)","v":3},{"$f":"VLOOKUP(Z8,$AA$2:$AE$1000,5,FALSE)","v":"PSG"},{"$f":"CONCATENATE(V8,W8,X8)","v":"433"},"777",7,7,7,"NUL",null,"",""]
[null,null,null,null,null,null,null,null,null,null,null,null,null,null,null,null,null,null,null,null,null,6,3,{"$f":"IF(V9=0,\"\",Datas!K3)","v":3},{"$f":"VLOOKUP(Z9,$AA$2:$AE$1000,5,FALSE)","v":"PSG"},"633","888",8,8,8,"NUL",null,"",""]
[null,null,null,null,1,2,3,4,5,6,7,8,9,"M",{"$f":"V2","v":"Monaco"},null,null,null,null,null,null,7,2,{"$f":"IF(V10=0,\"\",Datas!K3)","v":3},"PSG",{"$f":"CONCATENATE(V10,W10,X10)","v":"723"},"999",9,9,9,"NUL",null,"",""]
[null,null,null,1,{"$f":"NBRèglesVraies(E$10,$D11,$E$2,$P$2)","v":1},{"$f":"NBRèglesVraies(F$10,$D11,$E$2,$P$2)","v":1},{"$f":"NBRèglesVraies(G$10,$D11,$E$2,$P$2)","v":1},{"$f":"NBRèglesVraies(H$10,$D11,$E$2,$P$2)","v":1},{"$f":"NBRèglesVraies(I$10,$D11,$E$2,$P$2)","v":1},{"$f":"NBRèglesVraies(J$10,$D11,$E$2,$P$2)","v":1},1,1,1,null,null,null,null,null,null,null,null,7,3,{"$f":"IF(V11=0,\"\",Datas!K3)","v":3},"PSG","733","112",1,1,2,"NUL",null,"",""]
[null,null,null,2,{"$f":"NBRèglesVraies(E$10,$D12,$E$2,$P$2)","v":1},{"$f":"NBRèglesVraies(F$10,$D12,$E$2,$P$2)","v":2},{"$f":"NBRèglesVraies(G$10,$D12,$E$2,$P$2)","v":2},{"$f":"NBRèglesVraies(H$10,$D12,$E$2,$P$2)","v":1},1,1,2,2,1,null,null,null,null,null,null,null,null,7,4,{"$f":"IF(V12=0,\"\",Datas!K3)","v":3},"PSG","743","113",1,1,3,{"$f":"AB1","v":"Monaco"},null,"",""]
[null,null,null,3,1,2,2,2,1,2,2,2,1,null,null,null,null,null,null,null,null,8,2,{"$f":"IF(V13=0,\"\",Datas!K3)","v":3},"PSG","823","114",1,1,4,{"$f":"AC1","v":"PSG"},null,"",""]
[null,null,null,4,1,1,2,1,{"$f":"NBRèglesVraies(I$10,$D14,$E$2,$P$2)","v":1},1,2,1,1,null,null,null,null,null,null,null,null,8,3,{"$f":"IF(V14=0,\"\",Datas!K3)","v":3},"PSG","833","115",1,1,5,{"$f":"AB1","v":"Monaco"},null,"",""]
[null,null,null,5,1,1,0,1,1,1,0,1,1,null,null,null,null,null,null,null,null,null,null,{"$f":"IF(V15=0,\"\",Datas!K3)","v":""},{"$error":"#N/A"},"","116",1,1,6,{"$f":"AB1","v":"Monaco"},null,"",""]
[null,null,null,6,1,0,0,0,1,0,0,0,1,null,null,null,null,null,null,null,null,null,null,{"$f":"IF(V16=0,\"\",Datas!K3)","v":""},{"$error":"#N/A"},"","117",1,1,7,{"$f":"AC1","v":"PSG"},null,"",""]
[null,null,null,7,0,0,0,0,0,0,0,0,0,null,null,null,null,null,null,null,null,null,null,{"$f":"IF(V17=0,\"\",Datas!K3)","v":""},{"$error":"#N/A"},"","118",1,1,8,{"$f":"AB1","v":"Monaco"},null,"",""]
[null,null,null,8,0,0,0,0,1,0,0,0,0,null,null,null,null,null,null,null,null,null,null,{"$f":"IF(V18=0,\"\",Datas!K3)","v":""},{"$error":"#N/A"},"","119",1,1,9,"NUL",null,"",""]
[null,null,null,9,1,0,0,1,1,1,0,0,1,null,null,null,null,null,null,null,null,null,null,{"$f":"IF(V19=0,\"\",Datas!K3)","v":""},{"$error":"#N/A"},"","121",1,2,1,{"$f":"AB1","v":"Monaco"},null,"",""]
[null,null,null,"N",null,{"$f":"W2","v":"PSG"},null,null,null,null,null,null,null,null,null,null,null,null,null,null,null,null,null,{"$f":"IF(V20=0,\"\",Datas!K3)","v":""},{"$error":"#N/A"},"","122",1,2,2,{"$f":"AC1","v":"PSG"},null,"",""]
[null,null,null,null,null,null,null,null,null,null,null,null,null,null,null,null,null,null,null,null,null,null,null,{"$f":"IF(V21=0,\"\",Datas!K3)","v":""},{"$error":"#N/A"},"","123",1,2,3,{"$f":"AC1","v":"PSG"},null,"",""]
[null,null,null,null,null,null,null,null,null,null,null,null,null,null,null,null,null,null,null,null,null,null,null,{"$f":"IF(V22=0,\"\",Datas!K3)","v":""},{"$error":"#N/A"},"","124",1,2,4,{"$f":"AC1","v":"PSG"},null,"",""]
[null,null,null,null,null,null,null,null,null,null,null,null,null,null,null,null,null,null,null,null,null,null,null,{"$f":"IF(V23=0,\"\",Datas!K3)","v":""},{"$error":"#N/A"},"","125",1,2,5,{"$f":"AC1","v":"PSG"},null,"",""]
[null,null,null,null,null,null,null,null,null,null,null,null,null,null,null,null,null,null,null,null,null,null,null,{"$f":"IF(V24=0,\"\",Datas!K3)","v":""},{"$error":"#N/A"},"","126",1,2,6,"NUL",null,"",""]
[null,null,null,null,null,null,null,null,null,null,null,null,null,null,null,null,null,null,null,null,null,null,null,{"$f":"IF(V25=0,\"\",Datas!K3)","v":""},{"$error":"#N/A"},"","127",1,2,7,{"$f":"AB1","v":"Monaco"}]
[null,null,null,null,null,null,null,null,null,null,null,null,null,null,null,null,null,null,null,null,null,null,null,{"$f":"IF(V26=0,\"\",Datas!K3)","v":""},{"$error":"#N/A"},"","128",1,2,8,{"$f":"AB1","v":"Monaco"}]
[null,null,null,null,null,null,null,null,null,null,null,null,null,null,null,null,null,null,null,null,null,null,null,{"$f":"IF(V27=0,\"\",Datas!K3)","v":""},{"$error":"#N/A"},"","129",1,2,9,{"$f":"AB1","v":"Monaco"}]
[null,null,null,null,null,null,null,null,null,null,null,null,null,null,null,null,null,null,null,null,null,null,null,{"$f":"IF(V28=0,\"\",Datas!K3)","v":""},{"$error":"#N/A"},"","131",1,3,1,{"$f":"AB1","v":"Monaco"}]
[null,null,null,null,null,null,null,null,null,null,null,null,null,null,null,null,null,null,null,null,null,null,null,{"$f":"IF(V29=0,\"\",Datas!K3)","v":""},{"$error":"#N/A"},"","132",1,3,2,"NUL"]
[null,null,null,null,null,null,null,null,null,null,null,null,null,null,null,null,null,null,null,null,null,null,null,{"$f":"IF(V30=0,\"\",Datas!K3)","v":""},{"$error":"#N/A"},"","133",1,3,3,{"$f":"AC1","v":"PSG"}]
[null,null,null,null,null,null,null,null,null,null,null,null,null,null,null,null,null,null,null,null,null,null,null,null,null,null,{"$f":"CONCATENATE(AB31,AC31,AD31)","v":"134"},1,3,4,{"$f":"AC1","v":"PSG"}]
[null,null,null,null,null,null,null,null,null,null,null,null,null,null,null,null,null,null,null,null,null,null,null,null,null,null,{"$f":"CONCATENATE(AB32,AC32,AD32)","v":"135"},1,3,5,{"$f":"AC1","v":"PSG"}]
[null,null,null,null,null,null,null,null,null,null,null,null,null,null,null,null,null,null,null,null,null,null,null,null,null,null,"136",1,3,6,{"$f":"AC1","v":"PSG"}]
[null,null,null,null,null,null,null,null,null,null,null,null,null,null,null,null,null,null,null,null,null,null,null,null,null,null,"137",1,3,7,{"$f":"AB1","v":"Monaco"}]
[null,null,null,null,null,null,null,null,null,null,null,null,null,null,null,null,null,null,null,null,null,null,null,null,null,null,"138",1,3,8,{"$f":"AB1","v":"Monaco"}]
[null,null,null,null,null,null,null,null,null,null,null,null,null,null,null,null,null,null,null,null,null,null,null,null,null,null,"139",1,3,9,{"$f":"AB1","v":"Monaco"}]
[null,null,null,null,null,null,null,null,null,null,null,null,null,null,null,null,null,null,null,null,null,null,null,null,null,null,"141",1,4,1,{"$f":"AB1","v":"Monaco"}]
[null,null,null,null,null,null,null,null,null,null,null,null,null,null,null,null,null,null,null,null,null,null,null,null,null,null,"142",1,4,2,{"$f":"AB1","v":"Monaco"}]
[null,null,null,null,null,null,null,null,null,null,null,null,null,null,null,null,null,null,null,null,null,null,null,null,null,null,"143",1,4,3,{"$f":"AC1","v":"PSG"}]
[null,null,null,null,null,null,null,null,null,null,null,null,null,null,null,null,null,null,null,null,null,null,null,null,null,null,"144",1,4,4,{"$f":"AC1","v":"PSG"}]
[null,null,null,null,null,null,null,null,null,null,null,null,null,null,null,null,null,null,null,null,null,null,null,null,null,null,"145",1,4,5,{"$f":"AC1","v":"PSG"}]
[null,null,null,null,null,null,null,null,null,null,null,null,null,null,null,null,null,null,null,null,null,null,null,null,null,null,"146",1,4,6,{"$f":"AC1","v":"PSG"}]
[null,null,null,null,null,null,null,null,null,null,null,null,null,null,null,null,null,null,null,null,null,null,null,null,null,null,"147",1,4,7,"NUL"]
[null,null,null,null,null,null,null,null,null,null,null,null,null,null,null,null,null,null,null,null,null,null,null,null,null,null,"148",1,4,8,{"$f":"AB1","v":"Monaco"}]
[null,null,null,null,null,null,null,null,null,null,null,null,null,null,null,null,null,null,null,null,null,null,null,null,null,null,"149",1,4,9,{"$f":"AB1","v":"Monaco"}]
[null,null,null,null,null,null,null,null,null,null,null,null,null,null,null,null,null,null,null,null,null,null,null,null,null,null,"151",1,5,1,{"$f":"AB1","v":"Monaco"}]
[null,null,null,null,null,null,null,null,null,null,null,null,null,null,null,null,null,null,null,null,null,null,null,null,null,null,"152",1,5,2,{"$f":"AB1","v":"Monaco"}]
[null,null,null,null,null,null,null,null,null,null,null,null,null,null,null,null,null,null,null,null,null,null,null,null,null,null,"153",1,5,3,"NUL"]
[null,null,null,null,null,null,null,null,null,null,null,null,null,null,null,null,null,null,null,null,null,null,null,null,null,null,"154",1,5,4,{"$f":"AC1","v":"PSG"}]
[null,null,null,null,null,null,null,null,null,null,null,null,null,null,null,null,null,null,null,null,null,null,null,null,null,null,"155",1,5,5,{"$f":"AC1","v":"PSG"}]
[null,null,null,null,null,null,null,null,null,null,null,null,null,null,null,null,null,null,null,null,null,null,null,null,null,null,"156",1,5,6,{"$f":"AC1","v":"PSG"}]
[null,null,null,null,null,null,null,null,null,null,null,null,null,null,null,null,null,null,null,null,null,null,null,null,null,null,"157",1,5,7,{"$f":"AC1","v":"PSG"}]
[null,null,null,null,null,null,null,null,null,null,null,null,null,null,null,null,null,null,null,null,null,null,null,null,null,null,"158",1,5,8,{"$f":"AB1","v":"Monaco"}]
[null,null,null,null,null,null,null,null,null,null,null,null,null,null,null,null,null,null,null,null,null,null,null,null,null,null,"159",1,5,9,{"$f":"AB1","v":"Monaco"}]
[null,null,null,null,null,null,null,null,null,null,null,null,null,null,null,null,null,null,null,null,null,null,null,null,null,null,"161",1,6,1,{"$f":"AB1","v":"Monaco"}]
[null,null,null,null,null,null,null,null,null,null,null,null,null,null,null,null,null,null,null,null,null,null,null,null,null,null,"162",1,6,2,{"$f":"AB1","v":"Monaco"}]
[null,null,null,null,null,null,null,null,null,null,null,null,null,null,null,null,null,null,null,null,null,null,null,null,null,null,"163",1,6,3,{"$f":"AB1","v":"Monaco"}]
[null,null,null,null,null,null,null,null,null,null,null,null,null,null,null,null,null,null,null,null,null,null,null,null,null,null,"164",1,6,4,{"$f":"AC1","v":"PSG"}]
[null,null,null,null,null,null,null,null,null,null,null,null,null,null,null,null,null,null,null,null,null,null,null,null,null,null,"165",1,6,5,{"$f":"AC1","v":"PSG"}]
[null,null,null,null,null,null,null,null,null,null,null,null,null,null,null,null,null,null,null,null,null,null,null,null,null,null,"166",1,6,6,{"$f":"AC1","v":"PSG"}]
[null,null,null,null,null,null,null,null,null,null,null,null,null,null,null,null,null,null,null,null,null,null,null,null,null,null,"167",1,6,7,{"$f":"AC1","v":"PSG"}]
[null,null,null,null,null,null,null,null,null,null,null,null,null,null,null,null,null,null,null,null,null,null,null,null,null,null,"168",1,6,8,"NUL"]
[null,null,null,null,null,null,null,null,null,null,null,null,null,null,null,null,null,null,null,null,null,null,null,null,null,null,"169",1,6,9,{"$f":"AB1","v":"Monaco"}]
[null,null,null,null,null,null,null,null,null,null,null,null,null,null,null,null,null,null,null,null,null,null,null,null,null,null,"171",1,7,1,{"$f":"AB1","v":"Monaco"}]
[null,null,null,null,null,null,null,null,null,null,null,null,null,null,null,null,null,null,null,null,null,null,null,null,null,null,"172",1,7,2,{"$f":"AB1","v":"Monaco"}]
[null,null,null,null,null,null,null,null,null,null,null,null,null,null,null,null,null,null,null,null,null,null,null,null,null,null,"173",1,7,3,{"$f":"AB1","v":"Monaco"}]
[null,null,null,null,null,null,null,null,null,null,null,null,null,null,null,null,null,null,null,null,null,null,null,null,null,null,{"$f":"CONCATENATE(AB67,AC67,AD67)","v":"174"},1,7,4,"NUL"]
[null,null,null,null,null,null,null,null,null,null,null,null,null,null,null,null,null,null,null,null,null,null,null,null,null,null,"175",1,7,5,{"$f":"AC1","v":"PSG"}]
[null,null,null,null,null,null,null,null,null,null,null,null,null,null,null,null,null,null,null,null,null,null,null,null,null,null,"176",1,7,6,{"$f":"AC1","v":"PSG"}]
[null,null,null,null,null,null,null,null,null,null,null,null,null,null,null,null,null,null,null,null,null,null,null,null,null,null,"177",1,7,7,{"$f":"AC1","v":"PSG"}]
[null,null,null,null,null,null,null,null,null,null,null,null,null,null,null,null,null,null,null,null,null,null,null,null,null,null,"178",1,7,8,{"$f":"AC1","v":"PSG"}]
[null,null,null,null,null,null,null,null,null,null,null,null,null,null,null,null,null,null,null,null,null,null,null,null,null,null,"179",1,7,9,{"$f":"AB1","v":"Monaco"}]
[null,null,null,null,null,null,null,null,null,null,null,null,null,null,null,null,null,null,null,null,null,null,null,null,null,null,"181",1,8,1,{"$f":"AB1","v":"Monaco"}]
[null,null,null,null,null,null,null,null,null,null,null,null,null,null,null,null,null,null,null,null,null,null,null,null,null,null,"182",1,8,2,{"$f":"AB1","v":"Monaco"}]
[null,null,null,null,null,null,null,null,null,null,null,null,null,null,null,null,null,null,null,null,null,null,null,null,null,null,"183",1,8,3,{"$f":"AB1","v":"Monaco"}]
[null,null,null,null,null,null,null,null,null,null,null,null,null,null,null,null,null,null,null,null,null,null,null,null,null,null,"184",1,8,4,{"$f":"AB1","v":"Monaco"}]
[null,null,null,null,null,null,null,null,null,null,null,null,null,null,null,null,null,null,null,null,null,null,null,null,null,null,"185",1,8,5,{"$f":"AC1","v":"PSG"}]
[null,null,null,null,null,null,null,null,null,null,null,null,null,null,null,null,null,null,null,null,null,null,null,null,null,null,"186",1,8,6,{"$f":"AC1","v":"PSG"}]
[null,null,null,null,null,null,null,null,null,null,null,null,null,null,null,null,null,null,null,null,null,null,null,null,null,null,"187",1,8,7,{"$f":"AC1","v":"PSG"}]
[null,null,null,null,null,null,null,null,null,null,null,null,null,null,null,null,null,null,null,null,null,null,null,null,null,null,"188",1,8,8,{"$f":"AC1","v":"PSG"}]
[null,null,null,null,null,null,null,null,null,null,null,null,null,null,null,null,null,null,null,null,null,null,null,null,null,null,"189",1,8,9,"NUL"]
[null,null,null,null,null,null,null,null,null,null,null,null,null,null,null,null,null,null,null,null,null,null,null,null,null,null,"191",1,9,1,{"$f":"AB1","v":"Monaco"}]
[null,null,null,null,null,null,null,null,null,null,null,null,null,null,null,null,null,null,null,null,null,null,null,null,null,null,"192",1,9,2,{"$f":"AB1","v":"Monaco"}]
[null,null,null,null,null,null,null,null,null,null,null,null,null,null,null,null,null,null,null,null,null,null,null,null,null,null,"193",1,9,3,{"$f":"AB1","v":"Monaco"}]
[null,null,null,null,null,null,null,null,null,null,null,null,null,null,null,null,null,null,null,null,null,null,null,null,null,null,"194",1,9,4,{"$f":"AB1","v":"Monaco"}]
[null,null,null,null,null,null,null,null,null,null,null,null,null,null,null,null,null,null,null,null,null,null,null,null,null,null,"195",1,9,5,"NUL"]
[null,null,null,null,null,null,null,null,null,null,null,null,null,null,null,null,null,null,null,null,null,null,null,null,null,null,"196",1,9,6,{"$f":"AC1","v":"PSG"}]
[null,null,null,null,null,null,null,null,null,null,null,null,null,null,null,null,null,null,null,null,null,null,null,null,null,null,"197",1,9,7,{"$f":"AC1","v":"PSG"}]
[null,null,null,null,null,null,null,null,null,null,null,null,null,null,null,null,null,null,null,null,null,null,null,null,null,null,"198",1,9,8,{"$f":"AC1","v":"PSG"}]
[null,null,null,null,null,null,null,null,null,null,null,null,null,null,null,null,null,null,null,null,null,null,null,null,null,null,"199",1,9,9,{"$f":"AC1","v":"PSG"}]
[null,null,null,null,null,null,null,null,null,null,null,null,null,null,null,null,null,null,null,null,null,null,null,null,null,null,"211",2,1,1,{"$f":"AC1","v":"PSG"}]
[null,null,null,null,null,null,null,null,null,null,null,null,null,null,null,null,null,null,null,null,null,null,null,null,null,null,"212",2,1,2,{"$f":"AB1","v":"Monaco"}]
[null,null,null,null,null,null,null,null,null,null,null,null,null,null,null,null,null,null,null,null,null,null,null,null,null,null,"213",2,1,3,{"$f":"AB1","v":"Monaco"}]
[null,null,null,null,null,null,null,null,null,null,null,null,null,null,null,null,null,null,null,null,null,null,null,null,null,null,"214",2,1,4,{"$f":"AB1","v":"Monaco"}]
[null,null,null,null,null,null,null,null,null,null,null,null,null,null,null,null,null,null,null,null,null,null,null,null,null,null,"215",2,1,5,{"$f":"AB1","v":"Monaco"}]
[null,null,null,null,null,null,null,null,null,null,null,null,null,null,null,null,null,null,null,null,null,null,null,null,null,null,"216",2,1,6,"NUL"]
[null,null,null,null,null,null,null,null,null,null,null,null,null,null,null,null,null,null,null,null,null,null,null,null,null,null,"217",2,1,7,{"$f":"AC1","v":"PSG"}]
[null,null,null,null,null,null,null,null,null,null,null,null,null,null,null,null,null,null,null,null,null,null,null,null,null,null,"218",2,1,8,{"$f":"AC1","v":"PSG"}]
[null,null,null,null,null,null,null,null,null,null,null,null,null,null,null,null,null,null,null,null,null,null,null,null,null,null,"219",2,1,9,{"$f":"AC1","v":"PSG"}]
[null,null,null,null,null,null,null,null,null,null,null,null,null,null,null,null,null,null,null,null,null,null,null,null,null,null,"221",2,2,1,"NUL"]
[null,null,null,null,null,null,null,null,null,null,null,null,null,null,null,null,null,null,null,null,null,null,null,null,null,null,"223",2,2,3,"NUL"]
[null,null,null,null,null,null,null,null,null,null,null,null,null,null,null,null,null,null,null,null,null,null,null,null,null,null,"224",2,2,4,{"$f":"AB1","v":"Monaco"}]
[null,null,null,null,null,null,null,null,null,null,null,null,null,null,null,null,null,null,null,null,null,null,null,null,null,null,"225",2,2,5,{"$f":"AC1","v":"PSG"}]
[null,null,null,null,null,null,null,null,null,null,null,null,null,null,null,null,null,null,null,null,null,null,null,null,null,null,"226",2,2,6,{"$f":"AB1","v":"Monaco"}]
[null,null,null,null,null,null,null,null,null,null,null,null,null,null,null,null,null,null,null,null,null,null,null,null,null,null,"227",2,2,7,{"$f":"AB1","v":"Monaco"}]
[null,null,null,null,null,null,null,null,null,null,null,null,null,null,null,null,null,null,null,null,null,null,null,null,null,null,"228",2,2,8,{"$f":"AC1","v":"PSG"}]
[null,null,null,null,null,null,null,null,null,null,null,null,null,null,null,null,null,null,null,null,null,null,null,null,null,null,"229",2,2,9,{"$f":"AB1","v":"Monaco"}]
[null,null,null,null,null,null,null,null,null,null,null,null,null,null,null,null,null,null,null,null,null,null,null,null,null,null,"231",2,3,1,{"$f":"AB1","v":"Monaco"}]
[null,null,null,null,null,null,null,null,null,null,null,null,null,null,null,null,null,null,null,null,null,null,null,null,null,null,"232",2,3,2,{"$f":"AB1","v":"Monaco"}]
[null,null,null,null,null,null,null,null,null,null,null,null,null,null,null,null,null,null,null,null,null,null,null,null,null,null,"233",2,3,3,{"$f":"AC1","v":"PSG"}]
[null,null,null,null,null,null,null,null,null,null,null,null,null,null,null,null,null,null,null,null,null,null,null,null,null,null,"234",2,3,4,{"$f":"AC1","v":"PSG"}]
[null,null,null,null,null,null,null,null,null,null,null,null,null,null,null,null,null,null,null,null,null,null,null,null,null,null,"235",2,3,5,{"$f":"AC1","v":"PSG"}]
[null,null,null,null,null,null,null,null,null,null,null,null,null,null,null,null,null,null,null,null,null,null,null,null,null,null,"236",2,3,6,{"$f":"AC1","v":"PSG"}]
[null,null,null,null,null,null,null,null,null,null,null,null,null,null,null,null,null,null,null,null,null,null,null,null,null,null,"237",2,3,7,"NUL"]
[null,null,null,null,null,null,null,null,null,null,null,null,null,null,null,null,null,null,null,null,null,null,null,null,null,null,"238",2,3,8,{"$f":"AB1","v":"Monaco"}]
[null,null,null,null,null,null,null,null,null,null,null,null,null,null,null,null,null,null,null,null,null,null,null,null,null,null,"239",2,3,9,{"$f":"AB1","v":"Monaco"}]
[null,null,null,null,null,null,null,null,null,null,null,null,null,null,null,null,null,null,null,null,null,null,null,null,null,null,"241",2,4,1,{"$f":"AB1","v":"Monaco"}]
[null,null,null,null,null,null,null,null,null,null,null,null,null,null,null,null,null,null,null,null,null,null,null,null,null,null,"242",2,4,2,{"$f":"AB1","v":"Monaco"}]
[null,null,null,null,null,null,null,null,null,null,null,null,null,null,null,null,null,null,null,null,null,null,null,null,null,null,"243",2,4,3,"NUL"]
[null,null,null,null,null,null,null,null,null,null,null,null,null,null,null,null,null,null,null,null,null,null,null,null,null,null,"244",2,4,4,{"$f":"AC1","v":"PSG"}]
[null,null,null,null,null,null,null,null,null,null,null,null,null,null,null,null,null,null,null,null,null,null,null,null,null,null,"245",2,4,5,{"$f":"AC1","v":"PSG"}]
[null,null,null,null,null,null,null,null,null,null,null,null,null,null,null,null,null,null,null,null,null,null,null,null,null,null,"246",2,4,6,{"$f":"AC1","v":"PSG"}]
[null,null,null,null,null,null,null,null,null,null,null,null,null,null,null,null,null,null,null,null,null,null,null,null,null,null,"247",2,4,7,{"$f":"AC1","v":"PSG"}]
[null,null,null,null,null,null,null,null,null,null,null,null,null,null,null,null,null,null,null,null,null,null,null,null,null,null,"248",2,4,8,{"$f":"AB1","v":"Monaco"}]
[null,null,null,null,null,null,null,null,null,null,null,null,null,null,null,null,null,null,null,null,null,null,null,null,null,null,"249",2,4,9,{"$f":"AB1","v":"Monaco"}]
[null,null,null,null,null,null,null,null,null,null,null,null,null,null,null,null,null,null,null,null,null,null,null,null,null,null,"251",2,5,1,{"$f":"AB1","v":"Monaco"}]
[null,null,null,null,null,null,null,null,null,null,null,null,null,null,null,null,null,null,null,null,null,null,null,null,null,null,"252",2,5,2,{"$f":"AB1","v":"Monaco"}]
[null,null,null,null,null,null,null,null,null,null,null,null,null,null,null,null,null,null,null,null,null,null,null,null,null,null,"253",2,5,3,{"$f":"AB1","v":"Monaco"}]
[null,null,null,null,null,null,null,null,null,null,null,null,null,null,null,null,null,null,null,null,null,null,null,null,null,null,"254",2,5,4,{"$f":"AC1","v":"PSG"}]
[null,null,null,null,null,null,null,null,null,null,null,null,null,null,null,null,null,null,null,null,null,null,null,null,null,null,"255",2,5,5,{"$f":"AC1","v":"PSG"}]
[null,null,null,null,null,null,null,null,null,null,null,null,null,null,null,null,null,null,null,null,null,null,null,null,null,null,{"$f":"CONCATENATE(AB131,AC131,AD131)","v":"256"},2,5,6,{"$f":"AC1","v":"PSG"}]
[null,null,null,null,null,null,null,null,null,null,null,null,null,null,null,null,null,null,null,null,null,null,null,null,null,null,"257",2,5,7,{"$f":"AC1","v":"PSG"}]
[null,null,null,null,null,null,null,null,null,null,null,null,null,null,null,null,null,null,null,null,null,null,null,null,null,null,"258",2,5,8,"NUL"]
[null,null,null,null,null,null,null,null,null,null,null,null,null,null,null,null,null,null,null,null,null,null,null,null,null,null,"259",2,5,9,{"$f":"AB1","v":"Monaco"}]
[null,null,null,null,null,null,null,null,null,null,null,null,null,null,null,null,null,null,null,null,null,null,null,null,null,null,"261",2,6,1,{"$f":"AB1","v":"Monaco"}]
[null,null,null,null,null,null,null,null,null,null,null,null,null,null,null,null,null,null,null,null,null,null,null,null,null,null,"262",2,6,2,{"$f":"AB1","v":"Monaco"}]
[null,null,null,null,null,null,null,null,null,null,null,null,null,null,null,null,null,null,null,null,null,null,null,null,null,null,"263",2,6,3,{"$f":"AB1","v":"Monaco"}]
[null,null,null,null,null,null,null,null,null,null,null,null,null,null,null,null,null,null,null,null,null,null,null,null,null,null,"264",2,6,4,"NUL"]
[null,null,null,null,null,null,null,null,null,null,null,null,null,null,null,null,null,null,null,null,null,null,null,null,null,null,"265",2,6,5,{"$f":"AC1","v":"PSG"}]
[null,null,null,null,null,null,null,null,null,null,null,null,null,null,null,null,null,null,null,null,null,null,null,null,null,null,"266",2,6,6,{"$f":"AC1","v":"PSG"}]
[null,null,null,null,null,null,null,null,null,null,null,null,null,null,null,null,null,null,null,null,null,null,null,null,null,null,"267",2,6,7,{"$f":"AC1","v":"PSG"}]
[null,null,null,null,null,null,null,null,null,null,null,null,null,null,null,null,null,null,null,null,null,null,null,null,null,null,"268",2,6,8,{"$f":"AC1","v":"PSG"}]
[null,null,null,null,null,null,null,null,null,null,null,null,null,null,null,null,null,null,null,null,null,null,null,null,null,null,"269",2,6,9,{"$f":"AB1","v":"Monaco"}]
[null,null,null,null,null,null,null,null,null,null,null,null,null,null,null,null,null,null,null,null,null,null,null,null,null,null,"271",2,7,1,{"$f":"AB1","v":"Monaco"}]
[null,null,null,null,null,null,null,null,null,null,null,null,null,null,null,null,null,null,null,null,null,null,null,null,null,null,"272",2,7,2,{"$f":"AB1","v":"Monaco"}]
[null,null,null,null,null,null,null,null,null,null,null,null,null,null,null,null,null,null,null,null,null,null,null,null,null,null,"273",2,7,3,{"$f":"AB1","v":"Monaco"}]
[null,null,null,null,null,null,null,null,null,null,null,null,null,null,null,null,null,null,null,null,null,null,null,null,null,null,"274",2,7,4,{"$f":"AB1","v":"Monaco"}]
[null,null,null,null,null,null,null,null,null,null,null,null,null,null,null,null,null,null,null,null,null,null,null,null,null,null,"275",2,7,5,{"$f":"AC1","v":"PSG"}]
[null,null,null,null,null,null,null,null,null,null,null,null,null,null,null,null,null,null,null,null,null,null,null,null,null,null,"276",2,7,6,{"$f":"AC1","v":"PSG"}]
[null,null,null,null,null,null,null,null,null,null,null,null,null,null,null,null,null,null,null,null,null,null,null,null,null,null,"277",2,7,7,{"$f":"AC1","v":"PSG"}]
[null,null,null,null,null,null,null,null,null,null,null,null,null,null,null,null,null,null,null,null,null,null,null,null,null,null,"278",2,7,8,{"$f":"AC1","v":"PSG"}]
[null,null,null,null,null,null,null,null,null,null,null,null,null,null,null,null,null,null,null,null,null,null,null,null,null,null,"279",2,7,9,"NUL"]
[null,null,null,null,null,null,null,null,null,null,null,null,null,null,null,null,null,null,null,null,null,null,null,null,null,null,"281",2,8,1,{"$f":"AB1","v":"Monaco"}]
[null,null,null,null,null,null,null,null,null,null,null,null,null,null,null,null,null,null,null,null,null,null,null,null,null,null,"282",2,8,2,{"$f":"AB1","v":"Monaco"}]
[null,null,null,null,null,null,null,null,null,null,null,null,null,null,null,null,null,null,null,null,null,null,null,null,null,null,"283",2,8,3,{"$f":"AB1","v":"Monaco"}]
[null,null,null,null,null,null,null,null,null,null,null,null,null,null,null,null,null,null,null,null,null,null,null,null,null,null,"284",2,8,4,{"$f":"AB1","v":"Monaco"}]
[null,null,null,null,null,null,null,null,null,null,null,null,null,null,null,null,null,null,null,null,null,null,null,null,null,null,"285",2,8,5,"NUL"]
[null,null,null,null,null,null,null,null,null,null,null,null,null,null,null,null,null,null,null,null,null,null,null,null,null,null,"286",2,8,6,{"$f":"AC1","v":"PSG"}]
[null,null,null,null,null,null,null,null,null,null,null,null,null,null,null,null,null,null,null,null,null,null,null,null,null,null,"287",2,8,7,{"$f":"AC1","v":"PSG"}]
[null,null,null,null,null,null,null,null,null,null,null,null,null,null,null,null,null,null,null,null,null,null,null,null,null,null,"288",2,8,8,{"$f":"AC1","v":"PSG"}]
[null,null,null,null,null,null,null,null,null,null,null,null,null,null,null,null,null,null,null,null,null,null,null,null,null,null,"289",2,8,9,{"$f":"AC1","v":"PSG"}]
[null,null,null,null,null,null,null,null,null,null,null,null,null,null,null,null,null,null,null,null,null,null,null,null,null,null,"291",2,9,1,"NUL"]
[null,null,null,null,null,null,null,null,null,null,null,null,null,null,null,null,null,null,null,null,null,null,null,null,null,null,"292",2,9,2,{"$f":"AB1","v":"Monaco"}]
[null,null,null,null,null,null,null,null,null,null,null,null,null,null,null,null,null,null,null,null,null,null,null,null,null,null,"293",2,9,3,{"$f":"AB1","v":"Monaco"}]
[null,null,null,null,null,null,null,null,null,null,null,null,null,null,null,null,null,null,null,null,null,null,null,null,null,null,"294",2,9,4,{"$f":"AB1","v":"Monaco"}]
[null,null,null,null,null,null,null,null,null,null,null,null,null,null,null,null,null,null,null,null,null,null,null,null,null,null,"295",2,9,5,{"$f":"AB1","v":"Monaco"}]
[null,null,null,null,null,null,null,null,null,null,null,null,null,null,null,null,null,null,null,null,null,null,null,null,null,null,"296",2,9,6,{"$f":"AC1","v":"PSG"}]
[null,null,null,null,null,null,null,null,null,null,null,null,null,null,null,null,null,null,null,null,null,null,null,null,null,null,"297",2,9,7,{"$f":"AC1","v":"PSG"}]
[null,null,null,null,null,null,null,null,null,null,null,null,null,null,null,null,null,null,null,null,null,null,null,null,null,null,"298",2,9,8,{"$f":"AC1","v":"PSG"}]
[null,null,null,null,null,null,null,null,null,null,null,null,null,null,null,null,null,null,null,null,null,null,null,null,null,null,"299",2,9,9,{"$f":"AC1","v":"PSG"}]
[null,null,null,null,null,null,null,null,null,null,null,null,null,null,null,null,null,null,null,null,null,null,null,null,null,null,"311",3,1,1,{"$f":"AC1","v":"PSG"}]
[null,null,null,null,null,null,null,null,null,null,null,null,null,null,null,null,null,null,null,null,null,null,null,null,null,null,"312",3,1,2,"NUL"]
[null,null,null,null,null,null,null,null,null,null,null,null,null,null,null,null,null,null,null,null,null,null,null,null,null,null,"313",3,1,3,{"$f":"AB1","v":"Monaco"}]
[null,null,null,null,null,null,null,null,null,null,null,null,null,null,null,null,null,null,null,null,null,null,null,null,null,null,"314",3,1,4,{"$f":"AB1","v":"Monaco"}]
[null,null,null,null,null,null,null,null,null,null,null,null,null,null,null,null,null,null,null,null,null,null,null,null,null,null,"315",3,1,5,{"$f":"AB1","v":"Monaco"}]
[null,null,null,null,null,null,null,null,null,null,null,null,null,null,null,null,null,null,null,null,null,null,null,null,null,null,"316",3,1,6,{"$f":"AB1","v":"Monaco"}]
[null,null,null,null,null,null,null,null,null,null,null,null,null,null,null,null,null,null,null,null,null,null,null,null,null,null,"317",3,1,7,{"$f":"AC1","v":"PSG"}]
[null,null,null,null,null,null,null,null,null,null,null,null,null,null,null,null,null,null,null,null,null,null,null,null,null,null,"318",3,1,8,{"$f":"AC1","v":"PSG"}]
[null,null,null,null,null,null,null,null,null,null,null,null,null,null,null,null,null,null,null,null,null,null,null,null,null,null,"319",3,1,9,{"$f":"AC1","v":"PSG"}]
[null,null,null,null,null,null,null,null,null,null,null,null,null,null,null,null,null,null,null,null,null,null,null,null,null,null,"321",3,2,1,{"$f":"AC1","v":"PSG"}]
[null,null,null,null,null,null,null,null,null,null,null,null,null,null,null,null,null,null,null,null,null,null,null,null,null,null,"322",3,2,2,{"$f":"AC1","v":"PSG"}]
[null,null,null,null,null,null,null,null,null,null,null,null,null,null,null,null,null,null,null,null,null,null,null,null,null,null,"323",3,2,3,{"$f":"AB1","v":"Monaco"}]
[null,null,null,null,null,null,null,null,null,null,null,null,null,null,null,null,null,null,null,null,null,null,null,null,null,null,"324",3,2,4,{"$f":"AB1","v":"Monaco"}]
[null,null,null,null,null,null,null,null,null,null,null,null,null,null,null,null,null,null,null,null,null,null,null,null,null,null,"325",3,2,5,{"$f":"AB1","v":"Monaco"}]
[null,null,null,null,null,null,null,null,null,null,null,null,null,null,null,null,null,null,null,null,null,null,null,null,null,null,"326",3,2,6,{"$f":"AB1","v":"Monaco"}]
[null,null,null,null,null,null,null,null,null,null,null,null,null,null,null,null,null,null,null,null,null,null,null,null,null,null,"327",3,2,7,"NUL"]
[null,null,null,null,null,null,null,null,null,null,null,null,null,null,null,null,null,null,null,null,null,null,null,null,null,null,"328",3,2,8,{"$f":"AC1","v":"PSG"}]
[null,null,null,null,null,null,null,null,null,null,null,null,null,null,null,null,null,null,null,null,null,null,null,null,null,null,"329",3,2,9,{"$f":"AC1","v":"PSG"}]
[null,null,null,null,null,null,null,null,null,null,null,null,null,null,null,null,null,null,null,null,null,null,null,null,null,null,"331",3,3,1,{"$f":"AB1","v":"Monaco"}]
[null,null,null,null,null,null,null,null,null,null,null,null,null,null,null,null,null,null,null,null,null,null,null,null,null,null,"332",3,3,2,"NUL"]
[null,null,null,null,null,null,null,null,null,null,null,null,null,null,null,null,null,null,null,null,null,null,null,null,null,null,"334",3,3,4,"NUL"]
[null,null,null,null,null,null,null,null,null,null,null,null,null,null,null,null,null,null,null,null,null,null,null,null,null,null,"335",3,3,5,{"$f":"AB1","v":"Monaco"}]
[null,null,null,null,null,null,null,null,null,null,null,null,null,null,null,null,null,null,null,null,null,null,null,null,null,null,"336",3,3,6,{"$f":"AC1","v":"PSG"}]
[null,null,null,null,null,null,null,null,null,null,null,null,null,null,null,null,null,null,null,null,null,null,null,null,null,null,"337",3,3,7,{"$f":"AB1","v":"Monaco"}]
[null,null,null,null,null,null,null,null,null,null,null,null,null,null,null,null,null,null,null,null,null,null,null,null,null,null,{"$f":"CONCATENATE(AB195,AC195,AD195)","v":"338"},3,3,8,{"$f":"AB1","v":"Monaco"}]
[null,null,null,null,null,null,null,null,null,null,null,null,null,null,null,null,null,null,null,null,null,null,null,null,null,null,"339",3,3,9,{"$f":"AC1","v":"PSG"}]
[null,null,null,null,null,null,null,null,null,null,null,null,null,null,null,null,null,null,null,null,null,null,null,null,null,null,"341",3,4,1,{"$f":"AB1","v":"Monaco"}]
[null,null,null,null,null,null,null,null,null,null,null,null,null,null,null,null,null,null,null,null,null,null,null,null,null,null,"342",3,4,2,{"$f":"AB1","v":"Monaco"}]
[null,null,null,null,null,null,null,null,null,null,null,null,null,null,null,null,null,null,null,null,null,null,null,null,null,null,"343",3,4,3,{"$f":"AB1","v":"Monaco"}]
[null,null,null,null,null,null,null,null,null,null,null,null,null,null,null,null,null,null,null,null,null,null,null,null,null,null,"344",3,4,4,{"$f":"AC1","v":"PSG"}]
[null,null,null,null,null,null,null,null,null,null,null,null,null,null,null,null,null,null,null,null,null,null,null,null,null,null,"345",3,4,5,{"$f":"AC1","v":"PSG"}]
[null,null,null,null,null,null,null,null,null,null,null,null,null,null,null,null,null,null,null,null,null,null,null,null,null,null,"346",3,4,6,{"$f":"AC1","v":"PSG"}]
[null,null,null,null,null,null,null,null,null,null,null,null,null,null,null,null,null,null,null,null,null,null,null,null,null,null,"347",3,4,7,{"$f":"AC1","v":"PSG"}]
[null,null,null,null,null,null,null,null,null,null,null,null,null,null,null,null,null,null,null,null,null,null,null,null,null,null,"348",3,4,8,"NUL"]
[null,null,null,null,null,null,null,null,null,null,null,null,null,null,null,null,null,null,null,null,null,null,null,null,null,null,"349",3,4,9,{"$f":"AB1","v":"Monaco"}]
[null,null,null,null,null,null,null,null,null,null,null,null,null,null,null,null,null,null,null,null,null,null,null,null,null,null,"351",3,5,1,{"$f":"AB1","v":"Monaco"}]
[null,null,null,null,null,null,null,null,null,null,null,null,null,null,null,null,null,null,null,null,null,null,null,null,null,null,"352",3,5,2,{"$f":"AB1","v":"Monaco"}]
[null,null,null,null,null,null,null,null,null,null,null,null,null,null,null,null,null,null,null,null,null,null,null,null,null,null,"353",3,5,3,{"$f":"AB1","v":"Monaco"}]
[null,null,null,null,null,null,null,null,null,null,null,null,null,null,null,null,null,null,null,null,null,null,null,null,null,null,"354",3,5,4,"NUL"]
[null,null,null,null,null,null,null,null,null,null,null,null,null,null,null,null,null,null,null,null,null,null,null,null,null,null,"355",3,5,5,{"$f":"AC1","v":"PSG"}]
[null,null,null,null,null,null,null,null,null,null,null,null,null,null,null,null,null,null,null,null,null,null,null,null,null,null,"356",3,5,6,{"$f":"AC1","v":"PSG"}]
[null,null,null,null,null,null,null,null,null,null,null,null,null,null,null,null,null,null,null,null,null,null,null,null,null,null,"357",3,5,7,{"$f":"AC1","v":"PSG"}]
[null,null,null,null,null,null,null,null,null,null,null,null,null,null,null,null,null,null,null,null,null,null,null,null,null,null,"358",3,5,8,{"$f":"AC1","v":"PSG"}]
[null,null,null,null,null,null,null,null,null,null,null,null,null,null,null,null,null,null,null,null,null,null,null,null,null,null,"359",3,5,9,{"$f":"AB1","v":"Monaco"}]
[null,null,null,null,null,null,null,null,null,null,null,null,null,null,null,null,null,null,null,null,null,null,null,null,null,null,"361",3,6,1,{"$f":"AB1","v":"Monaco"}]
[null,null,null,null,null,null,null,null,null,null,null,null,null,null,null,null,null,null,null,null,null,null,null,null,null,null,"362",3,6,2,{"$f":"AB1","v":"Monaco"}]
[null,null,null,null,null,null,null,null,null,null,null,null,null,null,null,null,null,null,null,null,null,null,null,null,null,null,"363",3,6,3,{"$f":"AB1","v":"Monaco"}]
[null,null,null,null,null,null,null,null,null,null,null,null,null,null,null,null,null,null,null,null,null,null,null,null,null,null,"364",3,6,4,{"$f":"AB1","v":"Monaco"}]
[null,null,null,null,null,null,null,null,null,null,null,null,null,null,null,null,null,null,null,null,null,null,null,null,null,null,"365",3,6,5,{"$f":"AC1","v":"PSG"}]
[null,null,null,null,null,null,null,null,null,null,null,null,null,null,null,null,null,null,null,null,null,null,null,null,null,null,"366",3,6,6,{"$f":"AC1","v":"PSG"}]
[null,null,null,null,null,null,null,null,null,null,null,null,null,null,null,null,null,null,null,null,null,null,null,null,null,null,"367",3,6,7,{"$f":"AC1","v":"PSG"}]
[null,null,null,null,null,null,null,null,null,null,null,null,null,null,null,null,null,null,null,null,null,null,null,null,null,null,"368",3,6,8,{"$f":"AC1","v":"PSG"}]
[null,null,null,null,null,null,null,null,null,null,null,null,null,null,null,null,null,null,null,null,null,null,null,null,null,null,"369",3,6,9,"NUL"]
[null,null,null,null,null,null,null,null,null,null,null,null,null,null,null,null,null,null,null,null,null,null,null,null,null,null,"371",3,7,1,{"$f":"AB1","v":"Monaco"}]
[null,null,null,null,null,null,null,null,null,null,null,null,null,null,null,null,null,null,null,null,null,null,null,null,null,null,"372",3,7,2,{"$f":"AB1","v":"Monaco"}]
[null,null,null,null,null,null,null,null,null,null,null,null,null,null,null,null,null,null,null,null,null,null,null,null,null,null,"373",3,7,3,{"$f":"AB1","v":"Monaco"}]
[null,null,null,null,null,null,null,null,null,null,null,null,null,null,null,null,null,null,null,null,null,null,null,null,null,null,"374",3,7,4,{"$f":"AB1","v":"Monaco"}]
[null,null,null,null,null,null,null,null,null,null,null,null,null,null,null,null,null,null,null,null,null,null,null,null,null,null,"375",3,7,5,"NUL"]
[null,null,null,null,null,null,null,null,null,null,null,null,null,null,null,null,null,null,null,null,null,null,null,null,null,null,"376",3,7,6,{"$f":"AC1","v":"PSG"}]
[null,null,null,null,null,null,null,null,null,null,null,null,null,null,null,null,null,null,null,null,null,null,null,null,null,null,"377",3,7,7,{"$f":"AC1","v":"PSG"}]
[null,null,null,null,null,null,null,null,null,null,null,null,null,null,null,null,null,null,null,null,null,null,null,null,null,null,"378",3,7,8,{"$f":"AC1","v":"PSG"}]
[null,null,null,null,null,null,null,null,null,null,null,null,null,null,null,null,null,null,null,null,null,null,null,null,null,null,"379",3,7,9,{"$f":"AC1","v":"PSG"}]
[null,null,null,null,null,null,null,null,null,null,null,null,null,null,null,null,null,null,null,null,null,null,null,null,null,null,"381",3,8,1,"NUL"]
[null,null,null,null,null,null,null,null,null,null,null,null,null,null,null,null,null,null,null,null,null,null,null,null,null,null,"382",3,8,2,{"$f":"AB1","v":"Monaco"}]
[null,null,null,null,null,null,null,null,null,null,null,null,null,null,null,null,null,null,null,null,null,null,null,null,null,null,"383",3,8,3,{"$f":"AB1","v":"Monaco"}]
[null,null,null,null,null,null,null,null,null,null,null,null,null,null,null,null,null,null,null,null,null,null,null,null,null,null,"384",3,8,4,{"$f":"AB1","v":"Monaco"}]
[null,null,null,null,null,null,null,null,null,null,null,null,null,null,null,null,null,null,null,null,null,null,null,null,null,null,"385",3,8,5,{"$f":"AB1","v":"Monaco"}]
[null,null,null,null,null,null,null,null,null,null,null,null,null,null,null,null,null,null,null,null,null,null,null,null,null,null,"386",3,8,6,{"$f":"AC1","v":"PSG"}]
[null,null,null,null,null,null,null,null,null,null,null,null,null,null,null,null,null,null,null,null,null,null,null,null,null,null,"387",3,8,7,{"$f":"AC1","v":"PSG"}]
[null,null,null,null,null,null,null,null,null,null,null,null,null,null,null,null,null,null,null,null,null,null,null,null,null,null,"388",3,8,8,{"$f":"AC1","v":"PSG"}]
[null,null,null,null,null,null,null,null,null,null,null,null,null,null,null,null,null,null,null,null,null,null,null,null,null,null,"389",3,8,9,{"$f":"AC1","v":"PSG"}]
[null,null,null,null,null,null,null,null,null,null,null,null,null,null,null,null,null,null,null,null,null,null,null,null,null,null,"391",3,9,1,{"$f":"AC1","v":"PSG"}]
[null,null,null,null,null,null,null,null,null,null,null,null,null,null,null,null,null,null,null,null,null,null,null,null,null,null,"392",3,9,2,{"$f":"AB1","v":"Monaco"}]
[null,null,null,null,null,null,null,null,null,null,null,null,null,null,null,null,null,null,null,null,null,null,null,null,null,null,"393",3,9,3,{"$f":"AB1","v":"Monaco"}]
[null,null,null,null,null,null,null,null,null,null,null,null,null,null,null,null,null,null,null,null,null,null,null,null,null,null,"394",3,9,4,{"$f":"AB1","v":"Monaco"}]
[null,null,null,null,null,null,null,null,null,null,null,null,null,null,null,null,null,null,null,null,null,null,null,null,null,null,"395",3,9,5,{"$f":"AB1","v":"Monaco"}]
[null,null,null,null,null,null,null,null,null,null,null,null,null,null,null,null,null,null,null,null,null,null,null,null,null,null,"396",3,9,6,"NUL"]
[null,null,null,null,null,null,null,null,null,null,null,null,null,null,null,null,null,null,null,null,null,null,null,null,null,null,"397",3,9,7,{"$f":"AC1","v":"PSG"}]
[null,null,null,null,null,null,null,null,null,null,null,null,null,null,null,null,null,null,null,null,null,null,null,null,null,null,"398",3,9,8,{"$f":"AC1","v":"PSG"}]
[null,null,null,null,null,null,null,null,null,null,null,null,null,null,null,null,null,null,null,null,null,null,null,null,null,null,"399",3,9,9,{"$f":"AC1","v":"PSG"}]
[null,null,null,null,null,null,null,null,null,null,null,null,null,null,null,null,null,null,null,null,null,null,null,null,null,null,"411",4,1,1,{"$f":"AC1","v":"PSG"}]
[null,null,null,null,null,null,null,null,null,null,null,null,null,null,null,null,null,null,null,null,null,null,null,null,null,null,"412",4,1,2,{"$f":"AC1","v":"PSG"}]
[null,null,null,null,null,null,null,null,null,null,null,null,null,null,null,null,null,null,null,null,null,null,null,null,null,null,"413",4,1,3,{"$f":"AB1","v":"Monaco"}]
[null,null,null,null,null,null,null,null,null,null,null,null,null,null,null,null,null,null,null,null,null,null,null,null,null,null,"414",4,1,4,{"$f":"AB1","v":"Monaco"}]
[null,null,null,null,null,null,null,null,null,null,null,null,null,null,null,null,null,null,null,null,null,null,null,null,null,null,"415",4,1,5,{"$f":"AB1","v":"Monaco"}]
[null,null,null,null,null,null,null,null,null,null,null,null,null,null,null,null,null,null,null,null,null,null,null,null,null,null,"416",4,1,6,{"$f":"AB1","v":"Monaco"}]
[null,null,null,null,null,null,null,null,null,null,null,null,null,null,null,null,null,null,null,null,null,null,null,null,null,null,"417",4,1,7,"NUL"]
[null,null,null,null,null,null,null,null,null,null,null,null,null,null,null,null,null,null,null,null,null,null,null,null,null,null,"418",4,1,8,{"$f":"AC1","v":"PSG"}]
[null,null,null,null,null,null,null,null,null,null,null,null,null,null,null,null,null,null,null,null,null,null,null,null,null,null,{"$f":"CONCATENATE(AB259,AC259,AD259)","v":"419"},4,1,9,{"$f":"AC1","v":"PSG"}]
[null,null,null,null,null,null,null,null,null,null,null,null,null,null,null,null,null,null,null,null,null,null,null,null,null,null,"421",4,2,1,{"$f":"AC1","v":"PSG"}]
[null,null,null,null,null,null,null,null,null,null,null,null,null,null,null,null,null,null,null,null,null,null,null,null,null,null,"422",4,2,2,{"$f":"AC1","v":"PSG"}]
[null,null,null,null,null,null,null,null,null,null,null,null,null,null,null,null,null,null,null,null,null,null,null,null,null,null,"423",4,2,3,"NUL"]
[null,null,null,null,null,null,null,null,null,null,null,null,null,null,null,null,null,null,null,null,null,null,null,null,null,null,"424",4,2,4,{"$f":"AB1","v":"Monaco"}]
[null,null,null,null,null,null,null,null,null,null,null,null,null,null,null,null,null,null,null,null,null,null,null,null,null,null,"425",4,2,5,{"$f":"AB1","v":"Monaco"}]
[null,null,null,null,null,null,null,null,null,null,null,null,null,null,null,null,null,null,null,null,null,null,null,null,null,null,"426",4,2,6,{"$f":"AB1","v":"Monaco"}]
[null,null,null,null,null,null,null,null,null,null,null,null,null,null,null,null,null,null,null,null,null,null,null,null,null,null,"427",4,2,7,{"$f":"AB1","v":"Monaco"}]
[null,null,null,null,null,null,null,null,null,null,null,null,null,null,null,null,null,null,null,null,null,null,null,null,null,null,"428",4,2,8,{"$f":"AC1","v":"PSG"}]
[null,null,null,null,null,null,null,null,null,null,null,null,null,null,null,null,null,null,null,null,null,null,null,null,null,null,"429",4,2,9,{"$f":"AC1","v":"PSG"}]
[null,null,null,null,null,null,null,null,null,null,null,null,null,null,null,null,null,null,null,null,null,null,null,null,null,null,"431",4,3,1,{"$f":"AC1","v":"PSG"}]
[null,null,null,null,null,null,null,null,null,null,null,null,null,null,null,null,null,null,null,null,null,null,null,null,null,null,"432",4,3,2,{"$f":"AC1","v":"PSG"}]
[null,null,null,null,null,null,null,null,null,null,null,null,null,null,null,null,null,null,null,null,null,null,null,null,null,null,"433",4,3,3,{"$f":"AC1","v":"PSG"}]
[null,null,null,null,null,null,null,null,null,null,null,null,null,null,null,null,null,null,null,null,null,null,null,null,null,null,"434",4,3,4,{"$f":"AB1","v":"Monaco"}]
[null,null,null,null,null,null,null,null,null,null,null,null,null,null,null,null,null,null,null,null,null,null,null,null,null,null,"435",4,3,5,{"$f":"AB1","v":"Monaco"}]
[null,null,null,null,null,null,null,null,null,null,null,null,null,null,null,null,null,null,null,null,null,null,null,null,null,null,"436",4,3,6,{"$f":"AB1","v":"Monaco"}]
[null,null,null,null,null,null,null,null,null,null,null,null,null,null,null,null,null,null,null,null,null,null,null,null,null,null,"437",4,3,7,{"$f":"AB1","v":"Monaco"}]
[null,null,null,null,null,null,null,null,null,null,null,null,null,null,null,null,null,null,null,null,null,null,null,null,null,null,"438",4,3,8,"NUL"]
[null,null,null,null,null,null,null,null,null,null,null,null,null,null,null,null,null,null,null,null,null,null,null,null,null,null,"439",4,3,9,{"$f":"AC1","v":"PSG"}]
[null,null,null,null,null,null,null,null,null,null,null,null,null,null,null,null,null,null,null,null,null,null,null,null,null,null,"441",4,4,1,{"$f":"AB1","v":"Monaco"}]
[null,null,null,null,null,null,null,null,null,null,null,null,null,null,null,null,null,null,null,null,null,null,null,null,null,null,"442",4,4,2,{"$f":"AB1","v":"Monaco"}]
[null,null,null,null,null,null,null,null,null,null,null,null,null,null,null,null,null,null,null,null,null,null,null,null,null,null,"443",4,4,3,"NUL"]
[null,null,null,null,null,null,null,null,null,null,null,null,null,null,null,null,null,null,null,null,null,null,null,null,null,null,"445",4,4,5,"NUL"]
[null,null,null,null,null,null,null,null,null,null,null,null,null,null,null,null,null,null,null,null,null,null,null,null,null,null,"446",4,4,6,{"$f":"AB1","v":"Monaco"}]
[null,null,null,null,null,null,null,null,null,null,null,null,null,null,null,null,null,null,null,null,null,null,null,null,null,null,"447",4,4,7,{"$f":"AC1","v":"PSG"}]
[null,null,null,null,null,null,null,null,null,null,null,null,null,null,null,null,null,null,null,null,null,null,null,null,null,null,"448",4,4,8,{"$f":"AB1","v":"Monaco"}]
[null,null,null,null,null,null,null,null,null,null,null,null,null,null,null,null,null,null,null,null,null,null,null,null,null,null,"449",4,4,9,{"$f":"AB1","v":"Monaco"}]
[null,null,null,null,null,null,null,null,null,null,null,null,null,null,null,null,null,null,null,null,null,null,null,null,null,null,"451",4,5,1,{"$f":"AB1","v":"Monaco"}]
[null,null,null,null,null,null,null,null,null,null,null,null,null,null,null,null,null,null,null,null,null,null,null,null,null,null,"452",4,5,2,{"$f":"AB1","v":"Monaco"}]
[null,null,null,null,null,null,null,null,null,null,null,null,null,null,null,null,null,null,null,null,null,null,null,null,null,null,"453",4,5,3,{"$f":"AB1","v":"Monaco"}]
[null,null,null,null,null,null,null,null,null,null,null,null,null,null,null,null,null,null,null,null,null,null,null,null,null,null,"454",4,5,4,{"$f":"AB1","v":"Monaco"}]
[null,null,null,null,null,null,null,null,null,null,null,null,null,null,null,null,null,null,null,null,null,null,null,null,null,null,"455",4,5,5,{"$f":"AC1","v":"PSG"}]
[null,null,null,null,null,null,null,null,null,null,null,null,null,null,null,null,null,null,null,null,null,null,null,null,null,null,"456",4,5,6,{"$f":"AC1","v":"PSG"}]
[null,null,null,null,null,null,null,null,null,null,null,null,null,null,null,null,null,null,null,null,null,null,null,null,null,null,"457",4,5,7,{"$f":"AC1","v":"PSG"}]
[null,null,null,null,null,null,null,null,null,null,null,null,null,null,null,null,null,null,null,null,null,null,null,null,null,null,"458",4,5,8,{"$f":"AC1","v":"PSG"}]
[null,null,null,null,null,null,null,null,null,null,null,null,null,null,null,null,null,null,null,null,null,null,null,null,null,null,"459",4,5,9,"NUL"]
[null,null,null,null,null,null,null,null,null,null,null,null,null,null,null,null,null,null,null,null,null,null,null,null,null,null,"461",4,6,1,{"$f":"AB1","v":"Monaco"}]
[null,null,null,null,null,null,null,null,null,null,null,null,null,null,null,null,null,null,null,null,null,null,null,null,null,null,"462",4,6,2,{"$f":"AB1","v":"Monaco"}]
[null,null,null,null,null,null,null,null,null,null,null,null,null,null,null,null,null,null,null,null,null,null,null,null,null,null,"463",4,6,3,{"$f":"AB1","v":"Monaco"}]
[null,null,null,null,null,null,null,null,null,null,null,null,null,null,null,null,null,null,null,null,null,null,null,null,null,null,"464",4,6,4,{"$f":"AB1","v":"Monaco"}]
[null,null,null,null,null,null,null,null,null,null,null,null,null,null,null,null,null,null,null,null,null,null,null,null,null,null,"465",4,6,5,"NUL"]
[null,null,null,null,null,null,null,null,null,null,null,null,null,null,null,null,null,null,null,null,null,null,null,null,null,null,"466",4,6,6,{"$f":"AC1","v":"PSG"}]
[null,null,null,null,null,null,null,null,null,null,null,null,null,null,null,null,null,null,null,null,null,null,null,null,null,null,"467",4,6,7,{"$f":"AC1","v":"PSG"}]
[null,null,null,null,null,null,null,null,null,null,null,null,null,null,null,null,null,null,null,null,null,null,null,null,null,null,"468",4,6,8,{"$f":"AC1","v":"PSG"}]
[null,null,null,null,null,null,null,null,null,null,null,null,null,null,null,null,null,null,null,null,null,null,null,null,null,null,"469",4,6,9,{"$f":"AC1","v":"PSG"}]
[null,null,null,null,null,null,null,null,null,null,null,null,null,null,null,null,null,null,null,null,null,null,null,null,null,null,"471",4,7,1,"NUL"]
[null,null,null,null,null,null,null,null,null,null,null,null,null,null,null,null,null,null,null,null,null,null,null,null,null,null,"472",4,7,2,{"$f":"AB1","v":"Monaco"}]
[null,null,null,null,null,null,null,null,null,null,null,null,null,null,null,null,null,null,null,null,null,null,null,null,null,null,"473",4,7,3,{"$f":"AB1","v":"Monaco"}]
[null,null,null,null,null,null,null,null,null,null,null,null,null,null,null,null,null,null,null,null,null,null,null,null,null,null,"474",4,7,4,{"$f":"AB1","v":"Monaco"}]
[null,null,null,null,null,null,null,null,null,null,null,null,null,null,null,null,null,null,null,null,null,null,null,null,null,null,"475",4,7,5,{"$f":"AB1","v":"Monaco"}]
[null,null,null,null,null,null,null,null,null,null,null,null,null,null,null,null,null,null,null,null,null,null,null,null,null,null,"476",4,7,6,{"$f":"AC1","v":"PSG"}]
[null,null,null,null,null,null,null,null,null,null,null,null,null,null,null,null,null,null,null,null,null,null,null,null,null,null,"477",4,7,7,{"$f":"AC1","v":"PSG"}]
[null,null,null,null,null,null,null,null,null,null,null,null,null,null,null,null,null,null,null,null,null,null,null,null,null,null,"478",4,7,8,{"$f":"AC1","v":"PSG"}]
[null,null,null,null,null,null,null,null,null,null,null,null,null,null,null,null,null,null,null,null,null,null,null,null,null,null,"479",4,7,9,{"$f":"AC1","v":"PSG"}]
[null,null,null,null,null,null,null,null,null,null,null,null,null,null,null,null,null,null,null,null,null,null,null,null,null,null,"481",4,8,1,{"$f":"AC1","v":"PSG"}]
[null,null,null,null,null,null,null,null,null,null,null,null,null,null,null,null,null,null,null,null,null,null,null,null,null,null,"482",4,8,2,{"$f":"AB1","v":"Monaco"}]
[null,null,null,null,null,null,null,null,null,null,null,null,null,null,null,null,null,null,null,null,null,null,null,null,null,null,"483",4,8,3,{"$f":"AB1","v":"Monaco"}]
[null,null,null,null,null,null,null,null,null,null,null,null,null,null,null,null,null,null,null,null,null,null,null,null,null,null,"484",4,8,4,{"$f":"AB1","v":"Monaco"}]
[null,null,null,null,null,null,null,null,null,null,null,null,null,null,null,null,null,null,null,null,null,null,null,null,null,null,"485",4,8,5,{"$f":"AB1","v":"Monaco"}]
[null,null,null,null,null,null,null,null,null,null,null,null,null,null,null,null,null,null,null,null,null,null,null,null,null,null,"486",4,8,6,"NUL"]
[null,null,null,null,null,null,null,null,null,null,null,null,null,null,null,null,null,null,null,null,null,null,null,null,null,null,"487",4,8,7,{"$f":"AC1","v":"PSG"}]
[null,null,null,null,null,null,null,null,null,null,null,null,null,null,null,null,null,null,null,null,null,null,null,null,null,null,"488",4,8,8,{"$f":"AC1","v":"PSG"}]
[null,null,null,null,null,null,null,null,null,null,null,null,null,null,null,null,null,null,null,null,null,null,null,null,null,null,"489",4,8,9,{"$f":"AC1","v":"PSG"}]
[null,null,null,null,null,null,null,null,null,null,null,null,null,null,null,null,null,null,null,null,null,null,null,null,null,null,"491",4,9,1,{"$f":"AC1","v":"PSG"}]
[null,null,null,null,null,null,null,null,null,null,null,null,null,null,null,null,null,null,null,null,null,null,null,null,null,null,{"$f":"CONCATENATE(AB323,AC323,AD323)","v":"492"},4,9,2,"NUL"]
[null,null,null,null,null,null,null,null,null,null,null,null,null,null,null,null,null,null,null,null,null,null,null,null,null,null,"493",4,9,3,{"$f":"AB1","v":"Monaco"}]
[null,null,null,null,null,null,null,null,null,null,null,null,null,null,null,null,null,null,null,null,null,null,null,null,null,null,"494",4,9,4,{"$f":"AB1","v":"Monaco"}]
[null,null,null,null,null,null,null,null,null,null,null,null,null,null,null,null,null,null,null,null,null,null,null,null,null,null,"495",4,9,5,{"$f":"AB1","v":"Monaco"}]
[null,null,null,null,null,null,null,null,null,null,null,null,null,null,null,null,null,null,null,null,null,null,null,null,null,null,"496",4,9,6,{"$f":"AB1","v":"Monaco"}]
[null,null,null,null,null,null,null,null,null,null,null,null,null,null,null,null,null,null,null,null,null,null,null,null,null,null,"497",4,9,7,{"$f":"AC1","v":"PSG"}]
[null,null,null,null,null,null,null,null,null,null,null,null,null,null,null,null,null,null,null,null,null,null,null,null,null,null,"498",4,9,8,{"$f":"AC1","v":"PSG"}]
[null,null,null,null,null,null,null,null,null,null,null,null,null,null,null,null,null,null,null,null,null,null,null,null,null,null,"499",4,9,9,{"$f":"AC1","v":"PSG"}]
[null,null,null,null,null,null,null,null,null,null,null,null,null,null,null,null,null,null,null,null,null,null,null,null,null,null,"511",5,1,1,{"$f":"AC1","v":"PSG"}]
[null,null,null,null,null,null,null,null,null,null,null,null,null,null,null,null,null,null,null,null,null,null,null,null,null,null,"512",5,1,2,{"$f":"AC1","v":"PSG"}]
[null,null,null,null,null,null,null,null,null,null,null,null,null,null,null,null,null,null,null,null,null,null,null,null,null,null,"513",5,1,3,"NUL"]
[null,null,null,null,null,null,null,null,null,null,null,null,null,null,null,null,null,null,null,null,null,null,null,null,null,null,"514",5,1,4,{"$f":"AB1","v":"Monaco"}]
[null,null,null,null,null,null,null,null,null,null,null,null,null,null,null,null,null,null,null,null,null,null,null,null,null,null,"515",5,1,5,{"$f":"AB1","v":"Monaco"}]
[null,null,null,null,null,null,null,null,null,null,null,null,null,null,null,null,null,null,null,null,null,null,null,null,null,null,"516",5,1,6,{"$f":"AB1","v":"Monaco"}]
[null,null,null,null,null,null,null,null,null,null,null,null,null,null,null,null,null,null,null,null,null,null,null,null,null,null,"517",5,1,7,{"$f":"AB1","v":"Monaco"}]
[null,null,null,null,null,null,null,null,null,null,null,null,null,null,null,null,null,null,null,null,null,null,null,null,null,null,"518",5,1,8,{"$f":"AC1","v":"PSG"}]
[null,null,null,null,null,null,null,null,null,null,null,null,null,null,null,null,null,null,null,null,null,null,null,null,null,null,"519",5,1,9,{"$f":"AC1","v":"PSG"}]
[null,null,null,null,null,null,null,null,null,null,null,null,null,null,null,null,null,null,null,null,null,null,null,null,null,null,"521",5,2,1,{"$f":"AC1","v":"PSG"}]
[null,null,null,null,null,null,null,null,null,null,null,null,null,null,null,null,null,null,null,null,null,null,null,null,null,null,"522",5,2,2,{"$f":"AC1","v":"PSG"}]
[null,null,null,null,null,null,null,null,null,null,null,null,null,null,null,null,null,null,null,null,null,null,null,null,null,null,"523",5,2,3,{"$f":"AC1","v":"PSG"}]
[null,null,null,null,null,null,null,null,null,null,null,null,null,null,null,null,null,null,null,null,null,null,null,null,null,null,"524",5,2,4,{"$f":"AB1","v":"Monaco"}]
[null,null,null,null,null,null,null,null,null,null,null,null,null,null,null,null,null,null,null,null,null,null,null,null,null,null,"525",5,2,5,{"$f":"AB1","v":"Monaco"}]
[null,null,null,null,null,null,null,null,null,null,null,null,null,null,null,null,null,null,null,null,null,null,null,null,null,null,"526",5,2,6,{"$f":"AB1","v":"Monaco"}]
[null,null,null,null,null,null,null,null,null,null,null,null,null,null,null,null,null,null,null,null,null,null,null,null,null,null,"527",5,2,7,{"$f":"AB1","v":"Monaco"}]
[null,null,null,null,null,null,null,null,null,null,null,null,null,null,null,null,null,null,null,null,null,null,null,null,null,null,"528",5,2,8,"NUL"]
[null,null,null,null,null,null,null,null,null,null,null,null,null,null,null,null,null,null,null,null,null,null,null,null,null,null,"529",5,2,9,{"$f":"AC1","v":"PSG"}]
[null,null,null,null,null,null,null,null,null,null,null,null,null,null,null,null,null,null,null,null,null,null,null,null,null,null,"531",5,3,1,{"$f":"AC1","v":"PSG"}]
[null,null,null,null,null,null,null,null,null,null,null,null,null,null,null,null,null,null,null,null,null,null,null,null,null,null,"532",5,3,2,{"$f":"AC1","v":"PSG"}]
[null,null,null,null,null,null,null,null,null,null,null,null,null,null,null,null,null,null,null,null,null,null,null,null,null,null,"533",5,3,3,{"$f":"AC1","v":"PSG"}]
[null,null,null,null,null,null,null,null,null,null,null,null,null,null,null,null,null,null,null,null,null,null,null,null,null,null,"534",5,3,4,"NUL"]
[null,null,null,null,null,null,null,null,null,null,null,null,null,null,null,null,null,null,null,null,null,null,null,null,null,null,"535",5,3,5,{"$f":"AB1","v":"Monaco"}]
[null,null,null,null,null,null,null,null,null,null,null,null,null,null,null,null,null,null,null,null,null,null,null,null,null,null,"536",5,3,6,{"$f":"AB1","v":"Monaco"}]
[null,null,null,null,null,null,null,null,null,null,null,null,null,null,null,null,null,null,null,null,null,null,null,null,null,null,"537",5,3,7,{"$f":"AB1","v":"Monaco"}]
[null,null,null,null,null,null,null,null,null,null,null,null,null,null,null,null,null,null,null,null,null,null,null,null,null,null,"538",5,3,8,{"$f":"AB1","v":"Monaco"}]
[null,null,null,null,null,null,null,null,null,null,null,null,null,null,null,null,null,null,null,null,null,null,null,null,null,null,"539",5,3,9,{"$f":"AC1","v":"PSG"}]
[null,null,null,null,null,null,null,null,null,null,null,null,null,null,null,null,null,null,null,null,null,null,null,null,null,null,"541",5,4,1,{"$f":"AC1","v":"PSG"}]
[null,null,null,null,null,null,null,null,null,null,null,null,null,null,null,null,null,null,null,null,null,null,null,null,null,null,"542",5,4,2,{"$f":"AC1","v":"PSG"}]
[null,null,null,null,null,null,null,null,null,null,null,null,null,null,null,null,null,null,null,null,null,null,null,null,null,null,"543",5,4,3,{"$f":"AC1","v":"PSG"}]
[null,null,null,null,null,null,null,null,null,null,null,null,null,null,null,null,null,null,null,null,null,null,null,null,null,null,"544",5,4,4,{"$f":"AC1","v":"PSG"}]
[null,null,null,null,null,null,null,null,null,null,null,null,null,null,null,null,null,null,null,null,null,null,null,null,null,null,"545",5,4,5,{"$f":"AB1","v":"Monaco"}]
[null,null,null,null,null,null,null,null,null,null,null,null,null,null,null,null,null,null,null,null,null,null,null,null,null,null,"546",5,4,6,{"$f":"AB1","v":"Monaco"}]
[null,null,null,null,null,null,null,null,null,null,null,null,null,null,null,null,null,null,null,null,null,null,null,null,null,null,"547",5,4,7,{"$f":"AB1","v":"Monaco"}]
[null,null,null,null,null,null,null,null,null,null,null,null,null,null,null,null,null,null,null,null,null,null,null,null,null,null,"548",5,4,8,{"$f":"AB1","v":"Monaco"}]
[null,null,null,null,null,null,null,null,null,null,null,null,null,null,null,null,null,null,null,null,null,null,null,null,null,null,"549",5,4,9,"NUL"]
[null,null,null,null,null,null,null,null,null,null,null,null,null,null,null,null,null,null,null,null,null,null,null,null,null,null,"551",5,5,1,{"$f":"AB1","v":"Monaco"}]
[null,null,null,null,null,null,null,null,null,null,null,null,null,null,null,null,null,null,null,null,null,null,null,null,null,null,"552",5,5,2,{"$f":"AC1","v":"PSG"}]
[null,null,null,null,null,null,null,null,null,null,null,null,null,null,null,null,null,null,null,null,null,null,null,null,null,null,"553",5,5,3,{"$f":"AB1","v":"Monaco"}]
[null,null,null,null,null,null,null,null,null,null,null,null,null,null,null,null,null,null,null,null,null,null,null,null,null,null,"554",5,5,4,"NUL"]
[null,null,null,null,null,null,null,null,null,null,null,null,null,null,null,null,null,null,null,null,null,null,null,null,null,null,"556",5,5,6,"NUL"]
[null,null,null,null,null,null,null,null,null,null,null,null,null,null,null,null,null,null,null,null,null,null,null,null,null,null,"557",5,5,7,{"$f":"AB1","v":"Monaco"}]
[null,null,null,null,null,null,null,null,null,null,null,null,null,null,null,null,null,null,null,null,null,null,null,null,null,null,"558",5,5,8,{"$f":"AC1","v":"PSG"}]
[null,null,null,null,null,null,null,null,null,null,null,null,null,null,null,null,null,null,null,null,null,null,null,null,null,null,"559",5,5,9,{"$f":"AB1","v":"Monaco"}]
[null,null,null,null,null,null,null,null,null,null,null,null,null,null,null,null,null,null,null,null,null,null,null,null,null,null,"561",5,6,1,"NUL"]
[null,null,null,null,null,null,null,null,null,null,null,null,null,null,null,null,null,null,null,null,null,null,null,null,null,null,"562",5,6,2,{"$f":"AB1","v":"Monaco"}]
[null,null,null,null,null,null,null,null,null,null,null,null,null,null,null,null,null,null,null,null,null,null,null,null,null,null,"563",5,6,3,{"$f":"AB1","v":"Monaco"}]
[null,null,null,null,null,null,null,null,null,null,null,null,null,null,null,null,null,null,null,null,null,null,null,null,null,null,"564",5,6,4,{"$f":"AB1","v":"Monaco"}]
[null,null,null,null,null,null,null,null,null,null,null,null,null,null,null,null,null,null,null,null,null,null,null,null,null,null,"565",5,6,5,{"$f":"AB1","v":"Monaco"}]
[null,null,null,null,null,null,null,null,null,null,null,null,null,null,null,null,null,null,null,null,null,null,null,null,null,null,"566",5,6,6,{"$f":"AC1","v":"PSG"}]
[null,null,null,null,null,null,null,null,null,null,null,null,null,null,null,null,null,null,null,null,null,null,null,null,null,null,"567",5,6,7,{"$f":"AC1","v":"PSG"}]
[null,null,null,null,null,null,null,null,null,null,null,null,null,null,null,null,null,null,null,null,null,null,null,null,null,null,"568",5,6,8,{"$f":"AC1","v":"PSG"}]
[null,null,null,null,null,null,null,null,null,null,null,null,null,null,null,null,null,null,null,null,null,null,null,null,null,null,"569",5,6,9,{"$f":"AC1","v":"PSG"}]
[null,null,null,null,null,null,null,null,null,null,null,null,null,null,null,null,null,null,null,null,null,null,null,null,null,null,"571",5,7,1,{"$f":"AC1","v":"PSG"}]
[null,null,null,null,null,null,null,null,null,null,null,null,null,null,null,null,null,null,null,null,null,null,null,null,null,null,"572",5,7,2,{"$f":"AB1","v":"Monaco"}]
[null,null,null,null,null,null,null,null,null,null,null,null,null,null,null,null,null,null,null,null,null,null,null,null,null,null,"573",5,7,3,{"$f":"AB1","v":"Monaco"}]
[null,null,null,null,null,null,null,null,null,null,null,null,null,null,null,null,null,null,null,null,null,null,null,null,null,null,{"$f":"CONCATENATE(AB387,AC387,AD387)","v":"574"},5,7,4,{"$f":"AB1","v":"Monaco"}]
[null,null,null,null,null,null,null,null,null,null,null,null,null,null,null,null,null,null,null,null,null,null,null,null,null,null,"575",5,7,5,{"$f":"AB1","v":"Monaco"}]
[null,null,null,null,null,null,null,null,null,null,null,null,null,null,null,null,null,null,null,null,null,null,null,null,null,null,"576",5,7,6,"NUL"]
[null,null,null,null,null,null,null,null,null,null,null,null,null,null,null,null,null,null,null,null,null,null,null,null,null,null,"577",5,7,7,{"$f":"AC1","v":"PSG"}]
[null,null,null,null,null,null,null,null,null,null,null,null,null,null,null,null,null,null,null,null,null,null,null,null,null,null,"578",5,7,8,{"$f":"AC1","v":"PSG"}]
[null,null,null,null,null,null,null,null,null,null,null,null,null,null,null,null,null,null,null,null,null,null,null,null,null,null,"579",5,7,9,{"$f":"AC1","v":"PSG"}]
[null,null,null,null,null,null,null,null,null,null,null,null,null,null,null,null,null,null,null,null,null,null,null,null,null,null,"581",5,8,1,{"$f":"AC1","v":"PSG"}]
[null,null,null,null,null,null,null,null,null,null,null,null,null,null,null,null,null,null,null,null,null,null,null,null,null,null,"582",5,8,2,"NUL"]
[null,null,null,null,null,null,null,null,null,null,null,null,null,null,null,null,null,null,null,null,null,null,null,null,null,null,"583",5,8,3,{"$f":"AB1","v":"Monaco"}]
[null,null,null,null,null,null,null,null,null,null,null,null,null,null,null,null,null,null,null,null,null,null,null,null,null,null,"584",5,8,4,{"$f":"AB1","v":"Monaco"}]
[null,null,null,null,null,null,null,null,null,null,null,null,null,null,null,null,null,null,null,null,null,null,null,null,null,null,"585",5,8,5,{"$f":"AB1","v":"Monaco"}]
[null,null,null,null,null,null,null,null,null,null,null,null,null,null,null,null,null,null,null,null,null,null,null,null,null,null,"586",5,8,6,{"$f":"AB1","v":"Monaco"}]
[null,null,null,null,null,null,null,null,null,null,null,null,null,null,null,null,null,null,null,null,null,null,null,null,null,null,"587",5,8,7,{"$f":"AC1","v":"PSG"}]
[null,null,null,null,null,null,null,null,null,null,null,null,null,null,null,null,null,null,null,null,null,null,null,null,null,null,"588",5,8,8,{"$f":"AC1","v":"PSG"}]
[null,null,null,null,null,null,null,null,null,null,null,null,null,null,null,null,null,null,null,null,null,null,null,null,null,null,"589",5,8,9,{"$f":"AC1","v":"PSG"}]
[null,null,null,null,null,null,null,null,null,null,null,null,null,null,null,null,null,null,null,null,null,null,null,null,null,null,"591",5,9,1,{"$f":"AC1","v":"PSG"}]
[null,null,null,null,null,null,null,null,null,null,null,null,null,null,null,null,null,null,null,null,null,null,null,null,null,null,"592",5,9,2,{"$f":"AC1","v":"PSG"}]
[null,null,null,null,null,null,null,null,null,null,null,null,null,null,null,null,null,null,null,null,null,null,null,null,null,null,"593",5,9,3,{"$f":"AB1","v":"Monaco"}]
[null,null,null,null,null,null,null,null,null,null,null,null,null,null,null,null,null,null,null,null,null,null,null,null,null,null,"594",5,9,4,{"$f":"AB1","v":"Monaco"}]
[null,null,null,null,null,null,null,null,null,null,null,null,null,null,null,null,null,null,null,null,null,null,null,null,null,null,"595",5,9,5,{"$f":"AB1","v":"Monaco"}]
[null,null,null,null,null,null,null,null,null,null,null,null,null,null,null,null,null,null,null,null,null,null,null,null,null,null,"596",5,9,6,{"$f":"AB1","v":"Monaco"}]
[null,null,null,null,null,null,null,null,null,null,null,null,null,null,null,null,null,null,null,null,null,null,null,null,null,null,"597",5,9,7,"NUL"]
[null,null,null,null,null,null,null,null,null,null,null,null,null,null,null,null,null,null,null,null,null,null,null,null,null,null,"598",5,9,8,{"$f":"AC1","v":"PSG"}]
[null,null,null,null,null,null,null,null,null,null,null,null,null,null,null,null,null,null,null,null,null,null,null,null,null,null,"599",5,9,9,{"$f":"AC1","v":"PSG"}]
[null,null,null,null,null,null,null,null,null,null,null,null,null,null,null,null,null,null,null,null,null,null,null,null,null,null,"611",6,1,1,{"$f":"AC1","v":"PSG"}]
[null,null,null,null,null,null,null,null,null,null,null,null,null,null,null,null,null,null,null,null,null,null,null,null,null,null,"612",6,1,2,{"$f":"AC1","v":"PSG"}]
[null,null,null,null,null,null,null,null,null,null,null,null,null,null,null,null,null,null,null,null,null,null,null,null,null,null,"613",6,1,3,{"$f":"AC1","v":"PSG"}]
[null,null,null,null,null,null,null,null,null,null,null,null,null,null,null,null,null,null,null,null,null,null,null,null,null,null,"614",6,1,4,{"$f":"AB1","v":"Monaco"}]
[null,null,null,null,null,null,null,null,null,null,null,null,null,null,null,null,null,null,null,null,null,null,null,null,null,null,"615",6,1,5,{"$f":"AB1","v":"Monaco"}]
[null,null,null,null,null,null,null,null,null,null,null,null,null,null,null,null,null,null,null,null,null,null,null,null,null,null,"616",6,1,6,{"$f":"AB1","v":"Monaco"}]
[null,null,null,null,null,null,null,null,null,null,null,null,null,null,null,null,null,null,null,null,null,null,null,null,null,null,"617",6,1,7,{"$f":"AB1","v":"Monaco"}]
[null,null,null,null,null,null,null,null,null,null,null,null,null,null,null,null,null,null,null,null,null,null,null,null,null,null,"618",6,1,8,"NUL"]
[null,null,null,null,null,null,null,null,null,null,null,null,null,null,null,null,null,null,null,null,null,null,null,null,null,null,"619",6,1,9,{"$f":"AC1","v":"PSG"}]
[null,null,null,null,null,null,null,null,null,null,null,null,null,null,null,null,null,null,null,null,null,null,null,null,null,null,"621",6,2,1,{"$f":"AC1","v":"PSG"}]
[null,null,null,null,null,null,null,null,null,null,null,null,null,null,null,null,null,null,null,null,null,null,null,null,null,null,"622",6,2,2,{"$f":"AC1","v":"PSG"}]
[null,null,null,null,null,null,null,null,null,null,null,null,null,null,null,null,null,null,null,null,null,null,null,null,null,null,"623",6,2,3,{"$f":"AC1","v":"PSG"}]
[null,null,null,null,null,null,null,null,null,null,null,null,null,null,null,null,null,null,null,null,null,null,null,null,null,null,"624",6,2,4,"NUL"]
[null,null,null,null,null,null,null,null,null,null,null,null,null,null,null,null,null,null,null,null,null,null,null,null,null,null,"625",6,2,5,{"$f":"AB1","v":"Monaco"}]
[null,null,null,null,null,null,null,null,null,null,null,null,null,null,null,null,null,null,null,null,null,null,null,null,null,null,"626",6,2,6,{"$f":"AB1","v":"Monaco"}]
[null,null,null,null,null,null,null,null,null,null,null,null,null,null,null,null,null,null,null,null,null,null,null,null,null,null,"627",6,2,7,{"$f":"AB1","v":"Monaco"}]
[null,null,null,null,null,null,null,null,null,null,null,null,null,null,null,null,null,null,null,null,null,null,null,null,null,null,"628",6,2,8,{"$f":"AB1","v":"Monaco"}]
[null,null,null,null,null,null,null,null,null,null,null,null,null,null,null,null,null,null,null,null,null,null,null,null,null,null,"629",6,2,9,{"$f":"AC1","v":"PSG"}]
[null,null,null,null,null,null,null,null,null,null,null,null,null,null,null,null,null,null,null,null,null,null,null,null,null,null,"631",6,3,1,{"$f":"AC1","v":"PSG"}]
[null,null,null,null,null,null,null,null,null,null,null,null,null,null,null,null,null,null,null,null,null,null,null,null,null,null,"632",6,3,2,{"$f":"AC1","v":"PSG"}]
[null,null,null,null,null,null,null,null,null,null,null,null,null,null,null,null,null,null,null,null,null,null,null,null,null,null,"633",6,3,3,{"$f":"AC1","v":"PSG"}]
[null,null,null,null,null,null,null,null,null,null,null,null,null,null,null,null,null,null,null,null,null,null,null,null,null,null,"634",6,3,4,{"$f":"AC1","v":"PSG"}]
[null,null,null,null,null,null,null,null,null,null,null,null,null,null,null,null,null,null,null,null,null,null,null,null,null,null,"635",6,3,5,{"$f":"AB1","v":"Monaco"}]
[null,null,null,null,null,null,null,null,null,null,null,null,null,null,null,null,null,null,null,null,null,null,null,null,null,null,"636",6,3,6,{"$f":"AB1","v":"Monaco"}]
[null,null,null,null,null,null,null,null,null,null,null,null,null,null,null,null,null,null,null,null,null,null,null,null,null,null,"637",6,3,7,{"$f":"AB1","v":"Monaco"}]
[null,null,null,null,null,null,null,null,null,null,null,null,null,null,null,null,null,null,null,null,null,null,null,null,null,null,"638",6,3,8,{"$f":"AB1","v":"Monaco"}]
[null,null,null,null,null,null,null,null,null,null,null,null,null,null,null,null,null,null,null,null,null,null,null,null,null,null,"639",6,3,9,"NUL"]
[null,null,null,null,null,null,null,null,null,null,null,null,null,null,null,null,null,null,null,null,null,null,null,null,null,null,"641",6,4,1,{"$f":"AC1","v":"PSG"}]
[null,null,null,null,null,null,null,null,null,null,null,null,null,null,null,null,null,null,null,null,null,null,null,null,null,null,"642",6,4,2,{"$f":"AC1","v":"PSG"}]
[null,null,null,null,null,null,null,null,null,null,null,null,null,null,null,null,null,null,null,null,null,null,null,null,null,null,"643",6,4,3,{"$f":"AC1","v":"PSG"}]
[null,null,null,null,null,null,null,null,null,null,null,null,null,null,null,null,null,null,null,null,null,null,null,null,null,null,"644",6,4,4,{"$f":"AC1","v":"PSG"}]
[null,null,null,null,null,null,null,null,null,null,null,null,null,null,null,null,null,null,null,null,null,null,null,null,null,null,"645",6,4,5,"NUL"]
[null,null,null,null,null,null,null,null,null,null,null,null,null,null,null,null,null,null,null,null,null,null,null,null,null,null,"646",6,4,6,{"$f":"AB1","v":"Monaco"}]
[null,null,null,null,null,null,null,null,null,null,null,null,null,null,null,null,null,null,null,null,null,null,null,null,null,null,"647",6,4,7,{"$f":"AB1","v":"Monaco"}]
[null,null,null,null,null,null,null,null,null,null,null,null,null,null,null,null,null,null,null,null,null,null,null,null,null,null,"648",6,4,8,{"$f":"AB1","v":"Monaco"}]
[null,null,null,null,null,null,null,null,null,null,null,null,null,null,null,null,null,null,null,null,null,null,null,null,null,null,"649",6,4,9,{"$f":"AB1","v":"Monaco"}]
[null,null,null,null,null,null,null,null,null,null,null,null,null,null,null,null,null,null,null,null,null,null,null,null,null,null,"651",6,5,1,"NUL"]
[null,null,null,null,null,null,null,null,null,null,null,null,null,null,null,null,null,null,null,null,null,null,null,null,null,null,"652",6,5,2,{"$f":"AC1","v":"PSG"}]
[null,null,null,null,null,null,null,null,null,null,null,null,null,null,null,null,null,null,null,null,null,null,null,null,null,null,"653",6,5,3,{"$f":"AC1","v":"PSG"}]
[null,null,null,null,null,null,null,null,null,null,null,null,null,null,null,null,null,null,null,null,null,null,null,null,null,null,"654",6,5,4,{"$f":"AC1","v":"PSG"}]
[null,null,null,null,null,null,null,null,null,null,null,null,null,null,null,null,null,null,null,null,null,null,null,null,null,null,{"$f":"CONCATENATE(AB451,AC451,AD451)","v":"655"},6,5,5,{"$f":"AC1","v":"PSG"}]
[null,null,null,null,null,null,null,null,null,null,null,null,null,null,null,null,null,null,null,null,null,null,null,null,null,null,"656",6,5,6,{"$f":"AB1","v":"Monaco"}]
[null,null,null,null,null,null,null,null,null,null,null,null,null,null,null,null,null,null,null,null,null,null,null,null,null,null,"657",6,5,7,{"$f":"AB1","v":"Monaco"}]
[null,null,null,null,null,null,null,null,null,null,null,null,null,null,null,null,null,null,null,null,null,null,null,null,null,null,"658",6,5,8,{"$f":"AB1","v":"Monaco"}]
[null,null,null,null,null,null,null,null,null,null,null,null,null,null,null,null,null,null,null,null,null,null,null,null,null,null,"659",6,5,9,{"$f":"AB1","v":"Monaco"}]
[null,null,null,null,null,null,null,null,null,null,null,null,null,null,null,null,null,null,null,null,null,null,null,null,null,null,"661",6,6,1,{"$f":"AB1","v":"Monaco"}]
[null,null,null,null,null,null,null,null,null,null,null,null,null,null,null,null,null,null,null,null,null,null,null,null,null,null,"662",6,6,2,{"$f":"AB1","v":"Monaco"}]
[null,null,null,null,null,null,null,null,null,null,null,null,null,null,null,null,null,null,null,null,null,null,null,null,null,null,"663",6,6,3,{"$f":"AC1","v":"PSG"}]
[null,null,null,null,null,null,null,null,null,null,null,null,null,null,null,null,null,null,null,null,null,null,null,null,null,null,"664",6,6,4,{"$f":"AB1","v":"Monaco"}]
[null,null,null,null,null,null,null,null,null,null,null,null,null,null,null,null,null,null,null,null,null,null,null,null,null,null,"665",6,6,5,"NUL"]
[null,null,null,null,null,null,null,null,null,null,null,null,null,null,null,null,null,null,null,null,null,null,null,null,null,null,"667",6,6,7,"NUL"]
[null,null,null,null,null,null,null,null,null,null,null,null,null,null,null,null,null,null,null,null,null,null,null,null,null,null,"668",6,6,8,{"$f":"AB1","v":"Monaco"}]
[null,null,null,null,null,null,null,null,null,null,null,null,null,null,null,null,null,null,null,null,null,null,null,null,null,null,"669",6,6,9,{"$f":"AC1","v":"PSG"}]
[null,null,null,null,null,null,null,null,null,null,null,null,null,null,null,null,null,null,null,null,null,null,null,null,null,null,"671",6,7,1,{"$f":"AC1","v":"PSG"}]
[null,null,null,null,null,null,null,null,null,null,null,null,null,null,null,null,null,null,null,null,null,null,null,null,null,null,"672",6,7,2,"NUL"]
[null,null,null,null,null,null,null,null,null,null,null,null,null,null,null,null,null,null,null,null,null,null,null,null,null,null,"673",6,7,3,{"$f":"AB1","v":"Monaco"}]
[null,null,null,null,null,null,null,null,null,null,null,null,null,null,null,null,null,null,null,null,null,null,null,null,null,null,"674",6,7,4,{"$f":"AB1","v":"Monaco"}]
[null,null,null,null,null,null,null,null,null,null,null,null,null,null,null,null,null,null,null,null,null,null,null,null,null,null,"675",6,7,5,{"$f":"AB1","v":"Monaco"}]
[null,null,null,null,null,null,null,null,null,null,null,null,null,null,null,null,null,null,null,null,null,null,null,null,null,null,"676",6,7,6,{"$f":"AB1","v":"Monaco"}]
[null,null,null,null,null,null,null,null,null,null,null,null,null,null,null,null,null,null,null,null,null,null,null,null,null,null,"677",6,7,7,{"$f":"AC1","v":"PSG"}]
[null,null,null,null,null,null,null,null,null,null,null,null,null,null,null,null,null,null,null,null,null,null,null,null,null,null,"678",6,7,8,{"$f":"AC1","v":"PSG"}]
[null,null,null,null,null,null,null,null,null,null,null,null,null,null,null,null,null,null,null,null,null,null,null,null,null,null,"679",6,7,9,{"$f":"AC1","v":"PSG"}]
[null,null,null,null,null,null,null,null,null,null,null,null,null,null,null,null,null,null,null,null,null,null,null,null,null,null,"681",6,8,1,{"$f":"AC1","v":"PSG"}]
[null,null,null,null,null,null,null,null,null,null,null,null,null,null,null,null,null,null,null,null,null,null,null,null,null,null,"682",6,8,2,{"$f":"AC1","v":"PSG"}]
[null,null,null,null,null,null,null,null,null,null,null,null,null,null,null,null,null,null,null,null,null,null,null,null,null,null,"683",6,8,3,{"$f":"AB1","v":"Monaco"}]
[null,null,null,null,null,null,null,null,null,null,null,null,null,null,null,null,null,null,null,null,null,null,null,null,null,null,"684",6,8,4,{"$f":"AB1","v":"Monaco"}]
[null,null,null,null,null,null,null,null,null,null,null,null,null,null,null,null,null,null,null,null,null,null,null,null,null,null,"685",6,8,5,{"$f":"AB1","v":"Monaco"}]
[null,null,null,null,null,null,null,null,null,null,null,null,null,null,null,null,null,null,null,null,null,null,null,null,null,null,"686",6,8,6,{"$f":"AB1","v":"Monaco"}]
[null,null,null,null,null,null,null,null,null,null,null,null,null,null,null,null,null,null,null,null,null,null,null,null,null,null,"687",6,8,7,"NUL"]
[null,null,null,null,null,null,null,null,null,null,null,null,null,null,null,null,null,null,null,null,null,null,null,null,null,null,"688",6,8,8,{"$f":"AC1","v":"PSG"}]
[null,null,null,null,null,null,null,null,null,null,null,null,null,null,null,null,null,null,null,null,null,null,null,null,null,null,"689",6,8,9,{"$f":"AC1","v":"PSG"}]
[null,null,null,null,null,null,null,null,null,null,null,null,null,null,null,null,null,null,null,null,null,null,null,null,null,null,"691",6,9,1,{"$f":"AC1","v":"PSG"}]
[null,null,null,null,null,null,null,null,null,null,null,null,null,null,null,null,null,null,null,null,null,null,null,null,null,null,"692",6,9,2,{"$f":"AC1","v":"PSG"}]
[null,null,null,null,null,null,null,null,null,null,null,null,null,null,null,null,null,null,null,null,null,null,null,null,null,null,"693",6,9,3,"NUL"]
[null,null,null,null,null,null,null,null,null,null,null,null,null,null,null,null,null,null,null,null,null,null,null,null,null,null,"694",6,9,4,{"$f":"AB1","v":"Monaco"}]
[null,null,null,null,null,null,null,null,null,null,null,null,null,null,null,null,null,null,null,null,null,null,null,null,null,null,"695",6,9,5,{"$f":"AB1","v":"Monaco"}]
[null,null,null,null,null,null,null,null,null,null,null,null,null,null,null,null,null,null,null,null,null,null,null,null,null,null,"696",6,9,6,{"$f":"AB1","v":"Monaco"}]
[null,null,null,null,null,null,null,null,null,null,null,null,null,null,null,null,null,null,null,null,null,null,null,null,null,null,"697",6,9,7,{"$f":"AB1","v":"Monaco"}]
[null,null,null,null,null,null,null,null,null,null,null,null,null,null,null,null,null,null,null,null,null,null,null,null,null,null,"698",6,9,8,{"$f":"AC1","v":"PSG"}]
[null,null,null,null,null,null,null,null,null,null,null,null,null,null,null,null,null,null,null,null,null,null,null,null,null,null,"699",6,9,9,{"$f":"AC1","v":"PSG"}]
[null,null,null,null,null,null,null,null,null,null,null,null,null,null,null,null,null,null,null,null,null,null,null,null,null,null,"711",7,1,1,{"$f":"AC1","v":"PSG"}]
[null,null,null,null,null,null,null,null,null,null,null,null,null,null,null,null,null,null,null,null,null,null,null,null,null,null,"712",7,1,2,{"$f":"AC1","v":"PSG"}]
[null,null,null,null,null,null,null,null,null,null,null,null,null,null,null,null,null,null,null,null,null,null,null,null,null,null,"713",7,1,3,{"$f":"AC1","v":"PSG"}]
[null,null,null,null,null,null,null,null,null,null,null,null,null,null,null,null,null,null,null,null,null,null,null,null,null,null,"714",7,1,4,"NUL"]
[null,null,null,null,null,null,null,null,null,null,null,null,null,null,null,null,null,null,null,null,null,null,null,null,null,null,"715",7,1,5,{"$f":"AB1","v":"Monaco"}]
[null,null,null,null,null,null,null,null,null,null,null,null,null,null,null,null,null,null,null,null,null,null,null,null,null,null,"716",7,1,6,{"$f":"AB1","v":"Monaco"}]
[null,null,null,null,null,null,null,null,null,null,null,null,null,null,null,null,null,null,null,null,null,null,null,null,null,null,"717",7,1,7,{"$f":"AB1","v":"Monaco"}]
[null,null,null,null,null,null,null,null,null,null,null,null,null,null,null,null,null,null,null,null,null,null,null,null,null,null,"718",7,1,8,{"$f":"AB1","v":"Monaco"}]
[null,null,null,null,null,null,null,null,null,null,null,null,null,null,null,null,null,null,null,null,null,null,null,null,null,null,"719",7,1,9,{"$f":"AC1","v":"PSG"}]
[null,null,null,null,null,null,null,null,null,null,null,null,null,null,null,null,null,null,null,null,null,null,null,null,null,null,"721",7,2,1,{"$f":"AC1","v":"PSG"}]
[null,null,null,null,null,null,null,null,null,null,null,null,null,null,null,null,null,null,null,null,null,null,null,null,null,null,"722",7,2,2,{"$f":"AC1","v":"PSG"}]
[null,null,null,null,null,null,null,null,null,null,null,null,null,null,null,null,null,null,null,null,null,null,null,null,null,null,"723",7,2,3,{"$f":"AC1","v":"PSG"}]
[null,null,null,null,null,null,null,null,null,null,null,null,null,null,null,null,null,null,null,null,null,null,null,null,null,null,"724",7,2,4,{"$f":"AC1","v":"PSG"}]
[null,null,null,null,null,null,null,null,null,null,null,null,null,null,null,null,null,null,null,null,null,null,null,null,null,null,"725",7,2,5,{"$f":"AB1","v":"Monaco"}]
[null,null,null,null,null,null,null,null,null,null,null,null,null,null,null,null,null,null,null,null,null,null,null,null,null,null,"726",7,2,6,{"$f":"AB1","v":"Monaco"}]
[null,null,null,null,null,null,null,null,null,null,null,null,null,null,null,null,null,null,null,null,null,null,null,null,null,null,"727",7,2,7,{"$f":"AB1","v":"Monaco"}]
[null,null,null,null,null,null,null,null,null,null,null,null,null,null,null,null,null,null,null,null,null,null,null,null,null,null,"728",7,2,8,{"$f":"AB1","v":"Monaco"}]
[null,null,null,null,null,null,null,null,null,null,null,null,null,null,null,null,null,null,null,null,null,null,null,null,null,null,"729",7,2,9,"NUL"]
[null,null,null,null,null,null,null,null,null,null,null,null,null,null,null,null,null,null,null,null,null,null,null,null,null,null,"731",7,3,1,{"$f":"AC1","v":"PSG"}]
[null,null,null,null,null,null,null,null,null,null,null,null,null,null,null,null,null,null,null,null,null,null,null,null,null,null,"732",7,3,2,{"$f":"AC1","v":"PSG"}]
[null,null,null,null,null,null,null,null,null,null,null,null,null,null,null,null,null,null,null,null,null,null,null,null,null,null,"733",7,3,3,{"$f":"AC1","v":"PSG"}]
[null,null,null,null,null,null,null,null,null,null,null,null,null,null,null,null,null,null,null,null,null,null,null,null,null,null,"734",7,3,4,{"$f":"AC1","v":"PSG"}]
[null,null,null,null,null,null,null,null,null,null,null,null,null,null,null,null,null,null,null,null,null,null,null,null,null,null,"735",7,3,5,"NUL"]
[null,null,null,null,null,null,null,null,null,null,null,null,null,null,null,null,null,null,null,null,null,null,null,null,null,null,"736",7,3,6,{"$f":"AB1","v":"Monaco"}]
[null,null,null,null,null,null,null,null,null,null,null,null,null,null,null,null,null,null,null,null,null,null,null,null,null,null,{"$f":"CONCATENATE(AB515,AC515,AD515)","v":"737"},7,3,7,{"$f":"AB1","v":"Monaco"}]
[null,null,null,null,null,null,null,null,null,null,null,null,null,null,null,null,null,null,null,null,null,null,null,null,null,null,"738",7,3,8,{"$f":"AB1","v":"Monaco"}]
[null,null,null,null,null,null,null,null,null,null,null,null,null,null,null,null,null,null,null,null,null,null,null,null,null,null,"739",7,3,9,{"$f":"AB1","v":"Monaco"}]
[null,null,null,null,null,null,null,null,null,null,null,null,null,null,null,null,null,null,null,null,null,null,null,null,null,null,"741",7,4,1,"NUL"]
[null,null,null,null,null,null,null,null,null,null,null,null,null,null,null,null,null,null,null,null,null,null,null,null,null,null,"742",7,4,2,{"$f":"AC1","v":"PSG"}]
[null,null,null,null,null,null,null,null,null,null,null,null,null,null,null,null,null,null,null,null,null,null,null,null,null,null,"743",7,4,3,{"$f":"AC1","v":"PSG"}]
[null,null,null,null,null,null,null,null,null,null,null,null,null,null,null,null,null,null,null,null,null,null,null,null,null,null,"744",7,4,4,{"$f":"AC1","v":"PSG"}]
[null,null,null,null,null,null,null,null,null,null,null,null,null,null,null,null,null,null,null,null,null,null,null,null,null,null,"745",7,4,5,{"$f":"AC1","v":"PSG"}]
[null,null,null,null,null,null,null,null,null,null,null,null,null,null,null,null,null,null,null,null,null,null,null,null,null,null,"746",7,4,6,{"$f":"AB1","v":"Monaco"}]
[null,null,null,null,null,null,null,null,null,null,null,null,null,null,null,null,null,null,null,null,null,null,null,null,null,null,"747",7,4,7,{"$f":"AB1","v":"Monaco"}]
[null,null,null,null,null,null,null,null,null,null,null,null,null,null,null,null,null,null,null,null,null,null,null,null,null,null,"748",7,4,8,{"$f":"AB1","v":"Monaco"}]
[null,null,null,null,null,null,null,null,null,null,null,null,null,null,null,null,null,null,null,null,null,null,null,null,null,null,"749",7,4,9,{"$f":"AB1","v":"Monaco"}]
[null,null,null,null,null,null,null,null,null,null,null,null,null,null,null,null,null,null,null,null,null,null,null,null,null,null,"751",7,5,1,{"$f":"AB1","v":"Monaco"}]
[null,null,null,null,null,null,null,null,null,null,null,null,null,null,null,null,null,null,null,null,null,null,null,null,null,null,"752",7,5,2,{"$f":"AC1","v":"PSG"}]
[null,null,null,null,null,null,null,null,null,null,null,null,null,null,null,null,null,null,null,null,null,null,null,null,null,null,"753",7,5,3,{"$f":"AC1","v":"PSG"}]
[null,null,null,null,null,null,null,null,null,null,null,null,null,null,null,null,null,null,null,null,null,null,null,null,null,null,"754",7,5,4,{"$f":"AC1","v":"PSG"}]
[null,null,null,null,null,null,null,null,null,null,null,null,null,null,null,null,null,null,null,null,null,null,null,null,null,null,"755",7,5,5,{"$f":"AC1","v":"PSG"}]
[null,null,null,null,null,null,null,null,null,null,null,null,null,null,null,null,null,null,null,null,null,null,null,null,null,null,"756",7,5,6,"NUL"]
[null,null,null,null,null,null,null,null,null,null,null,null,null,null,null,null,null,null,null,null,null,null,null,null,null,null,"757",7,5,7,{"$f":"AB1","v":"Monaco"}]
[null,null,null,null,null,null,null,null,null,null,null,null,null,null,null,null,null,null,null,null,null,null,null,null,null,null,"758",7,5,8,{"$f":"AB1","v":"Monaco"}]
[null,null,null,null,null,null,null,null,null,null,null,null,null,null,null,null,null,null,null,null,null,null,null,null,null,null,"759",7,5,9,{"$f":"AB1","v":"Monaco"}]
[null,null,null,null,null,null,null,null,null,null,null,null,null,null,null,null,null,null,null,null,null,null,null,null,null,null,"761",7,6,1,{"$f":"AB1","v":"Monaco"}]
[null,null,null,null,null,null,null,null,null,null,null,null,null,null,null,null,null,null,null,null,null,null,null,null,null,null,"762",7,6,2,"NUL"]
[null,null,null,null,null,null,null,null,null,null,null,null,null,null,null,null,null,null,null,null,null,null,null,null,null,null,"763",7,6,3,{"$f":"AC1","v":"PSG"}]
[null,null,null,null,null,null,null,null,null,null,null,null,null,null,null,null,null,null,null,null,null,null,null,null,null,null,"764",7,6,4,{"$f":"AC1","v":"PSG"}]
[null,null,null,null,null,null,null,null,null,null,null,null,null,null,null,null,null,null,null,null,null,null,null,null,null,null,"765",7,6,5,{"$f":"AC1","v":"PSG"}]
[null,null,null,null,null,null,null,null,null,null,null,null,null,null,null,null,null,null,null,null,null,null,null,null,null,null,"766",7,6,6,{"$f":"AC1","v":"PSG"}]
[null,null,null,null,null,null,null,null,null,null,null,null,null,null,null,null,null,null,null,null,null,null,null,null,null,null,"767",7,6,7,{"$f":"AB1","v":"Monaco"}]
[null,null,null,null,null,null,null,null,null,null,null,null,null,null,null,null,null,null,null,null,null,null,null,null,null,null,"768",7,6,8,{"$f":"AB1","v":"Monaco"}]
[null,null,null,null,null,null,null,null,null,null,null,null,null,null,null,null,null,null,null,null,null,null,null,null,null,null,"769",7,6,9,{"$f":"AB1","v":"Monaco"}]
[null,null,null,null,null,null,null,null,null,null,null,null,null,null,null,null,null,null,null,null,null,null,null,null,null,null,"771",7,7,1,{"$f":"AC1","v":"PSG"}]
[null,null,null,null,null,null,null,null,null,null,null,null,null,null,null,null,null,null,null,null,null,null,null,null,null,null,"772",7,7,2,{"$f":"AB1","v":"Monaco"}]
[null,null,null,null,null,null,null,null,null,null,null,null,null,null,null,null,null,null,null,null,null,null,null,null,null,null,"773",7,7,3,{"$f":"AB1","v":"Monaco"}]
[null,null,null,null,null,null,null,null,null,null,null,null,null,null,null,null,null,null,null,null,null,null,null,null,null,null,"774",7,7,4,{"$f":"AC1","v":"PSG"}]
[null,null,null,null,null,null,null,null,null,null,null,null,null,null,null,null,null,null,null,null,null,null,null,null,null,null,"775",7,7,5,{"$f":"AB1","v":"Monaco"}]
[null,null,null,null,null,null,null,null,null,null,null,null,null,null,null,null,null,null,null,null,null,null,null,null,null,null,"776",7,7,6,"NUL"]
[null,null,null,null,null,null,null,null,null,null,null,null,null,null,null,null,null,null,null,null,null,null,null,null,null,null,"778",7,7,8,"NUL"]
[null,null,null,null,null,null,null,null,null,null,null,null,null,null,null,null,null,null,null,null,null,null,null,null,null,null,"779",7,7,9,{"$f":"AB1","v":"Monaco"}]
[null,null,null,null,null,null,null,null,null,null,null,null,null,null,null,null,null,null,null,null,null,null,null,null,null,null,"781",7,8,1,{"$f":"AC1","v":"PSG"}]
[null,null,null,null,null,null,null,null,null,null,null,null,null,null,null,null,null,null,null,null,null,null,null,null,null,null,"782",7,8,2,{"$f":"AC1","v":"PSG"}]
[null,null,null,null,null,null,null,null,null,null,null,null,null,null,null,null,null,null,null,null,null,null,null,null,null,null,"783",7,8,3,"NUL"]
[null,null,null,null,null,null,null,null,null,null,null,null,null,null,null,null,null,null,null,null,null,null,null,null,null,null,"784",7,8,4,{"$f":"AB1","v":"Monaco"}]
[null,null,null,null,null,null,null,null,null,null,null,null,null,null,null,null,null,null,null,null,null,null,null,null,null,null,"785",7,8,5,{"$f":"AB1","v":"Monaco"}]
[null,null,null,null,null,null,null,null,null,null,null,null,null,null,null,null,null,null,null,null,null,null,null,null,null,null,"786",7,8,6,{"$f":"AB1","v":"Monaco"}]
[null,null,null,null,null,null,null,null,null,null,null,null,null,null,null,null,null,null,null,null,null,null,null,null,null,null,"787",7,8,7,{"$f":"AB1","v":"Monaco"}]
[null,null,null,null,null,null,null,null,null,null,null,null,null,null,null,null,null,null,null,null,null,null,null,null,null,null,"788",7,8,8,{"$f":"AC1","v":"PSG"}]
[null,null,null,null,null,null,null,null,null,null,null,null,null,null,null,null,null,null,null,null,null,null,null,null,null,null,"789",7,8,9,{"$f":"AC1","v":"PSG"}]
[null,null,null,null,null,null,null,null,null,null,null,null,null,null,null,null,null,null,null,null,null,null,null,null,null,null,"791",7,9,1,{"$f":"AC1","v":"PSG"}]
[null,null,null,null,null,null,null,null,null,null,null,null,null,null,null,null,null,null,null,null,null,null,null,null,null,null,"792",7,9,2,{"$f":"AC1","v":"PSG"}]
[null,null,null,null,null,null,null,null,null,null,null,null,null,null,null,null,null,null,null,null,null,null,null,null,null,null,"793",7,9,3,{"$f":"AC1","v":"PSG"}]
[null,null,null,null,null,null,null,null,null,null,null,null,null,null,null,null,null,null,null,null,null,null,null,null,null,null,"794",7,9,4,{"$f":"AB1","v":"Monaco"}]
[null,null,null,null,null,null,null,null,null,null,null,null,null,null,null,null,null,null,null,null,null,null,null,null,null,null,"795",7,9,5,{"$f":"AB1","v":"Monaco"}]
[null,null,null,null,null,null,null,null,null,null,null,null,null,null,null,null,null,null,null,null,null,null,null,null,null,null,"796",7,9,6,{"$f":"AB1","v":"Monaco"}]
[null,null,null,null,null,null,null,null,null,null,null,null,null,null,null,null,null,null,null,null,null,null,null,null,null,null,"797",7,9,7,{"$f":"AB1","v":"Monaco"}]
[null,null,null,null,null,null,null,null,null,null,null,null,null,null,null,null,null,null,null,null,null,null,null,null,null,null,"798",7,9,8,"NUL"]
[null,null,null,null,null,null,null,null,null,null,null,null,null,null,null,null,null,null,null,null,null,null,null,null,null,null,"799",7,9,9,{"$f":"AC1","v":"PSG"}]
[null,null,null,null,null,null,null,null,null,null,null,null,null,null,null,null,null,null,null,null,null,null,null,null,null,null,"811",8,1,1,{"$f":"AC1","v":"PSG"}]
[null,null,null,null,null,null,null,null,null,null,null,null,null,null,null,null,null,null,null,null,null,null,null,null,null,null,"812",8,1,2,{"$f":"AC1","v":"PSG"}]
[null,null,null,null,null,null,null,null,null,null,null,null,null,null,null,null,null,null,null,null,null,null,null,null,null,null,"813",8,1,3,{"$f":"AC1","v":"PSG"}]
[null,null,null,null,null,null,null,null,null,null,null,null,null,null,null,null,null,null,null,null,null,null,null,null,null,null,"814",8,1,4,{"$f":"AC1","v":"PSG"}]
[null,null,null,null,null,null,null,null,null,null,null,null,null,null,null,null,null,null,null,null,null,null,null,null,null,null,"815",8,1,5,{"$f":"AB1","v":"Monaco"}]
[null,null,null,null,null,null,null,null,null,null,null,null,null,null,null,null,null,null,null,null,null,null,null,null,null,null,"816",8,1,6,{"$f":"AB1","v":"Monaco"}]
[null,null,null,null,null,null,null,null,null,null,null,null,null,null,null,null,null,null,null,null,null,null,null,null,null,null,"817",8,1,7,{"$f":"AB1","v":"Monaco"}]
[null,null,null,null,null,null,null,null,null,null,null,null,null,null,null,null,null,null,null,null,null,null,null,null,null,null,"818",8,1,8,{"$f":"AB1","v":"Monaco"}]
[null,null,null,null,null,null,null,null,null,null,null,null,null,null,null,null,null,null,null,null,null,null,null,null,null,null,{"$f":"CONCATENATE(AB579,AC579,AD579)","v":"819"},8,1,9,"NUL"]
[null,null,null,null,null,null,null,null,null,null,null,null,null,null,null,null,null,null,null,null,null,null,null,null,null,null,"821",8,2,1,{"$f":"AC1","v":"PSG"}]
[null,null,null,null,null,null,null,null,null,null,null,null,null,null,null,null,null,null,null,null,null,null,null,null,null,null,"822",8,2,2,{"$f":"AC1","v":"PSG"}]
[null,null,null,null,null,null,null,null,null,null,null,null,null,null,null,null,null,null,null,null,null,null,null,null,null,null,"823",8,2,3,{"$f":"AC1","v":"PSG"}]
[null,null,null,null,null,null,null,null,null,null,null,null,null,null,null,null,null,null,null,null,null,null,null,null,null,null,"824",8,2,4,{"$f":"AC1","v":"PSG"}]
[null,null,null,null,null,null,null,null,null,null,null,null,null,null,null,null,null,null,null,null,null,null,null,null,null,null,"825",8,2,5,"NUL"]
[null,null,null,null,null,null,null,null,null,null,null,null,null,null,null,null,null,null,null,null,null,null,null,null,null,null,"826",8,2,6,{"$f":"AB1","v":"Monaco"}]
[null,null,null,null,null,null,null,null,null,null,null,null,null,null,null,null,null,null,null,null,null,null,null,null,null,null,"827",8,2,7,{"$f":"AB1","v":"Monaco"}]
[null,null,null,null,null,null,null,null,null,null,null,null,null,null,null,null,null,null,null,null,null,null,null,null,null,null,"828",8,2,8,{"$f":"AB1","v":"Monaco"}]
[null,null,null,null,null,null,null,null,null,null,null,null,null,null,null,null,null,null,null,null,null,null,null,null,null,null,"829",8,2,9,{"$f":"AB1","v":"Monaco"}]
[null,null,null,null,null,null,null,null,null,null,null,null,null,null,null,null,null,null,null,null,null,null,null,null,null,null,"831",8,3,1,"NUL"]
[null,null,null,null,null,null,null,null,null,null,null,null,null,null,null,null,null,null,null,null,null,null,null,null,null,null,"832",8,3,2,{"$f":"AC1","v":"PSG"}]
[null,null,null,null,null,null,null,null,null,null,null,null,null,null,null,null,null,null,null,null,null,null,null,null,null,null,"833",8,3,3,{"$f":"AC1","v":"PSG"}]
[null,null,null,null,null,null,null,null,null,null,null,null,null,null,null,null,null,null,null,null,null,null,null,null,null,null,"834",8,3,4,{"$f":"AC1","v":"PSG"}]
[null,null,null,null,null,null,null,null,null,null,null,null,null,null,null,null,null,null,null,null,null,null,null,null,null,null,"835",8,3,5,{"$f":"AC1","v":"PSG"}]
[null,null,null,null,null,null,null,null,null,null,null,null,null,null,null,null,null,null,null,null,null,null,null,null,null,null,"836",8,3,6,{"$f":"AB1","v":"Monaco"}]
[null,null,null,null,null,null,null,null,null,null,null,null,null,null,null,null,null,null,null,null,null,null,null,null,null,null,"837",8,3,7,{"$f":"AB1","v":"Monaco"}]
[null,null,null,null,null,null,null,null,null,null,null,null,null,null,null,null,null,null,null,null,null,null,null,null,null,null,"838",8,3,8,{"$f":"AB1","v":"Monaco"}]
[null,null,null,null,null,null,null,null,null,null,null,null,null,null,null,null,null,null,null,null,null,null,null,null,null,null,"839",8,3,9,{"$f":"AB1","v":"Monaco"}]
[null,null,null,null,null,null,null,null,null,null,null,null,null,null,null,null,null,null,null,null,null,null,null,null,null,null,"841",8,4,1,{"$f":"AB1","v":"Monaco"}]
[null,null,null,null,null,null,null,null,null,null,null,null,null,null,null,null,null,null,null,null,null,null,null,null,null,null,"842",8,4,2,{"$f":"AC1","v":"PSG"}]
[null,null,null,null,null,null,null,null,null,null,null,null,null,null,null,null,null,null,null,null,null,null,null,null,null,null,"843",8,4,3,{"$f":"AC1","v":"PSG"}]
[null,null,null,null,null,null,null,null,null,null,null,null,null,null,null,null,null,null,null,null,null,null,null,null,null,null,"844",8,4,4,{"$f":"AC1","v":"PSG"}]
[null,null,null,null,null,null,null,null,null,null,null,null,null,null,null,null,null,null,null,null,null,null,null,null,null,null,"845",8,4,5,{"$f":"AC1","v":"PSG"}]
[null,null,null,null,null,null,null,null,null,null,null,null,null,null,null,null,null,null,null,null,null,null,null,null,null,null,"846",8,4,6,"NUL"]
[null,null,null,null,null,null,null,null,null,null,null,null,null,null,null,null,null,null,null,null,null,null,null,null,null,null,"847",8,4,7,{"$f":"AB1","v":"Monaco"}]
[null,null,null,null,null,null,null,null,null,null,null,null,null,null,null,null,null,null,null,null,null,null,null,null,null,null,"848",8,4,8,{"$f":"AB1","v":"Monaco"}]
[null,null,null,null,null,null,null,null,null,null,null,null,null,null,null,null,null,null,null,null,null,null,null,null,null,null,"849",8,4,9,{"$f":"AB1","v":"Monaco"}]
[null,null,null,null,null,null,null,null,null,null,null,null,null,null,null,null,null,null,null,null,null,null,null,null,null,null,"851",8,5,1,{"$f":"AB1","v":"Monaco"}]
[null,null,null,null,null,null,null,null,null,null,null,null,null,null,null,null,null,null,null,null,null,null,null,null,null,null,"852",8,5,2,"NUL"]
[null,null,null,null,null,null,null,null,null,null,null,null,null,null,null,null,null,null,null,null,null,null,null,null,null,null,"853",8,5,3,{"$f":"AC1","v":"PSG"}]
[null,null,null,null,null,null,null,null,null,null,null,null,null,null,null,null,null,null,null,null,null,null,null,null,null,null,"854",8,5,4,{"$f":"AC1","v":"PSG"}]
[null,null,null,null,null,null,null,null,null,null,null,null,null,null,null,null,null,null,null,null,null,null,null,null,null,null,"855",8,5,5,{"$f":"AC1","v":"PSG"}]
[null,null,null,null,null,null,null,null,null,null,null,null,null,null,null,null,null,null,null,null,null,null,null,null,null,null,"856",8,5,6,{"$f":"AC1","v":"PSG"}]
[null,null,null,null,null,null,null,null,null,null,null,null,null,null,null,null,null,null,null,null,null,null,null,null,null,null,"857",8,5,7,{"$f":"AB1","v":"Monaco"}]
[null,null,null,null,null,null,null,null,null,null,null,null,null,null,null,null,null,null,null,null,null,null,null,null,null,null,"858",8,5,8,{"$f":"AB1","v":"Monaco"}]
[null,null,null,null,null,null,null,null,null,null,null,null,null,null,null,null,null,null,null,null,null,null,null,null,null,null,"859",8,5,9,{"$f":"AB1","v":"Monaco"}]
[null,null,null,null,null,null,null,null,null,null,null,null,null,null,null,null,null,null,null,null,null,null,null,null,null,null,"861",8,6,1,{"$f":"AB1","v":"Monaco"}]
[null,null,null,null,null,null,null,null,null,null,null,null,null,null,null,null,null,null,null,null,null,null,null,null,null,null,"862",8,6,2,{"$f":"AB1","v":"Monaco"}]
[null,null,null,null,null,null,null,null,null,null,null,null,null,null,null,null,null,null,null,null,null,null,null,null,null,null,"863",8,6,3,{"$f":"AC1","v":"PSG"}]
[null,null,null,null,null,null,null,null,null,null,null,null,null,null,null,null,null,null,null,null,null,null,null,null,null,null,"864",8,6,4,{"$f":"AC1","v":"PSG"}]
[null,null,null,null,null,null,null,null,null,null,null,null,null,null,null,null,null,null,null,null,null,null,null,null,null,null,"865",8,6,5,{"$f":"AC1","v":"PSG"}]
[null,null,null,null,null,null,null,null,null,null,null,null,null,null,null,null,null,null,null,null,null,null,null,null,null,null,"866",8,6,6,{"$f":"AC1","v":"PSG"}]
[null,null,null,null,null,null,null,null,null,null,null,null,null,null,null,null,null,null,null,null,null,null,null,null,null,null,"867",8,6,7,"NUL"]
[null,null,null,null,null,null,null,null,null,null,null,null,null,null,null,null,null,null,null,null,null,null,null,null,null,null,"868",8,6,8,{"$f":"AB1","v":"Monaco"}]
[null,null,null,null,null,null,null,null,null,null,null,null,null,null,null,null,null,null,null,null,null,null,null,null,null,null,"869",8,6,9,{"$f":"AB1","v":"Monaco"}]
[null,null,null,null,null,null,null,null,null,null,null,null,null,null,null,null,null,null,null,null,null,null,null,null,null,null,"871",8,7,1,{"$f":"AB1","v":"Monaco"}]
[null,null,null,null,null,null,null,null,null,null,null,null,null,null,null,null,null,null,null,null,null,null,null,null,null,null,"872",8,7,2,{"$f":"AB1","v":"Monaco"}]
[null,null,null,null,null,null,null,null,null,null,null,null,null,null,null,null,null,null,null,null,null,null,null,null,null,null,"873",8,7,3,"NUL"]
[null,null,null,null,null,null,null,null,null,null,null,null,null,null,null,null,null,null,null,null,null,null,null,null,null,null,"874",8,7,4,{"$f":"AC1","v":"PSG"}]
[null,null,null,null,null,null,null,null,null,null,null,null,null,null,null,null,null,null,null,null,null,null,null,null,null,null,"875",8,7,5,{"$f":"AC1","v":"PSG"}]
[null,null,null,null,null,null,null,null,null,null,null,null,null,null,null,null,null,null,null,null,null,null,null,null,null,null,"876",8,7,6,{"$f":"AC1","v":"PSG"}]
[null,null,null,null,null,null,null,null,null,null,null,null,null,null,null,null,null,null,null,null,null,null,null,null,null,null,"877",8,7,7,{"$f":"AC1","v":"PSG"}]
[null,null,null,null,null,null,null,null,null,null,null,null,null,null,null,null,null,null,null,null,null,null,null,null,null,null,"878",8,7,8,{"$f":"AB1","v":"Monaco"}]
[null,null,null,null,null,null,null,null,null,null,null,null,null,null,null,null,null,null,null,null,null,null,null,null,null,null,"879",8,7,9,{"$f":"AB1","v":"Monaco"}]
[null,null,null,null,null,null,null,null,null,null,null,null,null,null,null,null,null,null,null,null,null,null,null,null,null,null,"881",8,8,1,{"$f":"AB1","v":"Monaco"}]
[null,null,null,null,null,null,null,null,null,null,null,null,null,null,null,null,null,null,null,null,null,null,null,null,null,null,"882",8,8,2,{"$f":"AC1","v":"PSG"}]
[null,null,null,null,null,null,null,null,null,null,null,null,null,null,null,null,null,null,null,null,null,null,null,null,null,null,"883",8,8,3,{"$f":"AB1","v":"Monaco"}]
[null,null,null,null,null,null,null,null,null,null,null,null,null,null,null,null,null,null,null,null,null,null,null,null,null,null,"884",8,8,4,{"$f":"AB1","v":"Monaco"}]
[null,null,null,null,null,null,null,null,null,null,null,null,null,null,null,null,null,null,null,null,null,null,null,null,null,null,"885",8,8,5,{"$f":"AC1","v":"PSG"}]
[null,null,null,null,null,null,null,null,null,null,null,null,null,null,null,null,null,null,null,null,null,null,null,null,null,null,"886",8,8,6,{"$f":"AB1","v":"Monaco"}]
[null,null,null,null,null,null,null,null,null,null,null,null,null,null,null,null,null,null,null,null,null,null,null,null,null,null,"887",8,8,7,{"$f":"AB1","v":"Monaco"}]
[null,null,null,null,null,null,null,null,null,null,null,null,null,null,null,null,null,null,null,null,null,null,null,null,null,null,"889",8,8,9,{"$f":"AB1","v":"Monaco"}]
[null,null,null,null,null,null,null,null,null,null,null,null,null,null,null,null,null,null,null,null,null,null,null,null,null,null,"891",8,9,1,{"$f":"AC1","v":"PSG"}]
[null,null,null,null,null,null,null,null,null,null,null,null,null,null,null,null,null,null,null,null,null,null,null,null,null,null,{"$f":"CONCATENATE(AB643,AC643,AD643)","v":"892"},8,9,2,{"$f":"AC1","v":"PSG"}]
[null,null,null,null,null,null,null,null,null,null,null,null,null,null,null,null,null,null,null,null,null,null,null,null,null,null,"893",8,9,3,{"$f":"AC1","v":"PSG"}]
[null,null,null,null,null,null,null,null,null,null,null,null,null,null,null,null,null,null,null,null,null,null,null,null,null,null,"894",8,9,4,"NUL"]
[null,null,null,null,null,null,null,null,null,null,null,null,null,null,null,null,null,null,null,null,null,null,null,null,null,null,"895",8,9,5,{"$f":"AB1","v":"Monaco"}]
[null,null,null,null,null,null,null,null,null,null,null,null,null,null,null,null,null,null,null,null,null,null,null,null,null,null,"896",8,9,6,{"$f":"AB1","v":"Monaco"}]
[null,null,null,null,null,null,null,null,null,null,null,null,null,null,null,null,null,null,null,null,null,null,null,null,null,null,"897",8,9,7,{"$f":"AB1","v":"Monaco"}]
[null,null,null,null,null,null,null,null,null,null,null,null,null,null,null,null,null,null,null,null,null,null,null,null,null,null,"898",8,9,8,{"$f":"AB1","v":"Monaco"}]
[null,null,null,null,null,null,null,null,null,null,null,null,null,null,null,null,null,null,null,null,null,null,null,null,null,null,"899",8,9,9,{"$f":"AC1","v":"PSG"}]
[null,null,null,null,null,null,null,null,null,null,null,null,null,null,null,null,null,null,null,null,null,null,null,null,null,null,"911",9,1,1,{"$f":"AC1","v":"PSG"}]
[null,null,null,null,null,null,null,null,null,null,null,null,null,null,null,null,null,null,null,null,null,null,null,null,null,null,"912",9,1,2,{"$f":"AC1","v":"PSG"}]
[null,null,null,null,null,null,null,null,null,null,null,null,null,null,null,null,null,null,null,null,null,null,null,null,null,null,"913",9,1,3,{"$f":"AC1","v":"PSG"}]
[null,null,null,null,null,null,null,null,null,null,null,null,null,null,null,null,null,null,null,null,null,null,null,null,null,null,"914",9,1,4,{"$f":"AC1","v":"PSG"}]
[null,null,null,null,null,null,null,null,null,null,null,null,null,null,null,null,null,null,null,null,null,null,null,null,null,null,"915",9,1,5,"NUL"]
[null,null,null,null,null,null,null,null,null,null,null,null,null,null,null,null,null,null,null,null,null,null,null,null,null,null,"916",9,1,6,{"$f":"AB1","v":"Monaco"}]
[null,null,null,null,null,null,null,null,null,null,null,null,null,null,null,null,null,null,null,null,null,null,null,null,null,null,"917",9,1,7,{"$f":"AB1","v":"Monaco"}]
[null,null,null,null,null,null,null,null,null,null,null,null,null,null,null,null,null,null,null,null,null,null,null,null,null,null,"918",9,1,8,{"$f":"AB1","v":"Monaco"}]
[null,null,null,null,null,null,null,null,null,null,null,null,null,null,null,null,null,null,null,null,null,null,null,null,null,null,"919",9,1,9,{"$f":"AB1","v":"Monaco"}]
[null,null,null,null,null,null,null,null,null,null,null,null,null,null,null,null,null,null,null,null,null,null,null,null,null,null,"921",9,2,1,"NUL"]
[null,null,null,null,null,null,null,null,null,null,null,null,null,null,null,null,null,null,null,null,null,null,null,null,null,null,"922",9,2,2,{"$f":"AC1","v":"PSG"}]
[null,null,null,null,null,null,null,null,null,null,null,null,null,null,null,null,null,null,null,null,null,null,null,null,null,null,"923",9,2,3,{"$f":"AC1","v":"PSG"}]
[null,null,null,null,null,null,null,null,null,null,null,null,null,null,null,null,null,null,null,null,null,null,null,null,null,null,"924",9,2,4,{"$f":"AC1","v":"PSG"}]
[null,null,null,null,null,null,null,null,null,null,null,null,null,null,null,null,null,null,null,null,null,null,null,null,null,null,"925",9,2,5,{"$f":"AC1","v":"PSG"}]
[null,null,null,null,null,null,null,null,null,null,null,null,null,null,null,null,null,null,null,null,null,null,null,null,null,null,"926",9,2,6,{"$f":"AB1","v":"Monaco"}]
[null,null,null,null,null,null,null,null,null,null,null,null,null,null,null,null,null,null,null,null,null,null,null,null,null,null,"927",9,2,7,{"$f":"AB1","v":"Monaco"}]
[null,null,null,null,null,null,null,null,null,null,null,null,null,null,null,null,null,null,null,null,null,null,null,null,null,null,"928",9,2,8,{"$f":"AB1","v":"Monaco"}]
[null,null,null,null,null,null,null,null,null,null,null,null,null,null,null,null,null,null,null,null,null,null,null,null,null,null,"929",9,2,9,{"$f":"AB1","v":"Monaco"}]
[null,null,null,null,null,null,null,null,null,null,null,null,null,null,null,null,null,null,null,null,null,null,null,null,null,null,"931",9,3,1,{"$f":"AB1","v":"Monaco"}]
[null,null,null,null,null,null,null,null,null,null,null,null,null,null,null,null,null,null,null,null,null,null,null,null,null,null,"932",9,3,2,{"$f":"AC1","v":"PSG"}]
[null,null,null,null,null,null,null,null,null,null,null,null,null,null,null,null,null,null,null,null,null,null,null,null,null,null,"933",9,3,3,{"$f":"AC1","v":"PSG"}]
[null,null,null,null,null,null,null,null,null,null,null,null,null,null,null,null,null,null,null,null,null,null,null,null,null,null,"934",9,3,4,{"$f":"AC1","v":"PSG"}]
[null,null,null,null,null,null,null,null,null,null,null,null,null,null,null,null,null,null,null,null,null,null,null,null,null,null,"935",9,3,5,{"$f":"AC1","v":"PSG"}]
[null,null,null,null,null,null,null,null,null,null,null,null,null,null,null,null,null,null,null,null,null,null,null,null,null,null,"936",9,3,6,"NUL"]
[null,null,null,null,null,null,null,null,null,null,null,null,null,null,null,null,null,null,null,null,null,null,null,null,null,null,"937",9,3,7,{"$f":"AB1","v":"Monaco"}]
[null,null,null,null,null,null,null,null,null,null,null,null,null,null,null,null,null,null,null,null,null,null,null,null,null,null,"938",9,3,8,{"$f":"AB1","v":"Monaco"}]
[null,null,null,null,null,null,null,null,null,null,null,null,null,null,null,null,null,null,null,null,null,null,null,null,null,null,"939",9,3,9,{"$f":"AB1","v":"Monaco"}]
[null,null,null,null,null,null,null,null,null,null,null,null,null,null,null,null,null,null,null,null,null,null,null,null,null,null,"941",9,4,1,{"$f":"AB1","v":"Monaco"}]
[null,null,null,null,null,null,null,null,null,null,null,null,null,null,null,null,null,null,null,null,null,null,null,null,null,null,"942",9,4,2,"NUL"]
[null,null,null,null,null,null,null,null,null,null,null,null,null,null,null,null,null,null,null,null,null,null,null,null,null,null,"943",9,4,3,{"$f":"AC1","v":"PSG"}]
[null,null,null,null,null,null,null,null,null,null,null,null,null,null,null,null,null,null,null,null,null,null,null,null,null,null,"944",9,4,4,{"$f":"AC1","v":"PSG"}]
[null,null,null,null,null,null,null,null,null,null,null,null,null,null,null,null,null,null,null,null,null,null,null,null,null,null,"945",9,4,5,{"$f":"AC1","v":"PSG"}]
[null,null,null,null,null,null,null,null,null,null,null,null,null,null,null,null,null,null,null,null,null,null,null,null,null,null,"946",9,4,6,{"$f":"AC1","v":"PSG"}]
[null,null,null,null,null,null,null,null,null,null,null,null,null,null,null,null,null,null,null,null,null,null,null,null,null,null,"947",9,4,7,{"$f":"AB1","v":"Monaco"}]
[null,null,null,null,null,null,null,null,null,null,null,null,null,null,null,null,null,null,null,null,null,null,null,null,null,null,"948",9,4,8,{"$f":"AB1","v":"Monaco"}]
[null,null,null,null,null,null,null,null,null,null,null,null,null,null,null,null,null,null,null,null,null,null,null,null,null,null,"949",9,4,9,{"$f":"AB1","v":"Monaco"}]
[null,null,null,null,null,null,null,null,null,null,null,null,null,null,null,null,null,null,null,null,null,null,null,null,null,null,"951",9,5,1,{"$f":"AB1","v":"Monaco"}]
[null,null,null,null,null,null,null,null,null,null,null,null,null,null,null,null,null,null,null,null,null,null,null,null,null,null,"952",9,5,2,{"$f":"AB1","v":"Monaco"}]
[null,null,null,null,null,null,null,null,null,null,null,null,null,null,null,null,null,null,null,null,null,null,null,null,null,null,"953",9,5,3,{"$f":"AC1","v":"PSG"}]
[null,null,null,null,null,null,null,null,null,null,null,null,null,null,null,null,null,null,null,null,null,null,null,null,null,null,"954",9,5,4,{"$f":"AC1","v":"PSG"}]
[null,null,null,null,null,null,null,null,null,null,null,null,null,null,null,null,null,null,null,null,null,null,null,null,null,null,"955",9,5,5,{"$f":"AC1","v":"PSG"}]
[null,null,null,null,null,null,null,null,null,null,null,null,null,null,null,null,null,null,null,null,null,null,null,null,null,null,"956",9,5,6,{"$f":"AC1","v":"PSG"}]
[null,null,null,null,null,null,null,null,null,null,null,null,null,null,null,null,null,null,null,null,null,null,null,null,null,null,"957",9,5,7,"NUL"]
[null,null,null,null,null,null,null,null,null,null,null,null,null,null,null,null,null,null,null,null,null,null,null,null,null,null,"958",9,5,8,{"$f":"AB1","v":"Monaco"}]
[null,null,null,null,null,null,null,null,null,null,null,null,null,null,null,null,null,null,null,null,null,null,null,null,null,null,"959",9,5,9,{"$f":"AB1","v":"Monaco"}]
[null,null,null,null,null,null,null,null,null,null,null,null,null,null,null,null,null,null,null,null,null,null,null,null,null,null,"961",9,6,1,{"$f":"AB1","v":"Monaco"}]
[null,null,null,null,null,null,null,null,null,null,null,null,null,null,null,null,null,null,null,null,null,null,null,null,null,null,"962",9,6,2,{"$f":"AB1","v":"Monaco"}]
[null,null,null,null,null,null,null,null,null,null,null,null,null,null,null,null,null,null,null,null,null,null,null,null,null,null,"963",9,6,3,"NUL"]
[null,null,null,null,null,null,null,null,null,null,null,null,null,null,null,null,null,null,null,null,null,null,null,null,null,null,"964",9,6,4,{"$f":"AC1","v":"PSG"}]
[null,null,null,null,null,null,null,null,null,null,null,null,null,null,null,null,null,null,null,null,null,null,null,null,null,null,"965",9,6,5,{"$f":"AC1","v":"PSG"}]
[null,null,null,null,null,null,null,null,null,null,null,null,null,null,null,null,null,null,null,null,null,null,null,null,null,null,"966",9,6,6,{"$f":"AC1","v":"PSG"}]
[null,null,null,null,null,null,null,null,null,null,null,null,null,null,null,null,null,null,null,null,null,null,null,null,null,null,"967",9,6,7,{"$f":"AC1","v":"PSG"}]
[null,null,null,null,null,null,null,null,null,null,null,null,null,null,null,null,null,null,null,null,null,null,null,null,null,null,"968",9,6,8,{"$f":"AB1","v":"Monaco"}]
[null,null,null,null,null,null,null,null,null,null,null,null,null,null,null,null,null,null,null,null,null,null,null,null,null,null,"969",9,6,9,{"$f":"AB1","v":"Monaco"}]
[null,null,null,null,null,null,null,null,null,null,null,null,null,null,null,null,null,null,null,null,null,null,null,null,null,null,"971",9,7,1,{"$f":"AB1","v":"Monaco"}]
[null,null,null,null,null,null,null,null,null,null,null,null,null,null,null,null,null,null,null,null,null,null,null,null,null,null,"972",9,7,2,{"$f":"AB1","v":"Monaco"}]
[null,null,null,null,null,null,null,null,null,null,null,null,null,null,null,null,null,null,null,null,null,null,null,null,null,null,{"$f":"CONCATENATE(AB707,AC707,AD707)","v":"973"},9,7,3,{"$f":"AB1","v":"Monaco"}]
[null,null,null,null,null,null,null,null,null,null,null,null,null,null,null,null,null,null,null,null,null,null,null,null,null,null,"974",9,7,4,{"$f":"AC1","v":"PSG"}]
[null,null,null,null,null,null,null,null,null,null,null,null,null,null,null,null,null,null,null,null,null,null,null,null,null,null,"975",9,7,5,{"$f":"AC1","v":"PSG"}]
[null,null,null,null,null,null,null,null,null,null,null,null,null,null,null,null,null,null,null,null,null,null,null,null,null,null,"976",9,7,6,{"$f":"AC1","v":"PSG"}]
[null,null,null,null,null,null,null,null,null,null,null,null,null,null,null,null,null,null,null,null,null,null,null,null,null,null,"977",9,7,7,{"$f":"AC1","v":"PSG"}]
[null,null,null,null,null,null,null,null,null,null,null,null,null,null,null,null,null,null,null,null,null,null,null,null,null,null,"978",9,7,8,"NUL"]
[null,null,null,null,null,null,null,null,null,null,null,null,null,null,null,null,null,null,null,null,null,null,null,null,null,null,"979",9,7,9,{"$f":"AB1","v":"Monaco"}]
[null,null,null,null,null,null,null,null,null,null,null,null,null,null,null,null,null,null,null,null,null,null,null,null,null,null,"981",9,8,1,{"$f":"AB1","v":"Monaco"}]
[null,null,null,null,null,null,null,null,null,null,null,null,null,null,null,null,null,null,null,null,null,null,null,null,null,null,"982",9,8,2,{"$f":"AB1","v":"Monaco"}]
[null,null,null,null,null,null,null,null,null,null,null,null,null,null,null,null,null,null,null,null,null,null,null,null,null,null,"983",9,8,3,{"$f":"AB1","v":"Monaco"}]
[null,null,null,null,null,null,null,null,null,null,null,null,null,null,null,null,null,null,null,null,null,null,null,null,null,null,"984",9,8,4,"NUL"]
[null,null,null,null,null,null,null,null,null,null,null,null,null,null,null,null,null,null,null,null,null,null,null,null,null,null,"985",9,8,5,{"$f":"AC1","v":"PSG"}]
[null,null,null,null,null,null,null,null,null,null,null,null,null,null,null,null,null,null,null,null,null,null,null,null,null,null,"986",9,8,6,{"$f":"AC1","v":"PSG"}]
[null,null,null,null,null,null,null,null,null,null,null,null,null,null,null,null,null,null,null,null,null,null,null,null,null,null,"987",9,8,7,{"$f":"AC1","v":"PSG"}]
[null,null,null,null,null,null,null,null,null,null,null,null,null,null,null,null,null,null,null,null,null,null,null,null,null,null,"988",9,8,8,{"$f":"AC1","v":"PSG"}]
[null,null,null,null,null,null,null,null,null,null,null,null,null,null,null,null,null,null,null,null,null,null,null,null,null,null,"989",9,8,9,{"$f":"AB1","v":"Monaco"}]
[null,null,null,null,null,null,null,null,null,null,null,null,null,null,null,null,null,null,null,null,null,null,null,null,null,null,"991",9,9,1,"NUL"]
[null,null,null,null,null,null,null,null,null,null,null,null,null,null,null,null,null,null,null,null,null,null,null,null,null,null,"992",9,9,2,{"$f":"AB1","v":"Monaco"}]
[null,null,null,null,null,null,null,null,null,null,null,null,null,null,null,null,null,null,null,null,null,null,null,null,null,null,"993",9,9,3,{"$f":"AC1","v":"PSG"}]
[null,null,null,null,null,null,null,null,null,null,null,null,null,null,null,null,null,null,null,null,null,null,null,null,null,null,"994",9,9,4,{"$f":"AB1","v":"Monaco"}]
[null,null,null,null,null,null,null,null,null,null,null,null,null,null,null,null,null,null,null,null,null,null,null,null,null,null,"995",9,9,5,{"$f":"AB1","v":"Monaco"}]
[null,null,null,null,null,null,null,null,null,null,null,null,null,null,null,null,null,null,null,null,null,null,null,null,null,null,"996",9,9,6,{"$f":"AC1","v":"PSG"}]
[null,null,null,null,null,null,null,null,null,null,null,null,null,null,null,null,null,null,null,null,null,null,null,null,null,null,"997",9,9,7,{"$f":"AB1","v":"Monaco"}]
[null,null,null,null,null,null,null,null,null,null,null,null,null,null,null,null,null,null,null,null,null,null,null,null,null,null,"998",9,9,8,"NUL"]

{"sheet":"Datas 02","index":4,"n_rows":19,"n_cols":13,"rows_kept":19,"cut":false,"hidden":true,"merged":[[14,8,14,9]]}
["Date1","bun","Nom1","Nom2","Heure","Date2","Num","Résultat"]
[{"$f":"A10","v":"11.02.23"},"PF","X","Y",{"$f":"E10","v":"03:01:00"},"2023-02-11",4,{"$f":"IF(HOUR(E2)>MINUTE(E2),\"X\",IF(HOUR(E2)<MINUTE(E2),\"Y\",\"NUL\"))","v":"X"}]
[{"$f":"A11","v":"24.11.23"},"PF","Y","X","05:02:00","2023-11-24",2,{"$f":"IF(HOUR(E3)>MINUTE(E3),\"Y\",IF(HOUR(E3)<MINUTE(E3),\"X\",\"NUL\"))","v":"Y"}]
[null,null,null,null,null,{"$f":"IF(A4=0,\"\",DATEVALUE(SUBSTITUTE(A4,\".\",\"/\")))","v":""}]
[null,null,null,null,null,""]
[null,null,null,null,null,""]
[null,null,null,null,null,""]
[null,null,null,null,null,""]
[null,null,null,null,null,""]
[{"$f":"Datas!A10","v":"11.02.23"},{"$f":"Datas!B10","v":0},{"$f":"Datas!C10","v":"Monaco"},{"$f":"Datas!D10","v":"PSG"},{"$f":"Datas!E10","v":"03:01:00"},{"$f":"IF(A10=0,\"\",DATEVALUE(SUBSTITUTE(A10,\".\",\"/\")))","v":44968},{"$f":"M17","v":4}]
[{"$f":"Datas!A11","v":"24.11.23"},{"$f":"Datas!B11","v":0},{"$f":"Datas!C11","v":"PSG"},{"$f":"Datas!D11","v":"Monaco"},{"$f":"Datas!E11","v":"05:02:00"},{"$f":"IF(A11=0,\"\",DATEVALUE(SUBSTITUTE(A11,\".\",\"/\")))","v":45254},{"$f":"M18","v":2}]
[null,null,null,null,null,{"$f":"IF(A12=0,\"\",DATEVALUE(SUBSTITUTE(A12,\".\",\"/\")))","v":""},{"$f":"IF(F12=\"\",\"\",MOD(SUMPRODUCT(--MID(TEXT(F12,\"jjmmaaaa\"),ROW($1:$8),1))-1,9)+1)","v":""}]
[null,null,null,null,null,"",{"$f":"IF(F13=\"\",\"\",MOD(SUMPRODUCT(--MID(TEXT(F13,\"jjmmaaaa\"),ROW($1:$8),1))-1,9)+1)","v":""}]
[null,null,null,null,null,"",""]
[null,null,null,null,null,{"$f":"IF(A15=0,\"\",DATEVALUE(SUBSTITUTE(A15,\".\",\"/\")))","v":""},{"$f":"IF(F15=\"\",\"\",MOD(SUMPRODUCT(--MID(TEXT(F15,\"jjmmaaaa\"),ROW($1:$8),1))-1,9)+1)","v":""},{"$f":"IF(HOUR(E15)>MINUTE(E15),C15,IF(HOUR(E15)<MINUTE(E15),D15,\"NUL\"))","v":"NUL"},"C10 VAUT D15 Visiteur"]
[]
[null,null,null,{"$f":"F10","v":44968},{"$f":"_xlfn.FLOOR.MATH(D17/10000)","v":4},{"$f":"_xlfn.FLOOR.MATH((D17-E17*10000)/1000)","v":4},{"$f":"_xlfn.FLOOR.MATH((D17-10000*E17-1000*F17)/100)","v":9},{"$f":"_xlfn.FLOOR.MATH((D17-10000*E17-1000*F17-100*G17)/10)","v":6},{"$f":"D17-10000*E17-1000*F17-100*G17-10*H17","v":8},{"$f":"SUM(E17:I17)","v":31},{"$f":"_xlfn.FLOOR.MATH((J17)/10)","v":3},{"$f":"J17-(10*K17)","v":1},{"$f":"IF(SUM(K17:L17)>=10,SUM(K17:L17)-10+1,SUM(K17:L17))","v":4}]
[null,null,null,{"$f":"F11","v":45254},{"$f":"_xlfn.FLOOR.MATH(D18/10000)","v":4},{"$f":"_xlfn.FLOOR.MATH((D18-E18*10000)/1000)","v":5},{"$f":"_xlfn.FLOOR.MATH((D18-10000*E18-1000*F18)/100)","v":2},{"$f":"_xlfn.FLOOR.MATH((D18-10000*E18-1000*F18-100*G18)/10)","v":5},{"$f":"D18-10000*E18-1000*F18-100*G18-10*H18","v":4},{"$f":"SUM(E18:I18)","v":20},{"$f":"_xlfn.FLOOR.MATH((J18)/10)","v":2},{"$f":"J18-(10*K18)","v":0},{"$f":"IF(SUM(K18:L18)>=10,SUM(K18:L18)-10+1,SUM(K18:L18))","v":2}]
[null,null,null,{"$f":"F12","v":""},{"$f":"_xlfn.FLOOR.MATH(D19/10000)","v":{"$error":"#VALUE!"}},{"$f":"_xlfn.FLOOR.MATH((D19-E19*10000)/1000)","v":{"$error":"#VALUE!"}},{"$f":"_xlfn.FLOOR.MATH((D19-10000*E19-1000*F19)/100)","v":{"$error":"#VALUE!"}},{"$f":"_xlfn.FLOOR.MATH((D19-10000*E19-1000*F19-100*G19)/10)","v":{"$error":"#VALUE!"}},{"$f":"D19-10000*E19-1000*F19-100*G19-10*H19","v":{"$error":"#VALUE!"}},{"$f":"SUM(E19:I19)","v":{"$error":"#VALUE!"}},{"$f":"_xlfn.FLOOR.MATH((J19)/10)","v":{"$error":"#VALUE!"}},{"$f":"J19-(10*K19)","v":{"$error":"#VALUE!"}},{"$f":"IF(SUM(K19:L19)>=10,SUM(K19:L19)-10+1,SUM(K19:L19))","v":{"$error":"#VALUE!"}}]

{"sheet":"DVKO2","index":5,"n_rows":730,"n_cols":35,"rows_kept":730,"cut":false,"hidden":false,"merged":[[1,32,1,34],[6,32,6,33]]}
[null,null,null,null,null,null,null,null,null,null,null,null,null,null,null,null,null,null,null,null,null,null,null,null,null,"CONCATENER","CONCATENER",{"$f":"V2","v":"Monaco"},{"$f":"W2","v":"PSG"},"Chiffre ","ZONE"]
[null,null,null,"A =",{"$f":"'Datas 02'!G2","v":4},null,null,null,null,null,null,null,null,null,"B =",{"$f":"'Datas 02'!G3","v":2},null,null,null,null,null,{"$f":"Domicile","v":"Monaco"},{"$f":"Visiteur","v":"PSG"},"Jour","Résultat",null,{"$f":"CONCATENATE(AB2,AC2,AD2)","v":"111"},1,1,1,"NUL",null,"Stats"]
[null,null,null,null,null,null,null,null,null,null,null,null,null,null,null,null,null,null,null,null,null,1,1,{"$f":"IF(V3=0,\"\",Datas!K3)","v":3},{"$f":"VLOOKUP(Z3,$AA$2:$AE$1000,5,FALSE)","v":"Monaco"},{"$f":"CONCATENATE(V3,W3,X3)","v":"113"},{"$f":"CONCATENATE(AB3,AC3,AD3)","v":"222"},2,2,2,"NUL",null,{"$f":"V2","v":"Monaco"},{"$f":"W2","v":"PSG"},"NUL"]
[null,null,null,null,null,null,null,null,null,null,null,null,null,null,null,null,null,null,null,null,null,1,2,{"$f":"IF(V4=0,\"\",Datas!K3)","v":3},{"$f":"VLOOKUP(Z4,$AA$2:$AE$1000,5,FALSE)","v":"PSG"},{"$f":"CONCATENATE(V4,W4,X4)","v":"123"},"333",3,3,3,"NUL",null,{"$f":"COUNTIF($Y$3:$Y$50,AG3)/COUNTIF($Y$3:$Y$50,\"><\")","v":0.41666666666666669},{"$f":"COUNTIF($Y$3:$Y$50,AH3)/COUNTIF($Y$3:$Y$50,\"><\")","v":0.41666666666666669},{"$f":"COUNTIF($Y$3:$Y$50,AI3)/COUNTIF($Y$3:$Y$50,\"><\")","v":0.16666666666666666}]
[null,null,null,null,null,null,null,null,null,null,null,null,null,null,null,null,null,null,null,null,null,1,9,{"$f":"IF(V5=0,\"\",Datas!K3)","v":3},{"$f":"VLOOKUP(Z5,$AA$2:$AE$1000,5,FALSE)","v":"Monaco"},{"$f":"CONCATENATE(V5,W5,X5)","v":"193"},"444",4,4,4,"NUL"]
[null,null,null,null,null,null,null,null,null,null,null,null,null,null,null,null,null,null,null,null,null,2,1,{"$f":"IF(V6=0,\"\",Datas!K3)","v":3},"Monaco",{"$f":"CONCATENATE(V6,W6,X6)","v":"213"},"555",5,5,5,"NUL"]
[null,null,null,null,null,null,null,null,null,null,null,null,null,null,null,null,null,null,null,null,null,4,1,{"$f":"IF(V7=0,\"\",Datas!K3)","v":3},"Monaco",{"$f":"CONCATENATE(V7,W7,X7)","v":"413"},"666",6,6,6,"NUL"]
[null,null,null,null,null,null,null,null,null,null,null,null,null,null,null,null,null,null,null,null,null,5,1,{"$f":"IF(V8=0,\"\",Datas!K3)","v":3},{"$f":"VLOOKUP(Z8,$AA$2:$AE$1000,5,FALSE)","v":"NUL"},{"$f":"CONCATENATE(V8,W8,X8)","v":"513"},"777",7,7,7,"NUL",null,"",""]
[null,null,null,null,null,null,null,null,null,null,null,null,null,null,null,null,null,null,null,null,null,5,2,{"$f":"IF(V9=0,\"\",Datas!K3)","v":3},{"$f":"VLOOKUP(Z9,$AA$2:$AE$1000,5,FALSE)","v":"PSG"},"523","888",8,8,8,"NUL",null,"",""]
[null,null,null,null,1,2,3,4,5,6,7,8,9,"M",{"$f":"V2","v":"Monaco"},null,null,null,null,null,null,5,9,{"$f":"IF(V10=0,\"\",Datas!K3)","v":3},"Monaco",{"$f":"CONCATENATE(V10,W10,X10)","v":"593"},"999",9,9,9,"NUL",null,"",""]
[null,null,null,1,{"$f":"NBRèglesVraies(E$10,$D11,$E$2,$P$2)","v":2},{"$f":"NBRèglesVraies(F$10,$D11,$E$2,$P$2)","v":2},{"$f":"NBRèglesVraies(G$10,$D11,$E$2,$P$2)","v":1},{"$f":"NBRèglesVraies(H$10,$D11,$E$2,$P$2)","v":2},{"$f":"NBRèglesVraies(I$10,$D11,$E$2,$P$2)","v":2},{"$f":"NBRèglesVraies(J$10,$D11,$E$2,$P$2)","v":2},1,1,2,null,null,null,null,null,null,null,null,6,1,{"$f":"IF(V11=0,\"\",Datas!K3)","v":3},"PSG","613","112",1,1,2,"NUL",null,"",""]
[null,null,null,2,{"$f":"NBRèglesVraies(E$10,$D12,$E$2,$P$2)","v":2},{"$f":"NBRèglesVraies(F$10,$D12,$E$2,$P$2)","v":1},{"$f":"NBRèglesVraies(G$10,$D12,$E$2,$P$2)","v":1},{"$f":"NBRèglesVraies(H$10,$D12,$E$2,$P$2)","v":1},2,1,1,1,1,null,null,null,null,null,null,null,null,6,9,{"$f":"IF(V12=0,\"\",Datas!K3)","v":3},"NUL","693","113",1,1,3,{"$f":"AB1","v":"Monaco"},null,"",""]
[null,null,null,3,0,1,1,1,0,1,1,1,1,null,null,null,null,null,null,null,null,9,1,{"$f":"IF(V13=0,\"\",Datas!K3)","v":3},"PSG","913","114",1,1,4,{"$f":"AC1","v":"PSG"},null,"",""]
[null,null,null,4,0,0,1,0,{"$f":"NBRèglesVraies(I$10,$D14,$E$2,$P$2)","v":0},0,1,1,0,null,null,null,null,null,null,null,null,9,9,{"$f":"IF(V14=0,\"\",Datas!K3)","v":3},"PSG","993","115",1,1,5,{"$f":"AB1","v":"Monaco"},null,"",""]
[null,null,null,5,0,0,0,0,0,0,0,0,0,null,null,null,null,null,null,null,null,null,null,{"$f":"IF(V15=0,\"\",Datas!K3)","v":""},{"$error":"#N/A"},"","116",1,1,6,{"$f":"AB1","v":"Monaco"},null,"",""]
[null,null,null,6,0,0,1,0,0,0,0,0,0,null,null,null,null,null,null,null,null,null,null,{"$f":"IF(V16=0,\"\",Datas!K3)","v":""},{"$error":"#N/A"},"","117",1,1,7,{"$f":"AC1","v":"PSG"},null,"",""]
[null,null,null,7,0,1,1,1,0,0,1,1,0,null,null,null,null,null,null,null,null,null,null,{"$f":"IF(V17=0,\"\",Datas!K3)","v":""},{"$error":"#N/A"},"","118",1,1,8,{"$f":"AB1","v":"Monaco"},null,"",""]
[null,null,null,8,1,1,1,1,1,1,1,1,1,null,null,null,null,null,null,null,null,null,null,{"$f":"IF(V18=0,\"\",Datas!K3)","v":""},{"$error":"#N/A"},"","119",1,1,9,"NUL",null,"",""]
[null,null,null,9,2,1,1,1,2,2,1,1,2,null,null,null,null,null,null,null,null,null,null,{"$f":"IF(V19=0,\"\",Datas!K3)","v":""},{"$error":"#N/A"},"","121",1,2,1,{"$f":"AB1","v":"Monaco"},null,"",""]
[null,null,null,"N",null,{"$f":"W2","v":"PSG"},null,null,null,null,null,null,null,null,null,null,null,null,null,null,null,null,null,{"$f":"IF(V20=0,\"\",Datas!K3)","v":""},{"$error":"#N/A"},"","122",1,2,2,{"$f":"AC1","v":"PSG"},null,"",""]
[null,null,null,null,null,null,null,null,null,null,null,null,null,null,null,null,null,null,null,null,null,null,null,{"$f":"IF(V21=0,\"\",Datas!K3)","v":""},{"$error":"#N/A"},"","123",1,2,3,{"$f":"AC1","v":"PSG"},null,"",""]
[null,null,null,null,null,null,null,null,null,null,null,null,null,null,null,null,null,null,null,null,null,null,null,{"$f":"IF(V22=0,\"\",Datas!K3)","v":""},{"$error":"#N/A"},"","124",1,2,4,{"$f":"AC1","v":"PSG"},null,"",""]
[null,null,null,null,null,null,null,null,null,null,null,null,null,null,null,null,null,null,null,null,null,null,null,{"$f":"IF(V23=0,\"\",Datas!K3)","v":""},{"$error":"#N/A"},"","125",1,2,5,{"$f":"AC1","v":"PSG"},null,"",""]
[null,null,null,null,null,null,null,null,null,null,null,null,null,null,null,null,null,null,null,null,null,null,null,{"$f":"IF(V24=0,\"\",Datas!K3)","v":""},{"$error":"#N/A"},"","126",1,2,6,"NUL",null,"",""]
[null,null,null,null,null,null,null,null,null,null,null,null,null,null,null,null,null,null,null,null,null,null,null,{"$f":"IF(V25=0,\"\",Datas!K3)","v":""},{"$error":"#N/A"},"","127",1,2,7,{"$f":"AB1","v":"Monaco"}]
[null,null,null,null,null,null,null,null,null,null,null,null,null,null,null,null,null,null,null,null,null,null,null,{"$f":"IF(V26=0,\"\",Datas!K3)","v":""},{"$error":"#N/A"},"","128",1,2,8,{"$f":"AB1","v":"Monaco"}]
[null,null,null,null,null,null,null,null,null,null,null,null,null,null,null,null,null,null,null,null,null,null,null,{"$f":"IF(V27=0,\"\",Datas!K3)","v":""},{"$error":"#N/A"},"","129",1,2,9,{"$f":"AB1","v":"Monaco"}]
[null,null,null,null,null,null,null,null,null,null,null,null,null,null,null,null,null,null,null,null,null,null,null,{"$f":"IF(V28=0,\"\",Datas!K3)","v":""},{"$error":"#N/A"},"","131",1,3,1,{"$f":"AB1","v":"Monaco"}]
[null,null,null,null,null,null,null,null,null,null,null,null,null,null,null,null,null,null,null,null,null,null,null,{"$f":"IF(V29=0,\"\",Datas!K3)","v":""},{"$error":"#N/A"},"","132",1,3,2,"NUL"]
[null,null,null,null,null,null,null,null,null,null,null,null,null,null,null,null,null,null,null,null,null,null,null,{"$f":"IF(V30=0,\"\",Datas!K3)","v":""},{"$error":"#N/A"},"","133",1,3,3,{"$f":"AC1","v":"PSG"}]
[null,null,null,null,null,null,null,null,null,null,null,null,null,null,null,null,null,null,null,null,null,null,null,null,null,null,{"$f":"CONCATENATE(AB31,AC31,AD31)","v":"134"},1,3,4,{"$f":"AC1","v":"PSG"}]
[null,null,null,null,null,null,null,null,null,null,null,null,null,null,null,null,null,null,null,null,null,null,null,null,null,null,{"$f":"CONCATENATE(AB32,AC32,AD32)","v":"135"},1,3,5,{"$f":"AC1","v":"PSG"}]
[null,null,null,null,null,null,null,null,null,null,null,null,null,null,null,null,null,null,null,null,null,null,null,null,null,null,"136",1,3,6,{"$f":"AC1","v":"PSG"}]
[null,null,null,null,null,null,null,null,null,null,null,null,null,null,null,null,null,null,null,null,null,null,null,null,null,null,"137",1,3,7,{"$f":"AB1","v":"Monaco"}]
[null,null,null,null,null,null,null,null,null,null,null,null,null,null,null,null,null,null,null,null,null,null,null,null,null,null,"138",1,3,8,{"$f":"AB1","v":"Monaco"}]
[null,null,null,null,null,null,null,null,null,null,null,null,null,null,null,null,null,null,null,null,null,null,null,null,null,null,"139",1,3,9,{"$f":"AB1","v":"Monaco"}]
[null,null,null,null,null,null,null,null,null,null,null,null,null,null,null,null,null,null,null,null,null,null,null,null,null,null,"141",1,4,1,{"$f":"AB1","v":"Monaco"}]
[null,null,null,null,null,null,null,null,null,null,null,null,null,null,null,null,null,null,null,null,null,null,null,null,null,null,"142",1,4,2,{"$f":"AB1","v":"Monaco"}]
[null,null,null,null,null,null,null,null,null,null,null,null,null,null,null,null,null,null,null,null,null,null,null,null,null,null,"143",1,4,3,{"$f":"AC1","v":"PSG"}]
[null,null,null,null,null,null,null,null,null,null,null,null,null,null,null,null,null,null,null,null,null,null,null,null,null,null,"144",1,4,4,{"$f":"AC1","v":"PSG"}]
[null,null,null,null,null,null,null,null,null,null,null,null,null,null,null,null,null,null,null,null,null,null,null,null,null,null,"145",1,4,5,{"$f":"AC1","v":"PSG"}]
[null,null,null,null,null,null,null,null,null,null,null,null,null,null,null,null,null,null,null,null,null,null,null,null,null,null,"146",1,4,6,{"$f":"AC1","v":"PSG"}]
[null,null,null,null,null,null,null,null,null,null,null,null,null,null,null,null,null,null,null,null,null,null,null,null,null,null,"147",1,4,7,"NUL"]
[null,null,null,null,null,null,null,null,null,null,null,null,null,null,null,null,null,null,null,null,null,null,null,null,null,null,"148",1,4,8,{"$f":"AB1","v":"Monaco"}]
[null,null,null,null,null,null,null,null,null,null,null,null,null,null,null,null,null,null,null,null,null,null,null,null,null,null,"149",1,4,9,{"$f":"AB1","v":"Monaco"}]
[null,null,null,null,null,null,null,null,null,null,null,null,null,null,null,null,null,null,null,null,null,null,null,null,null,null,"151",1,5,1,{"$f":"AB1","v":"Monaco"}]
[null,null,null,null,null,null,null,null,null,null,null,null,null,null,null,null,null,null,null,null,null,null,null,null,null,null,"152",1,5,2,{"$f":"AB1","v":"Monaco"}]
[null,null,null,null,null,null,null,null,null,null,null,null,null,null,null,null,null,null,null,null,null,null,null,null,null,null,"153",1,5,3,"NUL"]
[null,null,null,null,null,null,null,null,null,null,null,null,null,null,null,null,null,null,null,null,null,null,null,null,null,null,"154",1,5,4,{"$f":"AC1","v":"PSG"}]
[null,null,null,null,null,null,null,null,null,null,null,null,null,null,null,null,null,null,null,null,null,null,null,null,null,null,"155",1,5,5,{"$f":"AC1","v":"PSG"}]
[null,null,null,null,null,null,null,null,null,null,null,null,null,null,null,null,null,null,null,null,null,null,null,null,null,null,"156",1,5,6,{"$f":"AC1","v":"PSG"}]
[null,null,null,null,null,null,null,null,null,null,null,null,null,null,null,null,null,null,null,null,null,null,null,null,null,null,"157",1,5,7,{"$f":"AC1","v":"PSG"}]
[null,null,null,null,null,null,null,null,null,null,null,null,null,null,null,null,null,null,null,null,null,null,null,null,null,null,"158",1,5,8,{"$f":"AB1","v":"Monaco"}]
[null,null,null,null,null,null,null,null,null,null,null,null,null,null,null,null,null,null,null,null,null,null,null,null,null,null,"159",1,5,9,{"$f":"AB1","v":"Monaco"}]
[null,null,null,null,null,null,null,null,null,null,null,null,null,null,null,null,null,null,null,null,null,null,null,null,null,null,"161",1,6,1,{"$f":"AB1","v":"Monaco"}]
[null,null,null,null,null,null,null,null,null,null,null,null,null,null,null,null,null,null,null,null,null,null,null,null,null,null,"162",1,6,2,{"$f":"AB1","v":"Monaco"}]
[null,null,null,null,null,null,null,null,null,null,null,null,null,null,null,null,null,null,null,null,null,null,null,null,null,null,"163",1,6,3,{"$f":"AB1","v":"Monaco"}]
[null,null,null,null,null,null,null,null,null,null,null,null,null,null,null,null,null,null,null,null,null,null,null,null,null,null,"164",1,6,4,{"$f":"AC1","v":"PSG"}]
[null,null,null,null,null,null,null,null,null,null,null,null,null,null,null,null,null,null,null,null,null,null,null,null,null,null,"165",1,6,5,{"$f":"AC1","v":"PSG"}]
[null,null,null,null,null,null,null,null,null,null,null,null,null,null,null,null,null,null,null,null,null,null,null,null,null,null,"166",1,6,6,{"$f":"AC1","v":"PSG"}]
[null,null,null,null,null,null,null,null,null,null,null,null,null,null,null,null,null,null,null,null,null,null,null,null,null,null,"167",1,6,7,{"$f":"AC1","v":"PSG"}]
[null,null,null,null,null,null,null,null,null,null,null,null,null,null,null,null,null,null,null,null,null,null,null,null,null,null,"168",1,6,8,"NUL"]
[null,null,null,null,null,null,null,null,null,null,null,null,null,null,null,null,null,null,null,null,null,null,null,null,null,null,"169",1,6,9,{"$f":"AB1","v":"Monaco"}]
[null,null,null,null,null,null,null,null,null,null,null,null,null,null,null,null,null,null,null,null,null,null,null,null,null,null,"171",1,7,1,{"$f":"AB1","v":"Monaco"}]
[null,null,null,null,null,null,null,null,null,null,null,null,null,null,null,null,null,null,null,null,null,null,null,null,null,null,"172",1,7,2,{"$f":"AB1","v":"Monaco"}]
[null,null,null,null,null,null,null,null,null,null,null,null,null,null,null,null,null,null,null,null,null,null,null,null,null,null,"173",1,7,3,{"$f":"AB1","v":"Monaco"}]
[null,null,null,null,null,null,null,null,null,null,null,null,null,null,null,null,null,null,null,null,null,null,null,null,null,null,{"$f":"CONCATENATE(AB67,AC67,AD67)","v":"174"},1,7,4,"NUL"]
[null,null,null,null,null,null,null,null,null,null,null,null,null,null,null,null,null,null,null,null,null,null,null,null,null,null,"175",1,7,5,{"$f":"AC1","v":"PSG"}]
[null,null,null,null,null,null,null,null,null,null,null,null,null,null,null,null,null,null,null,null,null,null,null,null,null,null,"176",1,7,6,{"$f":"AC1","v":"PSG"}]
[null,null,null,null,null,null,null,null,null,null,null,null,null,null,null,null,null,null,null,null,null,null,null,null,null,null,"177",1,7,7,{"$f":"AC1","v":"PSG"}]
[null,null,null,null,null,null,null,null,null,null,null,null,null,null,null,null,null,null,null,null,null,null,null,null,null,null,"178",1,7,8,{"$f":"AC1","v":"PSG"}]
[null,null,null,null,null,null,null,null,null,null,null,null,null,null,null,null,null,null,null,null,null,null,null,null,null,null,"179",1,7,9,{"$f":"AB1","v":"Monaco"}]
[null,null,null,null,null,null,null,null,null,null,null,null,null,null,null,null,null,null,null,null,null,null,null,null,null,null,"181",1,8,1,{"$f":"AB1","v":"Monaco"}]
[null,null,null,null,null,null,null,null,null,null,null,null,null,null,null,null,null,null,null,null,null,null,null,null,null,null,"182",1,8,2,{"$f":"AB1","v":"Monaco"}]
[null,null,null,null,null,null,null,null,null,null,null,null,null,null,null,null,null,null,null,null,null,null,null,null,null,null,"183",1,8,3,{"$f":"AB1","v":"Monaco"}]
[null,null,null,null,null,null,null,null,null,null,null,null,null,null,null,null,null,null,null,null,null,null,null,null,null,null,"184",1,8,4,{"$f":"AB1","v":"Monaco"}]
[null,null,null,null,null,null,null,null,null,null,null,null,null,null,null,null,null,null,null,null,null,null,null,null,null,null,"185",1,8,5,{"$f":"AC1","v":"PSG"}]
[null,null,null,null,null,null,null,null,null,null,null,null,null,null,null,null,null,null,null,null,null,null,null,null,null,null,"186",1,8,6,{"$f":"AC1","v":"PSG"}]
[null,null,null,null,null,null,null,null,null,null,null,null,null,null,null,null,null,null,null,null,null,null,null,null,null,null,"187",1,8,7,{"$f":"AC1","v":"PSG"}]
[null,null,null,null,null,null,null,null,null,null,null,null,null,null,null,null,null,null,null,null,null,null,null,null,null,null,"188",1,8,8,{"$f":"AC1","v":"PSG"}]
[null,null,null,null,null,null,null,null,null,null,null,null,null,null,null,null,null,null,null,null,null,null,null,null,null,null,"189",1,8,9,"NUL"]
[null,null,null,null,null,null,null,null,null,null,null,null,null,null,null,null,null,null,null,null,null,null,null,null,null,null,"191",1,9,1,{"$f":"AB1","v":"Monaco"}]
[null,null,null,null,null,null,null,null,null,null,null,null,null,null,null,null,null,null,null,null,null,null,null,null,null,null,"192",1,9,2,{"$f":"AB1","v":"Monaco"}]
[null,null,null,null,null,null,null,null,null,null,null,null,null,null,null,null,null,null,null,null,null,null,null,null,null,null,"193",1,9,3,{"$f":"AB1","v":"Monaco"}]
[null,null,null,null,null,null,null,null,null,null,null,null,null,null,null,null,null,null,null,null,null,null,null,null,null,null,"194",1,9,4,{"$f":"AB1","v":"Monaco"}]
[null,null,null,null,null,null,null,null,null,null,null,null,null,null,null,null,null,null,null,null,null,null,null,null,null,null,"195",1,9,5,"NUL"]
[null,null,null,null,null,null,null,null,null,null,null,null,null,null,null,null,null,null,null,null,null,null,null,null,null,null,"196",1,9,6,{"$f":"AC1","v":"PSG"}]
[null,null,null,null,null,null,null,null,null,null,null,null,null,null,null,null,null,null,null,null,null,null,null,null,null,null,"197",1,9,7,{"$f":"AC1","v":"PSG"}]
[null,null,null,null,null,null,null,null,null,null,null,null,null,null,null,null,null,null,null,null,null,null,null,null,null,null,"198",1,9,8,{"$f":"AC1","v":"PSG"}]
[null,null,null,null,null,null,null,null,null,null,null,null,null,null,null,null,null,null,null,null,null,null,null,null,null,null,"199",1,9,9,{"$f":"AC1","v":"PSG"}]
[null,null,null,null,null,null,null,null,null,null,null,null,null,null,null,null,null,null,null,null,null,null,null,null,null,null,"211",2,1,1,{"$f":"AC1","v":"PSG"}]
[null,null,null,null,null,null,null,null,null,null,null,null,null,null,null,null,null,null,null,null,null,null,null,null,null,null,"212",2,1,2,{"$f":"AB1","v":"Monaco"}]
[null,null,null,null,null,null,null,null,null,null,null,null,null,null,null,null,null,null,null,null,null,null,null,null,null,null,"213",2,1,3,{"$f":"AB1","v":"Monaco"}]
[null,null,null,null,null,null,null,null,null,null,null,null,null,null,null,null,null,null,null,null,null,null,null,null,null,null,"214",2,1,4,{"$f":"AB1","v":"Monaco"}]
[null,null,null,null,null,null,null,null,null,null,null,null,null,null,null,null,null,null,null,null,null,null,null,null,null,null,"215",2,1,5,{"$f":"AB1","v":"Monaco"}]
[null,null,null,null,null,null,null,null,null,null,null,null,null,null,null,null,null,null,null,null,null,null,null,null,null,null,"216",2,1,6,"NUL"]
[null,null,null,null,null,null,null,null,null,null,null,null,null,null,null,null,null,null,null,null,null,null,null,null,null,null,"217",2,1,7,{"$f":"AC1","v":"PSG"}]
[null,null,null,null,null,null,null,null,null,null,null,null,null,null,null,null,null,null,null,null,null,null,null,null,null,null,"218",2,1,8,{"$f":"AC1","v":"PSG"}]
[null,null,null,null,null,null,null,null,null,null,null,null,null,null,null,null,null,null,null,null,null,null,null,null,null,null,"219",2,1,9,{"$f":"AC1","v":"PSG"}]
[null,null,null,null,null,null,null,null,null,null,null,null,null,null,null,null,null,null,null,null,null,null,null,null,null,null,"221",2,2,1,"NUL"]
[null,null,null,null,null,null,null,null,null,null,null,null,null,null,null,null,null,null,null,null,null,null,null,null,null,null,"223",2,2,3,"NUL"]
[null,null,null,null,null,null,null,null,null,null,null,null,null,null,null,null,null,null,null,null,null,null,null,null,null,null,"224",2,2,4,{"$f":"AB1","v":"Monaco"}]
[null,null,null,null,null,null,null,null,null,null,null,null,null,null,null,null,null,null,null,null,null,null,null,null,null,null,"225",2,2,5,{"$f":"AC1","v":"PSG"}]
[null,null,null,null,null,null,null,null,null,null,null,null,null,null,null,null,null,null,null,null,null,null,null,null,null,null,"226",2,2,6,{"$f":"AB1","v":"Monaco"}]
[null,null,null,null,null,null,null,null,null,null,null,null,null,null,null,null,null,null,null,null,null,null,null,null,null,null,"227",2,2,7,{"$f":"AB1","v":"Monaco"}]
[null,null,null,null,null,null,null,null,null,null,null,null,null,null,null,null,null,null,null,null,null,null,null,null,null,null,"228",2,2,8,{"$f":"AC1","v":"PSG"}]
[null,null,null,null,null,null,null,null,null,null,null,null,null,null,null,null,null,null,null,null,null,null,null,null,null,null,"229",2,2,9,{"$f":"AB1","v":"Monaco"}]
[null,null,null,null,null,null,null,null,null,null,null,null,null,null,null,null,null,null,null,null,null,null,null,null,null,null,"231",2,3,1,{"$f":"AB1","v":"Monaco"}]
[null,null,null,null,null,null,null,null,null,null,null,null,null,null,null,null,null,null,null,null,null,null,null,null,null,null,"232",2,3,2,{"$f":"AB1","v":"Monaco"}]
[null,null,null,null,null,null,null,null,null,null,null,null,null,null,null,null,null,null,null,null,null,null,null,null,null,null,"233",2,3,3,{"$f":"AC1","v":"PSG"}]
[null,null,null,null,null,null,null,null,null,null,null,null,null,null,null,null,null,null,null,null,null,null,null,null,null,null,"234",2,3,4,{"$f":"AC1","v":"PSG"}]
[null,null,null,null,null,null,null,null,null,null,null,null,null,null,null,null,null,null,null,null,null,null,null,null,null,null,"235",2,3,5,{"$f":"AC1","v":"PSG"}]
[null,null,null,null,null,null,null,null,null,null,null,null,null,null,null,null,null,null,null,null,null,null,null,null,null,null,"236",2,3,6,{"$f":"AC1","v":"PSG"}]
[null,null,null,null,null,null,null,null,null,null,null,null,null,null,null,null,null,null,null,null,null,null,null,null,null,null,"237",2,3,7,"NUL"]
[null,null,null,null,null,null,null,null,null,null,null,null,null,null,null,null,null,null,null,null,null,null,null,null,null,null,"238",2,3,8,{"$f":"AB1","v":"Monaco"}]
[null,null,null,null,null,null,null,null,null,null,null,null,null,null,null,null,null,null,null,null,null,null,null,null,null,null,"239",2,3,9,{"$f":"AB1","v":"Monaco"}]
[null,null,null,null,null,null,null,null,null,null,null,null,null,null,null,null,null,null,null,null,null,null,null,null,null,null,"241",2,4,1,{"$f":"AB1","v":"Monaco"}]
[null,null,null,null,null,null,null,null,null,null,null,null,null,null,null,null,null,null,null,null,null,null,null,null,null,null,"242",2,4,2,{"$f":"AB1","v":"Monaco"}]
[null,null,null,null,null,null,null,null,null,null,null,null,null,null,null,null,null,null,null,null,null,null,null,null,null,null,"243",2,4,3,"NUL"]
[null,null,null,null,null,null,null,null,null,null,null,null,null,null,null,null,null,null,null,null,null,null,null,null,null,null,"244",2,4,4,{"$f":"AC1","v":"PSG"}]
[null,null,null,null,null,null,null,null,null,null,null,null,null,null,null,null,null,null,null,null,null,null,null,null,null,null,"245",2,4,5,{"$f":"AC1","v":"PSG"}]
[null,null,null,null,null,null,null,null,null,null,null,null,null,null,null,null,null,null,null,null,null,null,null,null,null,null,"246",2,4,6,{"$f":"AC1","v":"PSG"}]
[null,null,null,null,null,null,null,null,null,null,null,null,null,null,null,null,null,null,null,null,null,null,null,null,null,null,"247",2,4,7,{"$f":"AC1","v":"PSG"}]
[null,null,null,null,null,null,null,null,null,null,null,null,null,null,null,null,null,null,null,null,null,null,null,null,null,null,"248",2,4,8,{"$f":"AB1","v":"Monaco"}]
[null,null,null,null,null,null,null,null,null,null,null,null,null,null,null,null,null,null,null,null,null,null,null,null,null,null,"249",2,4,9,{"$f":"AB1","v":"Monaco"}]
[null,null,null,null,null,null,null,null,null,null,null,null,null,null,null,null,null,null,null,null,null,null,null,null,null,null,"251",2,5,1,{"$f":"AB1","v":"Monaco"}]
[null,null,null,null,null,null,null,null,null,null,null,null,null,null,null,null,null,null,null,null,null,null,null,null,null,null,"252",2,5,2,{"$f":"AB1","v":"Monaco"}]
[null,null,null,null,null,null,null,null,null,null,null,null,null,null,null,null,null,null,null,null,null,null,null,null,null,null,"253",2,5,3,{"$f":"AB1","v":"Monaco"}]
[null,null,null,null,null,null,null,null,null,null,null,null,null,null,null,null,null,null,null,null,null,null,null,null,null,null,"254",2,5,4,{"$f":"AC1","v":"PSG"}]
[null,null,null,null,null,null,null,null,null,null,null,null,null,null,null,null,null,null,null,null,null,null,null,null,null,null,"255",2,5,5,{"$f":"AC1","v":"PSG"}]
[null,null,null,null,null,null,null,null,null,null,null,null,null,null,null,null,null,null,null,null,null,null,null,null,null,null,{"$f":"CONCATENATE(AB131,AC131,AD131)","v":"256"},2,5,6,{"$f":"AC1","v":"PSG"}]
[null,null,null,null,null,null,null,null,null,null,null,null,null,null,null,null,null,null,null,null,null,null,null,null,null,null,"257",2,5,7,{"$f":"AC1","v":"PSG"}]
[null,null,null,null,null,null,null,null,null,null,null,null,null,null,null,null,null,null,null,null,null,null,null,null,null,null,"258",2,5,8,"NUL"]
[null,null,null,null,null,null,null,null,null,null,null,null,null,null,null,null,null,null,null,null,null,null,null,null,null,null,"259",2,5,9,{"$f":"AB1","v":"Monaco"}]
[null,null,null,null,null,null,null,null,null,null,null,null,null,null,null,null,null,null,null,null,null,null,null,null,null,null,"261",2,6,1,{"$f":"AB1","v":"Monaco"}]
[null,null,null,null,null,null,null,null,null,null,null,null,null,null,null,null,null,null,null,null,null,null,null,null,null,null,"262",2,6,2,{"$f":"AB1","v":"Monaco"}]
[null,null,null,null,null,null,null,null,null,null,null,null,null,null,null,null,null,null,null,null,null,null,null,null,null,null,"263",2,6,3,{"$f":"AB1","v":"Monaco"}]
[null,null,null,null,null,null,null,null,null,null,null,null,null,null,null,null,null,null,null,null,null,null,null,null,null,null,"264",2,6,4,"NUL"]
[null,null,null,null,null,null,null,null,null,null,null,null,null,null,null,null,null,null,null,null,null,null,null,null,null,null,"265",2,6,5,{"$f":"AC1","v":"PSG"}]
[null,null,null,null,null,null,null,null,null,null,null,null,null,null,null,null,null,null,null,null,null,null,null,null,null,null,"266",2,6,6,{"$f":"AC1","v":"PSG"}]
[null,null,null,null,null,null,null,null,null,null,null,null,null,null,null,null,null,null,null,null,null,null,null,null,null,null,"267",2,6,7,{"$f":"AC1","v":"PSG"}]
[null,null,null,null,null,null,null,null,null,null,null,null,null,null,null,null,null,null,null,null,null,null,null,null,null,null,"268",2,6,8,{"$f":"AC1","v":"PSG"}]
[null,null,null,null,null,null,null,null,null,null,null,null,null,null,null,null,null,null,null,null,null,null,null,null,null,null,"269",2,6,9,{"$f":"AB1","v":"Monaco"}]
[null,null,null,null,null,null,null,null,null,null,null,null,null,null,null,null,null,null,null,null,null,null,null,null,null,null,"271",2,7,1,{"$f":"AB1","v":"Monaco"}]
[null,null,null,null,null,null,null,null,null,null,null,null,null,null,null,null,null,null,null,null,null,null,null,null,null,null,"272",2,7,2,{"$f":"AB1","v":"Monaco"}]
[null,null,null,null,null,null,null,null,null,null,null,null,null,null,null,null,null,null,null,null,null,null,null,null,null,null,"273",2,7,3,{"$f":"AB1","v":"Monaco"}]
[null,null,null,null,null,null,null,null,null,null,null,null,null,null,null,null,null,null,null,null,null,null,null,null,null,null,"274",2,7,4,{"$f":"AB1","v":"Monaco"}]
[null,null,null,null,null,null,null,null,null,null,null,null,null,null,null,null,null,null,null,null,null,null,null,null,null,null,"275",2,7,5,{"$f":"AC1","v":"PSG"}]
[null,null,null,null,null,null,null,null,null,null,null,null,null,null,null,null,null,null,null,null,null,null,null,null,null,null,"276",2,7,6,{"$f":"AC1","v":"PSG"}]
[null,null,null,null,null,null,null,null,null,null,null,null,null,null,null,null,null,null,null,null,null,null,null,null,null,null,"277",2,7,7,{"$f":"AC1","v":"PSG"}]
[null,null,null,null,null,null,null,null,null,null,null,null,null,null,null,null,null,null,null,null,null,null,null,null,null,null,"278",2,7,8,{"$f":"AC1","v":"PSG"}]
[null,null,null,null,null,null,null,null,null,null,null,null,null,null,null,null,null,null,null,null,null,null,null,null,null,null,"279",2,7,9,"NUL"]
[null,null,null,null,null,null,null,null,null,null,null,null,null,null,null,null,null,null,null,null,null,null,null,null,null,null,"281",2,8,1,{"$f":"AB1","v":"Monaco"}]
[null,null,null,null,null,null,null,null,null,null,null,null,null,null,null,null,null,null,null,null,null,null,null,null,null,null,"282",2,8,2,{"$f":"AB1","v":"Monaco"}]
[null,null,null,null,null,null,null,null,null,null,null,null,null,null,null,null,null,null,null,null,null,null,null,null,null,null,"283",2,8,3,{"$f":"AB1","v":"Monaco"}]
[null,null,null,null,null,null,null,null,null,null,null,null,null,null,null,null,null,null,null,null,null,null,null,null,null,null,"284",2,8,4,{"$f":"AB1","v":"Monaco"}]
[null,null,null,null,null,null,null,null,null,null,null,null,null,null,null,null,null,null,null,null,null,null,null,null,null,null,"285",2,8,5,"NUL"]
[null,null,null,null,null,null,null,null,null,null,null,null,null,null,null,null,null,null,null,null,null,null,null,null,null,null,"286",2,8,6,{"$f":"AC1","v":"PSG"}]
[null,null,null,null,null,null,null,null,null,null,null,null,null,null,null,null,null,null,null,null,null,null,null,null,null,null,"287",2,8,7,{"$f":"AC1","v":"PSG"}]
[null,null,null,null,null,null,null,null,null,null,null,null,null,null,null,null,null,null,null,null,null,null,null,null,null,null,"288",2,8,8,{"$f":"AC1","v":"PSG"}]
[null,null,null,null,null,null,null,null,null,null,null,null,null,null,null,null,null,null,null,null,null,null,null,null,null,null,"289",2,8,9,{"$f":"AC1","v":"PSG"}]
[null,null,null,null,null,null,null,null,null,null,null,null,null,null,null,null,null,null,null,null,null,null,null,null,null,null,"291",2,9,1,"NUL"]
[null,null,null,null,null,null,null,null,null,null,null,null,null,null,null,null,null,null,null,null,null,null,null,null,null,null,"292",2,9,2,{"$f":"AB1","v":"Monaco"}]
[null,null,null,null,null,null,null,null,null,null,null,null,null,null,null,null,null,null,null,null,null,null,null,null,null,null,"293",2,9,3,{"$f":"AB1","v":"Monaco"}]
[null,null,null,null,null,null,null,null,null,null,null,null,null,null,null,null,null,null,null,null,null,null,null,null,null,null,"294",2,9,4,{"$f":"AB1","v":"Monaco"}]
[null,null,null,null,null,null,null,null,null,null,null,null,null,null,null,null,null,null,null,null,null,null,null,null,null,null,"295",2,9,5,{"$f":"AB1","v":"Monaco"}]
[null,null,null,null,null,null,null,null,null,null,null,null,null,null,null,null,null,null,null,null,null,null,null,null,null,null,"296",2,9,6,{"$f":"AC1","v":"PSG"}]
[null,null,null,null,null,null,null,null,null,null,null,null,null,null,null,null,null,null,null,null,null,null,null,null,null,null,"297",2,9,7,{"$f":"AC1","v":"PSG"}]
[null,null,null,null,null,null,null,null,null,null,null,null,null,null,null,null,null,null,null,null,null,null,null,null,null,null,"298",2,9,8,{"$f":"AC1","v":"PSG"}]
[null,null,null,null,null,null,null,null,null,null,null,null,null,null,null,null,null,null,null,null,null,null,null,null,null,null,"299",2,9,9,{"$f":"AC1","v":"PSG"}]
[null,null,null,null,null,null,null,null,null,null,null,null,null,null,null,null,null,null,null,null,null,null,null,null,null,null,"311",3,1,1,{"$f":"AC1","v":"PSG"}]
[null,null,null,null,null,null,null,null,null,null,null,null,null,null,null,null,null,null,null,null,null,null,null,null,null,null,"312",3,1,2,"NUL"]
[null,null,null,null,null,null,null,null,null,null,null,null,null,null,null,null,null,null,null,null,null,null,null,null,null,null,"313",3,1,3,{"$f":"AB1","v":"Monaco"}]
[null,null,null,null,null,null,null,null,null,null,null,null,null,null,null,null,null,null,null,null,null,null,null,null,null,null,"314",3,1,4,{"$f":"AB1","v":"Monaco"}]
[null,null,null,null,null,null,null,null,null,null,null,null,null,null,null,null,null,null,null,null,null,null,null,null,null,null,"315",3,1,5,{"$f":"AB1","v":"Monaco"}]
[null,null,null,null,null,null,null,null,null,null,null,null,null,null,null,null,null,null,null,null,null,null,null,null,null,null,"316",3,1,6,{"$f":"AB1","v":"Monaco"}]
[null,null,null,null,null,null,null,null,null,null,null,null,null,null,null,null,null,null,null,null,null,null,null,null,null,null,"317",3,1,7,{"$f":"AC1","v":"PSG"}]
[null,null,null,null,null,null,null,null,null,null,null,null,null,null,null,null,null,null,null,null,null,null,null,null,null,null,"318",3,1,8,{"$f":"AC1","v":"PSG"}]
[null,null,null,null,null,null,null,null,null,null,null,null,null,null,null,null,null,null,null,null,null,null,null,null,null,null,"319",3,1,9,{"$f":"AC1","v":"PSG"}]
[null,null,null,null,null,null,null,null,null,null,null,null,null,null,null,null,null,null,null,null,null,null,null,null,null,null,"321",3,2,1,{"$f":"AC1","v":"PSG"}]
[null,null,null,null,null,null,null,null,null,null,null,null,null,null,null,null,null,null,null,null,null,null,null,null,null,null,"322",3,2,2,{"$f":"AC1","v":"PSG"}]
[null,null,null,null,null,null,null,null,null,null,null,null,null,null,null,null,null,null,null,null,null,null,null,null,null,null,"323",3,2,3,{"$f":"AB1","v":"Monaco"}]
[null,null,null,null,null,null,null,null,null,null,null,null,null,null,null,null,null,null,null,null,null,null,null,null,null,null,"324",3,2,4,{"$f":"AB1","v":"Monaco"}]
[null,null,null,null,null,null,null,null,null,null,null,null,null,null,null,null,null,null,null,null,null,null,null,null,null,null,"325",3,2,5,{"$f":"AB1","v":"Monaco"}]
[null,null,null,null,null,null,null,null,null,null,null,null,null,null,null,null,null,null,null,null,null,null,null,null,null,null,"326",3,2,6,{"$f":"AB1","v":"Monaco"}]
[null,null,null,null,null,null,null,null,null,null,null,null,null,null,null,null,null,null,null,null,null,null,null,null,null,null,"327",3,2,7,"NUL"]
[null,null,null,null,null,null,null,null,null,null,null,null,null,null,null,null,null,null,null,null,null,null,null,null,null,null,"328",3,2,8,{"$f":"AC1","v":"PSG"}]
[null,null,null,null,null,null,null,null,null,null,null,null,null,null,null,null,null,null,null,null,null,null,null,null,null,null,"329",3,2,9,{"$f":"AC1","v":"PSG"}]
[null,null,null,null,null,null,null,null,null,null,null,null,null,null,null,null,null,null,null,null,null,null,null,null,null,null,"331",3,3,1,{"$f":"AB1","v":"Monaco"}]
[null,null,null,null,null,null,null,null,null,null,null,null,null,null,null,null,null,null,null,null,null,null,null,null,null,null,"332",3,3,2,"NUL"]
[null,null,null,null,null,null,null,null,null,null,null,null,null,null,null,null,null,null,null,null,null,null,null,null,null,null,"334",3,3,4,"NUL"]
[null,null,null,null,null,null,null,null,null,null,null,null,null,null,null,null,null,null,null,null,null,null,null,null,null,null,"335",3,3,5,{"$f":"AB1","v":"Monaco"}]
[null,null,null,null,null,null,null,null,null,null,null,null,null,null,null,null,null,null,null,null,null,null,null,null,null,null,"336",3,3,6,{"$f":"AC1","v":"PSG"}]
[null,null,null,null,null,null,null,null,null,null,null,null,null,null,null,null,null,null,null,null,null,null,null,null,null,null,"337",3,3,7,{"$f":"AB1","v":"Monaco"}]
[null,null,null,null,null,null,null,null,null,null,null,null,null,null,null,null,null,null,null,null,null,null,null,null,null,null,{"$f":"CONCATENATE(AB195,AC195,AD195)","v":"338"},3,3,8,{"$f":"AB1","v":"Monaco"}]
[null,null,null,null,null,null,null,null,null,null,null,null,null,null,null,null,null,null,null,null,null,null,null,null,null,null,"339",3,3,9,{"$f":"AC1","v":"PSG"}]
[null,null,null,null,null,null,null,null,null,null,null,null,null,null,null,null,null,null,null,null,null,null,null,null,null,null,"341",3,4,1,{"$f":"AB1","v":"Monaco"}]
[null,null,null,null,null,null,null,null,null,null,null,null,null,null,null,null,null,null,null,null,null,null,null,null,null,null,"342",3,4,2,{"$f":"AB1","v":"Monaco"}]
[null,null,null,null,null,null,null,null,null,null,null,null,null,null,null,null,null,null,null,null,null,null,null,null,null,null,"343",3,4,3,{"$f":"AB1","v":"Monaco"}]
[null,null,null,null,null,null,null,null,null,null,null,null,null,null,null,null,null,null,null,null,null,null,null,null,null,null,"344",3,4,4,{"$f":"AC1","v":"PSG"}]
[null,null,null,null,null,null,null,null,null,null,null,null,null,null,null,null,null,null,null,null,null,null,null,null,null,null,"345",3,4,5,{"$f":"AC1","v":"PSG"}]
[null,null,null,null,null,null,null,null,null,null,null,null,null,null,null,null,null,null,null,null,null,null,null,null,null,null,"346",3,4,6,{"$f":"AC1","v":"PSG"}]
[null,null,null,null,null,null,null,null,null,null,null,null,null,null,null,null,null,null,null,null,null,null,null,null,null,null,"347",3,4,7,{"$f":"AC1","v":"PSG"}]
[null,null,null,null,null,null,null,null,null,null,null,null,null,null,null,null,null,null,null,null,null,null,null,null,null,null,"348",3,4,8,"NUL"]
[null,null,null,null,null,null,null,null,null,null,null,null,null,null,null,null,null,null,null,null,null,null,null,null,null,null,"349",3,4,9,{"$f":"AB1","v":"Monaco"}]
[null,null,null,null,null,null,null,null,null,null,null,null,null,null,null,null,null,null,null,null,null,null,null,null,null,null,"351",3,5,1,{"$f":"AB1","v":"Monaco"}]
[null,null,null,null,null,null,null,null,null,null,null,null,null,null,null,null,null,null,null,null,null,null,null,null,null,null,"352",3,5,2,{"$f":"AB1","v":"Monaco"}]
[null,null,null,null,null,null,null,null,null,null,null,null,null,null,null,null,null,null,null,null,null,null,null,null,null,null,"353",3,5,3,{"$f":"AB1","v":"Monaco"}]
[null,null,null,null,null,null,null,null,null,null,null,null,null,null,null,null,null,null,null,null,null,null,null,null,null,null,"354",3,5,4,"NUL"]
[null,null,null,null,null,null,null,null,null,null,null,null,null,null,null,null,null,null,null,null,null,null,null,null,null,null,"355",3,5,5,{"$f":"AC1","v":"PSG"}]
[null,null,null,null,null,null,null,null,null,null,null,null,null,null,null,null,null,null,null,null,null,null,null,null,null,null,"356",3,5,6,{"$f":"AC1","v":"PSG"}]
[null,null,null,null,null,null,null,null,null,null,null,null,null,null,null,null,null,null,null,null,null,null,null,null,null,null,"357",3,5,7,{"$f":"AC1","v":"PSG"}]
[null,null,null,null,null,null,null,null,null,null,null,null,null,null,null,null,null,null,null,null,null,null,null,null,null,null,"358",3,5,8,{"$f":"AC1","v":"PSG"}]
[null,null,null,null,null,null,null,null,null,null,null,null,null,null,null,null,null,null,null,null,null,null,null,null,null,null,"359",3,5,9,{"$f":"AB1","v":"Monaco"}]
[null,null,null,null,null,null,null,null,null,null,null,null,null,null,null,null,null,null,null,null,null,null,null,null,null,null,"361",3,6,1,{"$f":"AB1","v":"Monaco"}]
[null,null,null,null,null,null,null,null,null,null,null,null,null,null,null,null,null,null,null,null,null,null,null,null,null,null,"362",3,6,2,{"$f":"AB1","v":"Monaco"}]
[null,null,null,null,null,null,null,null,null,null,null,null,null,null,null,null,null,null,null,null,null,null,null,null,null,null,"363",3,6,3,{"$f":"AB1","v":"Monaco"}]
[null,null,null,null,null,null,null,null,null,null,null,null,null,null,null,null,null,null,null,null,null,null,null,null,null,null,"364",3,6,4,{"$f":"AB1","v":"Monaco"}]
[null,null,null,null,null,null,null,null,null,null,null,null,null,null,null,null,null,null,null,null,null,null,null,null,null,null,"365",3,6,5,{"$f":"AC1","v":"PSG"}]
[null,null,null,null,null,null,null,null,null,null,null,null,null,null,null,null,null,null,null,null,null,null,null,null,null,null,"366",3,6,6,{"$f":"AC1","v":"PSG"}]
[null,null,null,null,null,null,null,null,null,null,null,null,null,null,null,null,null,null,null,null,null,null,null,null,null,null,"367",3,6,7,{"$f":"AC1","v":"PSG"}]
[null,null,null,null,null,null,null,null,null,null,null,null,null,null,null,null,null,null,null,null,null,null,null,null,null,null,"368",3,6,8,{"$f":"AC1","v":"PSG"}]
[null,null,null,null,null,null,null,null,null,null,null,null,null,null,null,null,null,null,null,null,null,null,null,null,null,null,"369",3,6,9,"NUL"]
[null,null,null,null,null,null,null,null,null,null,null,null,null,null,null,null,null,null,null,null,null,null,null,null,null,null,"371",3,7,1,{"$f":"AB1","v":"Monaco"}]
[null,null,null,null,null,null,null,null,null,null,null,null,null,null,null,null,null,null,null,null,null,null,null,null,null,null,"372",3,7,2,{"$f":"AB1","v":"Monaco"}]
[null,null,null,null,null,null,null,null,null,null,null,null,null,null,null,null,null,null,null,null,null,null,null,null,null,null,"373",3,7,3,{"$f":"AB1","v":"Monaco"}]
[null,null,null,null,null,null,null,null,null,null,null,null,null,null,null,null,null,null,null,null,null,null,null,null,null,null,"374",3,7,4,{"$f":"AB1","v":"Monaco"}]
[null,null,null,null,null,null,null,null,null,null,null,null,null,null,null,null,null,null,null,null,null,null,null,null,null,null,"375",3,7,5,"NUL"]
[null,null,null,null,null,null,null,null,null,null,null,null,null,null,null,null,null,null,null,null,null,null,null,null,null,null,"376",3,7,6,{"$f":"AC1","v":"PSG"}]
[null,null,null,null,null,null,null,null,null,null,null,null,null,null,null,null,null,null,null,null,null,null,null,null,null,null,"377",3,7,7,{"$f":"AC1","v":"PSG"}]
[null,null,null,null,null,null,null,null,null,null,null,null,null,null,null,null,null,null,null,null,null,null,null,null,null,null,"378",3,7,8,{"$f":"AC1","v":"PSG"}]
[null,null,null,null,null,null,null,null,null,null,null,null,null,null,null,null,null,null,null,null,null,null,null,null,null,null,"379",3,7,9,{"$f":"AC1","v":"PSG"}]
[null,null,null,null,null,null,null,null,null,null,null,null,null,null,null,null,null,null,null,null,null,null,null,null,null,null,"381",3,8,1,"NUL"]
[null,null,null,null,null,null,null,null,null,null,null,null,null,null,null,null,null,null,null,null,null,null,null,null,null,null,"382",3,8,2,{"$f":"AB1","v":"Monaco"}]
[null,null,null,null,null,null,null,null,null,null,null,null,null,null,null,null,null,null,null,null,null,null,null,null,null,null,"383",3,8,3,{"$f":"AB1","v":"Monaco"}]
[null,null,null,null,null,null,null,null,null,null,null,null,null,null,null,null,null,null,null,null,null,null,null,null,null,null,"384",3,8,4,{"$f":"AB1","v":"Monaco"}]
[null,null,null,null,null,null,null,null,null,null,null,null,null,null,null,null,null,null,null,null,null,null,null,null,null,null,"385",3,8,5,{"$f":"AB1","v":"Monaco"}]
[null,null,null,null,null,null,null,null,null,null,null,null,null,null,null,null,null,null,null,null,null,null,null,null,null,null,"386",3,8,6,{"$f":"AC1","v":"PSG"}]
[null,null,null,null,null,null,null,null,null,null,null,null,null,null,null,null,null,null,null,null,null,null,null,null,null,null,"387",3,8,7,{"$f":"AC1","v":"PSG"}]
[null,null,null,null,null,null,null,null,null,null,null,null,null,null,null,null,null,null,null,null,null,null,null,null,null,null,"388",3,8,8,{"$f":"AC1","v":"PSG"}]
[null,null,null,null,null,null,null,null,null,null,null,null,null,null,null,null,null,null,null,null,null,null,null,null,null,null,"389",3,8,9,{"$f":"AC1","v":"PSG"}]
[null,null,null,null,null,null,null,null,null,null,null,null,null,null,null,null,null,null,null,null,null,null,null,null,null,null,"391",3,9,1,{"$f":"AC1","v":"PSG"}]
[null,null,null,null,null,null,null,null,null,null,null,null,null,null,null,null,null,null,null,null,null,null,null,null,null,null,"392",3,9,2,{"$f":"AB1","v":"Monaco"}]
[null,null,null,null,null,null,null,null,null,null,null,null,null,null,null,null,null,null,null,null,null,null,null,null,null,null,"393",3,9,3,{"$f":"AB1","v":"Monaco"}]
[null,null,null,null,null,null,null,null,null,null,null,null,null,null,null,null,null,null,null,null,null,null,null,null,null,null,"394",3,9,4,{"$f":"AB1","v":"Monaco"}]
[null,null,null,null,null,null,null,null,null,null,null,null,null,null,null,null,null,null,null,null,null,null,null,null,null,null,"395",3,9,5,{"$f":"AB1","v":"Monaco"}]
[null,null,null,null,null,null,null,null,null,null,null,null,null,null,null,null,null,null,null,null,null,null,null,null,null,null,"396",3,9,6,"NUL"]
[null,null,null,null,null,null,null,null,null,null,null,null,null,null,null,null,null,null,null,null,null,null,null,null,null,null,"397",3,9,7,{"$f":"AC1","v":"PSG"}]
[null,null,null,null,null,null,null,null,null,null,null,null,null,null,null,null,null,null,null,null,null,null,null,null,null,null,"398",3,9,8,{"$f":"AC1","v":"PSG"}]
[null,null,null,null,null,null,null,null,null,null,null,null,null,null,null,null,null,null,null,null,null,null,null,null,null,null,"399",3,9,9,{"$f":"AC1","v":"PSG"}]
[null,null,null,null,null,null,null,null,null,null,null,null,null,null,null,null,null,null,null,null,null,null,null,null,null,null,"411",4,1,1,{"$f":"AC1","v":"PSG"}]
[null,null,null,null,null,null,null,null,null,null,null,null,null,null,null,null,null,null,null,null,null,null,null,null,null,null,"412",4,1,2,{"$f":"AC1","v":"PSG"}]
[null,null,null,null,null,null,null,null,null,null,null,null,null,null,null,null,null,null,null,null,null,null,null,null,null,null,"413",4,1,3,{"$f":"AB1","v":"Monaco"}]
[null,null,null,null,null,null,null,null,null,null,null,null,null,null,null,null,null,null,null,null,null,null,null,null,null,null,"414",4,1,4,{"$f":"AB1","v":"Monaco"}]
[null,null,null,null,null,null,null,null,null,null,null,null,null,null,null,null,null,null,null,null,null,null,null,null,null,null,"415",4,1,5,{"$f":"AB1","v":"Monaco"}]
[null,null,null,null,null,null,null,null,null,null,null,null,null,null,null,null,null,null,null,null,null,null,null,null,null,null,"416",4,1,6,{"$f":"AB1","v":"Monaco"}]
[null,null,null,null,null,null,null,null,null,null,null,null,null,null,null,null,null,null,null,null,null,null,null,null,null,null,"417",4,1,7,"NUL"]
[null,null,null,null,null,null,null,null,null,null,null,null,null,null,null,null,null,null,null,null,null,null,null,null,null,null,"418",4,1,8,{"$f":"AC1","v":"PSG"}]
[null,null,null,null,null,null,null,null,null,null,null,null,null,null,null,null,null,null,null,null,null,null,null,null,null,null,{"$f":"CONCATENATE(AB259,AC259,AD259)","v":"419"},4,1,9,{"$f":"AC1","v":"PSG"}]
[null,null,null,null,null,null,null,null,null,null,null,null,null,null,null,null,null,null,null,null,null,null,null,null,null,null,"421",4,2,1,{"$f":"AC1","v":"PSG"}]
[null,null,null,null,null,null,null,null,null,null,null,null,null,null,null,null,null,null,null,null,null,null,null,null,null,null,"422",4,2,2,{"$f":"AC1","v":"PSG"}]
[null,null,null,null,null,null,null,null,null,null,null,null,null,null,null,null,null,null,null,null,null,null,null,null,null,null,"423",4,2,3,"NUL"]
[null,null,null,null,null,null,null,null,null,null,null,null,null,null,null,null,null,null,null,null,null,null,null,null,null,null,"424",4,2,4,{"$f":"AB1","v":"Monaco"}]
[null,null,null,null,null,null,null,null,null,null,null,null,null,null,null,null,null,null,null,null,null,null,null,null,null,null,"425",4,2,5,{"$f":"AB1","v":"Monaco"}]
[null,null,null,null,null,null,null,null,null,null,null,null,null,null,null,null,null,null,null,null,null,null,null,null,null,null,"426",4,2,6,{"$f":"AB1","v":"Monaco"}]
[null,null,null,null,null,null,null,null,null,null,null,null,null,null,null,null,null,null,null,null,null,null,null,null,null,null,"427",4,2,7,{"$f":"AB1","v":"Monaco"}]
[null,null,null,null,null,null,null,null,null,null,null,null,null,null,null,null,null,null,null,null,null,null,null,null,null,null,"428",4,2,8,{"$f":"AC1","v":"PSG"}]
[null,null,null,null,null,null,null,null,null,null,null,null,null,null,null,null,null,null,null,null,null,null,null,null,null,null,"429",4,2,9,{"$f":"AC1","v":"PSG"}]
[null,null,null,null,null,null,null,null,null,null,null,null,null,null,null,null,null,null,null,null,null,null,null,null,null,null,"431",4,3,1,{"$f":"AC1","v":"PSG"}]
[null,null,null,null,null,null,null,null,null,null,null,null,null,null,null,null,null,null,null,null,null,null,null,null,null,null,"432",4,3,2,{"$f":"AC1","v":"PSG"}]
[null,null,null,null,null,null,null,null,null,null,null,null,null,null,null,null,null,null,null,null,null,null,null,null,null,null,"433",4,3,3,{"$f":"AC1","v":"PSG"}]
[null,null,null,null,null,null,null,null,null,null,null,null,null,null,null,null,null,null,null,null,null,null,null,null,null,null,"434",4,3,4,{"$f":"AB1","v":"Monaco"}]
[null,null,null,null,null,null,null,null,null,null,null,null,null,null,null,null,null,null,null,null,null,null,null,null,null,null,"435",4,3,5,{"$f":"AB1","v":"Monaco"}]
[null,null,null,null,null,null,null,null,null,null,null,null,null,null,null,null,null,null,null,null,null,null,null,null,null,null,"436",4,3,6,{"$f":"AB1","v":"Monaco"}]
[null,null,null,null,null,null,null,null,null,null,null,null,null,null,null,null,null,null,null,null,null,null,null,null,null,null,"437",4,3,7,{"$f":"AB1","v":"Monaco"}]
[null,null,null,null,null,null,null,null,null,null,null,null,null,null,null,null,null,null,null,null,null,null,null,null,null,null,"438",4,3,8,"NUL"]
[null,null,null,null,null,null,null,null,null,null,null,null,null,null,null,null,null,null,null,null,null,null,null,null,null,null,"439",4,3,9,{"$f":"AC1","v":"PSG"}]
[null,null,null,null,null,null,null,null,null,null,null,null,null,null,null,null,null,null,null,null,null,null,null,null,null,null,"441",4,4,1,{"$f":"AB1","v":"Monaco"}]
[null,null,null,null,null,null,null,null,null,null,null,null,null,null,null,null,null,null,null,null,null,null,null,null,null,null,"442",4,4,2,{"$f":"AB1","v":"Monaco"}]
[null,null,null,null,null,null,null,null,null,null,null,null,null,null,null,null,null,null,null,null,null,null,null,null,null,null,"443",4,4,3,"NUL"]
[null,null,null,null,null,null,null,null,null,null,null,null,null,null,null,null,null,null,null,null,null,null,null,null,null,null,"445",4,4,5,"NUL"]
[null,null,null,null,null,null,null,null,null,null,null,null,null,null,null,null,null,null,null,null,null,null,null,null,null,null,"446",4,4,6,{"$f":"AB1","v":"Monaco"}]
[null,null,null,null,null,null,null,null,null,null,null,null,null,null,null,null,null,null,null,null,null,null,null,null,null,null,"447",4,4,7,{"$f":"AC1","v":"PSG"}]
[null,null,null,null,null,null,null,null,null,null,null,null,null,null,null,null,null,null,null,null,null,null,null,null,null,null,"448",4,4,8,{"$f":"AB1","v":"Monaco"}]
[null,null,null,null,null,null,null,null,null,null,null,null,null,null,null,null,null,null,null,null,null,null,null,null,null,null,"449",4,4,9,{"$f":"AB1","v":"Monaco"}]
[null,null,null,null,null,null,null,null,null,null,null,null,null,null,null,null,null,null,null,null,null,null,null,null,null,null,"451",4,5,1,{"$f":"AB1","v":"Monaco"}]
[null,null,null,null,null,null,null,null,null,null,null,null,null,null,null,null,null,null,null,null,null,null,null,null,null,null,"452",4,5,2,{"$f":"AB1","v":"Monaco"}]
[null,null,null,null,null,null,null,null,null,null,null,null,null,null,null,null,null,null,null,null,null,null,null,null,null,null,"453",4,5,3,{"$f":"AB1","v":"Monaco"}]
[null,null,null,null,null,null,null,null,null,null,null,null,null,null,null,null,null,null,null,null,null,null,null,null,null,null,"454",4,5,4,{"$f":"AB1","v":"Monaco"}]
[null,null,null,null,null,null,null,null,null,null,null,null,null,null,null,null,null,null,null,null,null,null,null,null,null,null,"455",4,5,5,{"$f":"AC1","v":"PSG"}]
[null,null,null,null,null,null,null,null,null,null,null,null,null,null,null,null,null,null,null,null,null,null,null,null,null,null,"456",4,5,6,{"$f":"AC1","v":"PSG"}]
[null,null,null,null,null,null,null,null,null,null,null,null,null,null,null,null,null,null,null,null,null,null,null,null,null,null,"457",4,5,7,{"$f":"AC1","v":"PSG"}]
[null,null,null,null,null,null,null,null,null,null,null,null,null,null,null,null,null,null,null,null,null,null,null,null,null,null,"458",4,5,8,{"$f":"AC1","v":"PSG"}]
[null,null,null,null,null,null,null,null,null,null,null,null,null,null,null,null,null,null,null,null,null,null,null,null,null,null,"459",4,5,9,"NUL"]
[null,null,null,null,null,null,null,null,null,null,null,null,null,null,null,null,null,null,null,null,null,null,null,null,null,null,"461",4,6,1,{"$f":"AB1","v":"Monaco"}]
[null,null,null,null,null,null,null,null,null,null,null,null,null,null,null,null,null,null,null,null,null,null,null,null,null,null,"462",4,6,2,{"$f":"AB1","v":"Monaco"}]
[null,null,null,null,null,null,null,null,null,null,null,null,null,null,null,null,null,null,null,null,null,null,null,null,null,null,"463",4,6,3,{"$f":"AB1","v":"Monaco"}]
[null,null,null,null,null,null,null,null,null,null,null,null,null,null,null,null,null,null,null,null,null,null,null,null,null,null,"464",4,6,4,{"$f":"AB1","v":"Monaco"}]
[null,null,null,null,null,null,null,null,null,null,null,null,null,null,null,null,null,null,null,null,null,null,null,null,null,null,"465",4,6,5,"NUL"]
[null,null,null,null,null,null,null,null,null,null,null,null,null,null,null,null,null,null,null,null,null,null,null,null,null,null,"466",4,6,6,{"$f":"AC1","v":"PSG"}]
[null,null,null,null,null,null,null,null,null,null,null,null,null,null,null,null,null,null,null,null,null,null,null,null,null,null,"467",4,6,7,{"$f":"AC1","v":"PSG"}]
[null,null,null,null,null,null,null,null,null,null,null,null,null,null,null,null,null,null,null,null,null,null,null,null,null,null,"468",4,6,8,{"$f":"AC1","v":"PSG"}]
[null,null,null,null,null,null,null,null,null,null,null,null,null,null,null,null,null,null,null,null,null,null,null,null,null,null,"469",4,6,9,{"$f":"AC1","v":"PSG"}]
[null,null,null,null,null,null,null,null,null,null,null,null,null,null,null,null,null,null,null,null,null,null,null,null,null,null,"471",4,7,1,"NUL"]
[null,null,null,null,null,null,null,null,null,null,null,null,null,null,null,null,null,null,null,null,null,null,null,null,null,null,"472",4,7,2,{"$f":"AB1","v":"Monaco"}]
[null,null,null,null,null,null,null,null,null,null,null,null,null,null,null,null,null,null,null,null,null,null,null,null,null,null,"473",4,7,3,{"$f":"AB1","v":"Monaco"}]
[null,null,null,null,null,null,null,null,null,null,null,null,null,null,null,null,null,null,null,null,null,null,null,null,null,null,"474",4,7,4,{"$f":"AB1","v":"Monaco"}]
[null,null,null,null,null,null,null,null,null,null,null,null,null,null,null,null,null,null,null,null,null,null,null,null,null,null,"475",4,7,5,{"$f":"AB1","v":"Monaco"}]
[null,null,null,null,null,null,null,null,null,null,null,null,null,null,null,null,null,null,null,null,null,null,null,null,null,null,"476",4,7,6,{"$f":"AC1","v":"PSG"}]
[null,null,null,null,null,null,null,null,null,null,null,null,null,null,null,null,null,null,null,null,null,null,null,null,null,null,"477",4,7,7,{"$f":"AC1","v":"PSG"}]
[null,null,null,null,null,null,null,null,null,null,null,null,null,null,null,null,null,null,null,null,null,null,null,null,null,null,"478",4,7,8,{"$f":"AC1","v":"PSG"}]
[null,null,null,null,null,null,null,null,null,null,null,null,null,null,null,null,null,null,null,null,null,null,null,null,null,null,"479",4,7,9,{"$f":"AC1","v":"PSG"}]
[null,null,null,null,null,null,null,null,null,null,null,null,null,null,null,null,null,null,null,null,null,null,null,null,null,null,"481",4,8,1,{"$f":"AC1","v":"PSG"}]
[null,null,null,null,null,null,null,null,null,null,null,null,null,null,null,null,null,null,null,null,null,null,null,null,null,null,"482",4,8,2,{"$f":"AB1","v":"Monaco"}]
[null,null,null,null,null,null,null,null,null,null,null,null,null,null,null,null,null,null,null,null,null,null,null,null,null,null,"483",4,8,3,{"$f":"AB1","v":"Monaco"}]
[null,null,null,null,null,null,null,null,null,null,null,null,null,null,null,null,null,null,null,null,null,null,null,null,null,null,"484",4,8,4,{"$f":"AB1","v":"Monaco"}]
[null,null,null,null,null,null,null,null,null,null,null,null,null,null,null,null,null,null,null,null,null,null,null,null,null,null,"485",4,8,5,{"$f":"AB1","v":"Monaco"}]
[null,null,null,null,null,null,null,null,null,null,null,null,null,null,null,null,null,null,null,null,null,null,null,null,null,null,"486",4,8,6,"NUL"]
[null,null,null,null,null,null,null,null,null,null,null,null,null,null,null,null,null,null,null,null,null,null,null,null,null,null,"487",4,8,7,{"$f":"AC1","v":"PSG"}]
[null,null,null,null,null,null,null,null,null,null,null,null,null,null,null,null,null,null,null,null,null,null,null,null,null,null,"488",4,8,8,{"$f":"AC1","v":"PSG"}]
[null,null,null,null,null,null,null,null,null,null,null,null,null,null,null,null,null,null,null,null,null,null,null,null,null,null,"489",4,8,9,{"$f":"AC1","v":"PSG"}]
[null,null,null,null,null,null,null,null,null,null,null,null,null,null,null,null,null,null,null,null,null,null,null,null,null,null,"491",4,9,1,{"$f":"AC1","v":"PSG"}]
[null,null,null,null,null,null,null,null,null,null,null,null,null,null,null,null,null,null,null,null,null,null,null,null,null,null,{"$f":"CONCATENATE(AB323,AC323,AD323)","v":"492"},4,9,2,"NUL"]
[null,null,null,null,null,null,null,null,null,null,null,null,null,null,null,null,null,null,null,null,null,null,null,null,null,null,"493",4,9,3,{"$f":"AB1","v":"Monaco"}]
[null,null,null,null,null,null,null,null,null,null,null,null,null,null,null,null,null,null,null,null,null,null,null,null,null,null,"494",4,9,4,{"$f":"AB1","v":"Monaco"}]
[null,null,null,null,null,null,null,null,null,null,null,null,null,null,null,null,null,null,null,null,null,null,null,null,null,null,"495",4,9,5,{"$f":"AB1","v":"Monaco"}]
[null,null,null,null,null,null,null,null,null,null,null,null,null,null,null,null,null,null,null,null,null,null,null,null,null,null,"496",4,9,6,{"$f":"AB1","v":"Monaco"}]
[null,null,null,null,null,null,null,null,null,null,null,null,null,null,null,null,null,null,null,null,null,null,null,null,null,null,"497",4,9,7,{"$f":"AC1","v":"PSG"}]
[null,null,null,null,null,null,null,null,null,null,null,null,null,null,null,null,null,null,null,null,null,null,null,null,null,null,"498",4,9,8,{"$f":"AC1","v":"PSG"}]
[null,null,null,null,null,null,null,null,null,null,null,null,null,null,null,null,null,null,null,null,null,null,null,null,null,null,"499",4,9,9,{"$f":"AC1","v":"PSG"}]
[null,null,null,null,null,null,null,null,null,null,null,null,null,null,null,null,null,null,null,null,null,null,null,null,null,null,"511",5,1,1,{"$f":"AC1","v":"PSG"}]
[null,null,null,null,null,null,null,null,null,null,null,null,null,null,null,null,null,null,null,null,null,null,null,null,null,null,"512",5,1,2,{"$f":"AC1","v":"PSG"}]
[null,null,null,null,null,null,null,null,null,null,null,null,null,null,null,null,null,null,null,null,null,null,null,null,null,null,"513",5,1,3,"NUL"]
[null,null,null,null,null,null,null,null,null,null,null,null,null,null,null,null,null,null,null,null,null,null,null,null,null,null,"514",5,1,4,{"$f":"AB1","v":"Monaco"}]
[null,null,null,null,null,null,null,null,null,null,null,null,null,null,null,null,null,null,null,null,null,null,null,null,null,null,"515",5,1,5,{"$f":"AB1","v":"Monaco"}]
[null,null,null,null,null,null,null,null,null,null,null,null,null,null,null,null,null,null,null,null,null,null,null,null,null,null,"516",5,1,6,{"$f":"AB1","v":"Monaco"}]
[null,null,null,null,null,null,null,null,null,null,null,null,null,null,null,null,null,null,null,null,null,null,null,null,null,null,"517",5,1,7,{"$f":"AB1","v":"Monaco"}]
[null,null,null,null,null,null,null,null,null,null,null,null,null,null,null,null,null,null,null,null,null,null,null,null,null,null,"518",5,1,8,{"$f":"AC1","v":"PSG"}]
[null,null,null,null,null,null,null,null,null,null,null,null,null,null,null,null,null,null,null,null,null,null,null,null,null,null,"519",5,1,9,{"$f":"AC1","v":"PSG"}]
[null,null,null,null,null,null,null,null,null,null,null,null,null,null,null,null,null,null,null,null,null,null,null,null,null,null,"521",5,2,1,{"$f":"AC1","v":"PSG"}]
[null,null,null,null,null,null,null,null,null,null,null,null,null,null,null,null,null,null,null,null,null,null,null,null,null,null,"522",5,2,2,{"$f":"AC1","v":"PSG"}]
[null,null,null,null,null,null,null,null,null,null,null,null,null,null,null,null,null,null,null,null,null,null,null,null,null,null,"523",5,2,3,{"$f":"AC1","v":"PSG"}]
[null,null,null,null,null,null,null,null,null,null,null,null,null,null,null,null,null,null,null,null,null,null,null,null,null,null,"524",5,2,4,{"$f":"AB1","v":"Monaco"}]
[null,null,null,null,null,null,null,null,null,null,null,null,null,null,null,null,null,null,null,null,null,null,null,null,null,null,"525",5,2,5,{"$f":"AB1","v":"Monaco"}]
[null,null,null,null,null,null,null,null,null,null,null,null,null,null,null,null,null,null,null,null,null,null,null,null,null,null,"526",5,2,6,{"$f":"AB1","v":"Monaco"}]
[null,null,null,null,null,null,null,null,null,null,null,null,null,null,null,null,null,null,null,null,null,null,null,null,null,null,"527",5,2,7,{"$f":"AB1","v":"Monaco"}]
[null,null,null,null,null,null,null,null,null,null,null,null,null,null,null,null,null,null,null,null,null,null,null,null,null,null,"528",5,2,8,"NUL"]
[null,null,null,null,null,null,null,null,null,null,null,null,null,null,null,null,null,null,null,null,null,null,null,null,null,null,"529",5,2,9,{"$f":"AC1","v":"PSG"}]
[null,null,null,null,null,null,null,null,null,null,null,null,null,null,null,null,null,null,null,null,null,null,null,null,null,null,"531",5,3,1,{"$f":"AC1","v":"PSG"}]
[null,null,null,null,null,null,null,null,null,null,null,null,null,null,null,null,null,null,null,null,null,null,null,null,null,null,"532",5,3,2,{"$f":"AC1","v":"PSG"}]
[null,null,null,null,null,null,null,null,null,null,null,null,null,null,null,null,null,null,null,null,null,null,null,null,null,null,"533",5,3,3,{"$f":"AC1","v":"PSG"}]
[null,null,null,null,null,null,null,null,null,null,null,null,null,null,null,null,null,null,null,null,null,null,null,null,null,null,"534",5,3,4,"NUL"]
[null,null,null,null,null,null,null,null,null,null,null,null,null,null,null,null,null,null,null,null,null,null,null,null,null,null,"535",5,3,5,{"$f":"AB1","v":"Monaco"}]
[null,null,null,null,null,null,null,null,null,null,null,null,null,null,null,null,null,null,null,null,null,null,null,null,null,null,"536",5,3,6,{"$f":"AB1","v":"Monaco"}]
[null,null,null,null,null,null,null,null,null,null,null,null,null,null,null,null,null,null,null,null,null,null,null,null,null,null,"537",5,3,7,{"$f":"AB1","v":"Monaco"}]
[null,null,null,null,null,null,null,null,null,null,null,null,null,null,null,null,null,null,null,null,null,null,null,null,null,null,"538",5,3,8,{"$f":"AB1","v":"Monaco"}]
[null,null,null,null,null,null,null,null,null,null,null,null,null,null,null,null,null,null,null,null,null,null,null,null,null,null,"539",5,3,9,{"$f":"AC1","v":"PSG"}]
[null,null,null,null,null,null,null,null,null,null,null,null,null,null,null,null,null,null,null,null,null,null,null,null,null,null,"541",5,4,1,{"$f":"AC1","v":"PSG"}]
[null,null,null,null,null,null,null,null,null,null,null,null,null,null,null,null,null,null,null,null,null,null,null,null,null,null,"542",5,4,2,{"$f":"AC1","v":"PSG"}]
[null,null,null,null,null,null,null,null,null,null,null,null,null,null,null,null,null,null,null,null,null,null,null,null,null,null,"543",5,4,3,{"$f":"AC1","v":"PSG"}]
[null,null,null,null,null,null,null,null,null,null,null,null,null,null,null,null,null,null,null,null,null,null,null,null,null,null,"544",5,4,4,{"$f":"AC1","v":"PSG"}]
[null,null,null,null,null,null,null,null,null,null,null,null,null,null,null,null,null,null,null,null,null,null,null,null,null,null,"545",5,4,5,{"$f":"AB1","v":"Monaco"}]
[null,null,null,null,null,null,null,null,null,null,null,null,null,null,null,null,null,null,null,null,null,null,null,null,null,null,"546",5,4,6,{"$f":"AB1","v":"Monaco"}]
[null,null,null,null,null,null,null,null,null,null,null,null,null,null,null,null,null,null,null,null,null,null,null,null,null,null,"547",5,4,7,{"$f":"AB1","v":"Monaco"}]
[null,null,null,null,null,null,null,null,null,null,null,null,null,null,null,null,null,null,null,null,null,null,null,null,null,null,"548",5,4,8,{"$f":"AB1","v":"Monaco"}]
[null,null,null,null,null,null,null,null,null,null,null,null,null,null,null,null,null,null,null,null,null,null,null,null,null,null,"549",5,4,9,"NUL"]
[null,null,null,null,null,null,null,null,null,null,null,null,null,null,null,null,null,null,null,null,null,null,null,null,null,null,"551",5,5,1,{"$f":"AB1","v":"Monaco"}]
[null,null,null,null,null,null,null,null,null,null,null,null,null,null,null,null,null,null,null,null,null,null,null,null,null,null,"552",5,5,2,{"$f":"AC1","v":"PSG"}]
[null,null,null,null,null,null,null,null,null,null,null,null,null,null,null,null,null,null,null,null,null,null,null,null,null,null,"553",5,5,3,{"$f":"AB1","v":"Monaco"}]
[null,null,null,null,null,null,null,null,null,null,null,null,null,null,null,null,null,null,null,null,null,null,null,null,null,null,"554",5,5,4,"NUL"]
[null,null,null,null,null,null,null,null,null,null,null,null,null,null,null,null,null,null,null,null,null,null,null,null,null,null,"556",5,5,6,"NUL"]
[null,null,null,null,null,null,null,null,null,null,null,null,null,null,null,null,null,null,null,null,null,null,null,null,null,null,"557",5,5,7,{"$f":"AB1","v":"Monaco"}]
[null,null,null,null,null,null,null,null,null,null,null,null,null,null,null,null,null,null,null,null,null,null,null,null,null,null,"558",5,5,8,{"$f":"AC1","v":"PSG"}]
[null,null,null,null,null,null,null,null,null,null,null,null,null,null,null,null,null,null,null,null,null,null,null,null,null,null,"559",5,5,9,{"$f":"AB1","v":"Monaco"}]
[null,null,null,null,null,null,null,null,null,null,null,null,null,null,null,null,null,null,null,null,null,null,null,null,null,null,"561",5,6,1,"NUL"]
[null,null,null,null,null,null,null,null,null,null,null,null,null,null,null,null,null,null,null,null,null,null,null,null,null,null,"562",5,6,2,{"$f":"AB1","v":"Monaco"}]
[null,null,null,null,null,null,null,null,null,null,null,null,null,null,null,null,null,null,null,null,null,null,null,null,null,null,"563",5,6,3,{"$f":"AB1","v":"Monaco"}]
[null,null,null,null,null,null,null,null,null,null,null,null,null,null,null,null,null,null,null,null,null,null,null,null,null,null,"564",5,6,4,{"$f":"AB1","v":"Monaco"}]
[null,null,null,null,null,null,null,null,null,null,null,null,null,null,null,null,null,null,null,null,null,null,null,null,null,null,"565",5,6,5,{"$f":"AB1","v":"Monaco"}]
[null,null,null,null,null,null,null,null,null,null,null,null,null,null,null,null,null,null,null,null,null,null,null,null,null,null,"566",5,6,6,{"$f":"AC1","v":"PSG"}]
[null,null,null,null,null,null,null,null,null,null,null,null,null,null,null,null,null,null,null,null,null,null,null,null,null,null,"567",5,6,7,{"$f":"AC1","v":"PSG"}]
[null,null,null,null,null,null,null,null,null,null,null,null,null,null,null,null,null,null,null,null,null,null,null,null,null,null,"568",5,6,8,{"$f":"AC1","v":"PSG"}]
[null,null,null,null,null,null,null,null,null,null,null,null,null,null,null,null,null,null,null,null,null,null,null,null,null,null,"569",5,6,9,{"$f":"AC1","v":"PSG"}]
[null,null,null,null,null,null,null,null,null,null,null,null,null,null,null,null,null,null,null,null,null,null,null,null,null,null,"571",5,7,1,{"$f":"AC1","v":"PSG"}]
[null,null,null,null,null,null,null,null,null,null,null,null,null,null,null,null,null,null,null,null,null,null,null,null,null,null,"572",5,7,2,{"$f":"AB1","v":"Monaco"}]
[null,null,null,null,null,null,null,null,null,null,null,null,null,null,null,null,null,null,null,null,null,null,null,null,null,null,"573",5,7,3,{"$f":"AB1","v":"Monaco"}]
[null,null,null,null,null,null,null,null,null,null,null,null,null,null,null,null,null,null,null,null,null,null,null,null,null,null,{"$f":"CONCATENATE(AB387,AC387,AD387)","v":"574"},5,7,4,{"$f":"AB1","v":"Monaco"}]
[null,null,null,null,null,null,null,null,null,null,null,null,null,null,null,null,null,null,null,null,null,null,null,null,null,null,"575",5,7,5,{"$f":"AB1","v":"Monaco"}]
[null,null,null,null,null,null,null,null,null,null,null,null,null,null,null,null,null,null,null,null,null,null,null,null,null,null,"576",5,7,6,"NUL"]
[null,null,null,null,null,null,null,null,null,null,null,null,null,null,null,null,null,null,null,null,null,null,null,null,null,null,"577",5,7,7,{"$f":"AC1","v":"PSG"}]
[null,null,null,null,null,null,null,null,null,null,null,null,null,null,null,null,null,null,null,null,null,null,null,null,null,null,"578",5,7,8,{"$f":"AC1","v":"PSG"}]
[null,null,null,null,null,null,null,null,null,null,null,null,null,null,null,null,null,null,null,null,null,null,null,null,null,null,"579",5,7,9,{"$f":"AC1","v":"PSG"}]
[null,null,null,null,null,null,null,null,null,null,null,null,null,null,null,null,null,null,null,null,null,null,null,null,null,null,"581",5,8,1,{"$f":"AC1","v":"PSG"}]
[null,null,null,null,null,null,null,null,null,null,null,null,null,null,null,null,null,null,null,null,null,null,null,null,null,null,"582",5,8,2,"NUL"]
[null,null,null,null,null,null,null,null,null,null,null,null,null,null,null,null,null,null,null,null,null,null,null,null,null,null,"583",5,8,3,{"$f":"AB1","v":"Monaco"}]
[null,null,null,null,null,null,null,null,null,null,null,null,null,null,null,null,null,null,null,null,null,null,null,null,null,null,"584",5,8,4,{"$f":"AB1","v":"Monaco"}]
[null,null,null,null,null,null,null,null,null,null,null,null,null,null,null,null,null,null,null,null,null,null,null,null,null,null,"585",5,8,5,{"$f":"AB1","v":"Monaco"}]
[null,null,null,null,null,null,null,null,null,null,null,null,null,null,null,null,null,null,null,null,null,null,null,null,null,null,"586",5,8,6,{"$f":"AB1","v":"Monaco"}]
[null,null,null,null,null,null,null,null,null,null,null,null,null,null,null,null,null,null,null,null,null,null,null,null,null,null,"587",5,8,7,{"$f":"AC1","v":"PSG"}]
[null,null,null,null,null,null,null,null,null,null,null,null,null,null,null,null,null,null,null,null,null,null,null,null,null,null,"588",5,8,8,{"$f":"AC1","v":"PSG"}]
[null,null,null,null,null,null,null,null,null,null,null,null,null,null,null,null,null,null,null,null,null,null,null,null,null,null,"589",5,8,9,{"$f":"AC1","v":"PSG"}]
[null,null,null,null,null,null,null,null,null,null,null,null,null,null,null,null,null,null,null,null,null,null,null,null,null,null,"591",5,9,1,{"$f":"AC1","v":"PSG"}]
[null,null,null,null,null,null,null,null,null,null,null,null,null,null,null,null,null,null,null,null,null,null,null,null,null,null,"592",5,9,2,{"$f":"AC1","v":"PSG"}]
[null,null,null,null,null,null,null,null,null,null,null,null,null,null,null,null,null,null,null,null,null,null,null,null,null,null,"593",5,9,3,{"$f":"AB1","v":"Monaco"}]
[null,null,null,null,null,null,null,null,null,null,null,null,null,null,null,null,null,null,null,null,null,null,null,null,null,null,"594",5,9,4,{"$f":"AB1","v":"Monaco"}]
[null,null,null,null,null,null,null,null,null,null,null,null,null,null,null,null,null,null,null,null,null,null,null,null,null,null,"595",5,9,5,{"$f":"AB1","v":"Monaco"}]
[null,null,null,null,null,null,null,null,null,null,null,null,null,null,null,null,null,null,null,null,null,null,null,null,null,null,"596",5,9,6,{"$f":"AB1","v":"Monaco"}]
[null,null,null,null,null,null,null,null,null,null,null,null,null,null,null,null,null,null,null,null,null,null,null,null,null,null,"597",5,9,7,"NUL"]
[null,null,null,null,null,null,null,null,null,null,null,null,null,null,null,null,null,null,null,null,null,null,null,null,null,null,"598",5,9,8,{"$f":"AC1","v":"PSG"}]
[null,null,null,null,null,null,null,null,null,null,null,null,null,null,null,null,null,null,null,null,null,null,null,null,null,null,"599",5,9,9,{"$f":"AC1","v":"PSG"}]
[null,null,null,null,null,null,null,null,null,null,null,null,null,null,null,null,null,null,null,null,null,null,null,null,null,null,"611",6,1,1,{"$f":"AC1","v":"PSG"}]
[null,null,null,null,null,null,null,null,null,null,null,null,null,null,null,null,null,null,null,null,null,null,null,null,null,null,"612",6,1,2,{"$f":"AC1","v":"PSG"}]
[null,null,null,null,null,null,null,null,null,null,null,null,null,null,null,null,null,null,null,null,null,null,null,null,null,null,"613",6,1,3,{"$f":"AC1","v":"PSG"}]
[null,null,null,null,null,null,null,null,null,null,null,null,null,null,null,null,null,null,null,null,null,null,null,null,null,null,"614",6,1,4,{"$f":"AB1","v":"Monaco"}]
[null,null,null,null,null,null,null,null,null,null,null,null,null,null,null,null,null,null,null,null,null,null,null,null,null,null,"615",6,1,5,{"$f":"AB1","v":"Monaco"}]
[null,null,null,null,null,null,null,null,null,null,null,null,null,null,null,null,null,null,null,null,null,null,null,null,null,null,"616",6,1,6,{"$f":"AB1","v":"Monaco"}]
[null,null,null,null,null,null,null,null,null,null,null,null,null,null,null,null,null,null,null,null,null,null,null,null,null,null,"617",6,1,7,{"$f":"AB1","v":"Monaco"}]
[null,null,null,null,null,null,null,null,null,null,null,null,null,null,null,null,null,null,null,null,null,null,null,null,null,null,"618",6,1,8,"NUL"]
[null,null,null,null,null,null,null,null,null,null,null,null,null,null,null,null,null,null,null,null,null,null,null,null,null,null,"619",6,1,9,{"$f":"AC1","v":"PSG"}]
[null,null,null,null,null,null,null,null,null,null,null,null,null,null,null,null,null,null,null,null,null,null,null,null,null,null,"621",6,2,1,{"$f":"AC1","v":"PSG"}]
[null,null,null,null,null,null,null,null,null,null,null,null,null,null,null,null,null,null,null,null,null,null,null,null,null,null,"622",6,2,2,{"$f":"AC1","v":"PSG"}]
[null,null,null,null,null,null,null,null,null,null,null,null,null,null,null,null,null,null,null,null,null,null,null,null,null,null,"623",6,2,3,{"$f":"AC1","v":"PSG"}]
[null,null,null,null,null,null,null,null,null,null,null,null,null,null,null,null,null,null,null,null,null,null,null,null,null,null,"624",6,2,4,"NUL"]
[null,null,null,null,null,null,null,null,null,null,null,null,null,null,null,null,null,null,null,null,null,null,null,null,null,null,"625",6,2,5,{"$f":"AB1","v":"Monaco"}]
[null,null,null,null,null,null,null,null,null,null,null,null,null,null,null,null,null,null,null,null,null,null,null,null,null,null,"626",6,2,6,{"$f":"AB1","v":"Monaco"}]
[null,null,null,null,null,null,null,null,null,null,null,null,null,null,null,null,null,null,null,null,null,null,null,null,null,null,"627",6,2,7,{"$f":"AB1","v":"Monaco"}]
[null,null,null,null,null,null,null,null,null,null,null,null,null,null,null,null,null,null,null,null,null,null,null,null,null,null,"628",6,2,8,{"$f":"AB1","v":"Monaco"}]
[null,null,null,null,null,null,null,null,null,null,null,null,null,null,null,null,null,null,null,null,null,null,null,null,null,null,"629",6,2,9,{"$f":"AC1","v":"PSG"}]
[null,null,null,null,null,null,null,null,null,null,null,null,null,null,null,null,null,null,null,null,null,null,null,null,null,null,"631",6,3,1,{"$f":"AC1","v":"PSG"}]
[null,null,null,null,null,null,null,null,null,null,null,null,null,null,null,null,null,null,null,null,null,null,null,null,null,null,"632",6,3,2,{"$f":"AC1","v":"PSG"}]
[null,null,null,null,null,null,null,null,null,null,null,null,null,null,null,null,null,null,null,null,null,null,null,null,null,null,"633",6,3,3,{"$f":"AC1","v":"PSG"}]
[null,null,null,null,null,null,null,null,null,null,null,null,null,null,null,null,null,null,null,null,null,null,null,null,null,null,"634",6,3,4,{"$f":"AC1","v":"PSG"}]
[null,null,null,null,null,null,null,null,null,null,null,null,null,null,null,null,null,null,null,null,null,null,null,null,null,null,"635",6,3,5,{"$f":"AB1","v":"Monaco"}]
[null,null,null,null,null,null,null,null,null,null,null,null,null,null,null,null,null,null,null,null,null,null,null,null,null,null,"636",6,3,6,{"$f":"AB1","v":"Monaco"}]
[null,null,null,null,null,null,null,null,null,null,null,null,null,null,null,null,null,null,null,null,null,null,null,null,null,null,"637",6,3,7,{"$f":"AB1","v":"Monaco"}]
[null,null,null,null,null,null,null,null,null,null,null,null,null,null,null,null,null,null,null,null,null,null,null,null,null,null,"638",6,3,8,{"$f":"AB1","v":"Monaco"}]
[null,null,null,null,null,null,null,null,null,null,null,null,null,null,null,null,null,null,null,null,null,null,null,null,null,null,"639",6,3,9,"NUL"]
[null,null,null,null,null,null,null,null,null,null,null,null,null,null,null,null,null,null,null,null,null,null,null,null,null,null,"641",6,4,1,{"$f":"AC1","v":"PSG"}]
[null,null,null,null,null,null,null,null,null,null,null,null,null,null,null,null,null,null,null,null,null,null,null,null,null,null,"642",6,4,2,{"$f":"AC1","v":"PSG"}]
[null,null,null,null,null,null,null,null,null,null,null,null,null,null,null,null,null,null,null,null,null,null,null,null,null,null,"643",6,4,3,{"$f":"AC1","v":"PSG"}]
[null,null,null,null,null,null,null,null,null,null,null,null,null,null,null,null,null,null,null,null,null,null,null,null,null,null,"644",6,4,4,{"$f":"AC1","v":"PSG"}]
[null,null,null,null,null,null,null,null,null,null,null,null,null,null,null,null,null,null,null,null,null,null,null,null,null,null,"645",6,4,5,"NUL"]
[null,null,null,null,null,null,null,null,null,null,null,null,null,null,null,null,null,null,null,null,null,null,null,null,null,null,"646",6,4,6,{"$f":"AB1","v":"Monaco"}]
[null,null,null,null,null,null,null,null,null,null,null,null,null,null,null,null,null,null,null,null,null,null,null,null,null,null,"647",6,4,7,{"$f":"AB1","v":"Monaco"}]
[null,null,null,null,null,null,null,null,null,null,null,null,null,null,null,null,null,null,null,null,null,null,null,null,null,null,"648",6,4,8,{"$f":"AB1","v":"Monaco"}]
[null,null,null,null,null,null,null,null,null,null,null,null,null,null,null,null,null,null,null,null,null,null,null,null,null,null,"649",6,4,9,{"$f":"AB1","v":"Monaco"}]
[null,null,null,null,null,null,null,null,null,null,null,null,null,null,null,null,null,null,null,null,null,null,null,null,null,null,"651",6,5,1,"NUL"]
[null,null,null,null,null,null,null,null,null,null,null,null,null,null,null,null,null,null,null,null,null,null,null,null,null,null,"652",6,5,2,{"$f":"AC1","v":"PSG"}]
[null,null,null,null,null,null,null,null,null,null,null,null,null,null,null,null,null,null,null,null,null,null,null,null,null,null,"653",6,5,3,{"$f":"AC1","v":"PSG"}]
[null,null,null,null,null,null,null,null,null,null,null,null,null,null,null,null,null,null,null,null,null,null,null,null,null,null,"654",6,5,4,{"$f":"AC1","v":"PSG"}]
[null,null,null,null,null,null,null,null,null,null,null,null,null,null,null,null,null,null,null,null,null,null,null,null,null,null,{"$f":"CONCATENATE(AB451,AC451,AD451)","v":"655"},6,5,5,{"$f":"AC1","v":"PSG"}]
[null,null,null,null,null,null,null,null,null,null,null,null,null,null,null,null,null,null,null,null,null,null,null,null,null,null,"656",6,5,6,{"$f":"AB1","v":"Monaco"}]
[null,null,null,null,null,null,null,null,null,null,null,null,null,null,null,null,null,null,null,null,null,null,null,null,null,null,"657",6,5,7,{"$f":"AB1","v":"Monaco"}]
[null,null,null,null,null,null,null,null,null,null,null,null,null,null,null,null,null,null,null,null,null,null,null,null,null,null,"658",6,5,8,{"$f":"AB1","v":"Monaco"}]
[null,null,null,null,null,null,null,null,null,null,null,null,null,null,null,null,null,null,null,null,null,null,null,null,null,null,"659",6,5,9,{"$f":"AB1","v":"Monaco"}]
[null,null,null,null,null,null,null,null,null,null,null,null,null,null,null,null,null,null,null,null,null,null,null,null,null,null,"661",6,6,1,{"$f":"AB1","v":"Monaco"}]
[null,null,null,null,null,null,null,null,null,null,null,null,null,null,null,null,null,null,null,null,null,null,null,null,null,null,"662",6,6,2,{"$f":"AB1","v":"Monaco"}]
[null,null,null,null,null,null,null,null,null,null,null,null,null,null,null,null,null,null,null,null,null,null,null,null,null,null,"663",6,6,3,{"$f":"AC1","v":"PSG"}]
[null,null,null,null,null,null,null,null,null,null,null,null,null,null,null,null,null,null,null,null,null,null,null,null,null,null,"664",6,6,4,{"$f":"AB1","v":"Monaco"}]
[null,null,null,null,null,null,null,null,null,null,null,null,null,null,null,null,null,null,null,null,null,null,null,null,null,null,"665",6,6,5,"NUL"]
[null,null,null,null,null,null,null,null,null,null,null,null,null,null,null,null,null,null,null,null,null,null,null,null,null,null,"667",6,6,7,"NUL"]
[null,null,null,null,null,null,null,null,null,null,null,null,null,null,null,null,null,null,null,null,null,null,null,null,null,null,"668",6,6,8,{"$f":"AB1","v":"Monaco"}]
[null,null,null,null,null,null,null,null,null,null,null,null,null,null,null,null,null,null,null,null,null,null,null,null,null,null,"669",6,6,9,{"$f":"AC1","v":"PSG"}]
[null,null,null,null,null,null,null,null,null,null,null,null,null,null,null,null,null,null,null,null,null,null,null,null,null,null,"671",6,7,1,{"$f":"AC1","v":"PSG"}]
[null,null,null,null,null,null,null,null,null,null,null,null,null,null,null,null,null,null,null,null,null,null,null,null,null,null,"672",6,7,2,"NUL"]
[null,null,null,null,null,null,null,null,null,null,null,null,null,null,null,null,null,null,null,null,null,null,null,null,null,null,"673",6,7,3,{"$f":"AB1","v":"Monaco"}]
[null,null,null,null,null,null,null,null,null,null,null,null,null,null,null,null,null,null,null,null,null,null,null,null,null,null,"674",6,7,4,{"$f":"AB1","v":"Monaco"}]
[null,null,null,null,null,null,null,null,null,null,null,null,null,null,null,null,null,null,null,null,null,null,null,null,null,null,"675",6,7,5,{"$f":"AB1","v":"Monaco"}]
[null,null,null,null,null,null,null,null,null,null,null,null,null,null,null,null,null,null,null,null,null,null,null,null,null,null,"676",6,7,6,{"$f":"AB1","v":"Monaco"}]
[null,null,null,null,null,null,null,null,null,null,null,null,null,null,null,null,null,null,null,null,null,null,null,null,null,null,"677",6,7,7,{"$f":"AC1","v":"PSG"}]
[null,null,null,null,null,null,null,null,null,null,null,null,null,null,null,null,null,null,null,null,null,null,null,null,null,null,"678",6,7,8,{"$f":"AC1","v":"PSG"}]
[null,null,null,null,null,null,null,null,null,null,null,null,null,null,null,null,null,null,null,null,null,null,null,null,null,null,"679",6,7,9,{"$f":"AC1","v":"PSG"}]
[null,null,null,null,null,null,null,null,null,null,null,null,null,null,null,null,null,null,null,null,null,null,null,null,null,null,"681",6,8,1,{"$f":"AC1","v":"PSG"}]
[null,null,null,null,null,null,null,null,null,null,null,null,null,null,null,null,null,null,null,null,null,null,null,null,null,null,"682",6,8,2,{"$f":"AC1","v":"PSG"}]
[null,null,null,null,null,null,null,null,null,null,null,null,null,null,null,null,null,null,null,null,null,null,null,null,null,null,"683",6,8,3,{"$f":"AB1","v":"Monaco"}]
[null,null,null,null,null,null,null,null,null,null,null,null,null,null,null,null,null,null,null,null,null,null,null,null,null,null,"684",6,8,4,{"$f":"AB1","v":"Monaco"}]
[null,null,null,null,null,null,null,null,null,null,null,null,null,null,null,null,null,null,null,null,null,null,null,null,null,null,"685",6,8,5,{"$f":"AB1","v":"Monaco"}]
[null,null,null,null,null,null,null,null,null,null,null,null,null,null,null,null,null,null,null,null,null,null,null,null,null,null,"686",6,8,6,{"$f":"AB1","v":"Monaco"}]
[null,null,null,null,null,null,null,null,null,null,null,null,null,null,null,null,null,null,null,null,null,null,null,null,null,null,"687",6,8,7,"NUL"]
[null,null,null,null,null,null,null,null,null,null,null,null,null,null,null,null,null,null,null,null,null,null,null,null,null,null,"688",6,8,8,{"$f":"AC1","v":"PSG"}]
[null,null,null,null,null,null,null,null,null,null,null,null,null,null,null,null,null,null,null,null,null,null,null,null,null,null,"689",6,8,9,{"$f":"AC1","v":"PSG"}]
[null,null,null,null,null,null,null,null,null,null,null,null,null,null,null,null,null,null,null,null,null,null,null,null,null,null,"691",6,9,1,{"$f":"AC1","v":"PSG"}]
[null,null,null,null,null,null,null,null,null,null,null,null,null,null,null,null,null,null,null,null,null,null,null,null,null,null,"692",6,9,2,{"$f":"AC1","v":"PSG"}]
[null,null,null,null,null,null,null,null,null,null,null,null,null,null,null,null,null,null,null,null,null,null,null,null,null,null,"693",6,9,3,"NUL"]
[null,null,null,null,null,null,null,null,null,null,null,null,null,null,null,null,null,null,null,null,null,null,null,null,null,null,"694",6,9,4,{"$f":"AB1","v":"Monaco"}]
[null,null,null,null,null,null,null,null,null,null,null,null,null,null,null,null,null,null,null,null,null,null,null,null,null,null,"695",6,9,5,{"$f":"AB1","v":"Monaco"}]
[null,null,null,null,null,null,null,null,null,null,null,null,null,null,null,null,null,null,null,null,null,null,null,null,null,null,"696",6,9,6,{"$f":"AB1","v":"Monaco"}]
[null,null,null,null,null,null,null,null,null,null,null,null,null,null,null,null,null,null,null,null,null,null,null,null,null,null,"697",6,9,7,{"$f":"AB1","v":"Monaco"}]
[null,null,null,null,null,null,null,null,null,null,null,null,null,null,null,null,null,null,null,null,null,null,null,null,null,null,"698",6,9,8,{"$f":"AC1","v":"PSG"}]
[null,null,null,null,null,null,null,null,null,null,null,null,null,null,null,null,null,null,null,null,null,null,null,null,null,null,"699",6,9,9,{"$f":"AC1","v":"PSG"}]
[null,null,null,null,null,null,null,null,null,null,null,null,null,null,null,null,null,null,null,null,null,null,null,null,null,null,"711",7,1,1,{"$f":"AC1","v":"PSG"}]
[null,null,null,null,null,null,null,null,null,null,null,null,null,null,null,null,null,null,null,null,null,null,null,null,null,null,"712",7,1,2,{"$f":"AC1","v":"PSG"}]
[null,null,null,null,null,null,null,null,null,null,null,null,null,null,null,null,null,null,null,null,null,null,null,null,null,null,"713",7,1,3,{"$f":"AC1","v":"PSG"}]
[null,null,null,null,null,null,null,null,null,null,null,null,null,null,null,null,null,null,null,null,null,null,null,null,null,null,"714",7,1,4,"NUL"]
[null,null,null,null,null,null,null,null,null,null,null,null,null,null,null,null,null,null,null,null,null,null,null,null,null,null,"715",7,1,5,{"$f":"AB1","v":"Monaco"}]
[null,null,null,null,null,null,null,null,null,null,null,null,null,null,null,null,null,null,null,null,null,null,null,null,null,null,"716",7,1,6,{"$f":"AB1","v":"Monaco"}]
[null,null,null,null,null,null,null,null,null,null,null,null,null,null,null,null,null,null,null,null,null,null,null,null,null,null,"717",7,1,7,{"$f":"AB1","v":"Monaco"}]
[null,null,null,null,null,null,null,null,null,null,null,null,null,null,null,null,null,null,null,null,null,null,null,null,null,null,"718",7,1,8,{"$f":"AB1","v":"Monaco"}]
[null,null,null,null,null,null,null,null,null,null,null,null,null,null,null,null,null,null,null,null,null,null,null,null,null,null,"719",7,1,9,{"$f":"AC1","v":"PSG"}]
[null,null,null,null,null,null,null,null,null,null,null,null,null,null,null,null,null,null,null,null,null,null,null,null,null,null,"721",7,2,1,{"$f":"AC1","v":"PSG"}]
[null,null,null,null,null,null,null,null,null,null,null,null,null,null,null,null,null,null,null,null,null,null,null,null,null,null,"722",7,2,2,{"$f":"AC1","v":"PSG"}]
[null,null,null,null,null,null,null,null,null,null,null,null,null,null,null,null,null,null,null,null,null,null,null,null,null,null,"723",7,2,3,{"$f":"AC1","v":"PSG"}]
[null,null,null,null,null,null,null,null,null,null,null,null,null,null,null,null,null,null,null,null,null,null,null,null,null,null,"724",7,2,4,{"$f":"AC1","v":"PSG"}]
[null,null,null,null,null,null,null,null,null,null,null,null,null,null,null,null,null,null,null,null,null,null,null,null,null,null,"725",7,2,5,{"$f":"AB1","v":"Monaco"}]
[null,null,null,null,null,null,null,null,null,null,null,null,null,null,null,null,null,null,null,null,null,null,null,null,null,null,"726",7,2,6,{"$f":"AB1","v":"Monaco"}]
[null,null,null,null,null,null,null,null,null,null,null,null,null,null,null,null,null,null,null,null,null,null,null,null,null,null,"727",7,2,7,{"$f":"AB1","v":"Monaco"}]
[null,null,null,null,null,null,null,null,null,null,null,null,null,null,null,null,null,null,null,null,null,null,null,null,null,null,"728",7,2,8,{"$f":"AB1","v":"Monaco"}]
[null,null,null,null,null,null,null,null,null,null,null,null,null,null,null,null,null,null,null,null,null,null,null,null,null,null,"729",7,2,9,"NUL"]
[null,null,null,null,null,null,null,null,null,null,null,null,null,null,null,null,null,null,null,null,null,null,null,null,null,null,"731",7,3,1,{"$f":"AC1","v":"PSG"}]
[null,null,null,null,null,null,null,null,null,null,null,null,null,null,null,null,null,null,null,null,null,null,null,null,null,null,"732",7,3,2,{"$f":"AC1","v":"PSG"}]
[null,null,null,null,null,null,null,null,null,null,null,null,null,null,null,null,null,null,null,null,null,null,null,null,null,null,"733",7,3,3,{"$f":"AC1","v":"PSG"}]
[null,null,null,null,null,null,null,null,null,null,null,null,null,null,null,null,null,null,null,null,null,null,null,null,null,null,"734",7,3,4,{"$f":"AC1","v":"PSG"}]
[null,null,null,null,null,null,null,null,null,null,null,null,null,null,null,null,null,null,null,null,null,null,null,null,null,null,"735",7,3,5,"NUL"]
[null,null,null,null,null,null,null,null,null,null,null,null,null,null,null,null,null,null,null,null,null,null,null,null,null,null,"736",7,3,6,{"$f":"AB1","v":"Monaco"}]
[null,null,null,null,null,null,null,null,null,null,null,null,null,null,null,null,null,null,null,null,null,null,null,null,null,null,{"$f":"CONCATENATE(AB515,AC515,AD515)","v":"737"},7,3,7,{"$f":"AB1","v":"Monaco"}]
[null,null,null,null,null,null,null,null,null,null,null,null,null,null,null,null,null,null,null,null,null,null,null,null,null,null,"738",7,3,8,{"$f":"AB1","v":"Monaco"}]
[null,null,null,null,null,null,null,null,null,null,null,null,null,null,null,null,null,null,null,null,null,null,null,null,null,null,"739",7,3,9,{"$f":"AB1","v":"Monaco"}]
[null,null,null,null,null,null,null,null,null,null,null,null,null,null,null,null,null,null,null,null,null,null,null,null,null,null,"741",7,4,1,"NUL"]
[null,null,null,null,null,null,null,null,null,null,null,null,null,null,null,null,null,null,null,null,null,null,null,null,null,null,"742",7,4,2,{"$f":"AC1","v":"PSG"}]
[null,null,null,null,null,null,null,null,null,null,null,null,null,null,null,null,null,null,null,null,null,null,null,null,null,null,"743",7,4,3,{"$f":"AC1","v":"PSG"}]
[null,null,null,null,null,null,null,null,null,null,null,null,null,null,null,null,null,null,null,null,null,null,null,null,null,null,"744",7,4,4,{"$f":"AC1","v":"PSG"}]
[null,null,null,null,null,null,null,null,null,null,null,null,null,null,null,null,null,null,null,null,null,null,null,null,null,null,"745",7,4,5,{"$f":"AC1","v":"PSG"}]
[null,null,null,null,null,null,null,null,null,null,null,null,null,null,null,null,null,null,null,null,null,null,null,null,null,null,"746",7,4,6,{"$f":"AB1","v":"Monaco"}]
[null,null,null,null,null,null,null,null,null,null,null,null,null,null,null,null,null,null,null,null,null,null,null,null,null,null,"747",7,4,7,{"$f":"AB1","v":"Monaco"}]
[null,null,null,null,null,null,null,null,null,null,null,null,null,null,null,null,null,null,null,null,null,null,null,null,null,null,"748",7,4,8,{"$f":"AB1","v":"Monaco"}]
[null,null,null,null,null,null,null,null,null,null,null,null,null,null,null,null,null,null,null,null,null,null,null,null,null,null,"749",7,4,9,{"$f":"AB1","v":"Monaco"}]
[null,null,null,null,null,null,null,null,null,null,null,null,null,null,null,null,null,null,null,null,null,null,null,null,null,null,"751",7,5,1,{"$f":"AB1","v":"Monaco"}]
[null,null,null,null,null,null,null,null,null,null,null,null,null,null,null,null,null,null,null,null,null,null,null,null,null,null,"752",7,5,2,{"$f":"AC1","v":"PSG"}]
[null,null,null,null,null,null,null,null,null,null,null,null,null,null,null,null,null,null,null,null,null,null,null,null,null,null,"753",7,5,3,{"$f":"AC1","v":"PSG"}]
[null,null,null,null,null,null,null,null,null,null,null,null,null,null,null,null,null,null,null,null,null,null,null,null,null,null,"754",7,5,4,{"$f":"AC1","v":"PSG"}]
[null,null,null,null,null,null,null,null,null,null,null,null,null,null,null,null,null,null,null,null,null,null,null,null,null,null,"755",7,5,5,{"$f":"AC1","v":"PSG"}]
[null,null,null,null,null,null,null,null,null,null,null,null,null,null,null,null,null,null,null,null,null,null,null,null,null,null,"756",7,5,6,"NUL"]
[null,null,null,null,null,null,null,null,null,null,null,null,null,null,null,null,null,null,null,null,null,null,null,null,null,null,"757",7,5,7,{"$f":"AB1","v":"Monaco"}]
[null,null,null,null,null,null,null,null,null,null,null,null,null,null,null,null,null,null,null,null,null,null,null,null,null,null,"758",7,5,8,{"$f":"AB1","v":"Monaco"}]
[null,null,null,null,null,null,null,null,null,null,null,null,null,null,null,null,null,null,null,null,null,null,null,null,null,null,"759",7,5,9,{"$f":"AB1","v":"Monaco"}]
[null,null,null,null,null,null,null,null,null,null,null,null,null,null,null,null,null,null,null,null,null,null,null,null,null,null,"761",7,6,1,{"$f":"AB1","v":"Monaco"}]
[null,null,null,null,null,null,null,null,null,null,null,null,null,null,null,null,null,null,null,null,null,null,null,null,null,null,"762",7,6,2,"NUL"]
[null,null,null,null,null,null,null,null,null,null,null,null,null,null,null,null,null,null,null,null,null,null,null,null,null,null,"763",7,6,3,{"$f":"AC1","v":"PSG"}]
[null,null,null,null,null,null,null,null,null,null,null,null,null,null,null,null,null,null,null,null,null,null,null,null,null,null,"764",7,6,4,{"$f":"AC1","v":"PSG"}]
[null,null,null,null,null,null,null,null,null,null,null,null,null,null,null,null,null,null,null,null,null,null,null,null,null,null,"765",7,6,5,{"$f":"AC1","v":"PSG"}]
[null,null,null,null,null,null,null,null,null,null,null,null,null,null,null,null,null,null,null,null,null,null,null,null,null,null,"766",7,6,6,{"$f":"AC1","v":"PSG"}]
[null,null,null,null,null,null,null,null,null,null,null,null,null,null,null,null,null,null,null,null,null,null,null,null,null,null,"767",7,6,7,{"$f":"AB1","v":"Monaco"}]
[null,null,null,null,null,null,null,null,null,null,null,null,null,null,null,null,null,null,null,null,null,null,null,null,null,null,"768",7,6,8,{"$f":"AB1","v":"Monaco"}]
[null,null,null,null,null,null,null,null,null,null,null,null,null,null,null,null,null,null,null,null,null,null,null,null,null,null,"769",7,6,9,{"$f":"AB1","v":"Monaco"}]
[null,null,null,null,null,null,null,null,null,null,null,null,null,null,null,null,null,null,null,null,null,null,null,null,null,null,"771",7,7,1,{"$f":"AC1","v":"PSG"}]
[null,null,null,null,null,null,null,null,null,null,null,null,null,null,null,null,null,null,null,null,null,null,null,null,null,null,"772",7,7,2,{"$f":"AB1","v":"Monaco"}]
[null,null,null,null,null,null,null,null,null,null,null,null,null,null,null,null,null,null,null,null,null,null,null,null,null,null,"773",7,7,3,{"$f":"AB1","v":"Monaco"}]
[null,null,null,null,null,null,null,null,null,null,null,null,null,null,null,null,null,null,null,null,null,null,null,null,null,null,"774",7,7,4,{"$f":"AC1","v":"PSG"}]
[null,null,null,null,null,null,null,null,null,null,null,null,null,null,null,null,null,null,null,null,null,null,null,null,null,null,"775",7,7,5,{"$f":"AB1","v":"Monaco"}]
[null,null,null,null,null,null,null,null,null,null,null,null,null,null,null,null,null,null,null,null,null,null,null,null,null,null,"776",7,7,6,"NUL"]
[null,null,null,null,null,null,null,null,null,null,null,null,null,null,null,null,null,null,null,null,null,null,null,null,null,null,"778",7,7,8,"NUL"]
[null,null,null,null,null,null,null,null,null,null,null,null,null,null,null,null,null,null,null,null,null,null,null,null,null,null,"779",7,7,9,{"$f":"AB1","v":"Monaco"}]
[null,null,null,null,null,null,null,null,null,null,null,null,null,null,null,null,null,null,null,null,null,null,null,null,null,null,"781",7,8,1,{"$f":"AC1","v":"PSG"}]
[null,null,null,null,null,null,null,null,null,null,null,null,null,null,null,null,null,null,null,null,null,null,null,null,null,null,"782",7,8,2,{"$f":"AC1","v":"PSG"}]
[null,null,null,null,null,null,null,null,null,null,null,null,null,null,null,null,null,null,null,null,null,null,null,null,null,null,"783",7,8,3,"NUL"]
[null,null,null,null,null,null,null,null,null,null,null,null,null,null,null,null,null,null,null,null,null,null,null,null,null,null,"784",7,8,4,{"$f":"AB1","v":"Monaco"}]
[null,null,null,null,null,null,null,null,null,null,null,null,null,null,null,null,null,null,null,null,null,null,null,null,null,null,"785",7,8,5,{"$f":"AB1","v":"Monaco"}]
[null,null,null,null,null,null,null,null,null,null,null,null,null,null,null,null,null,null,null,null,null,null,null,null,null,null,"786",7,8,6,{"$f":"AB1","v":"Monaco"}]
[null,null,null,null,null,null,null,null,null,null,null,null,null,null,null,null,null,null,null,null,null,null,null,null,null,null,"787",7,8,7,{"$f":"AB1","v":"Monaco"}]
[null,null,null,null,null,null,null,null,null,null,null,null,null,null,null,null,null,null,null,null,null,null,null,null,null,null,"788",7,8,8,{"$f":"AC1","v":"PSG"}]
[null,null,null,null,null,null,null,null,null,null,null,null,null,null,null,null,null,null,null,null,null,null,null,null,null,null,"789",7,8,9,{"$f":"AC1","v":"PSG"}]
[null,null,null,null,null,null,null,null,null,null,null,null,null,null,null,null,null,null,null,null,null,null,null,null,null,null,"791",7,9,1,{"$f":"AC1","v":"PSG"}]
[null,null,null,null,null,null,null,null,null,null,null,null,null,null,null,null,null,null,null,null,null,null,null,null,null,null,"792",7,9,2,{"$f":"AC1","v":"PSG"}]
[null,null,null,null,null,null,null,null,null,null,null,null,null,null,null,null,null,null,null,null,null,null,null,null,null,null,"793",7,9,3,{"$f":"AC1","v":"PSG"}]
[null,null,null,null,null,null,null,null,null,null,null,null,null,null,null,null,null,null,null,null,null,null,null,null,null,null,"794",7,9,4,{"$f":"AB1","v":"Monaco"}]
[null,null,null,null,null,null,null,null,null,null,null,null,null,null,null,null,null,null,null,null,null,null,null,null,null,null,"795",7,9,5,{"$f":"AB1","v":"Monaco"}]
[null,null,null,null,null,null,null,null,null,null,null,null,null,null,null,null,null,null,null,null,null,null,null,null,null,null,"796",7,9,6,{"$f":"AB1","v":"Monaco"}]
[null,null,null,null,null,null,null,null,null,null,null,null,null,null,null,null,null,null,null,null,null,null,null,null,null,null,"797",7,9,7,{"$f":"AB1","v":"Monaco"}]
[null,null,null,null,null,null,null,null,null,null,null,null,null,null,null,null,null,null,null,null,null,null,null,null,null,null,"798",7,9,8,"NUL"]
[null,null,null,null,null,null,null,null,null,null,null,null,null,null,null,null,null,null,null,null,null,null,null,null,null,null,"799",7,9,9,{"$f":"AC1","v":"PSG"}]
[null,null,null,null,null,null,null,null,null,null,null,null,null,null,null,null,null,null,null,null,null,null,null,null,null,null,"811",8,1,1,{"$f":"AC1","v":"PSG"}]
[null,null,null,null,null,null,null,null,null,null,null,null,null,null,null,null,null,null,null,null,null,null,null,null,null,null,"812",8,1,2,{"$f":"AC1","v":"PSG"}]
[null,null,null,null,null,null,null,null,null,null,null,null,null,null,null,null,null,null,null,null,null,null,null,null,null,null,"813",8,1,3,{"$f":"AC1","v":"PSG"}]
[null,null,null,null,null,null,null,null,null,null,null,null,null,null,null,null,null,null,null,null,null,null,null,null,null,null,"814",8,1,4,{"$f":"AC1","v":"PSG"}]
[null,null,null,null,null,null,null,null,null,null,null,null,null,null,null,null,null,null,null,null,null,null,null,null,null,null,"815",8,1,5,{"$f":"AB1","v":"Monaco"}]
[null,null,null,null,null,null,null,null,null,null,null,null,null,null,null,null,null,null,null,null,null,null,null,null,null,null,"816",8,1,6,{"$f":"AB1","v":"Monaco"}]
[null,null,null,null,null,null,null,null,null,null,null,null,null,null,null,null,null,null,null,null,null,null,null,null,null,null,"817",8,1,7,{"$f":"AB1","v":"Monaco"}]
[null,null,null,null,null,null,null,null,null,null,null,null,null,null,null,null,null,null,null,null,null,null,null,null,null,null,"818",8,1,8,{"$f":"AB1","v":"Monaco"}]
[null,null,null,null,null,null,null,null,null,null,null,null,null,null,null,null,null,null,null,null,null,null,null,null,null,null,{"$f":"CONCATENATE(AB579,AC579,AD579)","v":"819"},8,1,9,"NUL"]
[null,null,null,null,null,null,null,null,null,null,null,null,null,null,null,null,null,null,null,null,null,null,null,null,null,null,"821",8,2,1,{"$f":"AC1","v":"PSG"}]
[null,null,null,null,null,null,null,null,null,null,null,null,null,null,null,null,null,null,null,null,null,null,null,null,null,null,"822",8,2,2,{"$f":"AC1","v":"PSG"}]
[null,null,null,null,null,null,null,null,null,null,null,null,null,null,null,null,null,null,null,null,null,null,null,null,null,null,"823",8,2,3,{"$f":"AC1","v":"PSG"}]
[null,null,null,null,null,null,null,null,null,null,null,null,null,null,null,null,null,null,null,null,null,null,null,null,null,null,"824",8,2,4,{"$f":"AC1","v":"PSG"}]
[null,null,null,null,null,null,null,null,null,null,null,null,null,null,null,null,null,null,null,null,null,null,null,null,null,null,"825",8,2,5,"NUL"]
[null,null,null,null,null,null,null,null,null,null,null,null,null,null,null,null,null,null,null,null,null,null,null,null,null,null,"826",8,2,6,{"$f":"AB1","v":"Monaco"}]
[null,null,null,null,null,null,null,null,null,null,null,null,null,null,null,null,null,null,null,null,null,null,null,null,null,null,"827",8,2,7,{"$f":"AB1","v":"Monaco"}]
[null,null,null,null,null,null,null,null,null,null,null,null,null,null,null,null,null,null,null,null,null,null,null,null,null,null,"828",8,2,8,{"$f":"AB1","v":"Monaco"}]
[null,null,null,null,null,null,null,null,null,null,null,null,null,null,null,null,null,null,null,null,null,null,null,null,null,null,"829",8,2,9,{"$f":"AB1","v":"Monaco"}]
[null,null,null,null,null,null,null,null,null,null,null,null,null,null,null,null,null,null,null,null,null,null,null,null,null,null,"831",8,3,1,"NUL"]
[null,null,null,null,null,null,null,null,null,null,null,null,null,null,null,null,null,null,null,null,null,null,null,null,null,null,"832",8,3,2,{"$f":"AC1","v":"PSG"}]
[null,null,null,null,null,null,null,null,null,null,null,null,null,null,null,null,null,null,null,null,null,null,null,null,null,null,"833",8,3,3,{"$f":"AC1","v":"PSG"}]
[null,null,null,null,null,null,null,null,null,null,null,null,null,null,null,null,null,null,null,null,null,null,null,null,null,null,"834",8,3,4,{"$f":"AC1","v":"PSG"}]
[null,null,null,null,null,null,null,null,null,null,null,null,null,null,null,null,null,null,null,null,null,null,null,null,null,null,"835",8,3,5,{"$f":"AC1","v":"PSG"}]
[null,null,null,null,null,null,null,null,null,null,null,null,null,null,null,null,null,null,null,null,null,null,null,null,null,null,"836",8,3,6,{"$f":"AB1","v":"Monaco"}]
[null,null,null,null,null,null,null,null,null,null,null,null,null,null,null,null,null,null,null,null,null,null,null,null,null,null,"837",8,3,7,{"$f":"AB1","v":"Monaco"}]
[null,null,null,null,null,null,null,null,null,null,null,null,null,null,null,null,null,null,null,null,null,null,null,null,null,null,"838",8,3,8,{"$f":"AB1","v":"Monaco"}]
[null,null,null,null,null,null,null,null,null,null,null,null,null,null,null,null,null,null,null,null,null,null,null,null,null,null,"839",8,3,9,{"$f":"AB1","v":"Monaco"}]
[null,null,null,null,null,null,null,null,null,null,null,null,null,null,null,null,null,null,null,null,null,null,null,null,null,null,"841",8,4,1,{"$f":"AB1","v":"Monaco"}]
[null,null,null,null,null,null,null,null,null,null,null,null,null,null,null,null,null,null,null,null,null,null,null,null,null,null,"842",8,4,2,{"$f":"AC1","v":"PSG"}]
[null,null,null,null,null,null,null,null,null,null,null,null,null,null,null,null,null,null,null,null,null,null,null,null,null,null,"843",8,4,3,{"$f":"AC1","v":"PSG"}]
[null,null,null,null,null,null,null,null,null,null,null,null,null,null,null,null,null,null,null,null,null,null,null,null,null,null,"844",8,4,4,{"$f":"AC1","v":"PSG"}]
[null,null,null,null,null,null,null,null,null,null,null,null,null,null,null,null,null,null,null,null,null,null,null,null,null,null,"845",8,4,5,{"$f":"AC1","v":"PSG"}]
[null,null,null,null,null,null,null,null,null,null,null,null,null,null,null,null,null,null,null,null,null,null,null,null,null,null,"846",8,4,6,"NUL"]
[null,null,null,null,null,null,null,null,null,null,null,null,null,null,null,null,null,null,null,null,null,null,null,null,null,null,"847",8,4,7,{"$f":"AB1","v":"Monaco"}]
[null,null,null,null,null,null,null,null,null,null,null,null,null,null,null,null,null,null,null,null,null,null,null,null,null,null,"848",8,4,8,{"$f":"AB1","v":"Monaco"}]
[null,null,null,null,null,null,null,null,null,null,null,null,null,null,null,null,null,null,null,null,null,null,null,null,null,null,"849",8,4,9,{"$f":"AB1","v":"Monaco"}]
[null,null,null,null,null,null,null,null,null,null,null,null,null,null,null,null,null,null,null,null,null,null,null,null,null,null,"851",8,5,1,{"$f":"AB1","v":"Monaco"}]
[null,null,null,null,null,null,null,null,null,null,null,null,null,null,null,null,null,null,null,null,null,null,null,null,null,null,"852",8,5,2,"NUL"]
[null,null,null,null,null,null,null,null,null,null,null,null,null,null,null,null,null,null,null,null,null,null,null,null,null,null,"853",8,5,3,{"$f":"AC1","v":"PSG"}]
[null,null,null,null,null,null,null,null,null,null,null,null,null,null,null,null,null,null,null,null,null,null,null,null,null,null,"854",8,5,4,{"$f":"AC1","v":"PSG"}]
[null,null,null,null,null,null,null,null,null,null,null,null,null,null,null,null,null,null,null,null,null,null,null,null,null,null,"855",8,5,5,{"$f":"AC1","v":"PSG"}]
[null,null,null,null,null,null,null,null,null,null,null,null,null,null,null,null,null,null,null,null,null,null,null,null,null,null,"856",8,5,6,{"$f":"AC1","v":"PSG"}]
[null,null,null,null,null,null,null,null,null,null,null,null,null,null,null,null,null,null,null,null,null,null,null,null,null,null,"857",8,5,7,{"$f":"AB1","v":"Monaco"}]
[null,null,null,null,null,null,null,null,null,null,null,null,null,null,null,null,null,null,null,null,null,null,null,null,null,null,"858",8,5,8,{"$f":"AB1","v":"Monaco"}]
[null,null,null,null,null,null,null,null,null,null,null,null,null,null,null,null,null,null,null,null,null,null,null,null,null,null,"859",8,5,9,{"$f":"AB1","v":"Monaco"}]
[null,null,null,null,null,null,null,null,null,null,null,null,null,null,null,null,null,null,null,null,null,null,null,null,null,null,"861",8,6,1,{"$f":"AB1","v":"Monaco"}]
[null,null,null,null,null,null,null,null,null,null,null,null,null,null,null,null,null,null,null,null,null,null,null,null,null,null,"862",8,6,2,{"$f":"AB1","v":"Monaco"}]
[null,null,null,null,null,null,null,null,null,null,null,null,null,null,null,null,null,null,null,null,null,null,null,null,null,null,"863",8,6,3,{"$f":"AC1","v":"PSG"}]
[null,null,null,null,null,null,null,null,null,null,null,null,null,null,null,null,null,null,null,null,null,null,null,null,null,null,"864",8,6,4,{"$f":"AC1","v":"PSG"}]
[null,null,null,null,null,null,null,null,null,null,null,null,null,null,null,null,null,null,null,null,null,null,null,null,null,null,"865",8,6,5,{"$f":"AC1","v":"PSG"}]
[null,null,null,null,null,null,null,null,null,null,null,null,null,null,null,null,null,null,null,null,null,null,null,null,null,null,"866",8,6,6,{"$f":"AC1","v":"PSG"}]
[null,null,null,null,null,null,null,null,null,null,null,null,null,null,null,null,null,null,null,null,null,null,null,null,null,null,"867",8,6,7,"NUL"]
[null,null,null,null,null,null,null,null,null,null,null,null,null,null,null,null,null,null,null,null,null,null,null,null,null,null,"868",8,6,8,{"$f":"AB1","v":"Monaco"}]
[null,null,null,null,null,null,null,null,null,null,null,null,null,null,null,null,null,null,null,null,null,null,null,null,null,null,"869",8,6,9,{"$f":"AB1","v":"Monaco"}]
[null,null,null,null,null,null,null,null,null,null,null,null,null,null,null,null,null,null,null,null,null,null,null,null,null,null,"871",8,7,1,{"$f":"AB1","v":"Monaco"}]
[null,null,null,null,null,null,null,null,null,null,null,null,null,null,null,null,null,null,null,null,null,null,null,null,null,null,"872",8,7,2,{"$f":"AB1","v":"Monaco"}]
[null,null,null,null,null,null,null,null,null,null,null,null,null,null,null,null,null,null,null,null,null,null,null,null,null,null,"873",8,7,3,"NUL"]
[null,null,null,null,null,null,null,null,null,null,null,null,null,null,null,null,null,null,null,null,null,null,null,null,null,null,"874",8,7,4,{"$f":"AC1","v":"PSG"}]
[null,null,null,null,null,null,null,null,null,null,null,null,null,null,null,null,null,null,null,null,null,null,null,null,null,null,"875",8,7,5,{"$f":"AC1","v":"PSG"}]
[null,null,null,null,null,null,null,null,null,null,null,null,null,null,null,null,null,null,null,null,null,null,null,null,null,null,"876",8,7,6,{"$f":"AC1","v":"PSG"}]
[null,null,null,null,null,null,null,null,null,null,null,null,null,null,null,null,null,null,null,null,null,null,null,null,null,null,"877",8,7,7,{"$f":"AC1","v":"PSG"}]
[null,null,null,null,null,null,null,null,null,null,null,null,null,null,null,null,null,null,null,null,null,null,null,null,null,null,"878",8,7,8,{"$f":"AB1","v":"Monaco"}]
[null,null,null,null,null,null,null,null,null,null,null,null,null,null,null,null,null,null,null,null,null,null,null,null,null,null,"879",8,7,9,{"$f":"AB1","v":"Monaco"}]
[null,null,null,null,null,null,null,null,null,null,null,null,null,null,null,null,null,null,null,null,null,null,null,null,null,null,"881",8,8,1,{"$f":"AB1","v":"Monaco"}]
[null,null,null,null,null,null,null,null,null,null,null,null,null,null,null,null,null,null,null,null,null,null,null,null,null,null,"882",8,8,2,{"$f":"AC1","v":"PSG"}]
[null,null,null,null,null,null,null,null,null,null,null,null,null,null,null,null,null,null,null,null,null,null,null,null,null,null,"883",8,8,3,{"$f":"AB1","v":"Monaco"}]
[null,null,null,null,null,null,null,null,null,null,null,null,null,null,null,null,null,null,null,null,null,null,null,null,null,null,"884",8,8,4,{"$f":"AB1","v":"Monaco"}]
[null,null,null,null,null,null,null,null,null,null,null,null,null,null,null,null,null,null,null,null,null,null,null,null,null,null,"885",8,8,5,{"$f":"AC1","v":"PSG"}]
[null,null,null,null,null,null,null,null,null,null,null,null,null,null,null,null,null,null,null,null,null,null,null,null,null,null,"886",8,8,6,{"$f":"AB1","v":"Monaco"}]
[null,null,null,null,null,null,null,null,null,null,null,null,null,null,null,null,null,null,null,null,null,null,null,null,null,null,"887",8,8,7,{"$f":"AB1","v":"Monaco"}]
[null,null,null,null,null,null,null,null,null,null,null,null,null,null,null,null,null,null,null,null,null,null,null,null,null,null,"889",8,8,9,{"$f":"AB1","v":"Monaco"}]
[null,null,null,null,null,null,null,null,null,null,null,null,null,null,null,null,null,null,null,null,null,null,null,null,null,null,"891",8,9,1,{"$f":"AC1","v":"PSG"}]
[null,null,null,null,null,null,null,null,null,null,null,null,null,null,null,null,null,null,null,null,null,null,null,null,null,null,{"$f":"CONCATENATE(AB643,AC643,AD643)","v":"892"},8,9,2,{"$f":"AC1","v":"PSG"}]
[null,null,null,null,null,null,null,null,null,null,null,null,null,null,null,null,null,null,null,null,null,null,null,null,null,null,"893",8,9,3,{"$f":"AC1","v":"PSG"}]
[null,null,null,null,null,null,null,null,null,null,null,null,null,null,null,null,null,null,null,null,null,null,null,null,null,null,"894",8,9,4,"NUL"]
[null,null,null,null,null,null,null,null,null,null,null,null,null,null,null,null,null,null,null,null,null,null,null,null,null,null,"895",8,9,5,{"$f":"AB1","v":"Monaco"}]
[null,null,null,null,null,null,null,null,null,null,null,null,null,null,null,null,null,null,null,null,null,null,null,null,null,null,"896",8,9,6,{"$f":"AB1","v":"Monaco"}]
[null,null,null,null,null,null,null,null,null,null,null,null,null,null,null,null,null,null,null,null,null,null,null,null,null,null,"897",8,9,7,{"$f":"AB1","v":"Monaco"}]
[null,null,null,null,null,null,null,null,null,null,null,null,null,null,null,null,null,null,null,null,null,null,null,null,null,null,"898",8,9,8,{"$f":"AB1","v":"Monaco"}]
[null,null,null,null,null,null,null,null,null,null,null,null,null,null,null,null,null,null,null,null,null,null,null,null,null,null,"899",8,9,9,{"$f":"AC1","v":"PSG"}]
[null,null,null,null,null,null,null,null,null,null,null,null,null,null,null,null,null,null,null,null,null,null,null,null,null,null,"911",9,1,1,{"$f":"AC1","v":"PSG"}]
[null,null,null,null,null,null,null,null,null,null,null,null,null,null,null,null,null,null,null,null,null,null,null,null,null,null,"912",9,1,2,{"$f":"AC1","v":"PSG"}]
[null,null,null,null,null,null,null,null,null,null,null,null,null,null,null,null,null,null,null,null,null,null,null,null,null,null,"913",9,1,3,{"$f":"AC1","v":"PSG"}]
[null,null,null,null,null,null,null,null,null,null,null,null,null,null,null,null,null,null,null,null,null,null,null,null,null,null,"914",9,1,4,{"$f":"AC1","v":"PSG"}]
[null,null,null,null,null,null,null,null,null,null,null,null,null,null,null,null,null,null,null,null,null,null,null,null,null,null,"915",9,1,5,"NUL"]
[null,null,null,null,null,null,null,null,null,null,null,null,null,null,null,null,null,null,null,null,null,null,null,null,null,null,"916",9,1,6,{"$f":"AB1","v":"Monaco"}]
[null,null,null,null,null,null,null,null,null,null,null,null,null,null,null,null,null,null,null,null,null,null,null,null,null,null,"917",9,1,7,{"$f":"AB1","v":"Monaco"}]
[null,null,null,null,null,null,null,null,null,null,null,null,null,null,null,null,null,null,null,null,null,null,null,null,null,null,"918",9,1,8,{"$f":"AB1","v":"Monaco"}]
[null,null,null,null,null,null,null,null,null,null,null,null,null,null,null,null,null,null,null,null,null,null,null,null,null,null,"919",9,1,9,{"$f":"AB1","v":"Monaco"}]
[null,null,null,null,null,null,null,null,null,null,null,null,null,null,null,null,null,null,null,null,null,null,null,null,null,null,"921",9,2,1,"NUL"]
[null,null,null,null,null,null,null,null,null,null,null,null,null,null,null,null,null,null,null,null,null,null,null,null,null,null,"922",9,2,2,{"$f":"AC1","v":"PSG"}]
[null,null,null,null,null,null,null,null,null,null,null,null,null,null,null,null,null,null,null,null,null,null,null,null,null,null,"923",9,2,3,{"$f":"AC1","v":"PSG"}]
[null,null,null,null,null,null,null,null,null,null,null,null,null,null,null,null,null,null,null,null,null,null,null,null,null,null,"924",9,2,4,{"$f":"AC1","v":"PSG"}]
[null,null,null,null,null,null,null,null,null,null,null,null,null,null,null,null,null,null,null,null,null,null,null,null,null,null,"925",9,2,5,{"$f":"AC1","v":"PSG"}]
[null,null,null,null,null,null,null,null,null,null,null,null,null,null,null,null,null,null,null,null,null,null,null,null,null,null,"926",9,2,6,{"$f":"AB1","v":"Monaco"}]
[null,null,null,null,null,null,null,null,null,null,null,null,null,null,null,null,null,null,null,null,null,null,null,null,null,null,"927",9,2,7,{"$f":"AB1","v":"Monaco"}]
[null,null,null,null,null,null,null,null,null,null,null,null,null,null,null,null,null,null,null,null,null,null,null,null,null,null,"928",9,2,8,{"$f":"AB1","v":"Monaco"}]
[null,null,null,null,null,null,null,null,null,null,null,null,null,null,null,null,null,null,null,null,null,null,null,null,null,null,"929",9,2,9,{"$f":"AB1","v":"Monaco"}]
[null,null,null,null,null,null,null,null,null,null,null,null,null,null,null,null,null,null,null,null,null,null,null,null,null,null,"931",9,3,1,{"$f":"AB1","v":"Monaco"}]
[null,null,null,null,null,null,null,null,null,null,null,null,null,null,null,null,null,null,null,null,null,null,null,null,null,null,"932",9,3,2,{"$f":"AC1","v":"PSG"}]
[null,null,null,null,null,null,null,null,null,null,null,null,null,null,null,null,null,null,null,null,null,null,null,null,null,null,"933",9,3,3,{"$f":"AC1","v":"PSG"}]
[null,null,null,null,null,null,null,null,null,null,null,null,null,null,null,null,null,null,null,null,null,null,null,null,null,null,"934",9,3,4,{"$f":"AC1","v":"PSG"}]
[null,null,null,null,null,null,null,null,null,null,null,null,null,null,null,null,null,null,null,null,null,null,null,null,null,null,"935",9,3,5,{"$f":"AC1","v":"PSG"}]
[null,null,null,null,null,null,null,null,null,null,null,null,null,null,null,null,null,null,null,null,null,null,null,null,null,null,"936",9,3,6,"NUL"]
[null,null,null,null,null,null,null,null,null,null,null,null,null,null,null,null,null,null,null,null,null,null,null,null,null,null,"937",9,3,7,{"$f":"AB1","v":"Monaco"}]
[null,null,null,null,null,null,null,null,null,null,null,null,null,null,null,null,null,null,null,null,null,null,null,null,null,null,"938",9,3,8,{"$f":"AB1","v":"Monaco"}]
[null,null,null,null,null,null,null,null,null,null,null,null,null,null,null,null,null,null,null,null,null,null,null,null,null,null,"939",9,3,9,{"$f":"AB1","v":"Monaco"}]
[null,null,null,null,null,null,null,null,null,null,null,null,null,null,null,null,null,null,null,null,null,null,null,null,null,null,"941",9,4,1,{"$f":"AB1","v":"Monaco"}]
[null,null,null,null,null,null,null,null,null,null,null,null,null,null,null,null,null,null,null,null,null,null,null,null,null,null,"942",9,4,2,"NUL"]
[null,null,null,null,null,null,null,null,null,null,null,null,null,null,null,null,null,null,null,null,null,null,null,null,null,null,"943",9,4,3,{"$f":"AC1","v":"PSG"}]
[null,null,null,null,null,null,null,null,null,null,null,null,null,null,null,null,null,null,null,null,null,null,null,null,null,null,"944",9,4,4,{"$f":"AC1","v":"PSG"}]
[null,null,null,null,null,null,null,null,null,null,null,null,null,null,null,null,null,null,null,null,null,null,null,null,null,null,"945",9,4,5,{"$f":"AC1","v":"PSG"}]
[null,null,null,null,null,null,null,null,null,null,null,null,null,null,null,null,null,null,null,null,null,null,null,null,null,null,"946",9,4,6,{"$f":"AC1","v":"PSG"}]
[null,null,null,null,null,null,null,null,null,null,null,null,null,null,null,null,null,null,null,null,null,null,null,null,null,null,"947",9,4,7,{"$f":"AB1","v":"Monaco"}]
[null,null,null,null,null,null,null,null,null,null,null,null,null,null,null,null,null,null,null,null,null,null,null,null,null,null,"948",9,4,8,{"$f":"AB1","v":"Monaco"}]
[null,null,null,null,null,null,null,null,null,null,null,null,null,null,null,null,null,null,null,null,null,null,null,null,null,null,"949",9,4,9,{"$f":"AB1","v":"Monaco"}]
[null,null,null,null,null,null,null,null,null,null,null,null,null,null,null,null,null,null,null,null,null,null,null,null,null,null,"951",9,5,1,{"$f":"AB1","v":"Monaco"}]
[null,null,null,null,null,null,null,null,null,null,null,null,null,null,null,null,null,null,null,null,null,null,null,null,null,null,"952",9,5,2,{"$f":"AB1","v":"Monaco"}]
[null,null,null,null,null,null,null,null,null,null,null,null,null,null,null,null,null,null,null,null,null,null,null,null,null,null,"953",9,5,3,{"$f":"AC1","v":"PSG"}]
[null,null,null,null,null,null,null,null,null,null,null,null,null,null,null,null,null,null,null,null,null,null,null,null,null,null,"954",9,5,4,{"$f":"AC1","v":"PSG"}]
[null,null,null,null,null,null,null,null,null,null,null,null,null,null,null,null,null,null,null,null,null,null,null,null,null,null,"955",9,5,5,{"$f":"AC1","v":"PSG"}]
[null,null,null,null,null,null,null,null,null,null,null,null,null,null,null,null,null,null,null,null,null,null,null,null,null,null,"956",9,5,6,{"$f":"AC1","v":"PSG"}]
[null,null,null,null,null,null,null,null,null,null,null,null,null,null,null,null,null,null,null,null,null,null,null,null,null,null,"957",9,5,7,"NUL"]
[null,null,null,null,null,null,null,null,null,null,null,null,null,null,null,null,null,null,null,null,null,null,null,null,null,null,"958",9,5,8,{"$f":"AB1","v":"Monaco"}]
[null,null,null,null,null,null,null,null,null,null,null,null,null,null,null,null,null,null,null,null,null,null,null,null,null,null,"959",9,5,9,{"$f":"AB1","v":"Monaco"}]
[null,null,null,null,null,null,null,null,null,null,null,null,null,null,null,null,null,null,null,null,null,null,null,null,null,null,"961",9,6,1,{"$f":"AB1","v":"Monaco"}]
[null,null,null,null,null,null,null,null,null,null,null,null,null,null,null,null,null,null,null,null,null,null,null,null,null,null,"962",9,6,2,{"$f":"AB1","v":"Monaco"}]
[null,null,null,null,null,null,null,null,null,null,null,null,null,null,null,null,null,null,null,null,null,null,null,null,null,null,"963",9,6,3,"NUL"]
[null,null,null,null,null,null,null,null,null,null,null,null,null,null,null,null,null,null,null,null,null,null,null,null,null,null,"964",9,6,4,{"$f":"AC1","v":"PSG"}]
[null,null,null,null,null,null,null,null,null,null,null,null,null,null,null,null,null,null,null,null,null,null,null,null,null,null,"965",9,6,5,{"$f":"AC1","v":"PSG"}]
[null,null,null,null,null,null,null,null,null,null,null,null,null,null,null,null,null,null,null,null,null,null,null,null,null,null,"966",9,6,6,{"$f":"AC1","v":"PSG"}]
[null,null,null,null,null,null,null,null,null,null,null,null,null,null,null,null,null,null,null,null,null,null,null,null,null,null,"967",9,6,7,{"$f":"AC1","v":"PSG"}]
[null,null,null,null,null,null,null,null,null,null,null,null,null,null,null,null,null,null,null,null,null,null,null,null,null,null,"968",9,6,8,{"$f":"AB1","v":"Monaco"}]
[null,null,null,null,null,null,null,null,null,null,null,null,null,null,null,null,null,null,null,null,null,null,null,null,null,null,"969",9,6,9,{"$f":"AB1","v":"Monaco"}]
[null,null,null,null,null,null,null,null,null,null,null,null,null,null,null,null,null,null,null,null,null,null,null,null,null,null,"971",9,7,1,{"$f":"AB1","v":"Monaco"}]
[null,null,null,null,null,null,null,null,null,null,null,null,null,null,null,null,null,null,null,null,null,null,null,null,null,null,"972",9,7,2,{"$f":"AB1","v":"Monaco"}]
[null,null,null,null,null,null,null,null,null,null,null,null,null,null,null,null,null,null,null,null,null,null,null,null,null,null,{"$f":"CONCATENATE(AB707,AC707,AD707)","v":"973"},9,7,3,{"$f":"AB1","v":"Monaco"}]
[null,null,null,null,null,null,null,null,null,null,null,null,null,null,null,null,null,null,null,null,null,null,null,null,null,null,"974",9,7,4,{"$f":"AC1","v":"PSG"}]
[null,null,null,null,null,null,null,null,null,null,null,null,null,null,null,null,null,null,null,null,null,null,null,null,null,null,"975",9,7,5,{"$f":"AC1","v":"PSG"}]
[null,null,null,null,null,null,null,null,null,null,null,null,null,null,null,null,null,null,null,null,null,null,null,null,null,null,"976",9,7,6,{"$f":"AC1","v":"PSG"}]
[null,null,null,null,null,null,null,null,null,null,null,null,null,null,null,null,null,null,null,null,null,null,null,null,null,null,"977",9,7,7,{"$f":"AC1","v":"PSG"}]
[null,null,null,null,null,null,null,null,null,null,null,null,null,null,null,null,null,null,null,null,null,null,null,null,null,null,"978",9,7,8,"NUL"]
[null,null,null,null,null,null,null,null,null,null,null,null,null,null,null,null,null,null,null,null,null,null,null,null,null,null,"979",9,7,9,{"$f":"AB1","v":"Monaco"}]
[null,null,null,null,null,null,null,null,null,null,null,null,null,null,null,null,null,null,null,null,null,null,null,null,null,null,"981",9,8,1,{"$f":"AB1","v":"Monaco"}]
[null,null,null,null,null,null,null,null,null,null,null,null,null,null,null,null,null,null,null,null,null,null,null,null,null,null,"982",9,8,2,{"$f":"AB1","v":"Monaco"}]
[null,null,null,null,null,null,null,null,null,null,null,null,null,null,null,null,null,null,null,null,null,null,null,null,null,null,"983",9,8,3,{"$f":"AB1","v":"Monaco"}]
[null,null,null,null,null,null,null,null,null,null,null,null,null,null,null,null,null,null,null,null,null,null,null,null,null,null,"984",9,8,4,"NUL"]
[null,null,null,null,null,null,null,null,null,null,null,null,null,null,null,null,null,null,null,null,null,null,null,null,null,null,"985",9,8,5,{"$f":"AC1","v":"PSG"}]
[null,null,null,null,null,null,null,null,null,null,null,null,null,null,null,null,null,null,null,null,null,null,null,null,null,null,"986",9,8,6,{"$f":"AC1","v":"PSG"}]
[null,null,null,null,null,null,null,null,null,null,null,null,null,null,null,null,null,null,null,null,null,null,null,null,null,null,"987",9,8,7,{"$f":"AC1","v":"PSG"}]
[null,null,null,null,null,null,null,null,null,null,null,null,null,null,null,null,null,null,null,null,null,null,null,null,null,null,"988",9,8,8,{"$f":"AC1","v":"PSG"}]
[null,null,null,null,null,null,null,null,null,null,null,null,null,null,null,null,null,null,null,null,null,null,null,null,null,null,"989",9,8,9,{"$f":"AB1","v":"Monaco"}]
[null,null,null,null,null,null,null,null,null,null,null,null,null,null,null,null,null,null,null,null,null,null,null,null,null,null,"991",9,9,1,"NUL"]
[null,null,null,null,null,null,null,null,null,null,null,null,null,null,null,null,null,null,null,null,null,null,null,null,null,null,"992",9,9,2,{"$f":"AB1","v":"Monaco"}]
[null,null,null,null,null,null,null,null,null,null,null,null,null,null,null,null,null,null,null,null,null,null,null,null,null,null,"993",9,9,3,{"$f":"AC1","v":"PSG"}]
[null,null,null,null,null,null,null,null,null,null,null,null,null,null,null,null,null,null,null,null,null,null,null,null,null,null,"994",9,9,4,{"$f":"AB1","v":"Monaco"}]
[null,null,null,null,null,null,null,null,null,null,null,null,null,null,null,null,null,null,null,null,null,null,null,null,null,null,"995",9,9,5,{"$f":"AB1","v":"Monaco"}]
[null,null,null,null,null,null,null,null,null,null,null,null,null,null,null,null,null,null,null,null,null,null,null,null,null,null,"996",9,9,6,{"$f":"AC1","v":"PSG"}]
[null,null,null,null,null,null,null,null,null,null,null,null,null,null,null,null,null,null,null,null,null,null,null,null,null,null,"997",9,9,7,{"$f":"AB1","v":"Monaco"}]
[null,null,null,null,null,null,null,null,null,null,null,null,null,null,null,null,null,null,null,null,null,null,null,null,null,null,"998",9,9,8,"NUL"]

{"sheet":"GENERAL","index":6,"n_rows":76,"n_cols":12,"rows_kept":76,"cut":false,"hidden":false,"merged":[[21,8,22,8],[21,9,22,9],[21,10,22,10],[2,1,2,3],[2,5,2,7],[2,9,2,11],[9,5,9,7],[9,9,11,9]]}
[]
[]
[null,"Stats DVK",null,null,null,"Stats O1",null,null,null,"Stats O2"]
[null,{"$f":"DVK!AG3","v":"Monaco"},{"$f":"DVK!AH3","v":"PSG"},"NUL",null,{"$f":"DVK!AG3","v":"Monaco"},{"$f":"DVK!AH3","v":"PSG"},"NUL",null,{"$f":"DVK!AG3","v":"Monaco"},{"$f":"DVK!AH3","v":"PSG"},"NUL"]
[null,{"$f":"DVK!AG4","v":0.7142857142857143},{"$f":"DVK!AH4","v":0.14285714285714285},{"$f":"DVK!AI4","v":0.14285714285714285},null,{"$f":"DVKO1!AG4","v":0.16666666666666666},{"$f":"DVKO1!AH4","v":0.66666666666666663},{"$f":"DVKO1!AI4","v":0.16666666666666666},null,{"$f":"DVKO2!AG4","v":0.41666666666666669},{"$f":"DVKO2!AH4","v":0.41666666666666669},{"$f":"DVKO2!AI4","v":0.16666666666666666}]
[]
[]
[null,{"$f":"IF(B5>C5,B4,\"\")","v":"Monaco"},{"$f":"IF(B5<C5,C4,\"\")","v":""},null,null,{"$f":"IF(F5>G5,F4,\"\")","v":""},{"$f":"IF(F5<G5,G4,\"\")","v":"PSG"},null,null,{"$f":"IF(J5>K5,J4,\"\")","v":""},{"$f":"IF(J5<K5,K4,\"\")","v":""}]
[]
[null,null,null,null,null,"Moyenne"]
[null,null,null,null,null,{"$f":"F4","v":"Monaco"},{"$f":"G4","v":"PSG"},"NUL"]
[null,null,null,null,null,{"$f":"(B5+F5+J5)/3","v":0.43253968253968256},{"$f":"(C5+G5+K5)/3","v":0.40873015873015878},{"$f":"(D5+H5+L5)/3","v":0.15873015873015872}]
[]
[]
[null,null,null,null,null,null,null,null,null,{"$f":"Datas!H2","v":"X"}]
[null,null,null,null,null,null,null,null,null,{"$f":"Datas!H3","v":"Y"}]
[2,null,null,null,null,null,null,null,"doublons 8",{"$f":"COUNTIF(B8:K8,B4)","v":1},{"$f":"COUNTIF(B8:K8,C4)","v":1}]
[null,null,null,null,null,null,null,null,"avant %age",{"$f":"IF(J17=3,B4,\"\")","v":""},{"$f":"IF(K17=3,C4,\"\")","v":""}]
[null,null,null,null,null,null,null,null,"aprés %age",{"$f":"J18","v":""}]
[null,null,null,null,null,null,null,null,"Mini",{"$f":"MIN(B5,F5,J5)","v":0.16666666666666666},{"$f":"MIN(C5,G5,K5)","v":0.14285714285714285}]
[]
[null,null,null,null,null,null,null,null,"FINAL",{"$f":"IF(J20<51%,\"NON\",J19)","v":"NON"}]
[]
[null,null,null,null,null,null,null,null,null,{"$f":"IF(J20<51%,\"NON\",J18)","v":"NON"},{"$f":"IF(K20<51%,\"NON\",K18)","v":"NON"}]
[]
[]
[]
[]
[null,{"$f":"DVK!Z3","v":"143"},{"$f":"DVKO1!Z3","v":"223"},{"$f":"DVKO2!Z3","v":"113"},null,{"$f":"VLOOKUP(B29,C$29:D$53,1,0)","v":{"$error":"#N/A"}},{"$f":"VLOOKUP(C29,D$29:D$50,1,0)","v":{"$error":"#N/A"}},{"$f":"VLOOKUP(B29,D$29:D$50,1,0)","v":{"$error":"#N/A"}},null,{"$f":"IF(COUNTIF($B$29:$B$50,B29)+COUNTIF($C$29:$C$50,B29)+COUNTIF($D$29:$D$50,B29)=3,B29,\"\")","v":""},{"$f":"IF(COUNTIF($B$29:$B$50,B29)+COUNTIF($C$29:$C$50,B29)+COUNTIF($D$29:$D$50,B29)=2,B29,\"\")","v":""}]
[null,{"$f":"DVK!Z4","v":"153"},{"$f":"DVKO1!Z4","v":"233"},{"$f":"DVKO2!Z4","v":"123"},null,{"$f":"VLOOKUP(B30,C$29:D$53,1,0)","v":{"$error":"#N/A"}},{"$f":"VLOOKUP(C30,D$29:D$50,1,0)","v":{"$error":"#N/A"}},{"$f":"VLOOKUP(B30,D$29:D$50,1,0)","v":{"$error":"#N/A"}},null,"",""]
[null,{"$f":"DVK!Z5","v":"163"},{"$f":"DVKO1!Z5","v":"323"},{"$f":"DVKO2!Z5","v":"193"},null,{"$f":"VLOOKUP(B31,C$29:D$53,1,0)","v":{"$error":"#N/A"}},{"$f":"VLOOKUP(C31,D$29:D$50,1,0)","v":{"$error":"#N/A"}},{"$f":"VLOOKUP(B31,D$29:D$50,1,0)","v":{"$error":"#N/A"}},null,"",""]
[null,{"$f":"DVK!Z6","v":"173"},{"$f":"DVKO1!Z6","v":"333"},{"$f":"DVKO2!Z6","v":"213"},null,{"$f":"VLOOKUP(B32,C$29:D$53,1,0)","v":{"$error":"#N/A"}},{"$f":"VLOOKUP(C32,D$29:D$50,1,0)","v":{"$error":"#N/A"}},{"$f":"VLOOKUP(B32,D$29:D$50,1,0)","v":{"$error":"#N/A"}},null,"",""]
[null,{"$f":"DVK!Z7","v":"253"},{"$f":"DVKO1!Z7","v":"343"},{"$f":"DVKO2!Z7","v":"413"},null,{"$f":"VLOOKUP(B33,C$29:D$53,1,0)","v":{"$error":"#N/A"}},{"$f":"VLOOKUP(C33,D$29:D$50,1,0)","v":{"$error":"#N/A"}},{"$f":"VLOOKUP(B33,D$29:D$50,1,0)","v":{"$error":"#N/A"}},null,"",""]
[null,{"$f":"DVK!Z8","v":"263"},{"$f":"DVKO1!Z8","v":"433"},{"$f":"DVKO2!Z8","v":"513"},null,{"$f":"VLOOKUP(B34,C$29:D$53,1,0)","v":{"$error":"#N/A"}},{"$f":"VLOOKUP(C34,D$29:D$50,1,0)","v":{"$error":"#N/A"}},{"$f":"VLOOKUP(B34,D$29:D$50,1,0)","v":{"$error":"#N/A"}},null,"",""]
[null,{"$f":"DVK!Z9","v":"273"},{"$f":"DVKO1!Z9","v":"633"},{"$f":"DVKO2!Z9","v":"523"},null,{"$error":"#N/A"},{"$error":"#N/A"},{"$error":"#N/A"},null,"",""]
[null,{"$f":"DVK!Z10","v":"283"},{"$f":"DVKO1!Z10","v":"723"},{"$f":"DVKO2!Z10","v":"593"},null,{"$error":"#N/A"},{"$error":"#N/A"},{"$error":"#N/A"},null,"",""]
[null,{"$f":"DVK!Z11","v":"363"},{"$f":"DVKO1!Z11","v":"733"},{"$f":"DVKO2!Z11","v":"613"},null,{"$error":"#N/A"},{"$error":"#N/A"},{"$error":"#N/A"},null,"",""]
[null,{"$f":"DVK!Z12","v":"373"},{"$f":"DVKO1!Z12","v":"743"},{"$f":"DVKO2!Z12","v":"693"},null,{"$error":"#N/A"},{"$error":"#N/A"},{"$error":"#N/A"},null,"",""]
[null,{"$f":"DVK!Z13","v":"383"},{"$f":"DVKO1!Z13","v":"823"},{"$f":"DVKO2!Z13","v":"913"},null,{"$error":"#N/A"},{"$error":"#N/A"},{"$error":"#N/A"},null,"",""]
[null,{"$f":"DVK!Z14","v":"473"},{"$f":"DVKO1!Z14","v":"833"},{"$f":"DVKO2!Z14","v":"993"},null,{"$error":"#N/A"},{"$error":"#N/A"},{"$error":"#N/A"},null,"",""]
[null,{"$f":"DVK!Z15","v":"953"},{"$f":"DVKO1!Z15","v":""},{"$f":"DVKO2!Z15","v":""},null,{"$error":"#N/A"},"",{"$error":"#N/A"},null,"",""]
[null,{"$f":"DVK!Z16","v":"963"},{"$f":"DVKO1!Z16","v":""},{"$f":"DVKO2!Z16","v":""},null,{"$error":"#N/A"},"",{"$error":"#N/A"},null,"",""]
[null,{"$f":"DVK!Z17","v":""},{"$f":"DVKO1!Z17","v":""},{"$f":"DVKO2!Z17","v":""},null,"","","",null,"",""]
[null,{"$f":"DVK!Z18","v":""},{"$f":"DVKO1!Z18","v":""},{"$f":"DVKO2!Z18","v":""},null,"","","",null,"",""]
[null,{"$f":"DVK!Z19","v":""},{"$f":"DVKO1!Z19","v":""},{"$f":"DVKO2!Z19","v":""},null,"","","",null,"",""]
[null,{"$f":"DVK!Z20","v":""},{"$f":"DVKO1!Z20","v":""},{"$f":"DVKO2!Z20","v":""},null,"","","",null,"",""]
[null,{"$f":"DVK!Z21","v":""},{"$f":"DVKO1!Z21","v":""},{"$f":"DVKO2!Z21","v":""},null,"","","",null,"",""]
[null,{"$f":"DVK!Z22","v":""},{"$f":"DVKO1!Z22","v":""},{"$f":"DVKO2!Z22","v":""},null,"RechercheV","RechercheV","RechercheV",null,"Valeur commune","Valeur commune"]
[null,{"$f":"DVK!Z23","v":""},{"$f":"DVKO1!Z23","v":""},{"$f":"DVKO2!Z23","v":""},null,"entre le S1 ","entre le S2 ","entre le S1 ",null,"aux 3 Séries","à 2 Séries"]
[null,{"$f":"DVK!Z24","v":""},{"$f":"DVKO1!Z24","v":""},{"$f":"DVKO2!Z24","v":""},null,"et S2","et S3","et S3",null,{"$f":"IF(COUNTIF($B$29:$B$50,B50)+COUNTIF($C$29:$C$50,B50)+COUNTIF($D$29:$D$50,B50)=3,B50,\"\")","v":""},{"$f":"IF(COUNTIF($B$29:$B$50,B50)+COUNTIF($C$29:$C$50,B50)+COUNTIF($D$29:$D$50,B50)=2,B50,\"\")","v":""}]
[null,{"$f":"DVK!Z25","v":""},{"$f":"DVKO1!Z25","v":""},{"$f":"DVKO2!Z25","v":""},null,{"$f":"VLOOKUP(C51,D51:D75,1,0)","v":""}]
[null,{"$f":"DVK!Z26","v":""},{"$f":"DVKO1!Z26","v":""},{"$f":"DVKO2!Z26","v":""},null,"Valeur commune","Valeur commune"]
[null,{"$f":"DVK!Z27","v":""},{"$f":"DVKO1!Z27","v":""},{"$f":"DVKO2!Z27","v":""},null,"aux 3 Séries","à 2 Séries"]
[]
[null,null,null,null,null,{"$f":"LEFT(J29, 2)","v":""},{"$f":"LEFT(K29, 2)","v":""}]
[null,null,null,null,null,"",{"$f":"LEFT(K30, 2)","v":""},null,"Chiffre "]
[null,null,null,null,null,"","",null,"du jour"]
[null,null,null,null,null,"","",null,{"$f":"Datas!K3","v":3}]
[null,null,null,null,null,"",""]
[null,null,null,null,null,"",""]
[null,null,null,null,null,"",""]
[null,null,null,null,null,"",""]
[null,null,null,null,null,"",""]
[null,null,null,null,null,"",""]
[null,null,null,null,null,"",""]
[null,null,null,null,null,"",""]
[null,null,null,null,null,"",""]
[null,null,null,null,null,"",""]
[null,null,null,null,null,"",""]
[null,null,null,null,null,"",""]
[null,null,null,null,null,{"$f":"LEFT(J45, 2)","v":""},{"$f":"LEFT(K45, 2)","v":""}]
[null,null,null,null,null,"",""]
[null,null,null,null,null,"",""]
[null,null,null,null,null,{"$f":"LEFT(#REF!, 2)","v":{"$error":"#REF!"}},{"$f":"LEFT(#REF!, 2)","v":{"$error":"#REF!"}}]
[null,null,null,null,null,{"$f":"LEFT(#REF!, 2)","v":{"$error":"#REF!"}},{"$f":"LEFT(#REF!, 2)","v":{"$error":"#REF!"}}]
[null,null,null,null,null,{"$f":"LEFT(J50, 2)","v":""},{"$f":"LEFT(K50, 2)","v":""}]

{"sheet":"Bibli","index":7,"n_rows":21,"n_cols":4,"rows_kept":21,"cut":false,"hidden":true,"merged":[[22,3,26,3]]}
[]
[null,null,null,"Arsenal"]
[null,null,null,"Aston Villa"]
[null,null,null,"Brighton"]
[null,null,null,"Burnley"]
[null,null,null,"Chelsea"]
[null,null,null,"Crystal Palace"]
[null,null,null,"Everton"]
[null,null,null,"Fulham"]
[null,null,null,"Leeds"]
[null,null,null,"Leicester"]
[null,null,null,"Liverpool"]
[null,null,null,"Manchester City"]
[null,null,null,"Manchester Utd"]
[null,null,null,"Newcastle"]
[null,null,null,"Sheffield Utd"]
[null,null,null,"Southampton"]
[null,null,null,"Tottenham"]
[null,null,null,"West Brom"]
[null,null,null,"West Ham"]
[null,null,null,"Wolves"]

{"sheet":"Feuil3","index":8,"n_rows":21,"n_cols":5,"rows_kept":21,"cut":false,"hidden":true,"merged":[[9,4,9,6],[21,5,21,7],[24,4,24,6],[10,4,10,6],[22,5,22,7],[14,4,14,6],[19,4,19,6],[20,4,20,6],[15,4,15,6]]}
[]
[]
[]
[]
[]
[]
[]
[]
[]
[null,null,"Dimanche 07/02 :",null,"Coupe d'Afrique des Nations"]
[null,null,null,null,"La finale"]
[]
[]
[]
[null,null,"Mercredi 10/02 :",null,"FA Cup "]
[null,null,null,null,"1/8éme de Finale"]
[]
[]
[]
[null,null,"Samedi 13/02 :",null,"25éme journée de Ligue 1"]
[null,null,null,null,"Les 10 rencontres"]

{"sheet":"Bibli2","index":9,"n_rows":730,"n_cols":5,"rows_kept":730,"cut":false,"hidden":true,"merged":[]}
[null,{"$f":"Datas!C10","v":"Monaco"},{"$f":"Datas!D10","v":"PSG"},"Chiffre ","ZONE"]
[null,1,1,1,"NUL"]
[null,2,2,2,"NUL"]
[null,3,3,3,"NUL"]
[null,4,4,4,"NUL"]
[null,5,5,5,"NUL"]
[null,6,6,6,"NUL"]
[null,7,7,7,"NUL"]
[null,8,8,8,"NUL"]
[null,9,9,9,"NUL"]
[null,1,1,2,"NUL"]
[null,1,1,3,{"$f":"B1","v":"Monaco"}]
[null,1,1,4,{"$f":"C1","v":"PSG"}]
[null,1,1,5,{"$f":"B1","v":"Monaco"}]
[null,1,1,6,{"$f":"B1","v":"Monaco"}]
[null,1,1,7,{"$f":"C1","v":"PSG"}]
[null,1,1,8,{"$f":"B1","v":"Monaco"}]
[null,1,1,9,"NUL"]
[null,1,2,1,{"$f":"B1","v":"Monaco"}]
[null,1,2,2,{"$f":"C1","v":"PSG"}]
[null,1,2,3,{"$f":"C1","v":"PSG"}]
[null,1,2,4,{"$f":"C1","v":"PSG"}]
[null,1,2,5,{"$f":"C1","v":"PSG"}]
[null,1,2,6,"NUL"]
[null,1,2,7,{"$f":"B1","v":"Monaco"}]
[null,1,2,8,{"$f":"B1","v":"Monaco"}]
[null,1,2,9,{"$f":"B1","v":"Monaco"}]
[null,1,3,1,{"$f":"B1","v":"Monaco"}]
[null,1,3,2,"NUL"]
[null,1,3,3,{"$f":"C1","v":"PSG"}]
[null,1,3,4,{"$f":"C1","v":"PSG"}]
[null,1,3,5,{"$f":"C1","v":"PSG"}]
[null,1,3,6,{"$f":"C1","v":"PSG"}]
[null,1,3,7,{"$f":"B1","v":"Monaco"}]
[null,1,3,8,{"$f":"B1","v":"Monaco"}]
[null,1,3,9,{"$f":"B1","v":"Monaco"}]
[null,1,4,1,{"$f":"B1","v":"Monaco"}]
[null,1,4,2,{"$f":"B1","v":"Monaco"}]
[null,1,4,3,{"$f":"C1","v":"PSG"}]
[null,1,4,4,{"$f":"C1","v":"PSG"}]
[null,1,4,5,{"$f":"C1","v":"PSG"}]
[null,1,4,6,{"$f":"C1","v":"PSG"}]
[null,1,4,7,"NUL"]
[null,1,4,8,{"$f":"B1","v":"Monaco"}]
[null,1,4,9,{"$f":"B1","v":"Monaco"}]
[null,1,5,1,{"$f":"B1","v":"Monaco"}]
[null,1,5,2,{"$f":"B1","v":"Monaco"}]
[null,1,5,3,"NUL"]
[null,1,5,4,{"$f":"C1","v":"PSG"}]
[null,1,5,5,{"$f":"C1","v":"PSG"}]
[null,1,5,6,{"$f":"C1","v":"PSG"}]
[null,1,5,7,{"$f":"C1","v":"PSG"}]
[null,1,5,8,{"$f":"B1","v":"Monaco"}]
[null,1,5,9,{"$f":"B1","v":"Monaco"}]
[null,1,6,1,{"$f":"B1","v":"Monaco"}]
[null,1,6,2,{"$f":"B1","v":"Monaco"}]
[null,1,6,3,{"$f":"B1","v":"Monaco"}]
[null,1,6,4,{"$f":"C1","v":"PSG"}]
[null,1,6,5,{"$f":"C1","v":"PSG"}]
[null,1,6,6,{"$f":"C1","v":"PSG"}]
[null,1,6,7,{"$f":"C1","v":"PSG"}]
[null,1,6,8,{"$f":"C1","v":"PSG"}]
[null,1,6,9,{"$f":"B1","v":"Monaco"}]
[null,1,7,1,{"$f":"B1","v":"Monaco"}]
[null,1,7,2,{"$f":"B1","v":"Monaco"}]
[null,1,7,3,{"$f":"B1","v":"Monaco"}]
[null,1,7,4,"NUL"]
[null,1,7,5,{"$f":"C1","v":"PSG"}]
[null,1,7,6,{"$f":"C1","v":"PSG"}]
[null,1,7,7,{"$f":"C1","v":"PSG"}]
[null,1,7,8,{"$f":"C1","v":"PSG"}]
[null,1,7,9,{"$f":"B1","v":"Monaco"}]
[null,1,8,1,{"$f":"B1","v":"Monaco"}]
[null,1,8,2,{"$f":"B1","v":"Monaco"}]
[null,1,8,3,{"$f":"B1","v":"Monaco"}]
[null,1,8,4,{"$f":"B1","v":"Monaco"}]
[null,1,8,5,{"$f":"C1","v":"PSG"}]
[null,1,8,6,{"$f":"C1","v":"PSG"}]
[null,1,8,7,{"$f":"C1","v":"PSG"}]
[null,1,8,8,{"$f":"C1","v":"PSG"}]
[null,1,8,9,"NUL"]
[null,1,9,1,{"$f":"B1","v":"Monaco"}]
[null,1,9,2,{"$f":"B1","v":"Monaco"}]
[null,1,9,3,{"$f":"B1","v":"Monaco"}]
[null,1,9,4,{"$f":"B1","v":"Monaco"}]
[null,1,9,5,"NUL"]
[null,1,9,6,{"$f":"C1","v":"PSG"}]
[null,1,9,7,{"$f":"C1","v":"PSG"}]
[null,1,9,8,{"$f":"C1","v":"PSG"}]
[null,1,9,9,{"$f":"C1","v":"PSG"}]
[null,2,1,1,{"$f":"C1","v":"PSG"}]
[null,2,1,2,{"$f":"B1","v":"Monaco"}]
[null,2,1,3,{"$f":"B1","v":"Monaco"}]
[null,2,1,4,{"$f":"B1","v":"Monaco"}]
[null,2,1,5,{"$f":"B1","v":"Monaco"}]
[null,2,1,6,"NUL"]
[null,2,1,7,{"$f":"C1","v":"PSG"}]
[null,2,1,8,{"$f":"C1","v":"PSG"}]
[null,2,1,9,{"$f":"C1","v":"PSG"}]
[null,2,2,1,"NUL"]
[null,2,2,3,"NUL"]
[null,2,2,4,{"$f":"B1","v":"Monaco"}]
[null,2,2,5,{"$f":"C1","v":"PSG"}]
[null,2,2,6,{"$f":"C1","v":"PSG"}]
[null,2,2,7,{"$f":"B1","v":"Monaco"}]
[null,2,2,8,{"$f":"C1","v":"PSG"}]
[null,2,2,9,{"$f":"B1","v":"Monaco"}]
[null,2,3,1,{"$f":"B1","v":"Monaco"}]
[null,2,3,2,{"$f":"B1","v":"Monaco"}]
[null,2,3,3,{"$f":"C1","v":"PSG"}]
[null,2,3,4,{"$f":"C1","v":"PSG"}]
[null,2,3,5,{"$f":"C1","v":"PSG"}]
[null,2,3,6,{"$f":"C1","v":"PSG"}]
[null,2,3,7,"NUL"]
[null,2,3,8,{"$f":"B1","v":"Monaco"}]
[null,2,3,9,{"$f":"B1","v":"Monaco"}]
[null,2,4,1,{"$f":"B1","v":"Monaco"}]
[null,2,4,2,{"$f":"B1","v":"Monaco"}]
[null,2,4,3,"NUL"]
[null,2,4,4,{"$f":"C1","v":"PSG"}]
[null,2,4,5,{"$f":"C1","v":"PSG"}]
[null,2,4,6,{"$f":"C1","v":"PSG"}]
[null,2,4,7,{"$f":"C1","v":"PSG"}]
[null,2,4,8,{"$f":"B1","v":"Monaco"}]
[null,2,4,9,{"$f":"B1","v":"Monaco"}]
[null,2,5,1,{"$f":"B1","v":"Monaco"}]
[null,2,5,2,{"$f":"B1","v":"Monaco"}]
[null,2,5,3,{"$f":"B1","v":"Monaco"}]
[null,2,5,4,{"$f":"C1","v":"PSG"}]
[null,2,5,5,{"$f":"C1","v":"PSG"}]
[null,2,5,6,{"$f":"C1","v":"PSG"}]
[null,2,5,7,{"$f":"C1","v":"PSG"}]
[null,2,5,8,"NUL"]
[null,2,5,9,{"$f":"B1","v":"Monaco"}]
[null,2,6,1,{"$f":"B1","v":"Monaco"}]
[null,2,6,2,{"$f":"B1","v":"Monaco"}]
[null,2,6,3,{"$f":"B1","v":"Monaco"}]
[null,2,6,4,"NUL"]
[null,2,6,5,{"$f":"C1","v":"PSG"}]
[null,2,6,6,{"$f":"C1","v":"PSG"}]
[null,2,6,7,{"$f":"C1","v":"PSG"}]
[null,2,6,8,{"$f":"C1","v":"PSG"}]
[null,2,6,9,{"$f":"C1","v":"PSG"}]
[null,2,7,1,{"$f":"B1","v":"Monaco"}]
[null,2,7,2,{"$f":"B1","v":"Monaco"}]
[null,2,7,3,{"$f":"B1","v":"Monaco"}]
[null,2,7,4,{"$f":"B1","v":"Monaco"}]
[null,2,7,5,{"$f":"C1","v":"PSG"}]
[null,2,7,6,{"$f":"C1","v":"PSG"}]
[null,2,7,7,{"$f":"C1","v":"PSG"}]
[null,2,7,8,{"$f":"C1","v":"PSG"}]
[null,2,7,9,"NUL"]
[null,2,8,1,{"$f":"B1","v":"Monaco"}]
[null,2,8,2,{"$f":"B1","v":"Monaco"}]
[null,2,8,3,{"$f":"B1","v":"Monaco"}]
[null,2,8,4,{"$f":"B1","v":"Monaco"}]
[null,2,8,5,"NUL"]
[null,2,8,6,{"$f":"C1","v":"PSG"}]
[null,2,8,7,{"$f":"C1","v":"PSG"}]
[null,2,8,8,{"$f":"C1","v":"PSG"}]
[null,2,8,9,{"$f":"C1","v":"PSG"}]
[null,2,9,1,"NUL"]
[null,2,9,2,{"$f":"B1","v":"Monaco"}]
[null,2,9,3,{"$f":"B1","v":"Monaco"}]
[null,2,9,4,{"$f":"B1","v":"Monaco"}]
[null,2,9,5,{"$f":"B1","v":"Monaco"}]
[null,2,9,6,{"$f":"C1","v":"PSG"}]
[null,2,9,7,{"$f":"C1","v":"PSG"}]
[null,2,9,8,{"$f":"C1","v":"PSG"}]
[null,2,9,9,{"$f":"C1","v":"PSG"}]
[null,3,1,1,{"$f":"C1","v":"PSG"}]
[null,3,1,2,"NUL"]
[null,3,1,3,{"$f":"B1","v":"Monaco"}]
[null,3,1,4,{"$f":"B1","v":"Monaco"}]
[null,3,1,5,{"$f":"B1","v":"Monaco"}]
[null,3,1,6,{"$f":"B1","v":"Monaco"}]
[null,3,1,7,{"$f":"C1","v":"PSG"}]
[null,3,1,8,{"$f":"C1","v":"PSG"}]
[null,3,1,9,{"$f":"C1","v":"PSG"}]
[null,3,2,1,{"$f":"C1","v":"PSG"}]
[null,3,2,2,{"$f":"C1","v":"PSG"}]
[null,3,2,3,{"$f":"B1","v":"Monaco"}]
[null,3,2,4,{"$f":"B1","v":"Monaco"}]
[null,3,2,5,{"$f":"B1","v":"Monaco"}]
[null,3,2,6,{"$f":"B1","v":"Monaco"}]
[null,3,2,7,"NUL"]
[null,3,2,8,{"$f":"C1","v":"PSG"}]
[null,3,2,9,{"$f":"C1","v":"PSG"}]
[null,3,3,1,{"$f":"B1","v":"Monaco"}]
[null,3,3,2,"NUL"]
[null,3,3,4,"NUL"]
[null,3,3,5,{"$f":"B1","v":"Monaco"}]
[null,3,3,6,{"$f":"C1","v":"PSG"}]
[null,3,3,7,{"$f":"B1","v":"Monaco"}]
[null,3,3,8,{"$f":"B1","v":"Monaco"}]
[null,3,3,9,{"$f":"C1","v":"PSG"}]
[null,3,4,1,{"$f":"B1","v":"Monaco"}]
[null,3,4,2,{"$f":"B1","v":"Monaco"}]
[null,3,4,3,{"$f":"B1","v":"Monaco"}]
[null,3,4,4,{"$f":"C1","v":"PSG"}]
[null,3,4,5,{"$f":"C1","v":"PSG"}]
[null,3,4,6,{"$f":"C1","v":"PSG"}]
[null,3,4,7,{"$f":"C1","v":"PSG"}]
[null,3,4,8,"NUL"]
[null,3,4,9,{"$f":"B1","v":"Monaco"}]
[null,3,5,1,{"$f":"B1","v":"Monaco"}]
[null,3,5,2,{"$f":"B1","v":"Monaco"}]
[null,3,5,3,{"$f":"B1","v":"Monaco"}]
[null,3,5,4,"NUL"]
[null,3,5,5,{"$f":"C1","v":"PSG"}]
[null,3,5,6,{"$f":"C1","v":"PSG"}]
[null,3,5,7,{"$f":"C1","v":"PSG"}]
[null,3,5,8,{"$f":"C1","v":"PSG"}]
[null,3,5,9,{"$f":"B1","v":"Monaco"}]
[null,3,6,1,{"$f":"B1","v":"Monaco"}]
[null,3,6,2,{"$f":"B1","v":"Monaco"}]
[null,3,6,3,{"$f":"B1","v":"Monaco"}]
[null,3,6,4,{"$f":"B1","v":"Monaco"}]
[null,3,6,5,{"$f":"C1","v":"PSG"}]
[null,3,6,6,{"$f":"C1","v":"PSG"}]
[null,3,6,7,{"$f":"C1","v":"PSG"}]
[null,3,6,8,{"$f":"C1","v":"PSG"}]
[null,3,6,9,"NUL"]
[null,3,7,1,{"$f":"B1","v":"Monaco"}]
[null,3,7,2,{"$f":"B1","v":"Monaco"}]
[null,3,7,3,{"$f":"B1","v":"Monaco"}]
[null,3,7,4,{"$f":"B1","v":"Monaco"}]
[null,3,7,5,"NUL"]
[null,3,7,6,{"$f":"C1","v":"PSG"}]
[null,3,7,7,{"$f":"C1","v":"PSG"}]
[null,3,7,8,{"$f":"C1","v":"PSG"}]
[null,3,7,9,{"$f":"C1","v":"PSG"}]
[null,3,8,1,"NUL"]
[null,3,8,2,{"$f":"B1","v":"Monaco"}]
[null,3,8,3,{"$f":"B1","v":"Monaco"}]
[null,3,8,4,{"$f":"B1","v":"Monaco"}]
[null,3,8,5,{"$f":"B1","v":"Monaco"}]
[null,3,8,6,{"$f":"C1","v":"PSG"}]
[null,3,8,7,{"$f":"C1","v":"PSG"}]
[null,3,8,8,{"$f":"C1","v":"PSG"}]
[null,3,8,9,{"$f":"C1","v":"PSG"}]
[null,3,9,1,{"$f":"C1","v":"PSG"}]
[null,3,9,2,{"$f":"B1","v":"Monaco"}]
[null,3,9,3,{"$f":"B1","v":"Monaco"}]
[null,3,9,4,{"$f":"B1","v":"Monaco"}]
[null,3,9,5,{"$f":"B1","v":"Monaco"}]
[null,3,9,6,"NUL"]
[null,3,9,7,{"$f":"C1","v":"PSG"}]
[null,3,9,8,{"$f":"C1","v":"PSG"}]
[null,3,9,9,{"$f":"C1","v":"PSG"}]
[null,4,1,1,{"$f":"C1","v":"PSG"}]
[null,4,1,2,{"$f":"C1","v":"PSG"}]
[null,4,1,3,{"$f":"B1","v":"Monaco"}]
[null,4,1,4,{"$f":"B1","v":"Monaco"}]
[null,4,1,5,{"$f":"B1","v":"Monaco"}]
[null,4,1,6,{"$f":"B1","v":"Monaco"}]
[null,4,1,7,"NUL"]
[null,4,1,8,{"$f":"C1","v":"PSG"}]
[null,4,1,9,{"$f":"C1","v":"PSG"}]
[null,4,2,1,{"$f":"C1","v":"PSG"}]
[null,4,2,2,{"$f":"C1","v":"PSG"}]
[null,4,2,3,"NUL"]
[null,4,2,4,{"$f":"B1","v":"Monaco"}]
[null,4,2,5,{"$f":"B1","v":"Monaco"}]
[null,4,2,6,{"$f":"B1","v":"Monaco"}]
[null,4,2,7,{"$f":"B1","v":"Monaco"}]
[null,4,2,8,{"$f":"C1","v":"PSG"}]
[null,4,2,9,{"$f":"C1","v":"PSG"}]
[null,4,3,1,{"$f":"C1","v":"PSG"}]
[null,4,3,2,{"$f":"C1","v":"PSG"}]
[null,4,3,3,{"$f":"C1","v":"PSG"}]
[null,4,3,4,{"$f":"B1","v":"Monaco"}]
[null,4,3,5,{"$f":"B1","v":"Monaco"}]
[null,4,3,6,{"$f":"B1","v":"Monaco"}]
[null,4,3,7,{"$f":"B1","v":"Monaco"}]
[null,4,3,8,"NUL"]
[null,4,3,9,{"$f":"C1","v":"PSG"}]
[null,4,4,1,{"$f":"B1","v":"Monaco"}]
[null,4,4,2,{"$f":"B1","v":"Monaco"}]
[null,4,4,3,"NUL"]
[null,4,4,5,"NUL"]
[null,4,4,6,{"$f":"B1","v":"Monaco"}]
[null,4,4,7,{"$f":"C1","v":"PSG"}]
[null,4,4,8,{"$f":"B1","v":"Monaco"}]
[null,4,4,9,{"$f":"B1","v":"Monaco"}]
[null,4,5,1,{"$f":"B1","v":"Monaco"}]
[null,4,5,2,{"$f":"B1","v":"Monaco"}]
[null,4,5,3,{"$f":"B1","v":"Monaco"}]
[null,4,5,4,{"$f":"B1","v":"Monaco"}]
[null,4,5,5,{"$f":"C1","v":"PSG"}]
[null,4,5,6,{"$f":"C1","v":"PSG"}]
[null,4,5,7,{"$f":"C1","v":"PSG"}]
[null,4,5,8,{"$f":"C1","v":"PSG"}]
[null,4,5,9,"NUL"]
[null,4,6,1,{"$f":"B1","v":"Monaco"}]
[null,4,6,2,{"$f":"B1","v":"Monaco"}]
[null,4,6,3,{"$f":"B1","v":"Monaco"}]
[null,4,6,4,{"$f":"B1","v":"Monaco"}]
[null,4,6,5,"NUL"]
[null,4,6,6,{"$f":"C1","v":"PSG"}]
[null,4,6,7,{"$f":"C1","v":"PSG"}]
[null,4,6,8,{"$f":"C1","v":"PSG"}]
[null,4,6,9,{"$f":"C1","v":"PSG"}]
[null,4,7,1,"NUL"]
[null,4,7,2,{"$f":"B1","v":"Monaco"}]
[null,4,7,3,{"$f":"B1","v":"Monaco"}]
[null,4,7,4,{"$f":"B1","v":"Monaco"}]
[null,4,7,5,{"$f":"B1","v":"Monaco"}]
[null,4,7,6,{"$f":"C1","v":"PSG"}]
[null,4,7,7,{"$f":"C1","v":"PSG"}]
[null,4,7,8,{"$f":"C1","v":"PSG"}]
[null,4,7,9,{"$f":"C1","v":"PSG"}]
[null,4,8,1,{"$f":"C1","v":"PSG"}]
[null,4,8,2,{"$f":"B1","v":"Monaco"}]
[null,4,8,3,{"$f":"B1","v":"Monaco"}]
[null,4,8,4,{"$f":"B1","v":"Monaco"}]
[null,4,8,5,{"$f":"B1","v":"Monaco"}]
[null,4,8,6,"NUL"]
[null,4,8,7,{"$f":"C1","v":"PSG"}]
[null,4,8,8,{"$f":"C1","v":"PSG"}]
[null,4,8,9,{"$f":"C1","v":"PSG"}]
[null,4,9,1,{"$f":"C1","v":"PSG"}]
[null,4,9,2,"NUL"]
[null,4,9,3,{"$f":"B1","v":"Monaco"}]
[null,4,9,4,{"$f":"B1","v":"Monaco"}]
[null,4,9,5,{"$f":"B1","v":"Monaco"}]
[null,4,9,6,{"$f":"B1","v":"Monaco"}]
[null,4,9,7,{"$f":"C1","v":"PSG"}]
[null,4,9,8,{"$f":"C1","v":"PSG"}]
[null,4,9,9,{"$f":"C1","v":"PSG"}]
[null,5,1,1,{"$f":"C1","v":"PSG"}]
[null,5,1,2,{"$f":"C1","v":"PSG"}]
[null,5,1,3,"NUL"]
[null,5,1,4,{"$f":"B1","v":"Monaco"}]
[null,5,1,5,{"$f":"B1","v":"Monaco"}]
[null,5,1,6,{"$f":"B1","v":"Monaco"}]
[null,5,1,7,{"$f":"B1","v":"Monaco"}]
[null,5,1,8,{"$f":"C1","v":"PSG"}]
[null,5,1,9,{"$f":"C1","v":"PSG"}]
[null,5,2,1,{"$f":"C1","v":"PSG"}]
[null,5,2,2,{"$f":"C1","v":"PSG"}]
[null,5,2,3,{"$f":"C1","v":"PSG"}]
[null,5,2,4,{"$f":"B1","v":"Monaco"}]
[null,5,2,5,{"$f":"B1","v":"Monaco"}]
[null,5,2,6,{"$f":"B1","v":"Monaco"}]
[null,5,2,7,{"$f":"B1","v":"Monaco"}]
[null,5,2,8,"NUL"]
[null,5,2,9,{"$f":"C1","v":"PSG"}]
[null,5,3,1,{"$f":"C1","v":"PSG"}]
[null,5,3,2,{"$f":"C1","v":"PSG"}]
[null,5,3,3,{"$f":"C1","v":"PSG"}]
[null,5,3,4,"NUL"]
[null,5,3,5,{"$f":"B1","v":"Monaco"}]
[null,5,3,6,{"$f":"B1","v":"Monaco"}]
[null,5,3,7,{"$f":"B1","v":"Monaco"}]
[null,5,3,8,{"$f":"B1","v":"Monaco"}]
[null,5,3,9,{"$f":"C1","v":"PSG"}]
[null,5,4,1,{"$f":"C1","v":"PSG"}]
[null,5,4,2,{"$f":"C1","v":"PSG"}]
[null,5,4,3,{"$f":"C1","v":"PSG"}]
[null,5,4,4,{"$f":"C1","v":"PSG"}]
[null,5,4,5,{"$f":"B1","v":"Monaco"}]
[null,5,4,6,{"$f":"B1","v":"Monaco"}]
[null,5,4,7,{"$f":"B1","v":"Monaco"}]
[null,5,4,8,{"$f":"B1","v":"Monaco"}]
[null,5,4,9,"NUL"]
[null,5,5,1,{"$f":"B1","v":"Monaco"}]
[null,5,5,2,{"$f":"B1","v":"Monaco"}]
[null,5,5,3,{"$f":"B1","v":"Monaco"}]
[null,5,5,4,"NUL"]
[null,5,5,6,"NUL"]
[null,5,5,7,{"$f":"B1","v":"Monaco"}]
[null,5,5,8,{"$f":"C1","v":"PSG"}]
[null,5,5,9,"NUL"]
[null,5,6,1,"NUL"]
[null,5,6,2,{"$f":"B1","v":"Monaco"}]
[null,5,6,3,{"$f":"B1","v":"Monaco"}]
[null,5,6,4,{"$f":"B1","v":"Monaco"}]
[null,5,6,5,{"$f":"B1","v":"Monaco"}]
[null,5,6,6,{"$f":"C1","v":"PSG"}]
[null,5,6,7,{"$f":"C1","v":"PSG"}]
[null,5,6,8,{"$f":"C1","v":"PSG"}]
[null,5,6,9,{"$f":"C1","v":"PSG"}]
[null,5,7,1,{"$f":"C1","v":"PSG"}]
[null,5,7,2,{"$f":"B1","v":"Monaco"}]
[null,5,7,3,{"$f":"B1","v":"Monaco"}]
[null,5,7,4,{"$f":"B1","v":"Monaco"}]
[null,5,7,5,{"$f":"B1","v":"Monaco"}]
[null,5,7,6,"NUL"]
[null,5,7,7,{"$f":"C1","v":"PSG"}]
[null,5,7,8,{"$f":"C1","v":"PSG"}]
[null,5,7,9,{"$f":"C1","v":"PSG"}]
[null,5,8,1,{"$f":"C1","v":"PSG"}]
[null,5,8,2,"NUL"]
[null,5,8,3,{"$f":"B1","v":"Monaco"}]
[null,5,8,4,{"$f":"B1","v":"Monaco"}]
[null,5,8,5,{"$f":"B1","v":"Monaco"}]
[null,5,8,6,{"$f":"B1","v":"Monaco"}]
[null,5,8,7,{"$f":"C1","v":"PSG"}]
[null,5,8,8,{"$f":"C1","v":"PSG"}]
[null,5,8,9,{"$f":"C1","v":"PSG"}]
[null,5,9,1,{"$f":"C1","v":"PSG"}]
[null,5,9,2,{"$f":"C1","v":"PSG"}]
[null,5,9,3,{"$f":"B1","v":"Monaco"}]
[null,5,9,4,{"$f":"B1","v":"Monaco"}]
[null,5,9,5,{"$f":"B1","v":"Monaco"}]
[null,5,9,6,{"$f":"B1","v":"Monaco"}]
[null,5,9,7,"NUL"]
[null,5,9,8,{"$f":"C1","v":"PSG"}]
[null,5,9,9,{"$f":"C1","v":"PSG"}]
[null,6,1,1,{"$f":"C1","v":"PSG"}]
[null,6,1,2,{"$f":"C1","v":"PSG"}]
[null,6,1,3,{"$f":"C1","v":"PSG"}]
[null,6,1,4,{"$f":"B1","v":"Monaco"}]
[null,6,1,5,{"$f":"B1","v":"Monaco"}]
[null,6,1,6,{"$f":"B1","v":"Monaco"}]
[null,6,1,7,{"$f":"B1","v":"Monaco"}]
[null,6,1,8,"NUL"]
[null,6,1,9,{"$f":"C1","v":"PSG"}]
[null,6,2,1,{"$f":"C1","v":"PSG"}]
[null,6,2,2,{"$f":"C1","v":"PSG"}]
[null,6,2,3,{"$f":"C1","v":"PSG"}]
[null,6,2,4,"NUL"]
[null,6,2,5,{"$f":"B1","v":"Monaco"}]
[null,6,2,6,{"$f":"B1","v":"Monaco"}]
[null,6,2,7,{"$f":"B1","v":"Monaco"}]
[null,6,2,8,{"$f":"B1","v":"Monaco"}]
[null,6,2,9,{"$f":"C1","v":"PSG"}]
[null,6,3,1,{"$f":"C1","v":"PSG"}]
[null,6,3,2,{"$f":"C1","v":"PSG"}]
[null,6,3,3,{"$f":"C1","v":"PSG"}]
[null,6,3,4,{"$f":"C1","v":"PSG"}]
[null,6,3,5,{"$f":"B1","v":"Monaco"}]
[null,6,3,6,{"$f":"B1","v":"Monaco"}]
[null,6,3,7,{"$f":"B1","v":"Monaco"}]
[null,6,3,8,{"$f":"B1","v":"Monaco"}]
[null,6,3,9,"NUL"]
[null,6,4,1,{"$f":"C1","v":"PSG"}]
[null,6,4,2,{"$f":"C1","v":"PSG"}]
[null,6,4,3,{"$f":"C1","v":"PSG"}]
[null,6,4,4,{"$f":"C1","v":"PSG"}]
[null,6,4,5,"NUL"]
[null,6,4,6,{"$f":"B1","v":"Monaco"}]
[null,6,4,7,{"$f":"B1","v":"Monaco"}]
[null,6,4,8,{"$f":"B1","v":"Monaco"}]
[null,6,4,9,{"$f":"B1","v":"Monaco"}]
[null,6,5,1,"NUL"]
[null,6,5,2,{"$f":"C1","v":"PSG"}]
[null,6,5,3,{"$f":"C1","v":"PSG"}]
[null,6,5,4,{"$f":"C1","v":"PSG"}]
[null,6,5,5,{"$f":"C1","v":"PSG"}]
[null,6,5,6,{"$f":"B1","v":"Monaco"}]
[null,6,5,7,{"$f":"B1","v":"Monaco"}]
[null,6,5,8,{"$f":"B1","v":"Monaco"}]
[null,6,5,9,{"$f":"B1","v":"Monaco"}]
[null,6,6,1,{"$f":"B1","v":"Monaco"}]
[null,6,6,2,{"$f":"B1","v":"Monaco"}]
[null,6,6,3,{"$f":"B1","v":"Monaco"}]
[null,6,6,4,{"$f":"B1","v":"Monaco"}]
[null,6,6,5,"NUL"]
[null,6,6,7,"NUL"]
[null,6,6,8,{"$f":"B1","v":"Monaco"}]
[null,6,6,9,{"$f":"C1","v":"PSG"}]
[null,6,7,1,{"$f":"C1","v":"PSG"}]
[null,6,7,2,"NUL"]
[null,6,7,3,{"$f":"B1","v":"Monaco"}]
[null,6,7,4,{"$f":"B1","v":"Monaco"}]
[null,6,7,5,{"$f":"B1","v":"Monaco"}]
[null,6,7,6,{"$f":"B1","v":"Monaco"}]
[null,6,7,7,{"$f":"C1","v":"PSG"}]
[null,6,7,8,{"$f":"C1","v":"PSG"}]
[null,6,7,9,{"$f":"C1","v":"PSG"}]
[null,6,8,1,{"$f":"C1","v":"PSG"}]
[null,6,8,2,{"$f":"C1","v":"PSG"}]
[null,6,8,3,{"$f":"B1","v":"Monaco"}]
[null,6,8,4,{"$f":"B1","v":"Monaco"}]
[null,6,8,5,{"$f":"B1","v":"Monaco"}]
[null,6,8,6,{"$f":"B1","v":"Monaco"}]
[null,6,8,7,"NUL"]
[null,6,8,8,{"$f":"C1","v":"PSG"}]
[null,6,8,9,{"$f":"C1","v":"PSG"}]
[null,6,9,1,{"$f":"C1","v":"PSG"}]
[null,6,9,2,{"$f":"C1","v":"PSG"}]
[null,6,9,3,"NUL"]
[null,6,9,4,{"$f":"B1","v":"Monaco"}]
[null,6,9,5,{"$f":"B1","v":"Monaco"}]
[null,6,9,6,{"$f":"B1","v":"Monaco"}]
[null,6,9,7,{"$f":"B1","v":"Monaco"}]
[null,6,9,8,{"$f":"C1","v":"PSG"}]
[null,6,9,9,{"$f":"C1","v":"PSG"}]
[null,7,1,1,{"$f":"C1","v":"PSG"}]
[null,7,1,2,{"$f":"C1","v":"PSG"}]
[null,7,1,3,{"$f":"C1","v":"PSG"}]
[null,7,1,4,"NUL"]
[null,7,1,5,{"$f":"B1","v":"Monaco"}]
[null,7,1,6,{"$f":"B1","v":"Monaco"}]
[null,7,1,7,{"$f":"B1","v":"Monaco"}]
[null,7,1,8,{"$f":"B1","v":"Monaco"}]
[null,7,1,9,{"$f":"C1","v":"PSG"}]
[null,7,2,1,{"$f":"C1","v":"PSG"}]
[null,7,2,2,{"$f":"C1","v":"PSG"}]
[null,7,2,3,{"$f":"C1","v":"PSG"}]
[null,7,2,4,{"$f":"C1","v":"PSG"}]
[null,7,2,5,{"$f":"C1","v":"PSG"}]
[null,7,2,6,{"$f":"B1","v":"Monaco"}]
[null,7,2,7,{"$f":"B1","v":"Monaco"}]
[null,7,2,8,{"$f":"B1","v":"Monaco"}]
[null,7,2,9,"NUL"]
[null,7,3,1,{"$f":"C1","v":"PSG"}]
[null,7,3,2,{"$f":"C1","v":"PSG"}]
[null,7,3,3,{"$f":"C1","v":"PSG"}]
[null,7,3,4,{"$f":"C1","v":"PSG"}]
[null,7,3,5,"NUL"]
[null,7,3,6,{"$f":"B1","v":"Monaco"}]
[null,7,3,7,{"$f":"B1","v":"Monaco"}]
[null,7,3,8,{"$f":"B1","v":"Monaco"}]
[null,7,3,9,{"$f":"B1","v":"Monaco"}]
[null,7,4,1,"NUL"]
[null,7,4,2,{"$f":"C1","v":"PSG"}]
[null,7,4,3,{"$f":"C1","v":"PSG"}]
[null,7,4,4,{"$f":"C1","v":"PSG"}]
[null,7,4,5,{"$f":"C1","v":"PSG"}]
[null,7,4,6,{"$f":"B1","v":"Monaco"}]
[null,7,4,7,{"$f":"B1","v":"Monaco"}]
[null,7,4,8,{"$f":"B1","v":"Monaco"}]
[null,7,4,9,{"$f":"B1","v":"Monaco"}]
[null,7,5,1,{"$f":"B1","v":"Monaco"}]
[null,7,5,2,{"$f":"C1","v":"PSG"}]
[null,7,5,3,{"$f":"C1","v":"PSG"}]
[null,7,5,4,{"$f":"C1","v":"PSG"}]
[null,7,5,5,{"$f":"C1","v":"PSG"}]
[null,7,5,6,"NUL"]
[null,7,5,7,{"$f":"B1","v":"Monaco"}]
[null,7,5,8,{"$f":"B1","v":"Monaco"}]
[null,7,5,9,{"$f":"B1","v":"Monaco"}]
[null,7,6,1,{"$f":"B1","v":"Monaco"}]
[null,7,6,2,"NUL"]
[null,7,6,3,{"$f":"C1","v":"PSG"}]
[null,7,6,4,{"$f":"C1","v":"PSG"}]
[null,7,6,5,{"$f":"C1","v":"PSG"}]
[null,7,6,6,{"$f":"C1","v":"PSG"}]
[null,7,6,7,{"$f":"B1","v":"Monaco"}]
[null,7,6,8,{"$f":"B1","v":"Monaco"}]
[null,7,6,9,{"$f":"B1","v":"Monaco"}]
[null,7,7,1,{"$f":"B1","v":"Monaco"}]
[null,7,7,2,{"$f":"B1","v":"Monaco"}]
[null,7,7,3,{"$f":"B1","v":"Monaco"}]
[null,7,7,4,{"$f":"B1","v":"Monaco"}]
[null,7,7,5,{"$f":"B1","v":"Monaco"}]
[null,7,7,6,"NUL"]
[null,7,7,8,"NUL"]
[null,7,7,9,{"$f":"B1","v":"Monaco"}]
[null,7,8,1,{"$f":"C1","v":"PSG"}]
[null,7,8,2,{"$f":"C1","v":"PSG"}]
[null,7,8,3,"NUL"]
[null,7,8,4,{"$f":"B1","v":"Monaco"}]
[null,7,8,5,{"$f":"B1","v":"Monaco"}]
[null,7,8,6,{"$f":"B1","v":"Monaco"}]
[null,7,8,7,{"$f":"B1","v":"Monaco"}]
[null,7,8,8,{"$f":"C1","v":"PSG"}]
[null,7,8,9,{"$f":"C1","v":"PSG"}]
[null,7,9,1,{"$f":"C1","v":"PSG"}]
[null,7,9,2,{"$f":"C1","v":"PSG"}]
[null,7,9,3,{"$f":"C1","v":"PSG"}]
[null,7,9,4,{"$f":"B1","v":"Monaco"}]
[null,7,9,5,{"$f":"B1","v":"Monaco"}]
[null,7,9,6,{"$f":"B1","v":"Monaco"}]
[null,7,9,7,{"$f":"B1","v":"Monaco"}]
[null,7,9,8,"NUL"]
[null,7,9,9,{"$f":"C1","v":"PSG"}]
[null,8,1,1,{"$f":"C1","v":"PSG"}]
[null,8,1,2,{"$f":"C1","v":"PSG"}]
[null,8,1,3,{"$f":"C1","v":"PSG"}]
[null,8,1,4,{"$f":"C1","v":"PSG"}]
[null,8,1,5,{"$f":"B1","v":"Monaco"}]
[null,8,1,6,{"$f":"B1","v":"Monaco"}]
[null,8,1,7,{"$f":"B1","v":"Monaco"}]
[null,8,1,8,{"$f":"B1","v":"Monaco"}]
[null,8,1,9,"NUL"]
[null,8,2,1,{"$f":"C1","v":"PSG"}]
[null,8,2,2,{"$f":"C1","v":"PSG"}]
[null,8,2,3,{"$f":"C1","v":"PSG"}]
[null,8,2,4,{"$f":"C1","v":"PSG"}]
[null,8,2,5,"NUL"]
[null,8,2,6,{"$f":"B1","v":"Monaco"}]
[null,8,2,7,{"$f":"B1","v":"Monaco"}]
[null,8,2,8,{"$f":"B1","v":"Monaco"}]
[null,8,2,9,{"$f":"B1","v":"Monaco"}]
[null,8,3,1,"NUL"]
[null,8,3,2,{"$f":"C1","v":"PSG"}]
[null,8,3,3,{"$f":"C1","v":"PSG"}]
[null,8,3,4,{"$f":"C1","v":"PSG"}]
[null,8,3,5,{"$f":"C1","v":"PSG"}]
[null,8,3,6,{"$f":"B1","v":"Monaco"}]
[null,8,3,7,{"$f":"B1","v":"Monaco"}]
[null,8,3,8,{"$f":"B1","v":"Monaco"}]
[null,8,3,9,{"$f":"B1","v":"Monaco"}]
[null,8,4,1,{"$f":"B1","v":"Monaco"}]
[null,8,4,2,{"$f":"C1","v":"PSG"}]
[null,8,4,3,{"$f":"C1","v":"PSG"}]
[null,8,4,4,{"$f":"C1","v":"PSG"}]
[null,8,4,5,{"$f":"C1","v":"PSG"}]
[null,8,4,6,"NUL"]
[null,8,4,7,{"$f":"B1","v":"Monaco"}]
[null,8,4,8,{"$f":"B1","v":"Monaco"}]
[null,8,4,9,{"$f":"B1","v":"Monaco"}]
[null,8,5,1,{"$f":"B1","v":"Monaco"}]
[null,8,5,2,"NUL"]
[null,8,5,3,{"$f":"C1","v":"PSG"}]
[null,8,5,4,{"$f":"C1","v":"PSG"}]
[null,8,5,5,{"$f":"C1","v":"PSG"}]
[null,8,5,6,{"$f":"C1","v":"PSG"}]
[null,8,5,7,{"$f":"B1","v":"Monaco"}]
[null,8,5,8,{"$f":"B1","v":"Monaco"}]
[null,8,5,9,{"$f":"B1","v":"Monaco"}]
[null,8,6,1,{"$f":"B1","v":"Monaco"}]
[null,8,6,2,{"$f":"B1","v":"Monaco"}]
[null,8,6,3,{"$f":"C1","v":"PSG"}]
[null,8,6,4,{"$f":"C1","v":"PSG"}]
[null,8,6,5,{"$f":"C1","v":"PSG"}]
[null,8,6,6,{"$f":"C1","v":"PSG"}]
[null,8,6,7,"NUL"]
[null,8,6,8,{"$f":"B1","v":"Monaco"}]
[null,8,6,9,{"$f":"B1","v":"Monaco"}]
[null,8,7,1,{"$f":"B1","v":"Monaco"}]
[null,8,7,2,{"$f":"B1","v":"Monaco"}]
[null,8,7,3,"NUL"]
[null,8,7,4,{"$f":"C1","v":"PSG"}]
[null,8,7,5,{"$f":"C1","v":"PSG"}]
[null,8,7,6,{"$f":"C1","v":"PSG"}]
[null,8,7,7,{"$f":"C1","v":"PSG"}]
[null,8,7,8,{"$f":"B1","v":"Monaco"}]
[null,8,7,9,{"$f":"B1","v":"Monaco"}]
[null,8,8,1,{"$f":"B1","v":"Monaco"}]
[null,8,8,2,{"$f":"B1","v":"Monaco"}]
[null,8,8,3,{"$f":"B1","v":"Monaco"}]
[null,8,8,4,{"$f":"B1","v":"Monaco"}]
[null,8,8,5,{"$f":"B1","v":"Monaco"}]
[null,8,8,6,{"$f":"B1","v":"Monaco"}]
[null,8,8,7,"NUL"]
[null,8,8,9,"NUL"]
[null,8,9,1,{"$f":"C1","v":"PSG"}]
[null,8,9,2,{"$f":"C1","v":"PSG"}]
[null,8,9,3,{"$f":"C1","v":"PSG"}]
[null,8,9,4,"NUL"]
[null,8,9,5,{"$f":"B1","v":"Monaco"}]
[null,8,9,6,{"$f":"B1","v":"Monaco"}]
[null,8,9,7,{"$f":"B1","v":"Monaco"}]
[null,8,9,8,{"$f":"B1","v":"Monaco"}]
[null,8,9,9,{"$f":"C1","v":"PSG"}]
[null,9,1,1,{"$f":"C1","v":"PSG"}]
[null,9,1,2,{"$f":"C1","v":"PSG"}]
[null,9,1,3,{"$f":"C1","v":"PSG"}]
[null,9,1,4,{"$f":"C1","v":"PSG"}]
[null,9,1,5,"NUL"]
[null,9,1,6,{"$f":"B1","v":"Monaco"}]
[null,9,1,7,{"$f":"B1","v":"Monaco"}]
[null,9,1,8,{"$f":"B1","v":"Monaco"}]
[null,9,1,9,{"$f":"B1","v":"Monaco"}]
[null,9,2,1,"NUL"]
[null,9,2,2,{"$f":"C1","v":"PSG"}]
[null,9,2,3,{"$f":"C1","v":"PSG"}]
[null,9,2,4,{"$f":"C1","v":"PSG"}]
[null,9,2,5,{"$f":"C1","v":"PSG"}]
[null,9,2,6,{"$f":"B1","v":"Monaco"}]
[null,9,2,7,{"$f":"B1","v":"Monaco"}]
[null,9,2,8,{"$f":"B1","v":"Monaco"}]
[null,9,2,9,{"$f":"B1","v":"Monaco"}]
[null,9,3,1,{"$f":"B1","v":"Monaco"}]
[null,9,3,2,{"$f":"C1","v":"PSG"}]
[null,9,3,3,{"$f":"C1","v":"PSG"}]
[null,9,3,4,{"$f":"C1","v":"PSG"}]
[null,9,3,5,{"$f":"C1","v":"PSG"}]
[null,9,3,6,"NUL"]
[null,9,3,7,{"$f":"B1","v":"Monaco"}]
[null,9,3,8,{"$f":"B1","v":"Monaco"}]
[null,9,3,9,{"$f":"B1","v":"Monaco"}]
[null,9,4,1,{"$f":"B1","v":"Monaco"}]
[null,9,4,2,"NUL"]
[null,9,4,3,{"$f":"C1","v":"PSG"}]
[null,9,4,4,{"$f":"C1","v":"PSG"}]
[null,9,4,5,{"$f":"C1","v":"PSG"}]
[null,9,4,6,{"$f":"C1","v":"PSG"}]
[null,9,4,7,{"$f":"B1","v":"Monaco"}]
[null,9,4,8,{"$f":"B1","v":"Monaco"}]
[null,9,4,9,{"$f":"B1","v":"Monaco"}]
[null,9,5,1,{"$f":"B1","v":"Monaco"}]
[null,9,5,2,{"$f":"B1","v":"Monaco"}]
[null,9,5,3,{"$f":"C1","v":"PSG"}]
[null,9,5,4,{"$f":"C1","v":"PSG"}]
[null,9,5,5,{"$f":"C1","v":"PSG"}]
[null,9,5,6,{"$f":"C1","v":"PSG"}]
[null,9,5,7,"NUL"]
[null,9,5,8,{"$f":"B1","v":"Monaco"}]
[null,9,5,9,{"$f":"B1","v":"Monaco"}]
[null,9,6,1,{"$f":"B1","v":"Monaco"}]
[null,9,6,2,{"$f":"B1","v":"Monaco"}]
[null,9,6,3,"NUL"]
[null,9,6,4,{"$f":"C1","v":"PSG"}]
[null,9,6,5,{"$f":"C1","v":"PSG"}]
[null,9,6,6,{"$f":"C1","v":"PSG"}]
[null,9,6,7,{"$f":"C1","v":"PSG"}]
[null,9,6,8,{"$f":"B1","v":"Monaco"}]
[null,9,6,9,{"$f":"B1","v":"Monaco"}]
[null,9,7,1,{"$f":"B1","v":"Monaco"}]
[null,9,7,2,{"$f":"B1","v":"Monaco"}]
[null,9,7,3,{"$f":"B1","v":"Monaco"}]
[null,9,7,4,{"$f":"C1","v":"PSG"}]
[null,9,7,5,{"$f":"C1","v":"PSG"}]
[null,9,7,6,{"$f":"C1","v":"PSG"}]
[null,9,7,7,{"$f":"C1","v":"PSG"}]
[null,9,7,8,"NUL"]
[null,9,7,9,{"$f":"B1","v":"Monaco"}]
[null,9,8,1,{"$f":"B1","v":"Monaco"}]
[null,9,8,2,{"$f":"B1","v":"Monaco"}]
[null,9,8,3,{"$f":"B1","v":"Monaco"}]
[null,9,8,4,"NUL"]
[null,9,8,5,{"$f":"C1","v":"PSG"}]
[null,9,8,6,{"$f":"C1","v":"PSG"}]
[null,9,8,7,{"$f":"C1","v":"PSG"}]
[null,9,8,8,{"$f":"C1","v":"PSG"}]
[null,9,8,9,{"$f":"B1","v":"Monaco"}]
[null,9,9,1,"NUL"]
[null,9,9,2,{"$f":"B1","v":"Monaco"}]
[null,9,9,3,{"$f":"B1","v":"Monaco"}]
[null,9,9,4,{"$f":"B1","v":"Monaco"}]
[null,9,9,5,{"$f":"B1","v":"Monaco"}]
[null,9,9,6,{"$f":"B1","v":"Monaco"}]
[null,9,9,7,{"$f":"B1","v":"Monaco"}]
[null,9,9,8,"NUL"]

{"sheet":"Feuil1","index":10,"n_rows":34,"n_cols":5,"rows_kept":34,"cut":false,"hidden":true,"merged":[]}
[1,2,null,1,1]
[1,3,null,1,5]
[1,4,null,1,6]
[1,5,null,1,7]
[1,6,null,1,8]
[1,7,null,1,9]
[1,8,null,2,1]
[2,2,null,2,4]
[2,3,null,2,5]
[2,4,null,2,6]
[2,5,null,2,7]
[2,6,null,2,8]
[2,7,null,2,9]
[3,4,null,3,1]
[3,5,null,3,4]
[3,6,null,3,5]
[4,5,null,3,6]
[6,5,null,3,7]
[7,2,null,3,8]
[7,4,null,3,9]
[7,5,null,4,4]
[7,6,null,4,5]
[8,3,null,4,6]
[8,4,null,4,7]
[8,5,null,4,8]
[8,6,null,4,9]
[8,7,null,5,6]
[9,2,null,5,7]
[9,3,null,5,8]
[9,4,null,6,7]
[9,5,null,8,7]
[9,6,null,9,6]
[9,7,null,9,7]
[9,8,null,9,8]